Workbook

Sheet גיליון1
A1: רשימה | B1: קולות | C1: הסכמי עודפים | D1: חלוקת מנדטים | E1: ללא הסכמי עודפים | F1: לפני באדר-עופר | G1: אחוז החסימה | H1: מנדטים | I1: מודד למנדט
A2: הבית היהודי | B2: 254663 | C2: 1 | D2: =גיליון2!BC2 -> 8 | E2: =גיליון2!AT102 -> 8 | F2: =גיליון2!AT52 -> 8 | G2: 0.0325 | H2: 120 | I2: =גיליון2!E2 -> 31895.95833
A3: הליכוד | B3: 924766 | C3: 2 | D3: =גיליון2!BC3 -> 29 | E3: =גיליון2!AT103 -> 29 | F3: =גיליון2!AT53 -> 29 | G3: =גיליון1!B40*G2 -> 129572.7875
A4: יש עתיד | B4: 348802 | C4: 0 | D4: =גיליון2!BC4 -> 11 | E4: =גיליון2!AT104 -> 11 | F4: =גיליון2!AT54 -> 11
A5: המחנה הציוני | B5: 744673 | C5: 1 | D5: =גיליון2!BC5 -> 24 | E5: =גיליון2!AT105 -> 24 | F5: =גיליון2!AT55 -> 23
A6: מרץ | B6: 154648 | C6: 2 | D6: =גיליון2!BC6 -> 4 | E6: =גיליון2!AT106 -> 5 | F6: =גיליון2!AT56 -> 5
A7: רעם | B7: 463532 | C7: 0 | D7: =גיליון2!BC7 -> 14 | E7: =גיליון2!AT107 -> 15 | F7: =גיליון2!AT57 -> 15
A8: יחד | B8: 118368 | C8: 0 | D8: =גיליון2!BC8 -> 0 | E8: =גיליון2!AT108 -> 0 | F8: =גיליון2!AT58 -> 0
A9: יהדות התורה | B9: 205551 | C9: 1 | D9: =גיליון2!BC9 -> 7 | E9: =גיליון2!AT109 -> 6 | F9: =גיליון2!AT59 -> 6
A10: שס | B10: 230735 | C10: 2 | D10: =גיליון2!BC10 -> 7 | E10: =גיליון2!AT110 -> 7 | F10: =גיליון2!AT60 -> 7
A11: כחלון | B11: 294526 | C11: 1 | D11: =גיליון2!BC11 -> 10 | E11: =גיליון2!AT111 -> 9 | F11: =גיליון2!AT61 -> 9
A12: ישראל ביתנו | B12: 205619 | C12: 2 | D12: =גיליון2!BC12 -> 6 | E12: =גיליון2!AT112 -> 6 | F12: =גיליון2!AT62 -> 7
A13: עלה ירוק - הרשימה הליברלית | B13: 38624 | C13: 0 | D13: =גיליון2!BC13 -> 0 | E13: =גיליון2!AT113 -> 0 | F13: =גיליון2!AT63 -> 0
A14: כולנו חברים נ נח | B14: 2348 | D14: =גיליון2!BC14 -> 0 | E14: =גיליון2!AT114 -> 0 | F14: =גיליון2!AT64 -> 0
A15: 0 | C15: 1 | D15: =גיליון2!BC15 -> 0 | E15: =גיליון2!AT115 -> 0 | F15: =גיליון2!AT65 -> 0
A16: 0 | C16: 2 | D16: =גיליון2!BC16 -> 0 | E16: =גיליון2!AT116 -> 0 | F16: =גיליון2!AT66 -> 0
A17: 0 | C17: 1 | D17: =גיליון2!BC17 -> 0 | E17: =גיליון2!AT117 -> 0 | F17: =גיליון2!AT67 -> 0
A18: 0 | C18: 2 | D18: =גיליון2!BC18 -> 0 | E18: =גיליון2!AT118 -> 0 | F18: =גיליון2!AT68 -> 0
A19: 0 | D19: =גיליון2!BC19 -> 0 | E19: =גיליון2!AT119 -> 0 | F19: =גיליון2!AT69 -> 0
A20: 0 | C20: 1 | D20: =גיליון2!BC20 -> 0 | E20: =גיליון2!AT120 -> 0 | F20: =גיליון2!AT70 -> 0
A21: 0 | C21: 2 | D21: =גיליון2!BC21 -> 0 | E21: =גיליון2!AT121 -> 0 | F21: =גיליון2!AT71 -> 0
A22: 0 | D22: =גיליון2!BC22 -> 0 | E22: =גיליון2!AT122 -> 0 | F22: =גיליון2!AT72 -> 0
A23: 0 | D23: =גיליון2!BC23 -> 0 | E23: =גיליון2!AT123 -> 0 | F23: =גיליון2!AT73 -> 0
A24: 0 | D24: =גיליון2!BC24 -> 0 | E24: =גיליון2!AT124 -> 0 | F24: =גיליון2!AT74 -> 0
A25: 0 | D25: =גיליון2!BC25 -> 0 | E25: =גיליון2!AT125 -> 0 | F25: =גיליון2!AT75 -> 0
A26: 0 | D26: =גיליון2!BC26 -> 0 | E26: =גיליון2!AT126 -> 0 | F26: =גיליון2!AT76 -> 0
A27: 0 | D27: =גיליון2!BC27 -> 0 | E27: =גיליון2!AT127 -> 0 | F27: =גיליון2!AT77 -> 0
A28: 0 | D28: =גיליון2!BC28 -> 0 | E28: =גיליון2!AT128 -> 0 | F28: =גיליון2!AT78 -> 0
A29: 0 | D29: =גיליון2!BC29 -> 0 | E29: =גיליון2!AT129 -> 0 | F29: =גיליון2!AT79 -> 0
A30: 0 | D30: =גיליון2!BC30 -> 0 | E30: =גיליון2!AT130 -> 0 | F30: =גיליון2!AT80 -> 0
A31: 0 | D31: =גיליון2!BC31 -> 0 | E31: =גיליון2!AT131 -> 0 | F31: =גיליון2!AT81 -> 0
A32: 0 | D32: =גיליון2!BC32 -> 0 | E32: =גיליון2!AT132 -> 0 | F32: =גיליון2!AT82 -> 0
A33: 0 | D33: =גיליון2!BC33 -> 0 | E33: =גיליון2!AT133 -> 0 | F33: =גיליון2!AT83 -> 0
A34: 0 | D34: =גיליון2!BC34 -> 0 | E34: =גיליון2!AT134 -> 0 | F34: =גיליון2!AT84 -> 0
A35: 0 | D35: =גיליון2!BC35 -> 0 | E35: =גיליון2!AT135 -> 0 | F35: =גיליון2!AT85 -> 0
A36: 0 | D36: =גיליון2!BC36 -> 0 | E36: =גיליון2!AT136 -> 0 | F36: =גיליון2!AT86 -> 0
A37: 0 | D37: =גיליון2!BC37 -> 0 | E37: =גיליון2!AT137 -> 0 | F37: =גיליון2!AT87 -> 0
A38: 0 | D38: =גיליון2!BC38 -> 0 | E38: =גיליון2!AT138 -> 0 | F38: =גיליון2!AT88 -> 0
A39: 0 | D39: =גיליון2!BC39 -> 0 | E39: =גיליון2!AT139 -> 0 | F39: =גיליון2!AT89 -> 0
A40: סה"כ | B40: =SUM(B2:B39) -> 3986855 | D40: =SUM(D2:D39) -> 120 | E40: 120 | F40: 120
A41: בזב | B41: =5881696*0.718 -> 4,223,058
A42: % | B42: =B40/B41 -> 0.9440683166
D84: =AND(גיליון2!AW40=120,גיליון2!BC40=120)*120 -> 120

Sheet גיליון2
A1: רשימה | B1: קולות | C1: אחוז החסימה | D1: רשימות שעברו את אחוז החסימה | E1: מודד | F1: מנדטים שלמים | G1: הסכמי עודפים | H1: קולות הסכמי עודפים | I1: מנדטים הסכמי עודפים | J1: מנדטים נותרים | K1: חלוקה 1 | L1: גדול ביותר | M1: תוצאה | N1: מנדטים נותרים | O1: חלוקה 2 | P1: גדול ביותר | Q1: תוצאה | R1: מנדטים נותרים | S1: חלוקה 3 | T1: גדול ביותר | U1: תוצאה | V1: מנדטים נותרים | W1: חלוקה 4 | X1: גדול ביותר | Y1: תוצאה | Z1: מנדטים נותרים | AA1: חלוקה 5 | AB1: גדול ביותר | AC1: תוצאה | AD1: מנדטים נותרים | AE1: חלוקה 6 | AF1: גדול ביותר | AG1: תוצאה | AH1: מנדטים נותרים | AI1: חלוקה 7 | AJ1: גדול ביותר | AK1: תוצאה | AL1: מנדטים נותרים | AM1: חלוקה 8 | AN1: גדול ביותר | AO1: תוצאה | AP1: מנדטים נותרים | AQ1: חלוקה 9 | AR1: גדול ביותר | AS1: תוצאה | AT1: מנדטים נותרים | AU1: חלוקה 10 | AV1: גדול ביותר | AW1: תוצאה | AX1: הסכמי עודפים | AY1: מודד להסכמי עודפים | AZ1: חלוקה ראשונית הסכמי עודפים | BA1: גדול יותר | BB1: תוצאה | BC1: חלוקה סופית
A2: =גיליון1!A2 -> הבית היהודי | B2: =גיליון1!B2 -> 254663 | C2: =גיליון1!G2 -> 0.0325 | D2: =(גיליון3!D2<B2)*B2 -> 254663 | E2: =D40/E3 -> 31895.95833 | F2: =INT(D2/גיליון3!H2) -> 7 | G2: =גיליון1!C2 -> 1 | H2: =(G2=0)*D2+(G2=1)*(D2+D3)*(D2>0)+(G2=2)*(D1=0)*D2 -> 1179429 | I2: =IF(H2=D2,F2,IF(G2=1,F2+F3,0)) -> 35 | J2: =גיליון1!H2-I40 -> 6 | K2: =(גיליון3!J2>0)*H2/(I2+1) -> 32761.91667 | L2: =AND(גיליון3!L2>0,גיליון3!L2=K2)*גיליון3!L2 -> 32761.91667 | M2: =IF(L2>0,I2+1,I2) -> 36 | N2: =גיליון1!H2-M40 -> 5 | O2: =(גיליון3!N2>0)*H2/(M2+1) -> 31876.45946 | P2: =AND(גיליון3!P2>0,גיליון3!P2=O2)*גיליון3!P2 -> 0 | Q2: =IF(P2>0,M2+1,M2) -> 36 | R2: =גיליון1!H2-Q40 -> 4 | S2: =(גיליון3!R2>0)*H2/(Q2+1) -> 31876.45946 | T2: =AND(גיליון3!T2>0,גיליון3!T2=S2)*גיליון3!T2 -> 31876.45946 | U2: =IF(T2>0,Q2+1,Q2) -> 37 | V2: =גיליון1!H2-U40 -> 3 | W2: =(גיליון3!V2>0)*H2/(U2+1) -> 31037.60526 | X2: =AND(גיליון3!X2>0,גיליון3!X2=W2)*גיליון3!X2 -> 0 | Y2: =IF(X2>0,U2+1,U2) -> 37 | Z2: =גיליון1!H2-Y40 -> 2 | AA2: =(גיליון3!Z2>0)*H2/(Y2+1) -> 31037.60526 | AB2: =AND(גיליון3!AB2>0,גיליון3!AB2=AA2)*גיליון3!AB2 -> 0 | AC2: =IF(AB2>0,Y2+1,Y2) -> 37 | AD2: =גיליון1!H2-AC40 -> 1 | AE2: =(גיליון3!AD2>0)*H2/(AC2+1) -> 31037.60526 | AF2: =AND(גיליון3!AF2>0,גיליון3!AF2=AE2)*גיליון3!AF2 -> 0 | AG2: =IF(AF2>0,AC2+1,AC2) -> 37 | AH2: =גיליון1!H2-AG40 -> 0 | AI2: =(גיליון3!AH2>0)*H2/(AG2+1) -> 0 | AJ2: =AND(גיליון3!AJ2>0,גיליון3!AJ2=AI2)*גיליון3!AJ2 -> 0 | AK2: =IF(AJ2>0,AG2+1,AG2) -> 37 | AL2: =גיליון1!H2-AK40 -> 0 | AM2: =(גיליון3!AL2>0)*H2/(AK2+1) -> 0 | AN2: =AND(גיליון3!AN2>0,גיליון3!AN2=AM2)*גיליון3!AN2 -> 0 | AO2: =IF(AN2>0,AK2+1,AK2) -> 37 | AP2: =גיליון1!H2-AO40 -> 0 | AQ2: =(גיליון3!AP2>0)*H2/(AO2+1) -> 0 | AR2: =AND(גיליון3!AR2>0,גיליון3!AR2=AQ2)*גיליון3!AR2 -> 0 | AS2: =IF(AR2>0,AO2+1,AO2) -> 37 | AT2: =גיליון1!H2-AS40 -> 0 | AU2: =(גיליון3!AT2>0)*H2/(AS2+1) -> 0 | AV2: =AND(גיליון3!AV2>0,גיליון3!AV2=AU2)*גיליון3!AV2 -> 0 | AW2: =IF(AV2>0,AS2+1,AS2) -> 37 | AX2: =גיליון1!C2 -> 1 | AY2: =((AX2=1)*IF(AW2>0,H2/AW2)+IF(AX2=2,(AY1>0)*AY1,0))*(D2>0) -> 31876.45946 | AZ2: =IF(AY2>0,INT(D2/AY2),AW2) -> 7 | BA2: =IF(AY2>0,B2/(AZ2+1)*(AZ2<>B2/AY2),0) -> 31832.875 | BB2: =OR(AND(AX2=1,BA2>BA3),AND(AX2=2,BA2>BA1))*BA2 -> 31832.875 | BC2: =(BB2>0)+AZ2 -> 8
A3: =גיליון1!A3 -> הליכוד | B3: =גיליון1!B3 -> 924766 | C3: =B40*C2 -> 129572.7875 | D3: =(גיליון3!D3<B3)*B3 -> 924766 | E3: =גיליון1!H2 -> 120 | F3: =INT(D3/גיליון3!H3) -> 28 | G3: =גיליון1!C3 -> 2 | H3: 0 | I3: 0 | K3: =(גיליון3!J3>0)*H3/(I3+1) -> 0 | L3: =AND(גיליון3!L3>0,גיליון3!L3=K3)*גיליון3!L3 -> 0 | M3: 0 | O3: =(גיליון3!N3>0)*H3/(M3+1) -> 0 | P3: =AND(גיליון3!P3>0,גיליון3!P3=O3)*גיליון3!P3 -> 0 | Q3: 0 | S3: =(גיליון3!R3>0)*H3/(Q3+1) -> 0 | T3: =AND(גיליון3!T3>0,גיליון3!T3=S3)*גיליון3!T3 -> 0 | U3: 0 | W3: =(גיליון3!V3>0)*H3/(U3+1) -> 0 | X3: =AND(גיליון3!X3>0,גיליון3!X3=W3)*גיליון3!X3 -> 0 | Y3: 0 | AA3: =(גיליון3!Z3>0)*H3/(Y3+1) -> 0 | AB3: =AND(גיליון3!AB3>0,גיליון3!AB3=AA3)*גיליון3!AB3 -> 0 | AC3: 0 | AE3: =(גיליון3!AD3>0)*H3/(AC3+1) -> 0 | AF3: =AND(גיליון3!AF3>0,גיליון3!AF3=AE3)*גיליון3!AF3 -> 0 | AG3: 0 | AI3: =(גיליון3!AH3>0)*H3/(AG3+1) -> 0 | AJ3: =AND(גיליון3!AJ3>0,גיליון3!AJ3=AI3)*גיליון3!AJ3 -> 0 | AK3: 0 | AM3: =(גיליון3!AL3>0)*H3/(AK3+1) -> 0 | AN3: =AND(גיליון3!AN3>0,גיליון3!AN3=AM3)*גיליון3!AN3 -> 0 | AO3: 0 | AQ3: =(גיליון3!AP3>0)*H3/(AO3+1) -> 0 | AR3: =AND(גיליון3!AR3>0,גיליון3!AR3=AQ3)*גיליון3!AR3 -> 0 | AS3: 0 | AU3: =(גיליון3!AT3>0)*H3/(AS3+1) -> 0 | AV3: =AND(גיליון3!AV3>0,גיליון3!AV3=AU3)*גיליון3!AV3 -> 0 | AW3: 0 | AX3: =גיליון1!C3 -> 2 | AY3: 31876.45946 | AZ3: 29 | BA3: 30825.53333 | BB3: 0 | BC3: 29
A4: =גיליון1!A4 -> יש עתיד | B4: =גיליון1!B4 -> 348802 | D4: =(גיליון3!D4<B4)*B4 -> 348802 | F4: =INT(D4/גיליון3!H4) -> 10 | G4: =גיליון1!C4 -> 0 | H4: 348802 | I4: 10 | K4: =(גיליון3!J4>0)*H4/(I4+1) -> 31709.27273 | L4: =AND(גיליון3!L4>0,גיליון3!L4=K4)*גיליון3!L4 -> 0 | M4: 10 | O4: =(גיליון3!N4>0)*H4/(M4+1) -> 31709.27273 | P4: =AND(גיליון3!P4>0,גיליון3!P4=O4)*גיליון3!P4 -> 0 | Q4: 10 | S4: =(גיליון3!R4>0)*H4/(Q4+1) -> 31709.27273 | T4: =AND(גיליון3!T4>0,גיליון3!T4=S4)*גיליון3!T4 -> 0 | U4: 10 | W4: =(גיליון3!V4>0)*H4/(U4+1) -> 31709.27273 | X4: =AND(גיליון3!X4>0,גיליון3!X4=W4)*גיליון3!X4 -> 31709.27273 | Y4: 11 | AA4: =(גיליון3!Z4>0)*H4/(Y4+1) -> 29066.83333 | AB4: =AND(גיליון3!AB4>0,גיליון3!AB4=AA4)*גיליון3!AB4 -> 0 | AC4: 11 | AE4: =(גיליון3!AD4>0)*H4/(AC4+1) -> 29066.83333 | AF4: =AND(גיליון3!AF4>0,גיליון3!AF4=AE4)*גיליון3!AF4 -> 0 | AG4: 11 | AI4: =(גיליון3!AH4>0)*H4/(AG4+1) -> 0 | AJ4: =AND(גיליון3!AJ4>0,גיליון3!AJ4=AI4)*גיליון3!AJ4 -> 0 | AK4: 11 | AM4: =(גיליון3!AL4>0)*H4/(AK4+1) -> 0 | AN4: =AND(גיליון3!AN4>0,גיליון3!AN4=AM4)*גיליון3!AN4 -> 0 | AO4: 11 | AQ4: =(גיליון3!AP4>0)*H4/(AO4+1) -> 0 | AR4: =AND(גיליון3!AR4>0,גיליון3!AR4=AQ4)*גיליון3!AR4 -> 0 | AS4: 11 | AU4: =(גיליון3!AT4>0)*H4/(AS4+1) -> 0 | AV4: =AND(גיליון3!AV4>0,גיליון3!AV4=AU4)*גיליון3!AV4 -> 0 | AW4: 11 | AX4: =גיליון1!C4 -> 0 | AY4: 0 | AZ4: 11 | BA4: 0 | BB4: 0 | BC4: 11
A5: =גיליון1!A5 -> המחנה הציוני | B5: =גיליון1!B5 -> 744673 | D5: =(גיליון3!D5<B5)*B5 -> 744673 | F5: =INT(D5/גיליון3!H5) -> 23 | G5: =גיליון1!C5 -> 1 | H5: 899321 | I5: 27 | K5: =(גיליון3!J5>0)*H5/(I5+1) -> 32118.60714 | L5: =AND(גיליון3!L5>0,גיליון3!L5=K5)*גיליון3!L5 -> 0 | M5: 27 | O5: =(גיליון3!N5>0)*H5/(M5+1) -> 32118.60714 | P5: =AND(גיליון3!P5>0,גיליון3!P5=O5)*גיליון3!P5 -> 32118.60714 | Q5: 28 | S5: =(גיליון3!R5>0)*H5/(Q5+1) -> 31011.06897 | T5: =AND(גיליון3!T5>0,גיליון3!T5=S5)*גיליון3!T5 -> 0 | U5: 28 | W5: =(גיליון3!V5>0)*H5/(U5+1) -> 31011.06897 | X5: =AND(גיליון3!X5>0,גיליון3!X5=W5)*גיליון3!X5 -> 0 | Y5: 28 | AA5: =(גיליון3!Z5>0)*H5/(Y5+1) -> 31011.06897 | AB5: =AND(גיליון3!AB5>0,גיליון3!AB5=AA5)*גיליון3!AB5 -> 0 | AC5: 28 | AE5: =(גיליון3!AD5>0)*H5/(AC5+1) -> 31011.06897 | AF5: =AND(גיליון3!AF5>0,גיליון3!AF5=AE5)*גיליון3!AF5 -> 0 | AG5: 28 | AI5: =(גיליון3!AH5>0)*H5/(AG5+1) -> 0 | AJ5: =AND(גיליון3!AJ5>0,גיליון3!AJ5=AI5)*גיליון3!AJ5 -> 0 | AK5: 28 | AM5: =(גיליון3!AL5>0)*H5/(AK5+1) -> 0 | AN5: =AND(גיליון3!AN5>0,גיליון3!AN5=AM5)*גיליון3!AN5 -> 0 | AO5: 28 | AQ5: =(גיליון3!AP5>0)*H5/(AO5+1) -> 0 | AR5: =AND(גיליון3!AR5>0,גיליון3!AR5=AQ5)*גיליון3!AR5 -> 0 | AS5: 28 | AU5: =(גיליון3!AT5>0)*H5/(AS5+1) -> 0 | AV5: =AND(גיליון3!AV5>0,גיליון3!AV5=AU5)*גיליון3!AV5 -> 0 | AW5: 28 | AX5: =גיליון1!C5 -> 1 | AY5: 32118.60714 | AZ5: 23 | BA5: 31028.04167 | BB5: 31028.04167 | BC5: 24
A6: =גיליון1!A6 -> מרץ | B6: =גיליון1!B6 -> 154648 | D6: =(גיליון3!D6<B6)*B6 -> 154648 | F6: =INT(D6/גיליון3!H6) -> 4 | G6: =גיליון1!C6 -> 2 | H6: 0 | I6: 0 | K6: =(גיליון3!J6>0)*H6/(I6+1) -> 0 | L6: =AND(גיליון3!L6>0,גיליון3!L6=K6)*גיליון3!L6 -> 0 | M6: 0 | O6: =(גיליון3!N6>0)*H6/(M6+1) -> 0 | P6: =AND(גיליון3!P6>0,גיליון3!P6=O6)*גיליון3!P6 -> 0 | Q6: 0 | S6: =(גיליון3!R6>0)*H6/(Q6+1) -> 0 | T6: =AND(גיליון3!T6>0,גיליון3!T6=S6)*גיליון3!T6 -> 0 | U6: 0 | W6: =(גיליון3!V6>0)*H6/(U6+1) -> 0 | X6: =AND(גיליון3!X6>0,גיליון3!X6=W6)*גיליון3!X6 -> 0 | Y6: 0 | AA6: =(גיליון3!Z6>0)*H6/(Y6+1) -> 0 | AB6: =AND(גיליון3!AB6>0,גיליון3!AB6=AA6)*גיליון3!AB6 -> 0 | AC6: 0 | AE6: =(גיליון3!AD6>0)*H6/(AC6+1) -> 0 | AF6: =AND(גיליון3!AF6>0,גיליון3!AF6=AE6)*גיליון3!AF6 -> 0 | AG6: 0 | AI6: =(גיליון3!AH6>0)*H6/(AG6+1) -> 0 | AJ6: =AND(גיליון3!AJ6>0,גיליון3!AJ6=AI6)*גיליון3!AJ6 -> 0 | AK6: 0 | AM6: =(גיליון3!AL6>0)*H6/(AK6+1) -> 0 | AN6: =AND(גיליון3!AN6>0,גיליון3!AN6=AM6)*גיליון3!AN6 -> 0 | AO6: 0 | AQ6: =(גיליון3!AP6>0)*H6/(AO6+1) -> 0 | AR6: =AND(גיליון3!AR6>0,גיליון3!AR6=AQ6)*גיליון3!AR6 -> 0 | AS6: 0 | AU6: =(גיליון3!AT6>0)*H6/(AS6+1) -> 0 | AV6: =AND(גיליון3!AV6>0,גיליון3!AV6=AU6)*גיליון3!AV6 -> 0 | AW6: 0 | AX6: =גיליון1!C6 -> 2 | AY6: 32118.60714 | AZ6: 4 | BA6: 30929.6 | BB6: 0 | BC6: 4
A7: =גיליון1!A7 -> רעם | B7: =גיליון1!B7 -> 463532 | D7: =(גיליון3!D7<B7)*B7 -> 463532 | F7: =INT(D7/גיליון3!H7) -> 14 | G7: =גיליון1!C7 -> 0 | H7: 463532 | I7: 14 | K7: =(גיליון3!J7>0)*H7/(I7+1) -> 30902.13333 | L7: =AND(גיליון3!L7>0,גיליון3!L7=K7)*גיליון3!L7 -> 0 | M7: 14 | O7: =(גיליון3!N7>0)*H7/(M7+1) -> 30902.13333 | P7: =AND(גיליון3!P7>0,גיליון3!P7=O7)*גיליון3!P7 -> 0 | Q7: 14 | S7: =(גיליון3!R7>0)*H7/(Q7+1) -> 30902.13333 | T7: =AND(גיליון3!T7>0,גיליון3!T7=S7)*גיליון3!T7 -> 0 | U7: 14 | W7: =(גיליון3!V7>0)*H7/(U7+1) -> 30902.13333 | X7: =AND(גיליון3!X7>0,גיליון3!X7=W7)*גיליון3!X7 -> 0 | Y7: 14 | AA7: =(גיליון3!Z7>0)*H7/(Y7+1) -> 30902.13333 | AB7: =AND(גיליון3!AB7>0,גיליון3!AB7=AA7)*גיליון3!AB7 -> 0 | AC7: 14 | AE7: =(גיליון3!AD7>0)*H7/(AC7+1) -> 30902.13333 | AF7: =AND(גיליון3!AF7>0,גיליון3!AF7=AE7)*גיליון3!AF7 -> 0 | AG7: 14 | AI7: =(גיליון3!AH7>0)*H7/(AG7+1) -> 0 | AJ7: =AND(גיליון3!AJ7>0,גיליון3!AJ7=AI7)*גיליון3!AJ7 -> 0 | AK7: 14 | AM7: =(גיליון3!AL7>0)*H7/(AK7+1) -> 0 | AN7: =AND(גיליון3!AN7>0,גיליון3!AN7=AM7)*גיליון3!AN7 -> 0 | AO7: 14 | AQ7: =(גיליון3!AP7>0)*H7/(AO7+1) -> 0 | AR7: =AND(גיליון3!AR7>0,גיליון3!AR7=AQ7)*גיליון3!AR7 -> 0 | AS7: 14 | AU7: =(גיליון3!AT7>0)*H7/(AS7+1) -> 0 | AV7: =AND(גיליון3!AV7>0,גיליון3!AV7=AU7)*גיליון3!AV7 -> 0 | AW7: 14 | AX7: =גיליון1!C7 -> 0 | AY7: 0 | AZ7: 14 | BA7: 0 | BB7: 0 | BC7: 14
A8: =גיליון1!A8 -> יחד | B8: =גיליון1!B8 -> 118368 | D8: =(גיליון3!D8<B8)*B8 -> 0 | F8: =INT(D8/גיליון3!H8) -> 0 | G8: =גיליון1!C8 -> 0 | H8: 0 | I8: 0 | K8: =(גיליון3!J8>0)*H8/(I8+1) -> 0 | L8: =AND(גיליון3!L8>0,גיליון3!L8=K8)*גיליון3!L8 -> 0 | M8: 0 | O8: =(גיליון3!N8>0)*H8/(M8+1) -> 0 | P8: =AND(גיליון3!P8>0,גיליון3!P8=O8)*גיליון3!P8 -> 0 | Q8: 0 | S8: =(גיליון3!R8>0)*H8/(Q8+1) -> 0 | T8: =AND(גיליון3!T8>0,גיליון3!T8=S8)*גיליון3!T8 -> 0 | U8: 0 | W8: =(גיליון3!V8>0)*H8/(U8+1) -> 0 | X8: =AND(גיליון3!X8>0,גיליון3!X8=W8)*גיליון3!X8 -> 0 | Y8: 0 | AA8: =(גיליון3!Z8>0)*H8/(Y8+1) -> 0 | AB8: =AND(גיליון3!AB8>0,גיליון3!AB8=AA8)*גיליון3!AB8 -> 0 | AC8: 0 | AE8: =(גיליון3!AD8>0)*H8/(AC8+1) -> 0 | AF8: =AND(גיליון3!AF8>0,גיליון3!AF8=AE8)*גיליון3!AF8 -> 0 | AG8: 0 | AI8: =(גיליון3!AH8>0)*H8/(AG8+1) -> 0 | AJ8: =AND(גיליון3!AJ8>0,גיליון3!AJ8=AI8)*גיליון3!AJ8 -> 0 | AK8: 0 | AM8: =(גיליון3!AL8>0)*H8/(AK8+1) -> 0 | AN8: =AND(גיליון3!AN8>0,גיליון3!AN8=AM8)*גיליון3!AN8 -> 0 | AO8: 0 | AQ8: =(גיליון3!AP8>0)*H8/(AO8+1) -> 0 | AR8: =AND(גיליון3!AR8>0,גיליון3!AR8=AQ8)*גיליון3!AR8 -> 0 | AS8: 0 | AU8: =(גיליון3!AT8>0)*H8/(AS8+1) -> 0 | AV8: =AND(גיליון3!AV8>0,גיליון3!AV8=AU8)*גיליון3!AV8 -> 0 | AW8: 0 | AX8: =גיליון1!C8 -> 0 | AY8: 0 | AZ8: 0 | BA8: 0 | BB8: 0 | BC8: 0
A9: =גיליון1!A9 -> יהדות התורה | B9: =גיליון1!B9 -> 205551 | D9: =(גיליון3!D9<B9)*B9 -> 205551 | F9: =INT(D9/גיליון3!H9) -> 6 | G9: =גיליון1!C9 -> 1 | H9: 436286 | I9: 13 | K9: =(גיליון3!J9>0)*H9/(I9+1) -> 31163.28571 | L9: =AND(גיליון3!L9>0,גיליון3!L9=K9)*גיליון3!L9 -> 0 | M9: 13 | O9: =(גיליון3!N9>0)*H9/(M9+1) -> 31163.28571 | P9: =AND(גיליון3!P9>0,גיליון3!P9=O9)*גיליון3!P9 -> 0 | Q9: 13 | S9: =(גיליון3!R9>0)*H9/(Q9+1) -> 31163.28571 | T9: =AND(גיליון3!T9>0,גיליון3!T9=S9)*גיליון3!T9 -> 0 | U9: 13 | W9: =(גיליון3!V9>0)*H9/(U9+1) -> 31163.28571 | X9: =AND(גיליון3!X9>0,גיליון3!X9=W9)*גיליון3!X9 -> 0 | Y9: 13 | AA9: =(גיליון3!Z9>0)*H9/(Y9+1) -> 31163.28571 | AB9: =AND(גיליון3!AB9>0,גיליון3!AB9=AA9)*גיליון3!AB9 -> 0 | AC9: 13 | AE9: =(גיליון3!AD9>0)*H9/(AC9+1) -> 31163.28571 | AF9: =AND(גיליון3!AF9>0,גיליון3!AF9=AE9)*גיליון3!AF9 -> 31163.28571 | AG9: 14 | AI9: =(גיליון3!AH9>0)*H9/(AG9+1) -> 0 | AJ9: =AND(גיליון3!AJ9>0,גיליון3!AJ9=AI9)*גיליון3!AJ9 -> 0 | AK9: 14 | AM9: =(גיליון3!AL9>0)*H9/(AK9+1) -> 0 | AN9: =AND(גיליון3!AN9>0,גיליון3!AN9=AM9)*גיליון3!AN9 -> 0 | AO9: 14 | AQ9: =(גיליון3!AP9>0)*H9/(AO9+1) -> 0 | AR9: =AND(גיליון3!AR9>0,גיליון3!AR9=AQ9)*גיליון3!AR9 -> 0 | AS9: 14 | AU9: =(גיליון3!AT9>0)*H9/(AS9+1) -> 0 | AV9: =AND(גיליון3!AV9>0,גיליון3!AV9=AU9)*גיליון3!AV9 -> 0 | AW9: 14 | AX9: =גיליון1!C9 -> 1 | AY9: 31163.28571 | AZ9: 6 | BA9: 29364.42857 | BB9: 29364.42857 | BC9: 7
A10: =גיליון1!A10 -> שס | B10: =גיליון1!B10 -> 230735 | D10: =(גיליון3!D10<B10)*B10 -> 230735 | F10: =INT(D10/גיליון3!H10) -> 7 | G10: =גיליון1!C10 -> 2 | H10: 0 | I10: 0 | K10: =(גיליון3!J10>0)*H10/(I10+1) -> 0 | L10: =AND(גיליון3!L10>0,גיליון3!L10=K10)*גיליון3!L10 -> 0 | M10: 0 | O10: =(גיליון3!N10>0)*H10/(M10+1) -> 0 | P10: =AND(גיליון3!P10>0,גיליון3!P10=O10)*גיליון3!P10 -> 0 | Q10: 0 | S10: =(גיליון3!R10>0)*H10/(Q10+1) -> 0 | T10: =AND(גיליון3!T10>0,גיליון3!T10=S10)*גיליון3!T10 -> 0 | U10: 0 | W10: =(גיליון3!V10>0)*H10/(U10+1) -> 0 | X10: =AND(גיליון3!X10>0,גיליון3!X10=W10)*גיליון3!X10 -> 0 | Y10: 0 | AA10: =(גיליון3!Z10>0)*H10/(Y10+1) -> 0 | AB10: =AND(גיליון3!AB10>0,גיליון3!AB10=AA10)*גיליון3!AB10 -> 0 | AC10: 0 | AE10: =(גיליון3!AD10>0)*H10/(AC10+1) -> 0 | AF10: =AND(גיליון3!AF10>0,גיליון3!AF10=AE10)*גיליון3!AF10 -> 0 | AG10: 0 | AI10: =(גיליון3!AH10>0)*H10/(AG10+1) -> 0 | AJ10: =AND(גיליון3!AJ10>0,גיליון3!AJ10=AI10)*גיליון3!AJ10 -> 0 | AK10: 0 | AM10: =(גיליון3!AL10>0)*H10/(AK10+1) -> 0 | AN10: =AND(גיליון3!AN10>0,גיליון3!AN10=AM10)*גיליון3!AN10 -> 0 | AO10: 0 | AQ10: =(גיליון3!AP10>0)*H10/(AO10+1) -> 0 | AR10: =AND(גיליון3!AR10>0,גיליון3!AR10=AQ10)*גיליון3!AR10 -> 0 | AS10: 0 | AU10: =(גיליון3!AT10>0)*H10/(AS10+1) -> 0 | AV10: =AND(גיליון3!AV10>0,גיליון3!AV10=AU10)*גיליון3!AV10 -> 0 | AW10: 0 | AX10: =גיליון1!C10 -> 2 | AY10: 31163.28571 | AZ10: 7 | BA10: 28841.875 | BB10: 0 | BC10: 7
A11: =גיליון1!A11 -> כחלון | B11: =גיליון1!B11 -> 294526 | D11: =(גיליון3!D11<B11)*B11 -> 294526 | F11: =INT(D11/גיליון3!H11) -> 9 | G11: =גיליון1!C11 -> 1 | H11: 500145 | I11: 15 | K11: =(גיליון3!J11>0)*H11/(I11+1) -> 31259.0625 | L11: =AND(גיליון3!L11>0,גיליון3!L11=K11)*גיליון3!L11 -> 0 | M11: 15 | O11: =(גיליון3!N11>0)*H11/(M11+1) -> 31259.0625 | P11: =AND(גיליון3!P11>0,גיליון3!P11=O11)*גיליון3!P11 -> 0 | Q11: 15 | S11: =(גיליון3!R11>0)*H11/(Q11+1) -> 31259.0625 | T11: =AND(גיליון3!T11>0,גיליון3!T11=S11)*גיליון3!T11 -> 0 | U11: 15 | W11: =(גיליון3!V11>0)*H11/(U11+1) -> 31259.0625 | X11: =AND(גיליון3!X11>0,גיליון3!X11=W11)*גיליון3!X11 -> 0 | Y11: 15 | AA11: =(גיליון3!Z11>0)*H11/(Y11+1) -> 31259.0625 | AB11: =AND(גיליון3!AB11>0,גיליון3!AB11=AA11)*גיליון3!AB11 -> 31259.0625 | AC11: 16 | AE11: =(גיליון3!AD11>0)*H11/(AC11+1) -> 29420.29412 | AF11: =AND(גיליון3!AF11>0,גיליון3!AF11=AE11)*גיליון3!AF11 -> 0 | AG11: 16 | AI11: =(גיליון3!AH11>0)*H11/(AG11+1) -> 0 | AJ11: =AND(גיליון3!AJ11>0,גיליון3!AJ11=AI11)*גיליון3!AJ11 -> 0 | AK11: 16 | AM11: =(גיליון3!AL11>0)*H11/(AK11+1) -> 0 | AN11: =AND(גיליון3!AN11>0,גיליון3!AN11=AM11)*גיליון3!AN11 -> 0 | AO11: 16 | AQ11: =(גיליון3!AP11>0)*H11/(AO11+1) -> 0 | AR11: =AND(גיליון3!AR11>0,גיליון3!AR11=AQ11)*גיליון3!AR11 -> 0 | AS11: 16 | AU11: =(גיליון3!AT11>0)*H11/(AS11+1) -> 0 | AV11: =AND(גיליון3!AV11>0,גיליון3!AV11=AU11)*גיליון3!AV11 -> 0 | AW11: 16 | AX11: =גיליון1!C11 -> 1 | AY11: 31259.0625 | AZ11: 9 | BA11: 29452.6 | BB11: 29452.6 | BC11: 10
A12: =גיליון1!A12 -> ישראל ביתנו | B12: =גיליון1!B12 -> 205619 | D12: =(גיליון3!D12<B12)*B12 -> 205619 | F12: =INT(D12/גיליון3!H12) -> 6 | G12: =גיליון1!C12 -> 2 | H12: 0 | I12: 0 | K12: =(גיליון3!J12>0)*H12/(I12+1) -> 0 | L12: =AND(גיליון3!L12>0,גיליון3!L12=K12)*גיליון3!L12 -> 0 | M12: 0 | O12: =(גיליון3!N12>0)*H12/(M12+1) -> 0 | P12: =AND(גיליון3!P12>0,גיליון3!P12=O12)*גיליון3!P12 -> 0 | Q12: 0 | S12: =(גיליון3!R12>0)*H12/(Q12+1) -> 0 | T12: =AND(גיליון3!T12>0,גיליון3!T12=S12)*גיליון3!T12 -> 0 | U12: 0 | W12: =(גיליון3!V12>0)*H12/(U12+1) -> 0 | X12: =AND(גיליון3!X12>0,גיליון3!X12=W12)*גיליון3!X12 -> 0 | Y12: 0 | AA12: =(גיליון3!Z12>0)*H12/(Y12+1) -> 0 | AB12: =AND(גיליון3!AB12>0,גיליון3!AB12=AA12)*גיליון3!AB12 -> 0 | AC12: 0 | AE12: =(גיליון3!AD12>0)*H12/(AC12+1) -> 0 | AF12: =AND(גיליון3!AF12>0,גיליון3!AF12=AE12)*גיליון3!AF12 -> 0 | AG12: 0 | AI12: =(גיליון3!AH12>0)*H12/(AG12+1) -> 0 | AJ12: =AND(גיליון3!AJ12>0,גיליון3!AJ12=AI12)*גיליון3!AJ12 -> 0 | AK12: 0 | AM12: =(גיליון3!AL12>0)*H12/(AK12+1) -> 0 | AN12: =AND(גיליון3!AN12>0,גיליון3!AN12=AM12)*גיליון3!AN12 -> 0 | AO12: 0 | AQ12: =(גיליון3!AP12>0)*H12/(AO12+1) -> 0 | AR12: =AND(גיליון3!AR12>0,גיליון3!AR12=AQ12)*גיליון3!AR12 -> 0 | AS12: 0 | AU12: =(גיליון3!AT12>0)*H12/(AS12+1) -> 0 | AV12: =AND(גיליון3!AV12>0,גיליון3!AV12=AU12)*גיליון3!AV12 -> 0 | AW12: 0 | AX12: =גיליון1!C12 -> 2 | AY12: 31259.0625 | AZ12: 6 | BA12: 29374.14286 | BB12: 0 | BC12: 6
A13: =גיליון1!A13 -> עלה ירוק - הרשימה הליברלית | B13: =גיליון1!B13 -> 38624 | D13: =(גיליון3!D13<B13)*B13 -> 0 | F13: =INT(D13/גיליון3!H13) -> 0 | G13: =גיליון1!C13 -> 0 | H13: 0 | I13: 0 | K13: =(גיליון3!J13>0)*H13/(I13+1) -> 0 | L13: =AND(גיליון3!L13>0,גיליון3!L13=K13)*גיליון3!L13 -> 0 | M13: 0 | O13: =(גיליון3!N13>0)*H13/(M13+1) -> 0 | P13: =AND(גיליון3!P13>0,גיליון3!P13=O13)*גיליון3!P13 -> 0 | Q13: 0 | S13: =(גיליון3!R13>0)*H13/(Q13+1) -> 0 | T13: =AND(גיליון3!T13>0,גיליון3!T13=S13)*גיליון3!T13 -> 0 | U13: 0 | W13: =(גיליון3!V13>0)*H13/(U13+1) -> 0 | X13: =AND(גיליון3!X13>0,גיליון3!X13=W13)*גיליון3!X13 -> 0 | Y13: 0 | AA13: =(גיליון3!Z13>0)*H13/(Y13+1) -> 0 | AB13: =AND(גיליון3!AB13>0,גיליון3!AB13=AA13)*גיליון3!AB13 -> 0 | AC13: 0 | AE13: =(גיליון3!AD13>0)*H13/(AC13+1) -> 0 | AF13: =AND(גיליון3!AF13>0,גיליון3!AF13=AE13)*גיליון3!AF13 -> 0 | AG13: 0 | AI13: =(גיליון3!AH13>0)*H13/(AG13+1) -> 0 | AJ13: =AND(גיליון3!AJ13>0,גיליון3!AJ13=AI13)*גיליון3!AJ13 -> 0 | AK13: 0 | AM13: =(גיליון3!AL13>0)*H13/(AK13+1) -> 0 | AN13: =AND(גיליון3!AN13>0,גיליון3!AN13=AM13)*גיליון3!AN13 -> 0 | AO13: 0 | AQ13: =(גיליון3!AP13>0)*H13/(AO13+1) -> 0 | AR13: =AND(גיליון3!AR13>0,גיליון3!AR13=AQ13)*גיליון3!AR13 -> 0 | AS13: 0 | AU13: =(גיליון3!AT13>0)*H13/(AS13+1) -> 0 | AV13: =AND(גיליון3!AV13>0,גיליון3!AV13=AU13)*גיליון3!AV13 -> 0 | AW13: 0 | AX13: =גיליון1!C13 -> 0 | AY13: 0 | AZ13: 0 | BA13: 0 | BB13: 0 | BC13: 0
A14: =גיליון1!#REF! ->  | B14: =גיליון1!B14 -> 2348 | D14: =(גיליון3!D14<B14)*B14 -> 0 | F14: =INT(D14/גיליון3!H14) -> 0 | G14: =גיליון1!C14 -> 0 | H14: 0 | I14: 0 | K14: =(גיליון3!J14>0)*H14/(I14+1) -> 0 | L14: =AND(גיליון3!L14>0,גיליון3!L14=K14)*גיליון3!L14 -> 0 | M14: 0 | O14: =(גיליון3!N14>0)*H14/(M14+1) -> 0 | P14: =AND(גיליון3!P14>0,גיליון3!P14=O14)*גיליון3!P14 -> 0 | Q14: 0 | S14: =(גיליון3!R14>0)*H14/(Q14+1) -> 0 | T14: =AND(גיליון3!T14>0,גיליון3!T14=S14)*גיליון3!T14 -> 0 | U14: 0 | W14: =(גיליון3!V14>0)*H14/(U14+1) -> 0 | X14: =AND(גיליון3!X14>0,גיליון3!X14=W14)*גיליון3!X14 -> 0 | Y14: 0 | AA14: =(גיליון3!Z14>0)*H14/(Y14+1) -> 0 | AB14: =AND(גיליון3!AB14>0,גיליון3!AB14=AA14)*גיליון3!AB14 -> 0 | AC14: 0 | AE14: =(גיליון3!AD14>0)*H14/(AC14+1) -> 0 | AF14: =AND(גיליון3!AF14>0,גיליון3!AF14=AE14)*גיליון3!AF14 -> 0 | AG14: 0 | AI14: =(גיליון3!AH14>0)*H14/(AG14+1) -> 0 | AJ14: =AND(גיליון3!AJ14>0,גיליון3!AJ14=AI14)*גיליון3!AJ14 -> 0 | AK14: 0 | AM14: =(גיליון3!AL14>0)*H14/(AK14+1) -> 0 | AN14: =AND(גיליון3!AN14>0,גיליון3!AN14=AM14)*גיליון3!AN14 -> 0 | AO14: 0 | AQ14: =(גיליון3!AP14>0)*H14/(AO14+1) -> 0 | AR14: =AND(גיליון3!AR14>0,גיליון3!AR14=AQ14)*גיליון3!AR14 -> 0 | AS14: 0 | AU14: =(גיליון3!AT14>0)*H14/(AS14+1) -> 0 | AV14: =AND(גיליון3!AV14>0,גיליון3!AV14=AU14)*גיליון3!AV14 -> 0 | AW14: 0 | AX14: =גיליון1!C14 -> 0 | AY14: 0 | AZ14: 0 | BA14: 0 | BB14: 0 | BC14: 0
A15: =גיליון1!A15 -> 0 | B15: =גיליון1!B15 -> 0 | D15: =(גיליון3!D15<B15)*B15 -> 0 | F15: =INT(D15/גיליון3!H15) -> 0 | G15: =גיליון1!C15 -> 1 | H15: 0 | I15: 0 | K15: =(גיליון3!J15>0)*H15/(I15+1) -> 0 | L15: =AND(גיליון3!L15>0,גיליון3!L15=K15)*גיליון3!L15 -> 0 | M15: 0 | O15: =(גיליון3!N15>0)*H15/(M15+1) -> 0 | P15: =AND(גיליון3!P15>0,גיליון3!P15=O15)*גיליון3!P15 -> 0 | Q15: 0 | S15: =(גיליון3!R15>0)*H15/(Q15+1) -> 0 | T15: =AND(גיליון3!T15>0,גיליון3!T15=S15)*גיליון3!T15 -> 0 | U15: 0 | W15: =(גיליון3!V15>0)*H15/(U15+1) -> 0 | X15: =AND(גיליון3!X15>0,גיליון3!X15=W15)*גיליון3!X15 -> 0 | Y15: 0 | AA15: =(גיליון3!Z15>0)*H15/(Y15+1) -> 0 | AB15: =AND(גיליון3!AB15>0,גיליון3!AB15=AA15)*גיליון3!AB15 -> 0 | AC15: 0 | AE15: =(גיליון3!AD15>0)*H15/(AC15+1) -> 0 | AF15: =AND(גיליון3!AF15>0,גיליון3!AF15=AE15)*גיליון3!AF15 -> 0 | AG15: 0 | AI15: =(גיליון3!AH15>0)*H15/(AG15+1) -> 0 | AJ15: =AND(גיליון3!AJ15>0,גיליון3!AJ15=AI15)*גיליון3!AJ15 -> 0 | AK15: 0 | AM15: =(גיליון3!AL15>0)*H15/(AK15+1) -> 0 | AN15: =AND(גיליון3!AN15>0,גיליון3!AN15=AM15)*גיליון3!AN15 -> 0 | AO15: 0 | AQ15: =(גיליון3!AP15>0)*H15/(AO15+1) -> 0 | AR15: =AND(גיליון3!AR15>0,גיליון3!AR15=AQ15)*גיליון3!AR15 -> 0 | AS15: 0 | AU15: =(גיליון3!AT15>0)*H15/(AS15+1) -> 0 | AV15: =AND(גיליון3!AV15>0,גיליון3!AV15=AU15)*גיליון3!AV15 -> 0 | AW15: 0 | AX15: =גיליון1!C15 -> 1 | AY15: 0 | AZ15: 0 | BA15: 0 | BB15: 0 | BC15: 0
A16: =גיליון1!A16 -> 0 | B16: =גיליון1!B16 -> 0 | D16: =(גיליון3!D16<B16)*B16 -> 0 | F16: =INT(D16/גיליון3!H16) -> 0 | G16: =גיליון1!C16 -> 2 | H16: 0 | I16: 0 | K16: =(גיליון3!J16>0)*H16/(I16+1) -> 0 | L16: =AND(גיליון3!L16>0,גיליון3!L16=K16)*גיליון3!L16 -> 0 | M16: 0 | O16: =(גיליון3!N16>0)*H16/(M16+1) -> 0 | P16: =AND(גיליון3!P16>0,גיליון3!P16=O16)*גיליון3!P16 -> 0 | Q16: 0 | S16: =(גיליון3!R16>0)*H16/(Q16+1) -> 0 | T16: =AND(גיליון3!T16>0,גיליון3!T16=S16)*גיליון3!T16 -> 0 | U16: 0 | W16: =(גיליון3!V16>0)*H16/(U16+1) -> 0 | X16: =AND(גיליון3!X16>0,גיליון3!X16=W16)*גיליון3!X16 -> 0 | Y16: 0 | AA16: =(גיליון3!Z16>0)*H16/(Y16+1) -> 0 | AB16: =AND(גיליון3!AB16>0,גיליון3!AB16=AA16)*גיליון3!AB16 -> 0 | AC16: 0 | AE16: =(גיליון3!AD16>0)*H16/(AC16+1) -> 0 | AF16: =AND(גיליון3!AF16>0,גיליון3!AF16=AE16)*גיליון3!AF16 -> 0 | AG16: 0 | AI16: =(גיליון3!AH16>0)*H16/(AG16+1) -> 0 | AJ16: =AND(גיליון3!AJ16>0,גיליון3!AJ16=AI16)*גיליון3!AJ16 -> 0 | AK16: 0 | AM16: =(גיליון3!AL16>0)*H16/(AK16+1) -> 0 | AN16: =AND(גיליון3!AN16>0,גיליון3!AN16=AM16)*גיליון3!AN16 -> 0 | AO16: 0 | AQ16: =(גיליון3!AP16>0)*H16/(AO16+1) -> 0 | AR16: =AND(גיליון3!AR16>0,גיליון3!AR16=AQ16)*גיליון3!AR16 -> 0 | AS16: 0 | AU16: =(גיליון3!AT16>0)*H16/(AS16+1) -> 0 | AV16: =AND(גיליון3!AV16>0,גיליון3!AV16=AU16)*גיליון3!AV16 -> 0 | AW16: 0 | AX16: =גיליון1!C16 -> 2 | AY16: 0 | AZ16: 0 | BA16: 0 | BB16: 0 | BC16: 0
A17: =גיליון1!A17 -> 0 | B17: =גיליון1!B17 -> 0 | D17: =(גיליון3!D17<B17)*B17 -> 0 | F17: =INT(D17/גיליון3!H17) -> 0 | G17: =גיליון1!C17 -> 1 | H17: 0 | I17: 0 | K17: =(גיליון3!J17>0)*H17/(I17+1) -> 0 | L17: =AND(גיליון3!L17>0,גיליון3!L17=K17)*גיליון3!L17 -> 0 | M17: 0 | O17: =(גיליון3!N17>0)*H17/(M17+1) -> 0 | P17: =AND(גיליון3!P17>0,גיליון3!P17=O17)*גיליון3!P17 -> 0 | Q17: 0 | S17: =(גיליון3!R17>0)*H17/(Q17+1) -> 0 | T17: =AND(גיליון3!T17>0,גיליון3!T17=S17)*גיליון3!T17 -> 0 | U17: 0 | W17: =(גיליון3!V17>0)*H17/(U17+1) -> 0 | X17: =AND(גיליון3!X17>0,גיליון3!X17=W17)*גיליון3!X17 -> 0 | Y17: 0 | AA17: =(גיליון3!Z17>0)*H17/(Y17+1) -> 0 | AB17: =AND(גיליון3!AB17>0,גיליון3!AB17=AA17)*גיליון3!AB17 -> 0 | AC17: 0 | AE17: =(גיליון3!AD17>0)*H17/(AC17+1) -> 0 | AF17: =AND(גיליון3!AF17>0,גיליון3!AF17=AE17)*גיליון3!AF17 -> 0 | AG17: 0 | AI17: =(גיליון3!AH17>0)*H17/(AG17+1) -> 0 | AJ17: =AND(גיליון3!AJ17>0,גיליון3!AJ17=AI17)*גיליון3!AJ17 -> 0 | AK17: 0 | AM17: =(גיליון3!AL17>0)*H17/(AK17+1) -> 0 | AN17: =AND(גיליון3!AN17>0,גיליון3!AN17=AM17)*גיליון3!AN17 -> 0 | AO17: 0 | AQ17: =(גיליון3!AP17>0)*H17/(AO17+1) -> 0 | AR17: =AND(גיליון3!AR17>0,גיליון3!AR17=AQ17)*גיליון3!AR17 -> 0 | AS17: 0 | AU17: =(גיליון3!AT17>0)*H17/(AS17+1) -> 0 | AV17: =AND(גיליון3!AV17>0,גיליון3!AV17=AU17)*גיליון3!AV17 -> 0 | AW17: 0 | AX17: =גיליון1!C17 -> 1 | AY17: 0 | AZ17: 0 | BA17: 0 | BB17: 0 | BC17: 0
A18: =גיליון1!A18 -> 0 | B18: =גיליון1!B18 -> 0 | D18: =(גיליון3!D18<B18)*B18 -> 0 | F18: =INT(D18/גיליון3!H18) -> 0 | G18: =גיליון1!C18 -> 2 | H18: 0 | I18: 0 | K18: =(גיליון3!J18>0)*H18/(I18+1) -> 0 | L18: =AND(גיליון3!L18>0,גיליון3!L18=K18)*גיליון3!L18 -> 0 | M18: 0 | O18: =(גיליון3!N18>0)*H18/(M18+1) -> 0 | P18: =AND(גיליון3!P18>0,גיליון3!P18=O18)*גיליון3!P18 -> 0 | Q18: 0 | S18: =(גיליון3!R18>0)*H18/(Q18+1) -> 0 | T18: =AND(גיליון3!T18>0,גיליון3!T18=S18)*גיליון3!T18 -> 0 | U18: 0 | W18: =(גיליון3!V18>0)*H18/(U18+1) -> 0 | X18: =AND(גיליון3!X18>0,גיליון3!X18=W18)*גיליון3!X18 -> 0 | Y18: 0 | AA18: =(גיליון3!Z18>0)*H18/(Y18+1) -> 0 | AB18: =AND(גיליון3!AB18>0,גיליון3!AB18=AA18)*גיליון3!AB18 -> 0 | AC18: 0 | AE18: =(גיליון3!AD18>0)*H18/(AC18+1) -> 0 | AF18: =AND(גיליון3!AF18>0,גיליון3!AF18=AE18)*גיליון3!AF18 -> 0 | AG18: 0 | AI18: =(גיליון3!AH18>0)*H18/(AG18+1) -> 0 | AJ18: =AND(גיליון3!AJ18>0,גיליון3!AJ18=AI18)*גיליון3!AJ18 -> 0 | AK18: 0 | AM18: =(גיליון3!AL18>0)*H18/(AK18+1) -> 0 | AN18: =AND(גיליון3!AN18>0,גיליון3!AN18=AM18)*גיליון3!AN18 -> 0 | AO18: 0 | AQ18: =(גיליון3!AP18>0)*H18/(AO18+1) -> 0 | AR18: =AND(גיליון3!AR18>0,גיליון3!AR18=AQ18)*גיליון3!AR18 -> 0 | AS18: 0 | AU18: =(גיליון3!AT18>0)*H18/(AS18+1) -> 0 | AV18: =AND(גיליון3!AV18>0,גיליון3!AV18=AU18)*גיליון3!AV18 -> 0 | AW18: 0 | AX18: =גיליון1!C18 -> 2 | AY18: 0 | AZ18: 0 | BA18: 0 | BB18: 0 | BC18: 0
A19: =גיליון1!A19 -> 0 | B19: =גיליון1!B19 -> 0 | D19: =(גיליון3!D19<B19)*B19 -> 0 | F19: =INT(D19/גיליון3!H19) -> 0 | G19: =גיליון1!C19 -> 0 | H19: 0 | I19: 0 | K19: =(גיליון3!J19>0)*H19/(I19+1) -> 0 | L19: =AND(גיליון3!L19>0,גיליון3!L19=K19)*גיליון3!L19 -> 0 | M19: 0 | O19: =(גיליון3!N19>0)*H19/(M19+1) -> 0 | P19: =AND(גיליון3!P19>0,גיליון3!P19=O19)*גיליון3!P19 -> 0 | Q19: 0 | S19: =(גיליון3!R19>0)*H19/(Q19+1) -> 0 | T19: =AND(גיליון3!T19>0,גיליון3!T19=S19)*גיליון3!T19 -> 0 | U19: 0 | W19: =(גיליון3!V19>0)*H19/(U19+1) -> 0 | X19: =AND(גיליון3!X19>0,גיליון3!X19=W19)*גיליון3!X19 -> 0 | Y19: 0 | AA19: =(גיליון3!Z19>0)*H19/(Y19+1) -> 0 | AB19: =AND(גיליון3!AB19>0,גיליון3!AB19=AA19)*גיליון3!AB19 -> 0 | AC19: 0 | AE19: =(גיליון3!AD19>0)*H19/(AC19+1) -> 0 | AF19: =AND(גיליון3!AF19>0,גיליון3!AF19=AE19)*גיליון3!AF19 -> 0 | AG19: 0 | AI19: =(גיליון3!AH19>0)*H19/(AG19+1) -> 0 | AJ19: =AND(גיליון3!AJ19>0,גיליון3!AJ19=AI19)*גיליון3!AJ19 -> 0 | AK19: 0 | AM19: =(גיליון3!AL19>0)*H19/(AK19+1) -> 0 | AN19: =AND(גיליון3!AN19>0,גיליון3!AN19=AM19)*גיליון3!AN19 -> 0 | AO19: 0 | AQ19: =(גיליון3!AP19>0)*H19/(AO19+1) -> 0 | AR19: =AND(גיליון3!AR19>0,גיליון3!AR19=AQ19)*גיליון3!AR19 -> 0 | AS19: 0 | AU19: =(גיליון3!AT19>0)*H19/(AS19+1) -> 0 | AV19: =AND(גיליון3!AV19>0,גיליון3!AV19=AU19)*גיליון3!AV19 -> 0 | AW19: 0 | AX19: =גיליון1!C19 -> 0 | AY19: 0 | AZ19: 0 | BA19: 0 | BB19: 0 | BC19: 0
A20: =גיליון1!A20 -> 0 | B20: =גיליון1!B20 -> 0 | D20: =(גיליון3!D20<B20)*B20 -> 0 | F20: =INT(D20/גיליון3!H20) -> 0 | G20: =גיליון1!C20 -> 1 | H20: 0 | I20: 0 | K20: =(גיליון3!J20>0)*H20/(I20+1) -> 0 | L20: =AND(גיליון3!L20>0,גיליון3!L20=K20)*גיליון3!L20 -> 0 | M20: 0 | O20: =(גיליון3!N20>0)*H20/(M20+1) -> 0 | P20: =AND(גיליון3!P20>0,גיליון3!P20=O20)*גיליון3!P20 -> 0 | Q20: 0 | S20: =(גיליון3!R20>0)*H20/(Q20+1) -> 0 | T20: =AND(גיליון3!T20>0,גיליון3!T20=S20)*גיליון3!T20 -> 0 | U20: 0 | W20: =(גיליון3!V20>0)*H20/(U20+1) -> 0 | X20: =AND(גיליון3!X20>0,גיליון3!X20=W20)*גיליון3!X20 -> 0 | Y20: 0 | AA20: =(גיליון3!Z20>0)*H20/(Y20+1) -> 0 | AB20: =AND(גיליון3!AB20>0,גיליון3!AB20=AA20)*גיליון3!AB20 -> 0 | AC20: 0 | AE20: =(גיליון3!AD20>0)*H20/(AC20+1) -> 0 | AF20: =AND(גיליון3!AF20>0,גיליון3!AF20=AE20)*גיליון3!AF20 -> 0 | AG20: 0 | AI20: =(גיליון3!AH20>0)*H20/(AG20+1) -> 0 | AJ20: =AND(גיליון3!AJ20>0,גיליון3!AJ20=AI20)*גיליון3!AJ20 -> 0 | AK20: 0 | AM20: =(גיליון3!AL20>0)*H20/(AK20+1) -> 0 | AN20: =AND(גיליון3!AN20>0,גיליון3!AN20=AM20)*גיליון3!AN20 -> 0 | AO20: 0 | AQ20: =(גיליון3!AP20>0)*H20/(AO20+1) -> 0 | AR20: =AND(גיליון3!AR20>0,גיליון3!AR20=AQ20)*גיליון3!AR20 -> 0 | AS20: 0 | AU20: =(גיליון3!AT20>0)*H20/(AS20+1) -> 0 | AV20: =AND(גיליון3!AV20>0,גיליון3!AV20=AU20)*גיליון3!AV20 -> 0 | AW20: 0 | AX20: =גיליון1!C20 -> 1 | AY20: 0 | AZ20: 0 | BA20: 0 | BB20: 0 | BC20: 0
A21: =גיליון1!A21 -> 0 | B21: =גיליון1!B21 -> 0 | D21: =(גיליון3!D21<B21)*B21 -> 0 | F21: =INT(D21/גיליון3!H21) -> 0 | G21: =גיליון1!C21 -> 2 | H21: 0 | I21: 0 | K21: =(גיליון3!J21>0)*H21/(I21+1) -> 0 | L21: =AND(גיליון3!L21>0,גיליון3!L21=K21)*גיליון3!L21 -> 0 | M21: 0 | O21: =(גיליון3!N21>0)*H21/(M21+1) -> 0 | P21: =AND(גיליון3!P21>0,גיליון3!P21=O21)*גיליון3!P21 -> 0 | Q21: 0 | S21: =(גיליון3!R21>0)*H21/(Q21+1) -> 0 | T21: =AND(גיליון3!T21>0,גיליון3!T21=S21)*גיליון3!T21 -> 0 | U21: 0 | W21: =(גיליון3!V21>0)*H21/(U21+1) -> 0 | X21: =AND(גיליון3!X21>0,גיליון3!X21=W21)*גיליון3!X21 -> 0 | Y21: 0 | AA21: =(גיליון3!Z21>0)*H21/(Y21+1) -> 0 | AB21: =AND(גיליון3!AB21>0,גיליון3!AB21=AA21)*גיליון3!AB21 -> 0 | AC21: 0 | AE21: =(גיליון3!AD21>0)*H21/(AC21+1) -> 0 | AF21: =AND(גיליון3!AF21>0,גיליון3!AF21=AE21)*גיליון3!AF21 -> 0 | AG21: 0 | AI21: =(גיליון3!AH21>0)*H21/(AG21+1) -> 0 | AJ21: =AND(גיליון3!AJ21>0,גיליון3!AJ21=AI21)*גיליון3!AJ21 -> 0 | AK21: 0 | AM21: =(גיליון3!AL21>0)*H21/(AK21+1) -> 0 | AN21: =AND(גיליון3!AN21>0,גיליון3!AN21=AM21)*גיליון3!AN21 -> 0 | AO21: 0 | AQ21: =(גיליון3!AP21>0)*H21/(AO21+1) -> 0 | AR21: =AND(גיליון3!AR21>0,גיליון3!AR21=AQ21)*גיליון3!AR21 -> 0 | AS21: 0 | AU21: =(גיליון3!AT21>0)*H21/(AS21+1) -> 0 | AV21: =AND(גיליון3!AV21>0,גיליון3!AV21=AU21)*גיליון3!AV21 -> 0 | AW21: 0 | AX21: =גיליון1!C21 -> 2 | AY21: 0 | AZ21: 0 | BA21: 0 | BB21: 0 | BC21: 0
A22: =גיליון1!A22 -> 0 | B22: =גיליון1!B22 -> 0 | D22: =(גיליון3!D22<B22)*B22 -> 0 | F22: =INT(D22/גיליון3!H22) -> 0 | G22: =גיליון1!C22 -> 0 | H22: 0 | I22: 0 | K22: =(גיליון3!J22>0)*H22/(I22+1) -> 0 | L22: =AND(גיליון3!L22>0,גיליון3!L22=K22)*גיליון3!L22 -> 0 | M22: 0 | O22: =(גיליון3!N22>0)*H22/(M22+1) -> 0 | P22: =AND(גיליון3!P22>0,גיליון3!P22=O22)*גיליון3!P22 -> 0 | Q22: 0 | S22: =(גיליון3!R22>0)*H22/(Q22+1) -> 0 | T22: =AND(גיליון3!T22>0,גיליון3!T22=S22)*גיליון3!T22 -> 0 | U22: 0 | W22: =(גיליון3!V22>0)*H22/(U22+1) -> 0 | X22: =AND(גיליון3!X22>0,גיליון3!X22=W22)*גיליון3!X22 -> 0 | Y22: 0 | AA22: =(גיליון3!Z22>0)*H22/(Y22+1) -> 0 | AB22: =AND(גיליון3!AB22>0,גיליון3!AB22=AA22)*גיליון3!AB22 -> 0 | AC22: 0 | AE22: =(גיליון3!AD22>0)*H22/(AC22+1) -> 0 | AF22: =AND(גיליון3!AF22>0,גיליון3!AF22=AE22)*גיליון3!AF22 -> 0 | AG22: 0 | AI22: =(גיליון3!AH22>0)*H22/(AG22+1) -> 0 | AJ22: =AND(גיליון3!AJ22>0,גיליון3!AJ22=AI22)*גיליון3!AJ22 -> 0 | AK22: 0 | AM22: =(גיליון3!AL22>0)*H22/(AK22+1) -> 0 | AN22: =AND(גיליון3!AN22>0,גיליון3!AN22=AM22)*גיליון3!AN22 -> 0 | AO22: 0 | AQ22: =(גיליון3!AP22>0)*H22/(AO22+1) -> 0 | AR22: =AND(גיליון3!AR22>0,גיליון3!AR22=AQ22)*גיליון3!AR22 -> 0 | AS22: 0 | AU22: =(גיליון3!AT22>0)*H22/(AS22+1) -> 0 | AV22: =AND(גיליון3!AV22>0,גיליון3!AV22=AU22)*גיליון3!AV22 -> 0 | AW22: 0 | AX22: =גיליון1!C22 -> 0 | AY22: 0 | AZ22: 0 | BA22: 0 | BB22: 0 | BC22: 0
A23: =גיליון1!A23 -> 0 | B23: =גיליון1!B23 -> 0 | D23: =(גיליון3!D23<B23)*B23 -> 0 | F23: =INT(D23/גיליון3!H23) -> 0 | G23: =גיליון1!C23 -> 0 | H23: 0 | I23: 0 | K23: =(גיליון3!J23>0)*H23/(I23+1) -> 0 | L23: =AND(גיליון3!L23>0,גיליון3!L23=K23)*גיליון3!L23 -> 0 | M23: 0 | O23: =(גיליון3!N23>0)*H23/(M23+1) -> 0 | P23: =AND(גיליון3!P23>0,גיליון3!P23=O23)*גיליון3!P23 -> 0 | Q23: 0 | S23: =(גיליון3!R23>0)*H23/(Q23+1) -> 0 | T23: =AND(גיליון3!T23>0,גיליון3!T23=S23)*גיליון3!T23 -> 0 | U23: 0 | W23: =(גיליון3!V23>0)*H23/(U23+1) -> 0 | X23: =AND(גיליון3!X23>0,גיליון3!X23=W23)*גיליון3!X23 -> 0 | Y23: 0 | AA23: =(גיליון3!Z23>0)*H23/(Y23+1) -> 0 | AB23: =AND(גיליון3!AB23>0,גיליון3!AB23=AA23)*גיליון3!AB23 -> 0 | AC23: 0 | AE23: =(גיליון3!AD23>0)*H23/(AC23+1) -> 0 | AF23: =AND(גיליון3!AF23>0,גיליון3!AF23=AE23)*גיליון3!AF23 -> 0 | AG23: 0 | AI23: =(גיליון3!AH23>0)*H23/(AG23+1) -> 0 | AJ23: =AND(גיליון3!AJ23>0,גיליון3!AJ23=AI23)*גיליון3!AJ23 -> 0 | AK23: 0 | AM23: =(גיליון3!AL23>0)*H23/(AK23+1) -> 0 | AN23: =AND(גיליון3!AN23>0,גיליון3!AN23=AM23)*גיליון3!AN23 -> 0 | AO23: 0 | AQ23: =(גיליון3!AP23>0)*H23/(AO23+1) -> 0 | AR23: =AND(גיליון3!AR23>0,גיליון3!AR23=AQ23)*גיליון3!AR23 -> 0 | AS23: 0 | AU23: =(גיליון3!AT23>0)*H23/(AS23+1) -> 0 | AV23: =AND(גיליון3!AV23>0,גיליון3!AV23=AU23)*גיליון3!AV23 -> 0 | AW23: 0 | AX23: =גיליון1!C23 -> 0 | AY23: 0 | AZ23: 0 | BA23: 0 | BB23: 0 | BC23: 0
A24: =גיליון1!A24 -> 0 | B24: =גיליון1!B24 -> 0 | D24: =(גיליון3!D24<B24)*B24 -> 0 | F24: =INT(D24/גיליון3!H24) -> 0 | G24: =גיליון1!C24 -> 0 | H24: 0 | I24: 0 | K24: =(גיליון3!J24>0)*H24/(I24+1) -> 0 | L24: =AND(גיליון3!L24>0,גיליון3!L24=K24)*גיליון3!L24 -> 0 | M24: 0 | O24: =(גיליון3!N24>0)*H24/(M24+1) -> 0 | P24: =AND(גיליון3!P24>0,גיליון3!P24=O24)*גיליון3!P24 -> 0 | Q24: 0 | S24: =(גיליון3!R24>0)*H24/(Q24+1) -> 0 | T24: =AND(גיליון3!T24>0,גיליון3!T24=S24)*גיליון3!T24 -> 0 | U24: 0 | W24: =(גיליון3!V24>0)*H24/(U24+1) -> 0 | X24: =AND(גיליון3!X24>0,גיליון3!X24=W24)*גיליון3!X24 -> 0 | Y24: 0 | AA24: =(גיליון3!Z24>0)*H24/(Y24+1) -> 0 | AB24: =AND(גיליון3!AB24>0,גיליון3!AB24=AA24)*גיליון3!AB24 -> 0 | AC24: 0 | AE24: =(גיליון3!AD24>0)*H24/(AC24+1) -> 0 | AF24: =AND(גיליון3!AF24>0,גיליון3!AF24=AE24)*גיליון3!AF24 -> 0 | AG24: 0 | AI24: =(גיליון3!AH24>0)*H24/(AG24+1) -> 0 | AJ24: =AND(גיליון3!AJ24>0,גיליון3!AJ24=AI24)*גיליון3!AJ24 -> 0 | AK24: 0 | AM24: =(גיליון3!AL24>0)*H24/(AK24+1) -> 0 | AN24: =AND(גיליון3!AN24>0,גיליון3!AN24=AM24)*גיליון3!AN24 -> 0 | AO24: 0 | AQ24: =(גיליון3!AP24>0)*H24/(AO24+1) -> 0 | AR24: =AND(גיליון3!AR24>0,גיליון3!AR24=AQ24)*גיליון3!AR24 -> 0 | AS24: 0 | AU24: =(גיליון3!AT24>0)*H24/(AS24+1) -> 0 | AV24: =AND(גיליון3!AV24>0,גיליון3!AV24=AU24)*גיליון3!AV24 -> 0 | AW24: 0 | AX24: =גיליון1!C24 -> 0 | AY24: 0 | AZ24: 0 | BA24: 0 | BB24: 0 | BC24: 0
A25: =גיליון1!A25 -> 0 | B25: =גיליון1!B25 -> 0 | D25: =(גיליון3!D25<B25)*B25 -> 0 | F25: =INT(D25/גיליון3!H25) -> 0 | G25: =גיליון1!C25 -> 0 | H25: 0 | I25: 0 | K25: =(גיליון3!J25>0)*H25/(I25+1) -> 0 | L25: =AND(גיליון3!L25>0,גיליון3!L25=K25)*גיליון3!L25 -> 0 | M25: 0 | O25: =(גיליון3!N25>0)*H25/(M25+1) -> 0 | P25: =AND(גיליון3!P25>0,גיליון3!P25=O25)*גיליון3!P25 -> 0 | Q25: 0 | S25: =(גיליון3!R25>0)*H25/(Q25+1) -> 0 | T25: =AND(גיליון3!T25>0,גיליון3!T25=S25)*גיליון3!T25 -> 0 | U25: 0 | W25: =(גיליון3!V25>0)*H25/(U25+1) -> 0 | X25: =AND(גיליון3!X25>0,גיליון3!X25=W25)*גיליון3!X25 -> 0 | Y25: 0 | AA25: =(גיליון3!Z25>0)*H25/(Y25+1) -> 0 | AB25: =AND(גיליון3!AB25>0,גיליון3!AB25=AA25)*גיליון3!AB25 -> 0 | AC25: 0 | AE25: =(גיליון3!AD25>0)*H25/(AC25+1) -> 0 | AF25: =AND(גיליון3!AF25>0,גיליון3!AF25=AE25)*גיליון3!AF25 -> 0 | AG25: 0 | AI25: =(גיליון3!AH25>0)*H25/(AG25+1) -> 0 | AJ25: =AND(גיליון3!AJ25>0,גיליון3!AJ25=AI25)*גיליון3!AJ25 -> 0 | AK25: 0 | AM25: =(גיליון3!AL25>0)*H25/(AK25+1) -> 0 | AN25: =AND(גיליון3!AN25>0,גיליון3!AN25=AM25)*גיליון3!AN25 -> 0 | AO25: 0 | AQ25: =(גיליון3!AP25>0)*H25/(AO25+1) -> 0 | AR25: =AND(גיליון3!AR25>0,גיליון3!AR25=AQ25)*גיליון3!AR25 -> 0 | AS25: 0 | AU25: =(גיליון3!AT25>0)*H25/(AS25+1) -> 0 | AV25: =AND(גיליון3!AV25>0,גיליון3!AV25=AU25)*גיליון3!AV25 -> 0 | AW25: 0 | AX25: =גיליון1!C25 -> 0 | AY25: 0 | AZ25: 0 | BA25: 0 | BB25: 0 | BC25: 0
A26: =גיליון1!A26 -> 0 | B26: =גיליון1!B26 -> 0 | D26: =(גיליון3!D26<B26)*B26 -> 0 | F26: =INT(D26/גיליון3!H26) -> 0 | G26: =גיליון1!C26 -> 0 | H26: 0 | I26: 0 | K26: =(גיליון3!J26>0)*H26/(I26+1) -> 0 | L26: =AND(גיליון3!L26>0,גיליון3!L26=K26)*גיליון3!L26 -> 0 | M26: 0 | O26: =(גיליון3!N26>0)*H26/(M26+1) -> 0 | P26: =AND(גיליון3!P26>0,גיליון3!P26=O26)*גיליון3!P26 -> 0 | Q26: 0 | S26: =(גיליון3!R26>0)*H26/(Q26+1) -> 0 | T26: =AND(גיליון3!T26>0,גיליון3!T26=S26)*גיליון3!T26 -> 0 | U26: 0 | W26: =(גיליון3!V26>0)*H26/(U26+1) -> 0 | X26: =AND(גיליון3!X26>0,גיליון3!X26=W26)*גיליון3!X26 -> 0 | Y26: 0 | AA26: =(גיליון3!Z26>0)*H26/(Y26+1) -> 0 | AB26: =AND(גיליון3!AB26>0,גיליון3!AB26=AA26)*גיליון3!AB26 -> 0 | AC26: 0 | AE26: =(גיליון3!AD26>0)*H26/(AC26+1) -> 0 | AF26: =AND(גיליון3!AF26>0,גיליון3!AF26=AE26)*גיליון3!AF26 -> 0 | AG26: 0 | AI26: =(גיליון3!AH26>0)*H26/(AG26+1) -> 0 | AJ26: =AND(גיליון3!AJ26>0,גיליון3!AJ26=AI26)*גיליון3!AJ26 -> 0 | AK26: 0 | AM26: =(גיליון3!AL26>0)*H26/(AK26+1) -> 0 | AN26: =AND(גיליון3!AN26>0,גיליון3!AN26=AM26)*גיליון3!AN26 -> 0 | AO26: 0 | AQ26: =(גיליון3!AP26>0)*H26/(AO26+1) -> 0 | AR26: =AND(גיליון3!AR26>0,גיליון3!AR26=AQ26)*גיליון3!AR26 -> 0 | AS26: 0 | AU26: =(גיליון3!AT26>0)*H26/(AS26+1) -> 0 | AV26: =AND(גיליון3!AV26>0,גיליון3!AV26=AU26)*גיליון3!AV26 -> 0 | AW26: 0 | AX26: =גיליון1!C26 -> 0 | AY26: 0 | AZ26: 0 | BA26: 0 | BB26: 0 | BC26: 0
A27: =גיליון1!A27 -> 0 | B27: =גיליון1!B27 -> 0 | D27: =(גיליון3!D27<B27)*B27 -> 0 | F27: =INT(D27/גיליון3!H27) -> 0 | G27: =גיליון1!C27 -> 0 | H27: 0 | I27: 0 | K27: =(גיליון3!J27>0)*H27/(I27+1) -> 0 | L27: =AND(גיליון3!L27>0,גיליון3!L27=K27)*גיליון3!L27 -> 0 | M27: 0 | O27: =(גיליון3!N27>0)*H27/(M27+1) -> 0 | P27: =AND(גיליון3!P27>0,גיליון3!P27=O27)*גיליון3!P27 -> 0 | Q27: 0 | S27: =(גיליון3!R27>0)*H27/(Q27+1) -> 0 | T27: =AND(גיליון3!T27>0,גיליון3!T27=S27)*גיליון3!T27 -> 0 | U27: 0 | W27: =(גיליון3!V27>0)*H27/(U27+1) -> 0 | X27: =AND(גיליון3!X27>0,גיליון3!X27=W27)*גיליון3!X27 -> 0 | Y27: 0 | AA27: =(גיליון3!Z27>0)*H27/(Y27+1) -> 0 | AB27: =AND(גיליון3!AB27>0,גיליון3!AB27=AA27)*גיליון3!AB27 -> 0 | AC27: 0 | AE27: =(גיליון3!AD27>0)*H27/(AC27+1) -> 0 | AF27: =AND(גיליון3!AF27>0,גיליון3!AF27=AE27)*גיליון3!AF27 -> 0 | AG27: 0 | AI27: =(גיליון3!AH27>0)*H27/(AG27+1) -> 0 | AJ27: =AND(גיליון3!AJ27>0,גיליון3!AJ27=AI27)*גיליון3!AJ27 -> 0 | AK27: 0 | AM27: =(גיליון3!AL27>0)*H27/(AK27+1) -> 0 | AN27: =AND(גיליון3!AN27>0,גיליון3!AN27=AM27)*גיליון3!AN27 -> 0 | AO27: 0 | AQ27: =(גיליון3!AP27>0)*H27/(AO27+1) -> 0 | AR27: =AND(גיליון3!AR27>0,גיליון3!AR27=AQ27)*גיליון3!AR27 -> 0 | AS27: 0 | AU27: =(גיליון3!AT27>0)*H27/(AS27+1) -> 0 | AV27: =AND(גיליון3!AV27>0,גיליון3!AV27=AU27)*גיליון3!AV27 -> 0 | AW27: 0 | AX27: =גיליון1!C27 -> 0 | AY27: 0 | AZ27: 0 | BA27: 0 | BB27: 0 | BC27: 0
A28: =גיליון1!A14 -> כולנו חברים נ נח | B28: =גיליון1!B28 -> 0 | D28: =(גיליון3!D28<B28)*B28 -> 0 | F28: =INT(D28/גיליון3!H28) -> 0 | G28: =גיליון1!C28 -> 0 | H28: 0 | I28: 0 | K28: =(גיליון3!J28>0)*H28/(I28+1) -> 0 | L28: =AND(גיליון3!L28>0,גיליון3!L28=K28)*גיליון3!L28 -> 0 | M28: 0 | O28: =(גיליון3!N28>0)*H28/(M28+1) -> 0 | P28: =AND(גיליון3!P28>0,גיליון3!P28=O28)*גיליון3!P28 -> 0 | Q28: 0 | S28: =(גיליון3!R28>0)*H28/(Q28+1) -> 0 | T28: =AND(גיליון3!T28>0,גיליון3!T28=S28)*גיליון3!T28 -> 0 | U28: 0 | W28: =(גיליון3!V28>0)*H28/(U28+1) -> 0 | X28: =AND(גיליון3!X28>0,גיליון3!X28=W28)*גיליון3!X28 -> 0 | Y28: 0 | AA28: =(גיליון3!Z28>0)*H28/(Y28+1) -> 0 | AB28: =AND(גיליון3!AB28>0,גיליון3!AB28=AA28)*גיליון3!AB28 -> 0 | AC28: 0 | AE28: =(גיליון3!AD28>0)*H28/(AC28+1) -> 0 | AF28: =AND(גיליון3!AF28>0,גיליון3!AF28=AE28)*גיליון3!AF28 -> 0 | AG28: 0 | AI28: =(גיליון3!AH28>0)*H28/(AG28+1) -> 0 | AJ28: =AND(גיליון3!AJ28>0,גיליון3!AJ28=AI28)*גיליון3!AJ28 -> 0 | AK28: 0 | AM28: =(גיליון3!AL28>0)*H28/(AK28+1) -> 0 | AN28: =AND(גיליון3!AN28>0,גיליון3!AN28=AM28)*גיליון3!AN28 -> 0 | AO28: 0 | AQ28: =(גיליון3!AP28>0)*H28/(AO28+1) -> 0 | AR28: =AND(גיליון3!AR28>0,גיליון3!AR28=AQ28)*גיליון3!AR28 -> 0 | AS28: 0 | AU28: =(גיליון3!AT28>0)*H28/(AS28+1) -> 0 | AV28: =AND(גיליון3!AV28>0,גיליון3!AV28=AU28)*גיליון3!AV28 -> 0 | AW28: 0 | AX28: =גיליון1!C28 -> 0 | AY28: 0 | AZ28: 0 | BA28: 0 | BB28: 0 | BC28: 0
A29: =גיליון1!A29 -> 0 | B29: =גיליון1!B29 -> 0 | D29: =(גיליון3!D29<B29)*B29 -> 0 | F29: =INT(D29/גיליון3!H29) -> 0 | G29: =גיליון1!C29 -> 0 | H29: 0 | I29: 0 | K29: =(גיליון3!J29>0)*H29/(I29+1) -> 0 | L29: =AND(גיליון3!L29>0,גיליון3!L29=K29)*גיליון3!L29 -> 0 | M29: 0 | O29: =(גיליון3!N29>0)*H29/(M29+1) -> 0 | P29: =AND(גיליון3!P29>0,גיליון3!P29=O29)*גיליון3!P29 -> 0 | Q29: 0 | S29: =(גיליון3!R29>0)*H29/(Q29+1) -> 0 | T29: =AND(גיליון3!T29>0,גיליון3!T29=S29)*גיליון3!T29 -> 0 | U29: 0 | W29: =(גיליון3!V29>0)*H29/(U29+1) -> 0 | X29: =AND(גיליון3!X29>0,גיליון3!X29=W29)*גיליון3!X29 -> 0 | Y29: 0 | AA29: =(גיליון3!Z29>0)*H29/(Y29+1) -> 0 | AB29: =AND(גיליון3!AB29>0,גיליון3!AB29=AA29)*גיליון3!AB29 -> 0 | AC29: 0 | AE29: =(גיליון3!AD29>0)*H29/(AC29+1) -> 0 | AF29: =AND(גיליון3!AF29>0,גיליון3!AF29=AE29)*גיליון3!AF29 -> 0 | AG29: 0 | AI29: =(גיליון3!AH29>0)*H29/(AG29+1) -> 0 | AJ29: =AND(גיליון3!AJ29>0,גיליון3!AJ29=AI29)*גיליון3!AJ29 -> 0 | AK29: 0 | AM29: =(גיליון3!AL29>0)*H29/(AK29+1) -> 0 | AN29: =AND(גיליון3!AN29>0,גיליון3!AN29=AM29)*גיליון3!AN29 -> 0 | AO29: 0 | AQ29: =(גיליון3!AP29>0)*H29/(AO29+1) -> 0 | AR29: =AND(גיליון3!AR29>0,גיליון3!AR29=AQ29)*גיליון3!AR29 -> 0 | AS29: 0 | AU29: =(גיליון3!AT29>0)*H29/(AS29+1) -> 0 | AV29: =AND(גיליון3!AV29>0,גיליון3!AV29=AU29)*גיליון3!AV29 -> 0 | AW29: 0 | AX29: =גיליון1!C29 -> 0 | AY29: 0 | AZ29: 0 | BA29: 0 | BB29: 0 | BC29: 0
A30: =גיליון1!A30 -> 0 | B30: =גיליון1!B30 -> 0 | D30: =(גיליון3!D30<B30)*B30 -> 0 | F30: =INT(D30/גיליון3!H30) -> 0 | G30: =גיליון1!C30 -> 0 | H30: 0 | I30: 0 | K30: =(גיליון3!J30>0)*H30/(I30+1) -> 0 | L30: =AND(גיליון3!L30>0,גיליון3!L30=K30)*גיליון3!L30 -> 0 | M30: 0 | O30: =(גיליון3!N30>0)*H30/(M30+1) -> 0 | P30: =AND(גיליון3!P30>0,גיליון3!P30=O30)*גיליון3!P30 -> 0 | Q30: 0 | S30: =(גיליון3!R30>0)*H30/(Q30+1) -> 0 | T30: =AND(גיליון3!T30>0,גיליון3!T30=S30)*גיליון3!T30 -> 0 | U30: 0 | W30: =(גיליון3!V30>0)*H30/(U30+1) -> 0 | X30: =AND(גיליון3!X30>0,גיליון3!X30=W30)*גיליון3!X30 -> 0 | Y30: 0 | AA30: =(גיליון3!Z30>0)*H30/(Y30+1) -> 0 | AB30: =AND(גיליון3!AB30>0,גיליון3!AB30=AA30)*גיליון3!AB30 -> 0 | AC30: 0 | AE30: =(גיליון3!AD30>0)*H30/(AC30+1) -> 0 | AF30: =AND(גיליון3!AF30>0,גיליון3!AF30=AE30)*גיליון3!AF30 -> 0 | AG30: 0 | AI30: =(גיליון3!AH30>0)*H30/(AG30+1) -> 0 | AJ30: =AND(גיליון3!AJ30>0,גיליון3!AJ30=AI30)*גיליון3!AJ30 -> 0 | AK30: 0 | AM30: =(גיליון3!AL30>0)*H30/(AK30+1) -> 0 | AN30: =AND(גיליון3!AN30>0,גיליון3!AN30=AM30)*גיליון3!AN30 -> 0 | AO30: 0 | AQ30: =(גיליון3!AP30>0)*H30/(AO30+1) -> 0 | AR30: =AND(גיליון3!AR30>0,גיליון3!AR30=AQ30)*גיליון3!AR30 -> 0 | AS30: 0 | AU30: =(גיליון3!AT30>0)*H30/(AS30+1) -> 0 | AV30: =AND(גיליון3!AV30>0,גיליון3!AV30=AU30)*גיליון3!AV30 -> 0 | AW30: 0 | AX30: =גיליון1!C30 -> 0 | AY30: 0 | AZ30: 0 | BA30: 0 | BB30: 0 | BC30: 0
A31: =גיליון1!A31 -> 0 | B31: =גיליון1!B31 -> 0 | D31: =(גיליון3!D31<B31)*B31 -> 0 | F31: =INT(D31/גיליון3!H31) -> 0 | G31: =גיליון1!C31 -> 0 | H31: 0 | I31: 0 | K31: =(גיליון3!J31>0)*H31/(I31+1) -> 0 | L31: =AND(גיליון3!L31>0,גיליון3!L31=K31)*גיליון3!L31 -> 0 | M31: 0 | O31: =(גיליון3!N31>0)*H31/(M31+1) -> 0 | P31: =AND(גיליון3!P31>0,גיליון3!P31=O31)*גיליון3!P31 -> 0 | Q31: 0 | S31: =(גיליון3!R31>0)*H31/(Q31+1) -> 0 | T31: =AND(גיליון3!T31>0,גיליון3!T31=S31)*גיליון3!T31 -> 0 | U31: 0 | W31: =(גיליון3!V31>0)*H31/(U31+1) -> 0 | X31: =AND(גיליון3!X31>0,גיליון3!X31=W31)*גיליון3!X31 -> 0 | Y31: 0 | AA31: =(גיליון3!Z31>0)*H31/(Y31+1) -> 0 | AB31: =AND(גיליון3!AB31>0,גיליון3!AB31=AA31)*גיליון3!AB31 -> 0 | AC31: 0 | AE31: =(גיליון3!AD31>0)*H31/(AC31+1) -> 0 | AF31: =AND(גיליון3!AF31>0,גיליון3!AF31=AE31)*גיליון3!AF31 -> 0 | AG31: 0 | AI31: =(גיליון3!AH31>0)*H31/(AG31+1) -> 0 | AJ31: =AND(גיליון3!AJ31>0,גיליון3!AJ31=AI31)*גיליון3!AJ31 -> 0 | AK31: 0 | AM31: =(גיליון3!AL31>0)*H31/(AK31+1) -> 0 | AN31: =AND(גיליון3!AN31>0,גיליון3!AN31=AM31)*גיליון3!AN31 -> 0 | AO31: 0 | AQ31: =(גיליון3!AP31>0)*H31/(AO31+1) -> 0 | AR31: =AND(גיליון3!AR31>0,גיליון3!AR31=AQ31)*גיליון3!AR31 -> 0 | AS31: 0 | AU31: =(גיליון3!AT31>0)*H31/(AS31+1) -> 0 | AV31: =AND(גיליון3!AV31>0,גיליון3!AV31=AU31)*גיליון3!AV31 -> 0 | AW31: 0 | AX31: =גיליון1!C31 -> 0 | AY31: 0 | AZ31: 0 | BA31: 0 | BB31: 0 | BC31: 0
A32: =גיליון1!A32 -> 0 | B32: =גיליון1!B32 -> 0 | D32: =(גיליון3!D32<B32)*B32 -> 0 | F32: =INT(D32/גיליון3!H32) -> 0 | G32: =גיליון1!C32 -> 0 | H32: 0 | I32: 0 | K32: =(גיליון3!J32>0)*H32/(I32+1) -> 0 | L32: =AND(גיליון3!L32>0,גיליון3!L32=K32)*גיליון3!L32 -> 0 | M32: 0 | O32: =(גיליון3!N32>0)*H32/(M32+1) -> 0 | P32: =AND(גיליון3!P32>0,גיליון3!P32=O32)*גיליון3!P32 -> 0 | Q32: 0 | S32: =(גיליון3!R32>0)*H32/(Q32+1) -> 0 | T32: =AND(גיליון3!T32>0,גיליון3!T32=S32)*גיליון3!T32 -> 0 | U32: 0 | W32: =(גיליון3!V32>0)*H32/(U32+1) -> 0 | X32: =AND(גיליון3!X32>0,גיליון3!X32=W32)*גיליון3!X32 -> 0 | Y32: 0 | AA32: =(גיליון3!Z32>0)*H32/(Y32+1) -> 0 | AB32: =AND(גיליון3!AB32>0,גיליון3!AB32=AA32)*גיליון3!AB32 -> 0 | AC32: 0 | AE32: =(גיליון3!AD32>0)*H32/(AC32+1) -> 0 | AF32: =AND(גיליון3!AF32>0,גיליון3!AF32=AE32)*גיליון3!AF32 -> 0 | AG32: 0 | AI32: =(גיליון3!AH32>0)*H32/(AG32+1) -> 0 | AJ32: =AND(גיליון3!AJ32>0,גיליון3!AJ32=AI32)*גיליון3!AJ32 -> 0 | AK32: 0 | AM32: =(גיליון3!AL32>0)*H32/(AK32+1) -> 0 | AN32: =AND(גיליון3!AN32>0,גיליון3!AN32=AM32)*גיליון3!AN32 -> 0 | AO32: 0 | AQ32: =(גיליון3!AP32>0)*H32/(AO32+1) -> 0 | AR32: =AND(גיליון3!AR32>0,גיליון3!AR32=AQ32)*גיליון3!AR32 -> 0 | AS32: 0 | AU32: =(גיליון3!AT32>0)*H32/(AS32+1) -> 0 | AV32: =AND(גיליון3!AV32>0,גיליון3!AV32=AU32)*גיליון3!AV32 -> 0 | AW32: 0 | AX32: =גיליון1!C32 -> 0 | AY32: 0 | AZ32: 0 | BA32: 0 | BB32: 0 | BC32: 0
A33: =גיליון1!A33 -> 0 | B33: =גיליון1!B33 -> 0 | D33: =(גיליון3!D33<B33)*B33 -> 0 | F33: =INT(D33/גיליון3!H33) -> 0 | G33: =גיליון1!C33 -> 0 | H33: 0 | I33: 0 | K33: =(גיליון3!J33>0)*H33/(I33+1) -> 0 | L33: =AND(גיליון3!L33>0,גיליון3!L33=K33)*גיליון3!L33 -> 0 | M33: 0 | O33: =(גיליון3!N33>0)*H33/(M33+1) -> 0 | P33: =AND(גיליון3!P33>0,גיליון3!P33=O33)*גיליון3!P33 -> 0 | Q33: 0 | S33: =(גיליון3!R33>0)*H33/(Q33+1) -> 0 | T33: =AND(גיליון3!T33>0,גיליון3!T33=S33)*גיליון3!T33 -> 0 | U33: 0 | W33: =(גיליון3!V33>0)*H33/(U33+1) -> 0 | X33: =AND(גיליון3!X33>0,גיליון3!X33=W33)*גיליון3!X33 -> 0 | Y33: 0 | AA33: =(גיליון3!Z33>0)*H33/(Y33+1) -> 0 | AB33: =AND(גיליון3!AB33>0,גיליון3!AB33=AA33)*גיליון3!AB33 -> 0 | AC33: 0 | AE33: =(גיליון3!AD33>0)*H33/(AC33+1) -> 0 | AF33: =AND(גיליון3!AF33>0,גיליון3!AF33=AE33)*גיליון3!AF33 -> 0 | AG33: 0 | AI33: =(גיליון3!AH33>0)*H33/(AG33+1) -> 0 | AJ33: =AND(גיליון3!AJ33>0,גיליון3!AJ33=AI33)*גיליון3!AJ33 -> 0 | AK33: 0 | AM33: =(גיליון3!AL33>0)*H33/(AK33+1) -> 0 | AN33: =AND(גיליון3!AN33>0,גיליון3!AN33=AM33)*גיליון3!AN33 -> 0 | AO33: 0 | AQ33: =(גיליון3!AP33>0)*H33/(AO33+1) -> 0 | AR33: =AND(גיליון3!AR33>0,גיליון3!AR33=AQ33)*גיליון3!AR33 -> 0 | AS33: 0 | AU33: =(גיליון3!AT33>0)*H33/(AS33+1) -> 0 | AV33: =AND(גיליון3!AV33>0,גיליון3!AV33=AU33)*גיליון3!AV33 -> 0 | AW33: 0 | AX33: =גיליון1!C33 -> 0 | AY33: 0 | AZ33: 0 | BA33: 0 | BB33: 0 | BC33: 0
A34: =גיליון1!A34 -> 0 | B34: =גיליון1!B34 -> 0 | D34: =(גיליון3!D34<B34)*B34 -> 0 | F34: =INT(D34/גיליון3!H34) -> 0 | G34: =גיליון1!C34 -> 0 | H34: 0 | I34: 0 | K34: =(גיליון3!J34>0)*H34/(I34+1) -> 0 | L34: =AND(גיליון3!L34>0,גיליון3!L34=K34)*גיליון3!L34 -> 0 | M34: 0 | O34: =(גיליון3!N34>0)*H34/(M34+1) -> 0 | P34: =AND(גיליון3!P34>0,גיליון3!P34=O34)*גיליון3!P34 -> 0 | Q34: 0 | S34: =(גיליון3!R34>0)*H34/(Q34+1) -> 0 | T34: =AND(גיליון3!T34>0,גיליון3!T34=S34)*גיליון3!T34 -> 0 | U34: 0 | W34: =(גיליון3!V34>0)*H34/(U34+1) -> 0 | X34: =AND(גיליון3!X34>0,גיליון3!X34=W34)*גיליון3!X34 -> 0 | Y34: 0 | AA34: =(גיליון3!Z34>0)*H34/(Y34+1) -> 0 | AB34: =AND(גיליון3!AB34>0,גיליון3!AB34=AA34)*גיליון3!AB34 -> 0 | AC34: 0 | AE34: =(גיליון3!AD34>0)*H34/(AC34+1) -> 0 | AF34: =AND(גיליון3!AF34>0,גיליון3!AF34=AE34)*גיליון3!AF34 -> 0 | AG34: 0 | AI34: =(גיליון3!AH34>0)*H34/(AG34+1) -> 0 | AJ34: =AND(גיליון3!AJ34>0,גיליון3!AJ34=AI34)*גיליון3!AJ34 -> 0 | AK34: 0 | AM34: =(גיליון3!AL34>0)*H34/(AK34+1) -> 0 | AN34: =AND(גיליון3!AN34>0,גיליון3!AN34=AM34)*גיליון3!AN34 -> 0 | AO34: 0 | AQ34: =(גיליון3!AP34>0)*H34/(AO34+1) -> 0 | AR34: =AND(גיליון3!AR34>0,גיליון3!AR34=AQ34)*גיליון3!AR34 -> 0 | AS34: 0 | AU34: =(גיליון3!AT34>0)*H34/(AS34+1) -> 0 | AV34: =AND(גיליון3!AV34>0,גיליון3!AV34=AU34)*גיליון3!AV34 -> 0 | AW34: 0 | AX34: =גיליון1!C34 -> 0 | AY34: 0 | AZ34: 0 | BA34: 0 | BB34: 0 | BC34: 0
A35: =גיליון1!A35 -> 0 | B35: =גיליון1!B35 -> 0 | D35: =(גיליון3!D35<B35)*B35 -> 0 | F35: =INT(D35/גיליון3!H35) -> 0 | G35: =גיליון1!C35 -> 0 | H35: 0 | I35: 0 | K35: =(גיליון3!J35>0)*H35/(I35+1) -> 0 | L35: =AND(גיליון3!L35>0,גיליון3!L35=K35)*גיליון3!L35 -> 0 | M35: 0 | O35: =(גיליון3!N35>0)*H35/(M35+1) -> 0 | P35: =AND(גיליון3!P35>0,גיליון3!P35=O35)*גיליון3!P35 -> 0 | Q35: 0 | S35: =(גיליון3!R35>0)*H35/(Q35+1) -> 0 | T35: =AND(גיליון3!T35>0,גיליון3!T35=S35)*גיליון3!T35 -> 0 | U35: 0 | W35: =(גיליון3!V35>0)*H35/(U35+1) -> 0 | X35: =AND(גיליון3!X35>0,גיליון3!X35=W35)*גיליון3!X35 -> 0 | Y35: 0 | AA35: =(גיליון3!Z35>0)*H35/(Y35+1) -> 0 | AB35: =AND(גיליון3!AB35>0,גיליון3!AB35=AA35)*גיליון3!AB35 -> 0 | AC35: 0 | AE35: =(גיליון3!AD35>0)*H35/(AC35+1) -> 0 | AF35: =AND(גיליון3!AF35>0,גיליון3!AF35=AE35)*גיליון3!AF35 -> 0 | AG35: 0 | AI35: =(גיליון3!AH35>0)*H35/(AG35+1) -> 0 | AJ35: =AND(גיליון3!AJ35>0,גיליון3!AJ35=AI35)*גיליון3!AJ35 -> 0 | AK35: 0 | AM35: =(גיליון3!AL35>0)*H35/(AK35+1) -> 0 | AN35: =AND(גיליון3!AN35>0,גיליון3!AN35=AM35)*גיליון3!AN35 -> 0 | AO35: 0 | AQ35: =(גיליון3!AP35>0)*H35/(AO35+1) -> 0 | AR35: =AND(גיליון3!AR35>0,גיליון3!AR35=AQ35)*גיליון3!AR35 -> 0 | AS35: 0 | AU35: =(גיליון3!AT35>0)*H35/(AS35+1) -> 0 | AV35: =AND(גיליון3!AV35>0,גיליון3!AV35=AU35)*גיליון3!AV35 -> 0 | AW35: 0 | AX35: =גיליון1!C35 -> 0 | AY35: 0 | AZ35: 0 | BA35: 0 | BB35: 0 | BC35: 0
A36: =גיליון1!A36 -> 0 | B36: =גיליון1!B36 -> 0 | D36: =(גיליון3!D36<B36)*B36 -> 0 | F36: =INT(D36/גיליון3!H36) -> 0 | G36: =גיליון1!C36 -> 0 | H36: 0 | I36: 0 | K36: =(גיליון3!J36>0)*H36/(I36+1) -> 0 | L36: =AND(גיליון3!L36>0,גיליון3!L36=K36)*גיליון3!L36 -> 0 | M36: 0 | O36: =(גיליון3!N36>0)*H36/(M36+1) -> 0 | P36: =AND(גיליון3!P36>0,גיליון3!P36=O36)*גיליון3!P36 -> 0 | Q36: 0 | S36: =(גיליון3!R36>0)*H36/(Q36+1) -> 0 | T36: =AND(גיליון3!T36>0,גיליון3!T36=S36)*גיליון3!T36 -> 0 | U36: 0 | W36: =(גיליון3!V36>0)*H36/(U36+1) -> 0 | X36: =AND(גיליון3!X36>0,גיליון3!X36=W36)*גיליון3!X36 -> 0 | Y36: 0 | AA36: =(גיליון3!Z36>0)*H36/(Y36+1) -> 0 | AB36: =AND(גיליון3!AB36>0,גיליון3!AB36=AA36)*גיליון3!AB36 -> 0 | AC36: 0 | AE36: =(גיליון3!AD36>0)*H36/(AC36+1) -> 0 | AF36: =AND(גיליון3!AF36>0,גיליון3!AF36=AE36)*גיליון3!AF36 -> 0 | AG36: 0 | AI36: =(גיליון3!AH36>0)*H36/(AG36+1) -> 0 | AJ36: =AND(גיליון3!AJ36>0,גיליון3!AJ36=AI36)*גיליון3!AJ36 -> 0 | AK36: 0 | AM36: =(גיליון3!AL36>0)*H36/(AK36+1) -> 0 | AN36: =AND(גיליון3!AN36>0,גיליון3!AN36=AM36)*גיליון3!AN36 -> 0 | AO36: 0 | AQ36: =(גיליון3!AP36>0)*H36/(AO36+1) -> 0 | AR36: =AND(גיליון3!AR36>0,גיליון3!AR36=AQ36)*גיליון3!AR36 -> 0 | AS36: 0 | AU36: =(גיליון3!AT36>0)*H36/(AS36+1) -> 0 | AV36: =AND(גיליון3!AV36>0,גיליון3!AV36=AU36)*גיליון3!AV36 -> 0 | AW36: 0 | AX36: =גיליון1!C36 -> 0 | AY36: 0 | AZ36: 0 | BA36: 0 | BB36: 0 | BC36: 0
A37: =גיליון1!A37 -> 0 | B37: =גיליון1!B37 -> 0 | D37: =(גיליון3!D37<B37)*B37 -> 0 | F37: =INT(D37/גיליון3!H37) -> 0 | G37: =גיליון1!C37 -> 0 | H37: 0 | I37: 0 | K37: =(גיליון3!J37>0)*H37/(I37+1) -> 0 | L37: =AND(גיליון3!L37>0,גיליון3!L37=K37)*גיליון3!L37 -> 0 | M37: 0 | O37: =(גיליון3!N37>0)*H37/(M37+1) -> 0 | P37: =AND(גיליון3!P37>0,גיליון3!P37=O37)*גיליון3!P37 -> 0 | Q37: 0 | S37: =(גיליון3!R37>0)*H37/(Q37+1) -> 0 | T37: =AND(גיליון3!T37>0,גיליון3!T37=S37)*גיליון3!T37 -> 0 | U37: 0 | W37: =(גיליון3!V37>0)*H37/(U37+1) -> 0 | X37: =AND(גיליון3!X37>0,גיליון3!X37=W37)*גיליון3!X37 -> 0 | Y37: 0 | AA37: =(גיליון3!Z37>0)*H37/(Y37+1) -> 0 | AB37: =AND(גיליון3!AB37>0,גיליון3!AB37=AA37)*גיליון3!AB37 -> 0 | AC37: 0 | AE37: =(גיליון3!AD37>0)*H37/(AC37+1) -> 0 | AF37: =AND(גיליון3!AF37>0,גיליון3!AF37=AE37)*גיליון3!AF37 -> 0 | AG37: 0 | AI37: =(גיליון3!AH37>0)*H37/(AG37+1) -> 0 | AJ37: =AND(גיליון3!AJ37>0,גיליון3!AJ37=AI37)*גיליון3!AJ37 -> 0 | AK37: 0 | AM37: =(גיליון3!AL37>0)*H37/(AK37+1) -> 0 | AN37: =AND(גיליון3!AN37>0,גיליון3!AN37=AM37)*גיליון3!AN37 -> 0 | AO37: 0 | AQ37: =(גיליון3!AP37>0)*H37/(AO37+1) -> 0 | AR37: =AND(גיליון3!AR37>0,גיליון3!AR37=AQ37)*גיליון3!AR37 -> 0 | AS37: 0 | AU37: =(גיליון3!AT37>0)*H37/(AS37+1) -> 0 | AV37: =AND(גיליון3!AV37>0,גיליון3!AV37=AU37)*גיליון3!AV37 -> 0 | AW37: 0 | AX37: =גיליון1!C37 -> 0 | AY37: 0 | AZ37: 0 | BA37: 0 | BB37: 0 | BC37: 0
A38: =גיליון1!A38 -> 0 | B38: =גיליון1!B38 -> 0 | D38: =(גיליון3!D38<B38)*B38 -> 0 | F38: =INT(D38/גיליון3!H38) -> 0 | G38: =גיליון1!C38 -> 0 | H38: 0 | I38: 0 | K38: =(גיליון3!J38>0)*H38/(I38+1) -> 0 | L38: =AND(גיליון3!L38>0,גיליון3!L38=K38)*גיליון3!L38 -> 0 | M38: 0 | O38: =(גיליון3!N38>0)*H38/(M38+1) -> 0 | P38: =AND(גיליון3!P38>0,גיליון3!P38=O38)*גיליון3!P38 -> 0 | Q38: 0 | S38: =(גיליון3!R38>0)*H38/(Q38+1) -> 0 | T38: =AND(גיליון3!T38>0,גיליון3!T38=S38)*גיליון3!T38 -> 0 | U38: 0 | W38: =(גיליון3!V38>0)*H38/(U38+1) -> 0 | X38: =AND(גיליון3!X38>0,גיליון3!X38=W38)*גיליון3!X38 -> 0 | Y38: 0 | AA38: =(גיליון3!Z38>0)*H38/(Y38+1) -> 0 | AB38: =AND(גיליון3!AB38>0,גיליון3!AB38=AA38)*גיליון3!AB38 -> 0 | AC38: 0 | AE38: =(גיליון3!AD38>0)*H38/(AC38+1) -> 0 | AF38: =AND(גיליון3!AF38>0,גיליון3!AF38=AE38)*גיליון3!AF38 -> 0 | AG38: 0 | AI38: =(גיליון3!AH38>0)*H38/(AG38+1) -> 0 | AJ38: =AND(גיליון3!AJ38>0,גיליון3!AJ38=AI38)*גיליון3!AJ38 -> 0 | AK38: 0 | AM38: =(גיליון3!AL38>0)*H38/(AK38+1) -> 0 | AN38: =AND(גיליון3!AN38>0,גיליון3!AN38=AM38)*גיליון3!AN38 -> 0 | AO38: 0 | AQ38: =(גיליון3!AP38>0)*H38/(AO38+1) -> 0 | AR38: =AND(גיליון3!AR38>0,גיליון3!AR38=AQ38)*גיליון3!AR38 -> 0 | AS38: 0 | AU38: =(גיליון3!AT38>0)*H38/(AS38+1) -> 0 | AV38: =AND(גיליון3!AV38>0,גיליון3!AV38=AU38)*גיליון3!AV38 -> 0 | AW38: 0 | AX38: =גיליון1!C38 -> 0 | AY38: 0 | AZ38: 0 | BA38: 0 | BB38: 0 | BC38: 0
A39: =גיליון1!A39 -> 0 | B39: =גיליון1!B39 -> 0 | D39: =(גיליון3!D39<B39)*B39 -> 0 | F39: =INT(D39/גיליון3!H39) -> 0 | G39: =גיליון1!C39 -> 0 | H39: 0 | I39: 0 | K39: =(גיליון3!J39>0)*H39/(I39+1) -> 0 | L39: =AND(גיליון3!L39>0,גיליון3!L39=K39)*גיליון3!L39 -> 0 | M39: 0 | O39: =(גיליון3!N39>0)*H39/(M39+1) -> 0 | P39: =AND(גיליון3!P39>0,גיליון3!P39=O39)*גיליון3!P39 -> 0 | Q39: 0 | S39: =(גיליון3!R39>0)*H39/(Q39+1) -> 0 | T39: =AND(גיליון3!T39>0,גיליון3!T39=S39)*גיליון3!T39 -> 0 | U39: 0 | W39: =(גיליון3!V39>0)*H39/(U39+1) -> 0 | X39: =AND(גיליון3!X39>0,גיליון3!X39=W39)*גיליון3!X39 -> 0 | Y39: 0 | AA39: =(גיליון3!Z39>0)*H39/(Y39+1) -> 0 | AB39: =AND(גיליון3!AB39>0,גיליון3!AB39=AA39)*גיליון3!AB39 -> 0 | AC39: 0 | AE39: =(גיליון3!AD39>0)*H39/(AC39+1) -> 0 | AF39: =AND(גיליון3!AF39>0,גיליון3!AF39=AE39)*גיליון3!AF39 -> 0 | AG39: 0 | AI39: =(גיליון3!AH39>0)*H39/(AG39+1) -> 0 | AJ39: =AND(גיליון3!AJ39>0,גיליון3!AJ39=AI39)*גיליון3!AJ39 -> 0 | AK39: 0 | AM39: =(גיליון3!AL39>0)*H39/(AK39+1) -> 0 | AN39: =AND(גיליון3!AN39>0,גיליון3!AN39=AM39)*גיליון3!AN39 -> 0 | AO39: 0 | AQ39: =(גיליון3!AP39>0)*H39/(AO39+1) -> 0 | AR39: =AND(גיליון3!AR39>0,גיליון3!AR39=AQ39)*גיליון3!AR39 -> 0 | AS39: 0 | AU39: =(גיליון3!AT39>0)*H39/(AS39+1) -> 0 | AV39: =AND(גיליון3!AV39>0,גיליון3!AV39=AU39)*גיליון3!AV39 -> 0 | AW39: 0 | AX39: =גיליון1!C39 -> 0 | AY39: 0 | AZ39: 0 | BA39: 0 | BB39: 0 | BC39: 0
A40: =גיליון1!A40 -> סה"כ | B40: =גיליון1!B40 -> 3986855 | D40: =SUM(D2:D39) -> 3827515 | F40: =SUM(F2:F39) -> 114 | H40: =SUM(H2:H39) -> 3827515 | I40: 114 | M40: =SUM(M2:M39) -> 115 | Q40: =SUM(Q2:Q39) -> 116 | U40: =SUM(U2:U39) -> 117 | Y40: =SUM(Y2:Y39) -> 118 | AC40: =SUM(AC2:AC39) -> 119 | AG40: =SUM(AG2:AG39) -> 120 | AK40: =SUM(AK2:AK39) -> 120 | AO40: =SUM(AO2:AO39) -> 120 | AS40: =SUM(AS2:AS39) -> 120 | AW40: =SUM(AW2:AW39) -> 120 | AZ40: =SUM(AZ2:AZ39) -> 116 | BC40: =SUM(BC2:BC39) -> 120
D42: =D40/B40 -> 0.9600336606
A51: =גיליון1!A1 -> רשימה | B51: =גיליון1!B1 -> קולות | C51: אחוז החסימה | D51: רשימות שעברו את אחוז החסימה | E51: מודד | F51: מנדטים לרשימה | G51: מנדטים נותרים | H51: חלוקה 1 | I51: גדול ביותר | J51: תוצאה | K51: מנדטים נותרים | L51: חלוקה 2 | M51: גדול ביותר | N51: תוצאה | O51: מנדטים נותרים | P51: חלוקה 3 | Q51: גדול ביותר | R51: תוצאה | S51: מנדטים נותרים | T51: חלוקה 4 | U51: גדול ביותר | V51: תוצאה | W51: מנדטים נותרים | X51: חלוקה 5 | Y51: גדול ביותר | Z51: תוצאה | AA51: מנדטים נותרים | AB51: חלוקה 6 | AC51: גדול ביותר | AD51: תוצאה | AE51: מנדטים נותרים | AF51: חלוקה 7 | AG51: גדול ביותר | AH51: תוצאה | AI51: מנדטים נותרים | AJ51: חלוקה 8 | AK51: גדול ביותר | AL51: תוצאה | AM51: מנדטים נותרים | AN51: חלוקה 9 | AO51: גדול ביותר | AP51: תוצאה | AQ51: מנדטים נותרים | AR51: חלוקה 10 | AS51: גדול ביותר | AT51: תוצאה
A52: =גיליון1!A2 -> הבית היהודי | B52: =גיליון1!B2 -> 254663 | C52: =גיליון1!G2 -> 0.0325 | D52: =IF(B52<גיליון3!D2,0,B52) -> 254663 | E52: =גיליון2!D90/גיליון1!H2 -> 31895.95833 | F52: =INT(D52/גיליון3!H2) -> 7 | G52: =E53-F90 -> 6 | H52: =IF(גיליון3!G52>0,D52/גיליון3!H2-F52,0) -> 0.9841777237 | I52: =IF(H52=0,0,IF(גיליון3!I52=H52,H52,0)) -> 0 | J52: =IF(I52=0,F52,F52+1) -> 7 | K52: =E53-J90 -> 5 | L52: =IF(גיליון3!K52>0,D52/גיליון3!H2-J52,0) -> 0.9841777237 | M52: =IF(L52=0,0,IF(גיליון3!M52=L52,L52,0)) -> 0.9841777237 | N52: =IF(M52=0,J52,J52+1) -> 8 | O52: =E53-N90 -> 4 | P52: =IF(גיליון3!O52>0,D52/גיליון3!H2-N52,0) -> -0.01582227633 | Q52: =IF(P52=0,0,IF(גיליון3!Q52=P52,P52,0)) -> 0 | R52: =IF(Q52=0,N52,N52+1) -> 8 | S52: =E53-R90 -> 3 | T52: =IF(גיליון3!S52>0,D52/גיליון3!H2-R52,0) -> -0.01582227633 | U52: =IF(T52=0,0,IF(גיליון3!U52=T52,T52,0)) -> 0 | V52: =IF(U52=0,R52,R52+1) -> 8 | W52: =E53-V90 -> 2 | X52: =IF(גיליון3!W52>0,D52/גיליון3!H2-V52,0) -> -0.01582227633 | Y52: =IF(X52=0,0,IF(גיליון3!Y52=X52,X52,0)) -> 0 | Z52: =IF(Y52=0,V52,V52+1) -> 8 | AA52: =E53-Z90 -> 1 | AB52: =IF(גיליון3!AA52>0,D52/גיליון3!H2-Z52,0) -> -0.01582227633 | AC52: =IF(AB52=0,0,IF(גיליון3!AC52=AB52,AB52,0)) -> 0 | AD52: =IF(AC52=0,Z52,Z52+1) -> 8 | AE52: =E53-AD90 -> 0 | AF52: =IF(גיליון3!AE52>0,D52/גיליון3!H2-AD52,0) -> 0 | AG52: =IF(AF52=0,0,IF(גיליון3!AG52=AF52,AF52,0)) -> 0 | AH52: =IF(AG52=0,AD52,AD52+1) -> 8 | AI52: =E53-AH90 -> 0 | AJ52: =IF(גיליון3!AI52>0,D52/גיליון3!H2-AH52,0) -> 0 | AK52: =IF(AJ52=0,0,IF(גיליון3!AK52=AJ52,AJ52,0)) -> 0 | AL52: =IF(AK52=0,AH52,AH52+1) -> 8 | AM52: =E53-AL90 -> 0 | AN52: =IF(גיליון3!AM52>0,D52/גיליון3!H2-AL52,0) -> 0 | AO52: =IF(AN52=0,0,IF(גיליון3!AO52=AN52,AN52,0)) -> 0 | AP52: =IF(AO52=0,AL52,AL52+1) -> 8 | AQ52: =E53-AP90 -> 0 | AR52: =IF(גיליון3!AQ52>0,D52/גיליון3!H2-AP52,0) -> 0 | AS52: =IF(AR52=0,0,IF(גיליון3!AS52=AR52,AR52,0)) -> 0 | AT52: =IF(AS52=0,AP52,AP52+1) -> 8
A53: =גיליון1!A3 -> הליכוד | B53: =גיליון1!B3 -> 924766 | C53: =B90*C52 -> 129572.7875 | D53: =IF(B53<גיליון3!D3,0,B53) -> 924766 | E53: =גיליון1!H2 -> 120 | F53: =INT(D53/גיליון3!H3) -> 28 | H53: =IF(גיליון3!G53>0,D53/גיליון3!H3-F53,0) -> 0.9932031618 | I53: =IF(H53=0,0,IF(גיליון3!I53=H53,H53,0)) -> 0.9932031618 | J53: 29 | L53: =IF(גיליון3!K53>0,D53/גיליון3!H3-J53,0) -> -0.006796838157 | M53: =IF(L53=0,0,IF(גיליון3!M53=L53,L53,0)) -> 0 | N53: 29 | P53: =IF(גיליון3!O53>0,D53/גיליון3!H3-N53,0) -> -0.006796838157 | Q53: =IF(P53=0,0,IF(גיליון3!Q53=P53,P53,0)) -> 0 | R53: 29 | T53: =IF(גיליון3!S53>0,D53/גיליון3!H3-R53,0) -> -0.006796838157 | U53: =IF(T53=0,0,IF(גיליון3!U53=T53,T53,0)) -> 0 | V53: 29 | X53: =IF(גיליון3!W53>0,D53/גיליון3!H3-V53,0) -> -0.006796838157 | Y53: =IF(X53=0,0,IF(גיליון3!Y53=X53,X53,0)) -> 0 | Z53: 29 | AB53: =IF(גיליון3!AA53>0,D53/גיליון3!H3-Z53,0) -> -0.006796838157 | AC53: =IF(AB53=0,0,IF(גיליון3!AC53=AB53,AB53,0)) -> 0 | AD53: 29 | AF53: =IF(גיליון3!AE53>0,D53/גיליון3!H3-AD53,0) -> 0 | AG53: =IF(AF53=0,0,IF(גיליון3!AG53=AF53,AF53,0)) -> 0 | AH53: 29 | AJ53: =IF(גיליון3!AI53>0,D53/גיליון3!H3-AH53,0) -> 0 | AK53: =IF(AJ53=0,0,IF(גיליון3!AK53=AJ53,AJ53,0)) -> 0 | AL53: 29 | AN53: =IF(גיליון3!AM53>0,D53/גיליון3!H3-AL53,0) -> 0 | AO53: =IF(AN53=0,0,IF(גיליון3!AO53=AN53,AN53,0)) -> 0 | AP53: 29 | AR53: =IF(גיליון3!AQ53>0,D53/גיליון3!H3-AP53,0) -> 0 | AS53: =IF(AR53=0,0,IF(גיליון3!AS53=AR53,AR53,0)) -> 0 | AT53: 29
A54: =גיליון1!A4 -> יש עתיד | B54: =גיליון1!B4 -> 348802 | D54: =IF(B54<גיליון3!D4,0,B54) -> 348802 | F54: =INT(D54/גיליון3!H4) -> 10 | H54: =IF(גיליון3!G54>0,D54/גיליון3!H4-F54,0) -> 0.9356174959 | I54: =IF(H54=0,0,IF(גיליון3!I54=H54,H54,0)) -> 0 | J54: 10 | L54: =IF(גיליון3!K54>0,D54/גיליון3!H4-J54,0) -> 0.9356174959 | M54: =IF(L54=0,0,IF(גיליון3!M54=L54,L54,0)) -> 0 | N54: 10 | P54: =IF(גיליון3!O54>0,D54/גיליון3!H4-N54,0) -> 0.9356174959 | Q54: =IF(P54=0,0,IF(גיליון3!Q54=P54,P54,0)) -> 0.9356174959 | R54: 11 | T54: =IF(גיליון3!S54>0,D54/גיליון3!H4-R54,0) -> -0.06438250405 | U54: =IF(T54=0,0,IF(גיליון3!U54=T54,T54,0)) -> 0 | V54: 11 | X54: =IF(גיליון3!W54>0,D54/גיליון3!H4-V54,0) -> -0.06438250405 | Y54: =IF(X54=0,0,IF(גיליון3!Y54=X54,X54,0)) -> 0 | Z54: 11 | AB54: =IF(גיליון3!AA54>0,D54/גיליון3!H4-Z54,0) -> -0.06438250405 | AC54: =IF(AB54=0,0,IF(גיליון3!AC54=AB54,AB54,0)) -> 0 | AD54: 11 | AF54: =IF(גיליון3!AE54>0,D54/גיליון3!H4-AD54,0) -> 0 | AG54: =IF(AF54=0,0,IF(גיליון3!AG54=AF54,AF54,0)) -> 0 | AH54: 11 | AJ54: =IF(גיליון3!AI54>0,D54/גיליון3!H4-AH54,0) -> 0 | AK54: =IF(AJ54=0,0,IF(גיליון3!AK54=AJ54,AJ54,0)) -> 0 | AL54: 11 | AN54: =IF(גיליון3!AM54>0,D54/גיליון3!H4-AL54,0) -> 0 | AO54: =IF(AN54=0,0,IF(גיליון3!AO54=AN54,AN54,0)) -> 0 | AP54: 11 | AR54: =IF(גיליון3!AQ54>0,D54/גיליון3!H4-AP54,0) -> 0 | AS54: =IF(AR54=0,0,IF(גיליון3!AS54=AR54,AR54,0)) -> 0 | AT54: 11
A55: =גיליון1!A5 -> המחנה הציוני | B55: =גיליון1!B5 -> 744673 | D55: =IF(B55<גיליון3!D5,0,B55) -> 744673 | F55: =INT(D55/גיליון3!H5) -> 23 | H55: =IF(גיליון3!G55>0,D55/גיליון3!H5-F55,0) -> 0.3469392021 | I55: =IF(H55=0,0,IF(גיליון3!I55=H55,H55,0)) -> 0 | J55: 23 | L55: =IF(גיליון3!K55>0,D55/גיליון3!H5-J55,0) -> 0.3469392021 | M55: =IF(L55=0,0,IF(גיליון3!M55=L55,L55,0)) -> 0 | N55: 23 | P55: =IF(גיליון3!O55>0,D55/גיליון3!H5-N55,0) -> 0.3469392021 | Q55: =IF(P55=0,0,IF(גיליון3!Q55=P55,P55,0)) -> 0 | R55: 23 | T55: =IF(גיליון3!S55>0,D55/גיליון3!H5-R55,0) -> 0.3469392021 | U55: =IF(T55=0,0,IF(גיליון3!U55=T55,T55,0)) -> 0 | V55: 23 | X55: =IF(גיליון3!W55>0,D55/גיליון3!H5-V55,0) -> 0.3469392021 | Y55: =IF(X55=0,0,IF(גיליון3!Y55=X55,X55,0)) -> 0 | Z55: 23 | AB55: =IF(גיליון3!AA55>0,D55/גיליון3!H5-Z55,0) -> 0.3469392021 | AC55: =IF(AB55=0,0,IF(גיליון3!AC55=AB55,AB55,0)) -> 0 | AD55: 23 | AF55: =IF(גיליון3!AE55>0,D55/גיליון3!H5-AD55,0) -> 0 | AG55: =IF(AF55=0,0,IF(גיליון3!AG55=AF55,AF55,0)) -> 0 | AH55: 23 | AJ55: =IF(גיליון3!AI55>0,D55/גיליון3!H5-AH55,0) -> 0 | AK55: =IF(AJ55=0,0,IF(גיליון3!AK55=AJ55,AJ55,0)) -> 0 | AL55: 23 | AN55: =IF(גיליון3!AM55>0,D55/גיליון3!H5-AL55,0) -> 0 | AO55: =IF(AN55=0,0,IF(גיליון3!AO55=AN55,AN55,0)) -> 0 | AP55: 23 | AR55: =IF(גיליון3!AQ55>0,D55/גיליון3!H5-AP55,0) -> 0 | AS55: =IF(AR55=0,0,IF(גיליון3!AS55=AR55,AR55,0)) -> 0 | AT55: 23
A56: =גיליון1!A6 -> מרץ | B56: =גיליון1!B6 -> 154648 | D56: =IF(B56<גיליון3!D6,0,B56) -> 154648 | F56: =INT(D56/גיליון3!H6) -> 4 | H56: =IF(גיליון3!G56>0,D56/גיליון3!H6-F56,0) -> 0.8485139836 | I56: =IF(H56=0,0,IF(גיליון3!I56=H56,H56,0)) -> 0 | J56: 4 | L56: =IF(גיליון3!K56>0,D56/גיליון3!H6-J56,0) -> 0.8485139836 | M56: =IF(L56=0,0,IF(גיליון3!M56=L56,L56,0)) -> 0 | N56: 4 | P56: =IF(גיליון3!O56>0,D56/גיליון3!H6-N56,0) -> 0.8485139836 | Q56: =IF(P56=0,0,IF(גיליון3!Q56=P56,P56,0)) -> 0 | R56: 4 | T56: =IF(גיליון3!S56>0,D56/גיליון3!H6-R56,0) -> 0.8485139836 | U56: =IF(T56=0,0,IF(גיליון3!U56=T56,T56,0)) -> 0.8485139836 | V56: 5 | X56: =IF(גיליון3!W56>0,D56/גיליון3!H6-V56,0) -> -0.1514860164 | Y56: =IF(X56=0,0,IF(גיליון3!Y56=X56,X56,0)) -> 0 | Z56: 5 | AB56: =IF(גיליון3!AA56>0,D56/גיליון3!H6-Z56,0) -> -0.1514860164 | AC56: =IF(AB56=0,0,IF(גיליון3!AC56=AB56,AB56,0)) -> 0 | AD56: 5 | AF56: =IF(גיליון3!AE56>0,D56/גיליון3!H6-AD56,0) -> 0 | AG56: =IF(AF56=0,0,IF(גיליון3!AG56=AF56,AF56,0)) -> 0 | AH56: 5 | AJ56: =IF(גיליון3!AI56>0,D56/גיליון3!H6-AH56,0) -> 0 | AK56: =IF(AJ56=0,0,IF(גיליון3!AK56=AJ56,AJ56,0)) -> 0 | AL56: 5 | AN56: =IF(גיליון3!AM56>0,D56/גיליון3!H6-AL56,0) -> 0 | AO56: =IF(AN56=0,0,IF(גיליון3!AO56=AN56,AN56,0)) -> 0 | AP56: 5 | AR56: =IF(גיליון3!AQ56>0,D56/גיליון3!H6-AP56,0) -> 0 | AS56: =IF(AR56=0,0,IF(גיליון3!AS56=AR56,AR56,0)) -> 0 | AT56: 5
A57: =גיליון1!A7 -> רעם | B57: =גיליון1!B7 -> 463532 | D57: =IF(B57<גיליון3!D7,0,B57) -> 463532 | F57: =INT(D57/גיליון3!H7) -> 14 | H57: =IF(גיליון3!G57>0,D57/גיליון3!H7-F57,0) -> 0.5326249538 | I57: =IF(H57=0,0,IF(גיליון3!I57=H57,H57,0)) -> 0 | J57: 14 | L57: =IF(גיליון3!K57>0,D57/גיליון3!H7-J57,0) -> 0.5326249538 | M57: =IF(L57=0,0,IF(גיליון3!M57=L57,L57,0)) -> 0 | N57: 14 | P57: =IF(גיליון3!O57>0,D57/גיליון3!H7-N57,0) -> 0.5326249538 | Q57: =IF(P57=0,0,IF(גיליון3!Q57=P57,P57,0)) -> 0 | R57: 14 | T57: =IF(גיליון3!S57>0,D57/גיליון3!H7-R57,0) -> 0.5326249538 | U57: =IF(T57=0,0,IF(גיליון3!U57=T57,T57,0)) -> 0 | V57: 14 | X57: =IF(גיליון3!W57>0,D57/גיליון3!H7-V57,0) -> 0.5326249538 | Y57: =IF(X57=0,0,IF(גיליון3!Y57=X57,X57,0)) -> 0.5326249538 | Z57: 15 | AB57: =IF(גיליון3!AA57>0,D57/גיליון3!H7-Z57,0) -> -0.4673750462 | AC57: =IF(AB57=0,0,IF(גיליון3!AC57=AB57,AB57,0)) -> 0 | AD57: 15 | AF57: =IF(גיליון3!AE57>0,D57/גיליון3!H7-AD57,0) -> 0 | AG57: =IF(AF57=0,0,IF(גיליון3!AG57=AF57,AF57,0)) -> 0 | AH57: 15 | AJ57: =IF(גיליון3!AI57>0,D57/גיליון3!H7-AH57,0) -> 0 | AK57: =IF(AJ57=0,0,IF(גיליון3!AK57=AJ57,AJ57,0)) -> 0 | AL57: 15 | AN57: =IF(גיליון3!AM57>0,D57/גיליון3!H7-AL57,0) -> 0 | AO57: =IF(AN57=0,0,IF(גיליון3!AO57=AN57,AN57,0)) -> 0 | AP57: 15 | AR57: =IF(גיליון3!AQ57>0,D57/גיליון3!H7-AP57,0) -> 0 | AS57: =IF(AR57=0,0,IF(גיליון3!AS57=AR57,AR57,0)) -> 0 | AT57: 15
A58: =גיליון1!A8 -> יחד | B58: =גיליון1!B8 -> 118368 | D58: =IF(B58<גיליון3!D8,0,B58) -> 0 | F58: =INT(D58/גיליון3!H8) -> 0 | H58: =IF(גיליון3!G58>0,D58/גיליון3!H8-F58,0) -> 0 | I58: =IF(H58=0,0,IF(גיליון3!I58=H58,H58,0)) -> 0 | J58: 0 | L58: =IF(גיליון3!K58>0,D58/גיליון3!H8-J58,0) -> 0 | M58: =IF(L58=0,0,IF(גיליון3!M58=L58,L58,0)) -> 0 | N58: 0 | P58: =IF(גיליון3!O58>0,D58/גיליון3!H8-N58,0) -> 0 | Q58: =IF(P58=0,0,IF(גיליון3!Q58=P58,P58,0)) -> 0 | R58: 0 | T58: =IF(גיליון3!S58>0,D58/גיליון3!H8-R58,0) -> 0 | U58: =IF(T58=0,0,IF(גיליון3!U58=T58,T58,0)) -> 0 | V58: 0 | X58: =IF(גיליון3!W58>0,D58/גיליון3!H8-V58,0) -> 0 | Y58: =IF(X58=0,0,IF(גיליון3!Y58=X58,X58,0)) -> 0 | Z58: 0 | AB58: =IF(גיליון3!AA58>0,D58/גיליון3!H8-Z58,0) -> 0 | AC58: =IF(AB58=0,0,IF(גיליון3!AC58=AB58,AB58,0)) -> 0 | AD58: 0 | AF58: =IF(גיליון3!AE58>0,D58/גיליון3!H8-AD58,0) -> 0 | AG58: =IF(AF58=0,0,IF(גיליון3!AG58=AF58,AF58,0)) -> 0 | AH58: 0 | AJ58: =IF(גיליון3!AI58>0,D58/גיליון3!H8-AH58,0) -> 0 | AK58: =IF(AJ58=0,0,IF(גיליון3!AK58=AJ58,AJ58,0)) -> 0 | AL58: 0 | AN58: =IF(גיליון3!AM58>0,D58/גיליון3!H8-AL58,0) -> 0 | AO58: =IF(AN58=0,0,IF(גיליון3!AO58=AN58,AN58,0)) -> 0 | AP58: 0 | AR58: =IF(גיליון3!AQ58>0,D58/גיליון3!H8-AP58,0) -> 0 | AS58: =IF(AR58=0,0,IF(גיליון3!AS58=AR58,AR58,0)) -> 0 | AT58: 0
A59: =גיליון1!A9 -> יהדות התורה | B59: =גיליון1!B9 -> 205551 | D59: =IF(B59<גיליון3!D9,0,B59) -> 205551 | F59: =INT(D59/גיליון3!H9) -> 6 | H59: =IF(גיליון3!G59>0,D59/גיליון3!H9-F59,0) -> 0.4444215111 | I59: =IF(H59=0,0,IF(גיליון3!I59=H59,H59,0)) -> 0 | J59: 6 | L59: =IF(גיליון3!K59>0,D59/גיליון3!H9-J59,0) -> 0.4444215111 | M59: =IF(L59=0,0,IF(גיליון3!M59=L59,L59,0)) -> 0 | N59: 6 | P59: =IF(גיליון3!O59>0,D59/גיליון3!H9-N59,0) -> 0.4444215111 | Q59: =IF(P59=0,0,IF(גיליון3!Q59=P59,P59,0)) -> 0 | R59: 6 | T59: =IF(גיליון3!S59>0,D59/גיליון3!H9-R59,0) -> 0.4444215111 | U59: =IF(T59=0,0,IF(גיליון3!U59=T59,T59,0)) -> 0 | V59: 6 | X59: =IF(גיליון3!W59>0,D59/גיליון3!H9-V59,0) -> 0.4444215111 | Y59: =IF(X59=0,0,IF(גיליון3!Y59=X59,X59,0)) -> 0 | Z59: 6 | AB59: =IF(גיליון3!AA59>0,D59/גיליון3!H9-Z59,0) -> 0.4444215111 | AC59: =IF(AB59=0,0,IF(גיליון3!AC59=AB59,AB59,0)) -> 0 | AD59: 6 | AF59: =IF(גיליון3!AE59>0,D59/גיליון3!H9-AD59,0) -> 0 | AG59: =IF(AF59=0,0,IF(גיליון3!AG59=AF59,AF59,0)) -> 0 | AH59: 6 | AJ59: =IF(גיליון3!AI59>0,D59/גיליון3!H9-AH59,0) -> 0 | AK59: =IF(AJ59=0,0,IF(גיליון3!AK59=AJ59,AJ59,0)) -> 0 | AL59: 6 | AN59: =IF(גיליון3!AM59>0,D59/גיליון3!H9-AL59,0) -> 0 | AO59: =IF(AN59=0,0,IF(גיליון3!AO59=AN59,AN59,0)) -> 0 | AP59: 6 | AR59: =IF(גיליון3!AQ59>0,D59/גיליון3!H9-AP59,0) -> 0 | AS59: =IF(AR59=0,0,IF(גיליון3!AS59=AR59,AR59,0)) -> 0 | AT59: 6
A60: =גיליון1!A10 -> שס | B60: =גיליון1!B10 -> 230735 | D60: =IF(B60<גיליון3!D10,0,B60) -> 230735 | F60: =INT(D60/גיליון3!H10) -> 7 | H60: =IF(גיליון3!G60>0,D60/גיליון3!H10-F60,0) -> 0.2339886323 | I60: =IF(H60=0,0,IF(גיליון3!I60=H60,H60,0)) -> 0 | J60: 7 | L60: =IF(גיליון3!K60>0,D60/גיליון3!H10-J60,0) -> 0.2339886323 | M60: =IF(L60=0,0,IF(גיליון3!M60=L60,L60,0)) -> 0 | N60: 7 | P60: =IF(גיליון3!O60>0,D60/גיליון3!H10-N60,0) -> 0.2339886323 | Q60: =IF(P60=0,0,IF(גיליון3!Q60=P60,P60,0)) -> 0 | R60: 7 | T60: =IF(גיליון3!S60>0,D60/גיליון3!H10-R60,0) -> 0.2339886323 | U60: =IF(T60=0,0,IF(גיליון3!U60=T60,T60,0)) -> 0 | V60: 7 | X60: =IF(גיליון3!W60>0,D60/גיליון3!H10-V60,0) -> 0.2339886323 | Y60: =IF(X60=0,0,IF(גיליון3!Y60=X60,X60,0)) -> 0 | Z60: 7 | AB60: =IF(גיליון3!AA60>0,D60/גיליון3!H10-Z60,0) -> 0.2339886323 | AC60: =IF(AB60=0,0,IF(גיליון3!AC60=AB60,AB60,0)) -> 0 | AD60: 7 | AF60: =IF(גיליון3!AE60>0,D60/גיליון3!H10-AD60,0) -> 0 | AG60: =IF(AF60=0,0,IF(גיליון3!AG60=AF60,AF60,0)) -> 0 | AH60: 7 | AJ60: =IF(גיליון3!AI60>0,D60/גיליון3!H10-AH60,0) -> 0 | AK60: =IF(AJ60=0,0,IF(גיליון3!AK60=AJ60,AJ60,0)) -> 0 | AL60: 7 | AN60: =IF(גיליון3!AM60>0,D60/גיליון3!H10-AL60,0) -> 0 | AO60: =IF(AN60=0,0,IF(גיליון3!AO60=AN60,AN60,0)) -> 0 | AP60: 7 | AR60: =IF(גיליון3!AQ60>0,D60/גיליון3!H10-AP60,0) -> 0 | AS60: =IF(AR60=0,0,IF(גיליון3!AS60=AR60,AR60,0)) -> 0 | AT60: 7
A61: =גיליון1!A11 -> כחלון | B61: =גיליון1!B11 -> 294526 | D61: =IF(B61<גיליון3!D11,0,B61) -> 294526 | F61: =INT(D61/גיליון3!H11) -> 9 | H61: =IF(גיליון3!G61>0,D61/גיליון3!H11-F61,0) -> 0.233959893 | I61: =IF(H61=0,0,IF(גיליון3!I61=H61,H61,0)) -> 0 | J61: 9 | L61: =IF(גיליון3!K61>0,D61/גיליון3!H11-J61,0) -> 0.233959893 | M61: =IF(L61=0,0,IF(גיליון3!M61=L61,L61,0)) -> 0 | N61: 9 | P61: =IF(גיליון3!O61>0,D61/גיליון3!H11-N61,0) -> 0.233959893 | Q61: =IF(P61=0,0,IF(גיליון3!Q61=P61,P61,0)) -> 0 | R61: 9 | T61: =IF(גיליון3!S61>0,D61/גיליון3!H11-R61,0) -> 0.233959893 | U61: =IF(T61=0,0,IF(גיליון3!U61=T61,T61,0)) -> 0 | V61: 9 | X61: =IF(גיליון3!W61>0,D61/גיליון3!H11-V61,0) -> 0.233959893 | Y61: =IF(X61=0,0,IF(גיליון3!Y61=X61,X61,0)) -> 0 | Z61: 9 | AB61: =IF(גיליון3!AA61>0,D61/גיליון3!H11-Z61,0) -> 0.233959893 | AC61: =IF(AB61=0,0,IF(גיליון3!AC61=AB61,AB61,0)) -> 0 | AD61: 9 | AF61: =IF(גיליון3!AE61>0,D61/גיליון3!H11-AD61,0) -> 0 | AG61: =IF(AF61=0,0,IF(גיליון3!AG61=AF61,AF61,0)) -> 0 | AH61: 9 | AJ61: =IF(גיליון3!AI61>0,D61/גיליון3!H11-AH61,0) -> 0 | AK61: =IF(AJ61=0,0,IF(גיליון3!AK61=AJ61,AJ61,0)) -> 0 | AL61: 9 | AN61: =IF(גיליון3!AM61>0,D61/גיליון3!H11-AL61,0) -> 0 | AO61: =IF(AN61=0,0,IF(גיליון3!AO61=AN61,AN61,0)) -> 0 | AP61: 9 | AR61: =IF(גיליון3!AQ61>0,D61/גיליון3!H11-AP61,0) -> 0 | AS61: =IF(AR61=0,0,IF(גיליון3!AS61=AR61,AR61,0)) -> 0 | AT61: 9
A62: =גיליון1!A12 -> ישראל ביתנו | B62: =גיליון1!B12 -> 205619 | D62: =IF(B62<גיליון3!D12,0,B62) -> 205619 | F62: =INT(D62/גיליון3!H12) -> 6 | H62: =IF(גיליון3!G62>0,D62/גיליון3!H12-F62,0) -> 0.4465534426 | I62: =IF(H62=0,0,IF(גיליון3!I62=H62,H62,0)) -> 0 | J62: 6 | L62: =IF(גיליון3!K62>0,D62/גיליון3!H12-J62,0) -> 0.4465534426 | M62: =IF(L62=0,0,IF(גיליון3!M62=L62,L62,0)) -> 0 | N62: 6 | P62: =IF(גיליון3!O62>0,D62/גיליון3!H12-N62,0) -> 0.4465534426 | Q62: =IF(P62=0,0,IF(גיליון3!Q62=P62,P62,0)) -> 0 | R62: 6 | T62: =IF(גיליון3!S62>0,D62/גיליון3!H12-R62,0) -> 0.4465534426 | U62: =IF(T62=0,0,IF(גיליון3!U62=T62,T62,0)) -> 0 | V62: 6 | X62: =IF(גיליון3!W62>0,D62/גיליון3!H12-V62,0) -> 0.4465534426 | Y62: =IF(X62=0,0,IF(גיליון3!Y62=X62,X62,0)) -> 0 | Z62: 6 | AB62: =IF(גיליון3!AA62>0,D62/גיליון3!H12-Z62,0) -> 0.4465534426 | AC62: =IF(AB62=0,0,IF(גיליון3!AC62=AB62,AB62,0)) -> 0.4465534426 | AD62: 7 | AF62: =IF(גיליון3!AE62>0,D62/גיליון3!H12-AD62,0) -> 0 | AG62: =IF(AF62=0,0,IF(גיליון3!AG62=AF62,AF62,0)) -> 0 | AH62: 7 | AJ62: =IF(גיליון3!AI62>0,D62/גיליון3!H12-AH62,0) -> 0 | AK62: =IF(AJ62=0,0,IF(גיליון3!AK62=AJ62,AJ62,0)) -> 0 | AL62: 7 | AN62: =IF(גיליון3!AM62>0,D62/גיליון3!H12-AL62,0) -> 0 | AO62: =IF(AN62=0,0,IF(גיליון3!AO62=AN62,AN62,0)) -> 0 | AP62: 7 | AR62: =IF(גיליון3!AQ62>0,D62/גיליון3!H12-AP62,0) -> 0 | AS62: =IF(AR62=0,0,IF(גיליון3!AS62=AR62,AR62,0)) -> 0 | AT62: 7
A63: =גיליון1!A13 -> עלה ירוק - הרשימה הליברלית | B63: =גיליון1!B13 -> 38624 | D63: =IF(B63<גיליון3!D13,0,B63) -> 0 | F63: =INT(D63/גיליון3!H13) -> 0 | H63: =IF(גיליון3!G63>0,D63/גיליון3!H13-F63,0) -> 0 | I63: =IF(H63=0,0,IF(גיליון3!I63=H63,H63,0)) -> 0 | J63: 0 | L63: =IF(גיליון3!K63>0,D63/גיליון3!H13-J63,0) -> 0 | M63: =IF(L63=0,0,IF(גיליון3!M63=L63,L63,0)) -> 0 | N63: 0 | P63: =IF(גיליון3!O63>0,D63/גיליון3!H13-N63,0) -> 0 | Q63: =IF(P63=0,0,IF(גיליון3!Q63=P63,P63,0)) -> 0 | R63: 0 | T63: =IF(גיליון3!S63>0,D63/גיליון3!H13-R63,0) -> 0 | U63: =IF(T63=0,0,IF(גיליון3!U63=T63,T63,0)) -> 0 | V63: 0 | X63: =IF(גיליון3!W63>0,D63/גיליון3!H13-V63,0) -> 0 | Y63: =IF(X63=0,0,IF(גיליון3!Y63=X63,X63,0)) -> 0 | Z63: 0 | AB63: =IF(גיליון3!AA63>0,D63/גיליון3!H13-Z63,0) -> 0 | AC63: =IF(AB63=0,0,IF(גיליון3!AC63=AB63,AB63,0)) -> 0 | AD63: 0 | AF63: =IF(גיליון3!AE63>0,D63/גיליון3!H13-AD63,0) -> 0 | AG63: =IF(AF63=0,0,IF(גיליון3!AG63=AF63,AF63,0)) -> 0 | AH63: 0 | AJ63: =IF(גיליון3!AI63>0,D63/גיליון3!H13-AH63,0) -> 0 | AK63: =IF(AJ63=0,0,IF(גיליון3!AK63=AJ63,AJ63,0)) -> 0 | AL63: 0 | AN63: =IF(גיליון3!AM63>0,D63/גיליון3!H13-AL63,0) -> 0 | AO63: =IF(AN63=0,0,IF(גיליון3!AO63=AN63,AN63,0)) -> 0 | AP63: 0 | AR63: =IF(גיליון3!AQ63>0,D63/גיליון3!H13-AP63,0) -> 0 | AS63: =IF(AR63=0,0,IF(גיליון3!AS63=AR63,AR63,0)) -> 0 | AT63: 0
A64: =גיליון1!#REF! ->  | B64: =גיליון1!B14 -> 2348 | D64: =IF(B64<גיליון3!D14,0,B64) -> 0 | F64: =INT(D64/גיליון3!H14) -> 0 | H64: =IF(גיליון3!G64>0,D64/גיליון3!H14-F64,0) -> 0 | I64: =IF(H64=0,0,IF(גיליון3!I64=H64,H64,0)) -> 0 | J64: 0 | L64: =IF(גיליון3!K64>0,D64/גיליון3!H14-J64,0) -> 0 | M64: =IF(L64=0,0,IF(גיליון3!M64=L64,L64,0)) -> 0 | N64: 0 | P64: =IF(גיליון3!O64>0,D64/גיליון3!H14-N64,0) -> 0 | Q64: =IF(P64=0,0,IF(גיליון3!Q64=P64,P64,0)) -> 0 | R64: 0 | T64: =IF(גיליון3!S64>0,D64/גיליון3!H14-R64,0) -> 0 | U64: =IF(T64=0,0,IF(גיליון3!U64=T64,T64,0)) -> 0 | V64: 0 | X64: =IF(גיליון3!W64>0,D64/גיליון3!H14-V64,0) -> 0 | Y64: =IF(X64=0,0,IF(גיליון3!Y64=X64,X64,0)) -> 0 | Z64: 0 | AB64: =IF(גיליון3!AA64>0,D64/גיליון3!H14-Z64,0) -> 0 | AC64: =IF(AB64=0,0,IF(גיליון3!AC64=AB64,AB64,0)) -> 0 | AD64: 0 | AF64: =IF(גיליון3!AE64>0,D64/גיליון3!H14-AD64,0) -> 0 | AG64: =IF(AF64=0,0,IF(גיליון3!AG64=AF64,AF64,0)) -> 0 | AH64: 0 | AJ64: =IF(גיליון3!AI64>0,D64/גיליון3!H14-AH64,0) -> 0 | AK64: =IF(AJ64=0,0,IF(גיליון3!AK64=AJ64,AJ64,0)) -> 0 | AL64: 0 | AN64: =IF(גיליון3!AM64>0,D64/גיליון3!H14-AL64,0) -> 0 | AO64: =IF(AN64=0,0,IF(גיליון3!AO64=AN64,AN64,0)) -> 0 | AP64: 0 | AR64: =IF(גיליון3!AQ64>0,D64/גיליון3!H14-AP64,0) -> 0 | AS64: =IF(AR64=0,0,IF(גיליון3!AS64=AR64,AR64,0)) -> 0 | AT64: 0
A65: =גיליון1!A15 -> 0 | B65: =גיליון1!B15 -> 0 | D65: =IF(B65<גיליון3!D15,0,B65) -> 0 | F65: =INT(D65/גיליון3!H15) -> 0 | H65: =IF(גיליון3!G65>0,D65/גיליון3!H15-F65,0) -> 0 | I65: =IF(H65=0,0,IF(גיליון3!I65=H65,H65,0)) -> 0 | J65: 0 | L65: =IF(גיליון3!K65>0,D65/גיליון3!H15-J65,0) -> 0 | M65: =IF(L65=0,0,IF(גיליון3!M65=L65,L65,0)) -> 0 | N65: 0 | P65: =IF(גיליון3!O65>0,D65/גיליון3!H15-N65,0) -> 0 | Q65: =IF(P65=0,0,IF(גיליון3!Q65=P65,P65,0)) -> 0 | R65: 0 | T65: =IF(גיליון3!S65>0,D65/גיליון3!H15-R65,0) -> 0 | U65: =IF(T65=0,0,IF(גיליון3!U65=T65,T65,0)) -> 0 | V65: 0 | X65: =IF(גיליון3!W65>0,D65/גיליון3!H15-V65,0) -> 0 | Y65: =IF(X65=0,0,IF(גיליון3!Y65=X65,X65,0)) -> 0 | Z65: 0 | AB65: =IF(גיליון3!AA65>0,D65/גיליון3!H15-Z65,0) -> 0 | AC65: =IF(AB65=0,0,IF(גיליון3!AC65=AB65,AB65,0)) -> 0 | AD65: 0 | AF65: =IF(גיליון3!AE65>0,D65/גיליון3!H15-AD65,0) -> 0 | AG65: =IF(AF65=0,0,IF(גיליון3!AG65=AF65,AF65,0)) -> 0 | AH65: 0 | AJ65: =IF(גיליון3!AI65>0,D65/גיליון3!H15-AH65,0) -> 0 | AK65: =IF(AJ65=0,0,IF(גיליון3!AK65=AJ65,AJ65,0)) -> 0 | AL65: 0 | AN65: =IF(גיליון3!AM65>0,D65/גיליון3!H15-AL65,0) -> 0 | AO65: =IF(AN65=0,0,IF(גיליון3!AO65=AN65,AN65,0)) -> 0 | AP65: 0 | AR65: =IF(גיליון3!AQ65>0,D65/גיליון3!H15-AP65,0) -> 0 | AS65: =IF(AR65=0,0,IF(גיליון3!AS65=AR65,AR65,0)) -> 0 | AT65: 0
A66: =גיליון1!A16 -> 0 | B66: =גיליון1!B16 -> 0 | D66: =IF(B66<גיליון3!D16,0,B66) -> 0 | F66: =INT(D66/גיליון3!H16) -> 0 | H66: =IF(גיליון3!G66>0,D66/גיליון3!H16-F66,0) -> 0 | I66: =IF(H66=0,0,IF(גיליון3!I66=H66,H66,0)) -> 0 | J66: 0 | L66: =IF(גיליון3!K66>0,D66/גיליון3!H16-J66,0) -> 0 | M66: =IF(L66=0,0,IF(גיליון3!M66=L66,L66,0)) -> 0 | N66: 0 | P66: =IF(גיליון3!O66>0,D66/גיליון3!H16-N66,0) -> 0 | Q66: =IF(P66=0,0,IF(גיליון3!Q66=P66,P66,0)) -> 0 | R66: 0 | T66: =IF(גיליון3!S66>0,D66/גיליון3!H16-R66,0) -> 0 | U66: =IF(T66=0,0,IF(גיליון3!U66=T66,T66,0)) -> 0 | V66: 0 | X66: =IF(גיליון3!W66>0,D66/גיליון3!H16-V66,0) -> 0 | Y66: =IF(X66=0,0,IF(גיליון3!Y66=X66,X66,0)) -> 0 | Z66: 0 | AB66: =IF(גיליון3!AA66>0,D66/גיליון3!H16-Z66,0) -> 0 | AC66: =IF(AB66=0,0,IF(גיליון3!AC66=AB66,AB66,0)) -> 0 | AD66: 0 | AF66: =IF(גיליון3!AE66>0,D66/גיליון3!H16-AD66,0) -> 0 | AG66: =IF(AF66=0,0,IF(גיליון3!AG66=AF66,AF66,0)) -> 0 | AH66: 0 | AJ66: =IF(גיליון3!AI66>0,D66/גיליון3!H16-AH66,0) -> 0 | AK66: =IF(AJ66=0,0,IF(גיליון3!AK66=AJ66,AJ66,0)) -> 0 | AL66: 0 | AN66: =IF(גיליון3!AM66>0,D66/גיליון3!H16-AL66,0) -> 0 | AO66: =IF(AN66=0,0,IF(גיליון3!AO66=AN66,AN66,0)) -> 0 | AP66: 0 | AR66: =IF(גיליון3!AQ66>0,D66/גיליון3!H16-AP66,0) -> 0 | AS66: =IF(AR66=0,0,IF(גיליון3!AS66=AR66,AR66,0)) -> 0 | AT66: 0
A67: =גיליון1!A17 -> 0 | B67: =גיליון1!B17 -> 0 | D67: =IF(B67<גיליון3!D17,0,B67) -> 0 | F67: =INT(D67/גיליון3!H17) -> 0 | H67: =IF(גיליון3!G67>0,D67/גיליון3!H17-F67,0) -> 0 | I67: =IF(H67=0,0,IF(גיליון3!I67=H67,H67,0)) -> 0 | J67: 0 | L67: =IF(גיליון3!K67>0,D67/גיליון3!H17-J67,0) -> 0 | M67: =IF(L67=0,0,IF(גיליון3!M67=L67,L67,0)) -> 0 | N67: 0 | P67: =IF(גיליון3!O67>0,D67/גיליון3!H17-N67,0) -> 0 | Q67: =IF(P67=0,0,IF(גיליון3!Q67=P67,P67,0)) -> 0 | R67: 0 | T67: =IF(גיליון3!S67>0,D67/גיליון3!H17-R67,0) -> 0 | U67: =IF(T67=0,0,IF(גיליון3!U67=T67,T67,0)) -> 0 | V67: 0 | X67: =IF(גיליון3!W67>0,D67/גיליון3!H17-V67,0) -> 0 | Y67: =IF(X67=0,0,IF(גיליון3!Y67=X67,X67,0)) -> 0 | Z67: 0 | AB67: =IF(גיליון3!AA67>0,D67/גיליון3!H17-Z67,0) -> 0 | AC67: =IF(AB67=0,0,IF(גיליון3!AC67=AB67,AB67,0)) -> 0 | AD67: 0 | AF67: =IF(גיליון3!AE67>0,D67/גיליון3!H17-AD67,0) -> 0 | AG67: =IF(AF67=0,0,IF(גיליון3!AG67=AF67,AF67,0)) -> 0 | AH67: 0 | AJ67: =IF(גיליון3!AI67>0,D67/גיליון3!H17-AH67,0) -> 0 | AK67: =IF(AJ67=0,0,IF(גיליון3!AK67=AJ67,AJ67,0)) -> 0 | AL67: 0 | AN67: =IF(גיליון3!AM67>0,D67/גיליון3!H17-AL67,0) -> 0 | AO67: =IF(AN67=0,0,IF(גיליון3!AO67=AN67,AN67,0)) -> 0 | AP67: 0 | AR67: =IF(גיליון3!AQ67>0,D67/גיליון3!H17-AP67,0) -> 0 | AS67: =IF(AR67=0,0,IF(גיליון3!AS67=AR67,AR67,0)) -> 0 | AT67: 0
A68: =גיליון1!A18 -> 0 | B68: =גיליון1!B18 -> 0 | D68: =IF(B68<גיליון3!D18,0,B68) -> 0 | F68: =INT(D68/גיליון3!H18) -> 0 | H68: =IF(גיליון3!G68>0,D68/גיליון3!H18-F68,0) -> 0 | I68: =IF(H68=0,0,IF(גיליון3!I68=H68,H68,0)) -> 0 | J68: 0 | L68: =IF(גיליון3!K68>0,D68/גיליון3!H18-J68,0) -> 0 | M68: =IF(L68=0,0,IF(גיליון3!M68=L68,L68,0)) -> 0 | N68: 0 | P68: =IF(גיליון3!O68>0,D68/גיליון3!H18-N68,0) -> 0 | Q68: =IF(P68=0,0,IF(גיליון3!Q68=P68,P68,0)) -> 0 | R68: 0 | T68: =IF(גיליון3!S68>0,D68/גיליון3!H18-R68,0) -> 0 | U68: =IF(T68=0,0,IF(גיליון3!U68=T68,T68,0)) -> 0 | V68: 0 | X68: =IF(גיליון3!W68>0,D68/גיליון3!H18-V68,0) -> 0 | Y68: =IF(X68=0,0,IF(גיליון3!Y68=X68,X68,0)) -> 0 | Z68: 0 | AB68: =IF(גיליון3!AA68>0,D68/גיליון3!H18-Z68,0) -> 0 | AC68: =IF(AB68=0,0,IF(גיליון3!AC68=AB68,AB68,0)) -> 0 | AD68: 0 | AF68: =IF(גיליון3!AE68>0,D68/גיליון3!H18-AD68,0) -> 0 | AG68: =IF(AF68=0,0,IF(גיליון3!AG68=AF68,AF68,0)) -> 0 | AH68: 0 | AJ68: =IF(גיליון3!AI68>0,D68/גיליון3!H18-AH68,0) -> 0 | AK68: =IF(AJ68=0,0,IF(גיליון3!AK68=AJ68,AJ68,0)) -> 0 | AL68: 0 | AN68: =IF(גיליון3!AM68>0,D68/גיליון3!H18-AL68,0) -> 0 | AO68: =IF(AN68=0,0,IF(גיליון3!AO68=AN68,AN68,0)) -> 0 | AP68: 0 | AR68: =IF(גיליון3!AQ68>0,D68/גיליון3!H18-AP68,0) -> 0 | AS68: =IF(AR68=0,0,IF(גיליון3!AS68=AR68,AR68,0)) -> 0 | AT68: 0
A69: =גיליון1!A19 -> 0 | B69: =גיליון1!B19 -> 0 | D69: =IF(B69<גיליון3!D19,0,B69) -> 0 | F69: =INT(D69/גיליון3!H19) -> 0 | H69: =IF(גיליון3!G69>0,D69/גיליון3!H19-F69,0) -> 0 | I69: =IF(H69=0,0,IF(גיליון3!I69=H69,H69,0)) -> 0 | J69: 0 | L69: =IF(גיליון3!K69>0,D69/גיליון3!H19-J69,0) -> 0 | M69: =IF(L69=0,0,IF(גיליון3!M69=L69,L69,0)) -> 0 | N69: 0 | P69: =IF(גיליון3!O69>0,D69/גיליון3!H19-N69,0) -> 0 | Q69: =IF(P69=0,0,IF(גיליון3!Q69=P69,P69,0)) -> 0 | R69: 0 | T69: =IF(גיליון3!S69>0,D69/גיליון3!H19-R69,0) -> 0 | U69: =IF(T69=0,0,IF(גיליון3!U69=T69,T69,0)) -> 0 | V69: 0 | X69: =IF(גיליון3!W69>0,D69/גיליון3!H19-V69,0) -> 0 | Y69: =IF(X69=0,0,IF(גיליון3!Y69=X69,X69,0)) -> 0 | Z69: 0 | AB69: =IF(גיליון3!AA69>0,D69/גיליון3!H19-Z69,0) -> 0 | AC69: =IF(AB69=0,0,IF(גיליון3!AC69=AB69,AB69,0)) -> 0 | AD69: 0 | AF69: =IF(גיליון3!AE69>0,D69/גיליון3!H19-AD69,0) -> 0 | AG69: =IF(AF69=0,0,IF(גיליון3!AG69=AF69,AF69,0)) -> 0 | AH69: 0 | AJ69: =IF(גיליון3!AI69>0,D69/גיליון3!H19-AH69,0) -> 0 | AK69: =IF(AJ69=0,0,IF(גיליון3!AK69=AJ69,AJ69,0)) -> 0 | AL69: 0 | AN69: =IF(גיליון3!AM69>0,D69/גיליון3!H19-AL69,0) -> 0 | AO69: =IF(AN69=0,0,IF(גיליון3!AO69=AN69,AN69,0)) -> 0 | AP69: 0 | AR69: =IF(גיליון3!AQ69>0,D69/גיליון3!H19-AP69,0) -> 0 | AS69: =IF(AR69=0,0,IF(גיליון3!AS69=AR69,AR69,0)) -> 0 | AT69: 0
A70: =גיליון1!A20 -> 0 | B70: =גיליון1!B20 -> 0 | D70: =IF(B70<גיליון3!D20,0,B70) -> 0 | F70: =INT(D70/גיליון3!H20) -> 0 | H70: =IF(גיליון3!G70>0,D70/גיליון3!H20-F70,0) -> 0 | I70: =IF(H70=0,0,IF(גיליון3!I70=H70,H70,0)) -> 0 | J70: 0 | L70: =IF(גיליון3!K70>0,D70/גיליון3!H20-J70,0) -> 0 | M70: =IF(L70=0,0,IF(גיליון3!M70=L70,L70,0)) -> 0 | N70: 0 | P70: =IF(גיליון3!O70>0,D70/גיליון3!H20-N70,0) -> 0 | Q70: =IF(P70=0,0,IF(גיליון3!Q70=P70,P70,0)) -> 0 | R70: 0 | T70: =IF(גיליון3!S70>0,D70/גיליון3!H20-R70,0) -> 0 | U70: =IF(T70=0,0,IF(גיליון3!U70=T70,T70,0)) -> 0 | V70: 0 | X70: =IF(גיליון3!W70>0,D70/גיליון3!H20-V70,0) -> 0 | Y70: =IF(X70=0,0,IF(גיליון3!Y70=X70,X70,0)) -> 0 | Z70: 0 | AB70: =IF(גיליון3!AA70>0,D70/גיליון3!H20-Z70,0) -> 0 | AC70: =IF(AB70=0,0,IF(גיליון3!AC70=AB70,AB70,0)) -> 0 | AD70: 0 | AF70: =IF(גיליון3!AE70>0,D70/גיליון3!H20-AD70,0) -> 0 | AG70: =IF(AF70=0,0,IF(גיליון3!AG70=AF70,AF70,0)) -> 0 | AH70: 0 | AJ70: =IF(גיליון3!AI70>0,D70/גיליון3!H20-AH70,0) -> 0 | AK70: =IF(AJ70=0,0,IF(גיליון3!AK70=AJ70,AJ70,0)) -> 0 | AL70: 0 | AN70: =IF(גיליון3!AM70>0,D70/גיליון3!H20-AL70,0) -> 0 | AO70: =IF(AN70=0,0,IF(גיליון3!AO70=AN70,AN70,0)) -> 0 | AP70: 0 | AR70: =IF(גיליון3!AQ70>0,D70/גיליון3!H20-AP70,0) -> 0 | AS70: =IF(AR70=0,0,IF(גיליון3!AS70=AR70,AR70,0)) -> 0 | AT70: 0
A71: =גיליון1!A21 -> 0 | B71: =גיליון1!B21 -> 0 | D71: =IF(B71<גיליון3!D21,0,B71) -> 0 | F71: =INT(D71/גיליון3!H21) -> 0 | H71: =IF(גיליון3!G71>0,D71/גיליון3!H21-F71,0) -> 0 | I71: =IF(H71=0,0,IF(גיליון3!I71=H71,H71,0)) -> 0 | J71: 0 | L71: =IF(גיליון3!K71>0,D71/גיליון3!H21-J71,0) -> 0 | M71: =IF(L71=0,0,IF(גיליון3!M71=L71,L71,0)) -> 0 | N71: 0 | P71: =IF(גיליון3!O71>0,D71/גיליון3!H21-N71,0) -> 0 | Q71: =IF(P71=0,0,IF(גיליון3!Q71=P71,P71,0)) -> 0 | R71: 0 | T71: =IF(גיליון3!S71>0,D71/גיליון3!H21-R71,0) -> 0 | U71: =IF(T71=0,0,IF(גיליון3!U71=T71,T71,0)) -> 0 | V71: 0 | X71: =IF(גיליון3!W71>0,D71/גיליון3!H21-V71,0) -> 0 | Y71: =IF(X71=0,0,IF(גיליון3!Y71=X71,X71,0)) -> 0 | Z71: 0 | AB71: =IF(גיליון3!AA71>0,D71/גיליון3!H21-Z71,0) -> 0 | AC71: =IF(AB71=0,0,IF(גיליון3!AC71=AB71,AB71,0)) -> 0 | AD71: 0 | AF71: =IF(גיליון3!AE71>0,D71/גיליון3!H21-AD71,0) -> 0 | AG71: =IF(AF71=0,0,IF(גיליון3!AG71=AF71,AF71,0)) -> 0 | AH71: 0 | AJ71: =IF(גיליון3!AI71>0,D71/גיליון3!H21-AH71,0) -> 0 | AK71: =IF(AJ71=0,0,IF(גיליון3!AK71=AJ71,AJ71,0)) -> 0 | AL71: 0 | AN71: =IF(גיליון3!AM71>0,D71/גיליון3!H21-AL71,0) -> 0 | AO71: =IF(AN71=0,0,IF(גיליון3!AO71=AN71,AN71,0)) -> 0 | AP71: 0 | AR71: =IF(גיליון3!AQ71>0,D71/גיליון3!H21-AP71,0) -> 0 | AS71: =IF(AR71=0,0,IF(גיליון3!AS71=AR71,AR71,0)) -> 0 | AT71: 0
A72: =גיליון1!A22 -> 0 | B72: =גיליון1!B22 -> 0 | D72: =IF(B72<גיליון3!D22,0,B72) -> 0 | F72: =INT(D72/גיליון3!H22) -> 0 | H72: =IF(גיליון3!G72>0,D72/גיליון3!H22-F72,0) -> 0 | I72: =IF(H72=0,0,IF(גיליון3!I72=H72,H72,0)) -> 0 | J72: 0 | L72: =IF(גיליון3!K72>0,D72/גיליון3!H22-J72,0) -> 0 | M72: =IF(L72=0,0,IF(גיליון3!M72=L72,L72,0)) -> 0 | N72: 0 | P72: =IF(גיליון3!O72>0,D72/גיליון3!H22-N72,0) -> 0 | Q72: =IF(P72=0,0,IF(גיליון3!Q72=P72,P72,0)) -> 0 | R72: 0 | T72: =IF(גיליון3!S72>0,D72/גיליון3!H22-R72,0) -> 0 | U72: =IF(T72=0,0,IF(גיליון3!U72=T72,T72,0)) -> 0 | V72: 0 | X72: =IF(גיליון3!W72>0,D72/גיליון3!H22-V72,0) -> 0 | Y72: =IF(X72=0,0,IF(גיליון3!Y72=X72,X72,0)) -> 0 | Z72: 0 | AB72: =IF(גיליון3!AA72>0,D72/גיליון3!H22-Z72,0) -> 0 | AC72: =IF(AB72=0,0,IF(גיליון3!AC72=AB72,AB72,0)) -> 0 | AD72: 0 | AF72: =IF(גיליון3!AE72>0,D72/גיליון3!H22-AD72,0) -> 0 | AG72: =IF(AF72=0,0,IF(גיליון3!AG72=AF72,AF72,0)) -> 0 | AH72: 0 | AJ72: =IF(גיליון3!AI72>0,D72/גיליון3!H22-AH72,0) -> 0 | AK72: =IF(AJ72=0,0,IF(גיליון3!AK72=AJ72,AJ72,0)) -> 0 | AL72: 0 | AN72: =IF(גיליון3!AM72>0,D72/גיליון3!H22-AL72,0) -> 0 | AO72: =IF(AN72=0,0,IF(גיליון3!AO72=AN72,AN72,0)) -> 0 | AP72: 0 | AR72: =IF(גיליון3!AQ72>0,D72/גיליון3!H22-AP72,0) -> 0 | AS72: =IF(AR72=0,0,IF(גיליון3!AS72=AR72,AR72,0)) -> 0 | AT72: 0
A73: =גיליון1!A23 -> 0 | B73: =גיליון1!B23 -> 0 | D73: =IF(B73<גיליון3!D23,0,B73) -> 0 | F73: =INT(D73/גיליון3!H23) -> 0 | H73: =IF(גיליון3!G73>0,D73/גיליון3!H23-F73,0) -> 0 | I73: =IF(H73=0,0,IF(גיליון3!I73=H73,H73,0)) -> 0 | J73: 0 | L73: =IF(גיליון3!K73>0,D73/גיליון3!H23-J73,0) -> 0 | M73: =IF(L73=0,0,IF(גיליון3!M73=L73,L73,0)) -> 0 | N73: 0 | P73: =IF(גיליון3!O73>0,D73/גיליון3!H23-N73,0) -> 0 | Q73: =IF(P73=0,0,IF(גיליון3!Q73=P73,P73,0)) -> 0 | R73: 0 | T73: =IF(גיליון3!S73>0,D73/גיליון3!H23-R73,0) -> 0 | U73: =IF(T73=0,0,IF(גיליון3!U73=T73,T73,0)) -> 0 | V73: 0 | X73: =IF(גיליון3!W73>0,D73/גיליון3!H23-V73,0) -> 0 | Y73: =IF(X73=0,0,IF(גיליון3!Y73=X73,X73,0)) -> 0 | Z73: 0 | AB73: =IF(גיליון3!AA73>0,D73/גיליון3!H23-Z73,0) -> 0 | AC73: =IF(AB73=0,0,IF(גיליון3!AC73=AB73,AB73,0)) -> 0 | AD73: 0 | AF73: =IF(גיליון3!AE73>0,D73/גיליון3!H23-AD73,0) -> 0 | AG73: =IF(AF73=0,0,IF(גיליון3!AG73=AF73,AF73,0)) -> 0 | AH73: 0 | AJ73: =IF(גיליון3!AI73>0,D73/גיליון3!H23-AH73,0) -> 0 | AK73: =IF(AJ73=0,0,IF(גיליון3!AK73=AJ73,AJ73,0)) -> 0 | AL73: 0 | AN73: =IF(גיליון3!AM73>0,D73/גיליון3!H23-AL73,0) -> 0 | AO73: =IF(AN73=0,0,IF(גיליון3!AO73=AN73,AN73,0)) -> 0 | AP73: 0 | AR73: =IF(גיליון3!AQ73>0,D73/גיליון3!H23-AP73,0) -> 0 | AS73: =IF(AR73=0,0,IF(גיליון3!AS73=AR73,AR73,0)) -> 0 | AT73: 0
A74: =גיליון1!A24 -> 0 | B74: =גיליון1!B24 -> 0 | D74: =IF(B74<גיליון3!D24,0,B74) -> 0 | F74: =INT(D74/גיליון3!H24) -> 0 | H74: =IF(גיליון3!G74>0,D74/גיליון3!H24-F74,0) -> 0 | I74: =IF(H74=0,0,IF(גיליון3!I74=H74,H74,0)) -> 0 | J74: 0 | L74: =IF(גיליון3!K74>0,D74/גיליון3!H24-J74,0) -> 0 | M74: =IF(L74=0,0,IF(גיליון3!M74=L74,L74,0)) -> 0 | N74: 0 | P74: =IF(גיליון3!O74>0,D74/גיליון3!H24-N74,0) -> 0 | Q74: =IF(P74=0,0,IF(גיליון3!Q74=P74,P74,0)) -> 0 | R74: 0 | T74: =IF(גיליון3!S74>0,D74/גיליון3!H24-R74,0) -> 0 | U74: =IF(T74=0,0,IF(גיליון3!U74=T74,T74,0)) -> 0 | V74: 0 | X74: =IF(גיליון3!W74>0,D74/גיליון3!H24-V74,0) -> 0 | Y74: =IF(X74=0,0,IF(גיליון3!Y74=X74,X74,0)) -> 0 | Z74: 0 | AB74: =IF(גיליון3!AA74>0,D74/גיליון3!H24-Z74,0) -> 0 | AC74: =IF(AB74=0,0,IF(גיליון3!AC74=AB74,AB74,0)) -> 0 | AD74: 0 | AF74: =IF(גיליון3!AE74>0,D74/גיליון3!H24-AD74,0) -> 0 | AG74: =IF(AF74=0,0,IF(גיליון3!AG74=AF74,AF74,0)) -> 0 | AH74: 0 | AJ74: =IF(גיליון3!AI74>0,D74/גיליון3!H24-AH74,0) -> 0 | AK74: =IF(AJ74=0,0,IF(גיליון3!AK74=AJ74,AJ74,0)) -> 0 | AL74: 0 | AN74: =IF(גיליון3!AM74>0,D74/גיליון3!H24-AL74,0) -> 0 | AO74: =IF(AN74=0,0,IF(גיליון3!AO74=AN74,AN74,0)) -> 0 | AP74: 0 | AR74: =IF(גיליון3!AQ74>0,D74/גיליון3!H24-AP74,0) -> 0 | AS74: =IF(AR74=0,0,IF(גיליון3!AS74=AR74,AR74,0)) -> 0 | AT74: 0
A75: =גיליון1!A25 -> 0 | B75: =גיליון1!B25 -> 0 | D75: =IF(B75<גיליון3!D25,0,B75) -> 0 | F75: =INT(D75/גיליון3!H25) -> 0 | H75: =IF(גיליון3!G75>0,D75/גיליון3!H25-F75,0) -> 0 | I75: =IF(H75=0,0,IF(גיליון3!I75=H75,H75,0)) -> 0 | J75: 0 | L75: =IF(גיליון3!K75>0,D75/גיליון3!H25-J75,0) -> 0 | M75: =IF(L75=0,0,IF(גיליון3!M75=L75,L75,0)) -> 0 | N75: 0 | P75: =IF(גיליון3!O75>0,D75/גיליון3!H25-N75,0) -> 0 | Q75: =IF(P75=0,0,IF(גיליון3!Q75=P75,P75,0)) -> 0 | R75: 0 | T75: =IF(גיליון3!S75>0,D75/גיליון3!H25-R75,0) -> 0 | U75: =IF(T75=0,0,IF(גיליון3!U75=T75,T75,0)) -> 0 | V75: 0 | X75: =IF(גיליון3!W75>0,D75/גיליון3!H25-V75,0) -> 0 | Y75: =IF(X75=0,0,IF(גיליון3!Y75=X75,X75,0)) -> 0 | Z75: 0 | AB75: =IF(גיליון3!AA75>0,D75/גיליון3!H25-Z75,0) -> 0 | AC75: =IF(AB75=0,0,IF(גיליון3!AC75=AB75,AB75,0)) -> 0 | AD75: 0 | AF75: =IF(גיליון3!AE75>0,D75/גיליון3!H25-AD75,0) -> 0 | AG75: =IF(AF75=0,0,IF(גיליון3!AG75=AF75,AF75,0)) -> 0 | AH75: 0 | AJ75: =IF(גיליון3!AI75>0,D75/גיליון3!H25-AH75,0) -> 0 | AK75: =IF(AJ75=0,0,IF(גיליון3!AK75=AJ75,AJ75,0)) -> 0 | AL75: 0 | AN75: =IF(גיליון3!AM75>0,D75/גיליון3!H25-AL75,0) -> 0 | AO75: =IF(AN75=0,0,IF(גיליון3!AO75=AN75,AN75,0)) -> 0 | AP75: 0 | AR75: =IF(גיליון3!AQ75>0,D75/גיליון3!H25-AP75,0) -> 0 | AS75: =IF(AR75=0,0,IF(גיליון3!AS75=AR75,AR75,0)) -> 0 | AT75: 0
A76: =גיליון1!A26 -> 0 | B76: =גיליון1!B26 -> 0 | D76: =IF(B76<גיליון3!D26,0,B76) -> 0 | F76: =INT(D76/גיליון3!H26) -> 0 | H76: =IF(גיליון3!G76>0,D76/גיליון3!H26-F76,0) -> 0 | I76: =IF(H76=0,0,IF(גיליון3!I76=H76,H76,0)) -> 0 | J76: 0 | L76: =IF(גיליון3!K76>0,D76/גיליון3!H26-J76,0) -> 0 | M76: =IF(L76=0,0,IF(גיליון3!M76=L76,L76,0)) -> 0 | N76: 0 | P76: =IF(גיליון3!O76>0,D76/גיליון3!H26-N76,0) -> 0 | Q76: =IF(P76=0,0,IF(גיליון3!Q76=P76,P76,0)) -> 0 | R76: 0 | T76: =IF(גיליון3!S76>0,D76/גיליון3!H26-R76,0) -> 0 | U76: =IF(T76=0,0,IF(גיליון3!U76=T76,T76,0)) -> 0 | V76: 0 | X76: =IF(גיליון3!W76>0,D76/גיליון3!H26-V76,0) -> 0 | Y76: =IF(X76=0,0,IF(גיליון3!Y76=X76,X76,0)) -> 0 | Z76: 0 | AB76: =IF(גיליון3!AA76>0,D76/גיליון3!H26-Z76,0) -> 0 | AC76: =IF(AB76=0,0,IF(גיליון3!AC76=AB76,AB76,0)) -> 0 | AD76: 0 | AF76: =IF(גיליון3!AE76>0,D76/גיליון3!H26-AD76,0) -> 0 | AG76: =IF(AF76=0,0,IF(גיליון3!AG76=AF76,AF76,0)) -> 0 | AH76: 0 | AJ76: =IF(גיליון3!AI76>0,D76/גיליון3!H26-AH76,0) -> 0 | AK76: =IF(AJ76=0,0,IF(גיליון3!AK76=AJ76,AJ76,0)) -> 0 | AL76: 0 | AN76: =IF(גיליון3!AM76>0,D76/גיליון3!H26-AL76,0) -> 0 | AO76: =IF(AN76=0,0,IF(גיליון3!AO76=AN76,AN76,0)) -> 0 | AP76: 0 | AR76: =IF(גיליון3!AQ76>0,D76/גיליון3!H26-AP76,0) -> 0 | AS76: =IF(AR76=0,0,IF(גיליון3!AS76=AR76,AR76,0)) -> 0 | AT76: 0
A77: =גיליון1!A27 -> 0 | B77: =גיליון1!B27 -> 0 | D77: =IF(B77<גיליון3!D27,0,B77) -> 0 | F77: =INT(D77/גיליון3!H27) -> 0 | H77: =IF(גיליון3!G77>0,D77/גיליון3!H27-F77,0) -> 0 | I77: =IF(H77=0,0,IF(גיליון3!I77=H77,H77,0)) -> 0 | J77: 0 | L77: =IF(גיליון3!K77>0,D77/גיליון3!H27-J77,0) -> 0 | M77: =IF(L77=0,0,IF(גיליון3!M77=L77,L77,0)) -> 0 | N77: 0 | P77: =IF(גיליון3!O77>0,D77/גיליון3!H27-N77,0) -> 0 | Q77: =IF(P77=0,0,IF(גיליון3!Q77=P77,P77,0)) -> 0 | R77: 0 | T77: =IF(גיליון3!S77>0,D77/גיליון3!H27-R77,0) -> 0 | U77: =IF(T77=0,0,IF(גיליון3!U77=T77,T77,0)) -> 0 | V77: 0 | X77: =IF(גיליון3!W77>0,D77/גיליון3!H27-V77,0) -> 0 | Y77: =IF(X77=0,0,IF(גיליון3!Y77=X77,X77,0)) -> 0 | Z77: 0 | AB77: =IF(גיליון3!AA77>0,D77/גיליון3!H27-Z77,0) -> 0 | AC77: =IF(AB77=0,0,IF(גיליון3!AC77=AB77,AB77,0)) -> 0 | AD77: 0 | AF77: =IF(גיליון3!AE77>0,D77/גיליון3!H27-AD77,0) -> 0 | AG77: =IF(AF77=0,0,IF(גיליון3!AG77=AF77,AF77,0)) -> 0 | AH77: 0 | AJ77: =IF(גיליון3!AI77>0,D77/גיליון3!H27-AH77,0) -> 0 | AK77: =IF(AJ77=0,0,IF(גיליון3!AK77=AJ77,AJ77,0)) -> 0 | AL77: 0 | AN77: =IF(גיליון3!AM77>0,D77/גיליון3!H27-AL77,0) -> 0 | AO77: =IF(AN77=0,0,IF(גיליון3!AO77=AN77,AN77,0)) -> 0 | AP77: 0 | AR77: =IF(גיליון3!AQ77>0,D77/גיליון3!H27-AP77,0) -> 0 | AS77: =IF(AR77=0,0,IF(גיליון3!AS77=AR77,AR77,0)) -> 0 | AT77: 0
A78: =גיליון1!A14 -> כולנו חברים נ נח | B78: =גיליון1!B28 -> 0 | D78: =IF(B78<גיליון3!D28,0,B78) -> 0 | F78: =INT(D78/גיליון3!H28) -> 0 | H78: =IF(גיליון3!G78>0,D78/גיליון3!H28-F78,0) -> 0 | I78: =IF(H78=0,0,IF(גיליון3!I78=H78,H78,0)) -> 0 | J78: 0 | L78: =IF(גיליון3!K78>0,D78/גיליון3!H28-J78,0) -> 0 | M78: =IF(L78=0,0,IF(גיליון3!M78=L78,L78,0)) -> 0 | N78: 0 | P78: =IF(גיליון3!O78>0,D78/גיליון3!H28-N78,0) -> 0 | Q78: =IF(P78=0,0,IF(גיליון3!Q78=P78,P78,0)) -> 0 | R78: 0 | T78: =IF(גיליון3!S78>0,D78/גיליון3!H28-R78,0) -> 0 | U78: =IF(T78=0,0,IF(גיליון3!U78=T78,T78,0)) -> 0 | V78: 0 | X78: =IF(גיליון3!W78>0,D78/גיליון3!H28-V78,0) -> 0 | Y78: =IF(X78=0,0,IF(גיליון3!Y78=X78,X78,0)) -> 0 | Z78: 0 | AB78: =IF(גיליון3!AA78>0,D78/גיליון3!H28-Z78,0) -> 0 | AC78: =IF(AB78=0,0,IF(גיליון3!AC78=AB78,AB78,0)) -> 0 | AD78: 0 | AF78: =IF(גיליון3!AE78>0,D78/גיליון3!H28-AD78,0) -> 0 | AG78: =IF(AF78=0,0,IF(גיליון3!AG78=AF78,AF78,0)) -> 0 | AH78: 0 | AJ78: =IF(גיליון3!AI78>0,D78/גיליון3!H28-AH78,0) -> 0 | AK78: =IF(AJ78=0,0,IF(גיליון3!AK78=AJ78,AJ78,0)) -> 0 | AL78: 0 | AN78: =IF(גיליון3!AM78>0,D78/גיליון3!H28-AL78,0) -> 0 | AO78: =IF(AN78=0,0,IF(גיליון3!AO78=AN78,AN78,0)) -> 0 | AP78: 0 | AR78: =IF(גיליון3!AQ78>0,D78/גיליון3!H28-AP78,0) -> 0 | AS78: =IF(AR78=0,0,IF(גיליון3!AS78=AR78,AR78,0)) -> 0 | AT78: 0
A79: =גיליון1!A29 -> 0 | B79: =גיליון1!B29 -> 0 | D79: =IF(B79<גיליון3!D29,0,B79) -> 0 | F79: =INT(D79/גיליון3!H29) -> 0 | H79: =IF(גיליון3!G79>0,D79/גיליון3!H29-F79,0) -> 0 | I79: =IF(H79=0,0,IF(גיליון3!I79=H79,H79,0)) -> 0 | J79: 0 | L79: =IF(גיליון3!K79>0,D79/גיליון3!H29-J79,0) -> 0 | M79: =IF(L79=0,0,IF(גיליון3!M79=L79,L79,0)) -> 0 | N79: 0 | P79: =IF(גיליון3!O79>0,D79/גיליון3!H29-N79,0) -> 0 | Q79: =IF(P79=0,0,IF(גיליון3!Q79=P79,P79,0)) -> 0 | R79: 0 | T79: =IF(גיליון3!S79>0,D79/גיליון3!H29-R79,0) -> 0 | U79: =IF(T79=0,0,IF(גיליון3!U79=T79,T79,0)) -> 0 | V79: 0 | X79: =IF(גיליון3!W79>0,D79/גיליון3!H29-V79,0) -> 0 | Y79: =IF(X79=0,0,IF(גיליון3!Y79=X79,X79,0)) -> 0 | Z79: 0 | AB79: =IF(גיליון3!AA79>0,D79/גיליון3!H29-Z79,0) -> 0 | AC79: =IF(AB79=0,0,IF(גיליון3!AC79=AB79,AB79,0)) -> 0 | AD79: 0 | AF79: =IF(גיליון3!AE79>0,D79/גיליון3!H29-AD79,0) -> 0 | AG79: =IF(AF79=0,0,IF(גיליון3!AG79=AF79,AF79,0)) -> 0 | AH79: 0 | AJ79: =IF(גיליון3!AI79>0,D79/גיליון3!H29-AH79,0) -> 0 | AK79: =IF(AJ79=0,0,IF(גיליון3!AK79=AJ79,AJ79,0)) -> 0 | AL79: 0 | AN79: =IF(גיליון3!AM79>0,D79/גיליון3!H29-AL79,0) -> 0 | AO79: =IF(AN79=0,0,IF(גיליון3!AO79=AN79,AN79,0)) -> 0 | AP79: 0 | AR79: =IF(גיליון3!AQ79>0,D79/גיליון3!H29-AP79,0) -> 0 | AS79: =IF(AR79=0,0,IF(גיליון3!AS79=AR79,AR79,0)) -> 0 | AT79: 0
A80: =גיליון1!A30 -> 0 | B80: =גיליון1!B30 -> 0 | D80: =IF(B80<גיליון3!D30,0,B80) -> 0 | F80: =INT(D80/גיליון3!H30) -> 0 | H80: =IF(גיליון3!G80>0,D80/גיליון3!H30-F80,0) -> 0 | I80: =IF(H80=0,0,IF(גיליון3!I80=H80,H80,0)) -> 0 | J80: 0 | L80: =IF(גיליון3!K80>0,D80/גיליון3!H30-J80,0) -> 0 | M80: =IF(L80=0,0,IF(גיליון3!M80=L80,L80,0)) -> 0 | N80: 0 | P80: =IF(גיליון3!O80>0,D80/גיליון3!H30-N80,0) -> 0 | Q80: =IF(P80=0,0,IF(גיליון3!Q80=P80,P80,0)) -> 0 | R80: 0 | T80: =IF(גיליון3!S80>0,D80/גיליון3!H30-R80,0) -> 0 | U80: =IF(T80=0,0,IF(גיליון3!U80=T80,T80,0)) -> 0 | V80: 0 | X80: =IF(גיליון3!W80>0,D80/גיליון3!H30-V80,0) -> 0 | Y80: =IF(X80=0,0,IF(גיליון3!Y80=X80,X80,0)) -> 0 | Z80: 0 | AB80: =IF(גיליון3!AA80>0,D80/גיליון3!H30-Z80,0) -> 0 | AC80: =IF(AB80=0,0,IF(גיליון3!AC80=AB80,AB80,0)) -> 0 | AD80: 0 | AF80: =IF(גיליון3!AE80>0,D80/גיליון3!H30-AD80,0) -> 0 | AG80: =IF(AF80=0,0,IF(גיליון3!AG80=AF80,AF80,0)) -> 0 | AH80: 0 | AJ80: =IF(גיליון3!AI80>0,D80/גיליון3!H30-AH80,0) -> 0 | AK80: =IF(AJ80=0,0,IF(גיליון3!AK80=AJ80,AJ80,0)) -> 0 | AL80: 0 | AN80: =IF(גיליון3!AM80>0,D80/גיליון3!H30-AL80,0) -> 0 | AO80: =IF(AN80=0,0,IF(גיליון3!AO80=AN80,AN80,0)) -> 0 | AP80: 0 | AR80: =IF(גיליון3!AQ80>0,D80/גיליון3!H30-AP80,0) -> 0 | AS80: =IF(AR80=0,0,IF(גיליון3!AS80=AR80,AR80,0)) -> 0 | AT80: 0
A81: =גיליון1!A31 -> 0 | B81: =גיליון1!B31 -> 0 | D81: =IF(B81<גיליון3!D31,0,B81) -> 0 | F81: =INT(D81/גיליון3!H31) -> 0 | H81: =IF(גיליון3!G81>0,D81/גיליון3!H31-F81,0) -> 0 | I81: =IF(H81=0,0,IF(גיליון3!I81=H81,H81,0)) -> 0 | J81: 0 | L81: =IF(גיליון3!K81>0,D81/גיליון3!H31-J81,0) -> 0 | M81: =IF(L81=0,0,IF(גיליון3!M81=L81,L81,0)) -> 0 | N81: 0 | P81: =IF(גיליון3!O81>0,D81/גיליון3!H31-N81,0) -> 0 | Q81: =IF(P81=0,0,IF(גיליון3!Q81=P81,P81,0)) -> 0 | R81: 0 | T81: =IF(גיליון3!S81>0,D81/גיליון3!H31-R81,0) -> 0 | U81: =IF(T81=0,0,IF(גיליון3!U81=T81,T81,0)) -> 0 | V81: 0 | X81: =IF(גיליון3!W81>0,D81/גיליון3!H31-V81,0) -> 0 | Y81: =IF(X81=0,0,IF(גיליון3!Y81=X81,X81,0)) -> 0 | Z81: 0 | AB81: =IF(גיליון3!AA81>0,D81/גיליון3!H31-Z81,0) -> 0 | AC81: =IF(AB81=0,0,IF(גיליון3!AC81=AB81,AB81,0)) -> 0 | AD81: 0 | AF81: =IF(גיליון3!AE81>0,D81/גיליון3!H31-AD81,0) -> 0 | AG81: =IF(AF81=0,0,IF(גיליון3!AG81=AF81,AF81,0)) -> 0 | AH81: 0 | AJ81: =IF(גיליון3!AI81>0,D81/גיליון3!H31-AH81,0) -> 0 | AK81: =IF(AJ81=0,0,IF(גיליון3!AK81=AJ81,AJ81,0)) -> 0 | AL81: 0 | AN81: =IF(גיליון3!AM81>0,D81/גיליון3!H31-AL81,0) -> 0 | AO81: =IF(AN81=0,0,IF(גיליון3!AO81=AN81,AN81,0)) -> 0 | AP81: 0 | AR81: =IF(גיליון3!AQ81>0,D81/גיליון3!H31-AP81,0) -> 0 | AS81: =IF(AR81=0,0,IF(גיליון3!AS81=AR81,AR81,0)) -> 0 | AT81: 0
A82: =גיליון1!A32 -> 0 | B82: =גיליון1!B32 -> 0 | D82: =IF(B82<גיליון3!D32,0,B82) -> 0 | F82: =INT(D82/גיליון3!H32) -> 0 | H82: =IF(גיליון3!G82>0,D82/גיליון3!H32-F82,0) -> 0 | I82: =IF(H82=0,0,IF(גיליון3!I82=H82,H82,0)) -> 0 | J82: 0 | L82: =IF(גיליון3!K82>0,D82/גיליון3!H32-J82,0) -> 0 | M82: =IF(L82=0,0,IF(גיליון3!M82=L82,L82,0)) -> 0 | N82: 0 | P82: =IF(גיליון3!O82>0,D82/גיליון3!H32-N82,0) -> 0 | Q82: =IF(P82=0,0,IF(גיליון3!Q82=P82,P82,0)) -> 0 | R82: 0 | T82: =IF(גיליון3!S82>0,D82/גיליון3!H32-R82,0) -> 0 | U82: =IF(T82=0,0,IF(גיליון3!U82=T82,T82,0)) -> 0 | V82: 0 | X82: =IF(גיליון3!W82>0,D82/גיליון3!H32-V82,0) -> 0 | Y82: =IF(X82=0,0,IF(גיליון3!Y82=X82,X82,0)) -> 0 | Z82: 0 | AB82: =IF(גיליון3!AA82>0,D82/גיליון3!H32-Z82,0) -> 0 | AC82: =IF(AB82=0,0,IF(גיליון3!AC82=AB82,AB82,0)) -> 0 | AD82: 0 | AF82: =IF(גיליון3!AE82>0,D82/גיליון3!H32-AD82,0) -> 0 | AG82: =IF(AF82=0,0,IF(גיליון3!AG82=AF82,AF82,0)) -> 0 | AH82: 0 | AJ82: =IF(גיליון3!AI82>0,D82/גיליון3!H32-AH82,0) -> 0 | AK82: =IF(AJ82=0,0,IF(גיליון3!AK82=AJ82,AJ82,0)) -> 0 | AL82: 0 | AN82: =IF(גיליון3!AM82>0,D82/גיליון3!H32-AL82,0) -> 0 | AO82: =IF(AN82=0,0,IF(גיליון3!AO82=AN82,AN82,0)) -> 0 | AP82: 0 | AR82: =IF(גיליון3!AQ82>0,D82/גיליון3!H32-AP82,0) -> 0 | AS82: =IF(AR82=0,0,IF(גיליון3!AS82=AR82,AR82,0)) -> 0 | AT82: 0
A83: =גיליון1!A33 -> 0 | B83: =גיליון1!B33 -> 0 | D83: =IF(B83<גיליון3!D33,0,B83) -> 0 | F83: =INT(D83/גיליון3!H33) -> 0 | H83: =IF(גיליון3!G83>0,D83/גיליון3!H33-F83,0) -> 0 | I83: =IF(H83=0,0,IF(גיליון3!I83=H83,H83,0)) -> 0 | J83: 0 | L83: =IF(גיליון3!K83>0,D83/גיליון3!H33-J83,0) -> 0 | M83: =IF(L83=0,0,IF(גיליון3!M83=L83,L83,0)) -> 0 | N83: 0 | P83: =IF(גיליון3!O83>0,D83/גיליון3!H33-N83,0) -> 0 | Q83: =IF(P83=0,0,IF(גיליון3!Q83=P83,P83,0)) -> 0 | R83: 0 | T83: =IF(גיליון3!S83>0,D83/גיליון3!H33-R83,0) -> 0 | U83: =IF(T83=0,0,IF(גיליון3!U83=T83,T83,0)) -> 0 | V83: 0 | X83: =IF(גיליון3!W83>0,D83/גיליון3!H33-V83,0) -> 0 | Y83: =IF(X83=0,0,IF(גיליון3!Y83=X83,X83,0)) -> 0 | Z83: 0 | AB83: =IF(גיליון3!AA83>0,D83/גיליון3!H33-Z83,0) -> 0 | AC83: =IF(AB83=0,0,IF(גיליון3!AC83=AB83,AB83,0)) -> 0 | AD83: 0 | AF83: =IF(גיליון3!AE83>0,D83/גיליון3!H33-AD83,0) -> 0 | AG83: =IF(AF83=0,0,IF(גיליון3!AG83=AF83,AF83,0)) -> 0 | AH83: 0 | AJ83: =IF(גיליון3!AI83>0,D83/גיליון3!H33-AH83,0) -> 0 | AK83: =IF(AJ83=0,0,IF(גיליון3!AK83=AJ83,AJ83,0)) -> 0 | AL83: 0 | AN83: =IF(גיליון3!AM83>0,D83/גיליון3!H33-AL83,0) -> 0 | AO83: =IF(AN83=0,0,IF(גיליון3!AO83=AN83,AN83,0)) -> 0 | AP83: 0 | AR83: =IF(גיליון3!AQ83>0,D83/גיליון3!H33-AP83,0) -> 0 | AS83: =IF(AR83=0,0,IF(גיליון3!AS83=AR83,AR83,0)) -> 0 | AT83: 0
A84: =גיליון1!A34 -> 0 | B84: =גיליון1!B34 -> 0 | D84: =IF(B84<גיליון3!D34,0,B84) -> 0 | F84: =INT(D84/גיליון3!H34) -> 0 | H84: =IF(גיליון3!G84>0,D84/גיליון3!H34-F84,0) -> 0 | I84: =IF(H84=0,0,IF(גיליון3!I84=H84,H84,0)) -> 0 | J84: 0 | L84: =IF(גיליון3!K84>0,D84/גיליון3!H34-J84,0) -> 0 | M84: =IF(L84=0,0,IF(גיליון3!M84=L84,L84,0)) -> 0 | N84: 0 | P84: =IF(גיליון3!O84>0,D84/גיליון3!H34-N84,0) -> 0 | Q84: =IF(P84=0,0,IF(גיליון3!Q84=P84,P84,0)) -> 0 | R84: 0 | T84: =IF(גיליון3!S84>0,D84/גיליון3!H34-R84,0) -> 0 | U84: =IF(T84=0,0,IF(גיליון3!U84=T84,T84,0)) -> 0 | V84: 0 | X84: =IF(גיליון3!W84>0,D84/גיליון3!H34-V84,0) -> 0 | Y84: =IF(X84=0,0,IF(גיליון3!Y84=X84,X84,0)) -> 0 | Z84: 0 | AB84: =IF(גיליון3!AA84>0,D84/גיליון3!H34-Z84,0) -> 0 | AC84: =IF(AB84=0,0,IF(גיליון3!AC84=AB84,AB84,0)) -> 0 | AD84: 0 | AF84: =IF(גיליון3!AE84>0,D84/גיליון3!H34-AD84,0) -> 0 | AG84: =IF(AF84=0,0,IF(גיליון3!AG84=AF84,AF84,0)) -> 0 | AH84: 0 | AJ84: =IF(גיליון3!AI84>0,D84/גיליון3!H34-AH84,0) -> 0 | AK84: =IF(AJ84=0,0,IF(גיליון3!AK84=AJ84,AJ84,0)) -> 0 | AL84: 0 | AN84: =IF(גיליון3!AM84>0,D84/גיליון3!H34-AL84,0) -> 0 | AO84: =IF(AN84=0,0,IF(גיליון3!AO84=AN84,AN84,0)) -> 0 | AP84: 0 | AR84: =IF(גיליון3!AQ84>0,D84/גיליון3!H34-AP84,0) -> 0 | AS84: =IF(AR84=0,0,IF(גיליון3!AS84=AR84,AR84,0)) -> 0 | AT84: 0
A85: =גיליון1!A35 -> 0 | B85: =גיליון1!B35 -> 0 | D85: =IF(B85<גיליון3!D35,0,B85) -> 0 | F85: =INT(D85/גיליון3!H35) -> 0 | H85: =IF(גיליון3!G85>0,D85/גיליון3!H35-F85,0) -> 0 | I85: =IF(H85=0,0,IF(גיליון3!I85=H85,H85,0)) -> 0 | J85: 0 | L85: =IF(גיליון3!K85>0,D85/גיליון3!H35-J85,0) -> 0 | M85: =IF(L85=0,0,IF(גיליון3!M85=L85,L85,0)) -> 0 | N85: 0 | P85: =IF(גיליון3!O85>0,D85/גיליון3!H35-N85,0) -> 0 | Q85: =IF(P85=0,0,IF(גיליון3!Q85=P85,P85,0)) -> 0 | R85: 0 | T85: =IF(גיליון3!S85>0,D85/גיליון3!H35-R85,0) -> 0 | U85: =IF(T85=0,0,IF(גיליון3!U85=T85,T85,0)) -> 0 | V85: 0 | X85: =IF(גיליון3!W85>0,D85/גיליון3!H35-V85,0) -> 0 | Y85: =IF(X85=0,0,IF(גיליון3!Y85=X85,X85,0)) -> 0 | Z85: 0 | AB85: =IF(גיליון3!AA85>0,D85/גיליון3!H35-Z85,0) -> 0 | AC85: =IF(AB85=0,0,IF(גיליון3!AC85=AB85,AB85,0)) -> 0 | AD85: 0 | AF85: =IF(גיליון3!AE85>0,D85/גיליון3!H35-AD85,0) -> 0 | AG85: =IF(AF85=0,0,IF(גיליון3!AG85=AF85,AF85,0)) -> 0 | AH85: 0 | AJ85: =IF(גיליון3!AI85>0,D85/גיליון3!H35-AH85,0) -> 0 | AK85: =IF(AJ85=0,0,IF(גיליון3!AK85=AJ85,AJ85,0)) -> 0 | AL85: 0 | AN85: =IF(גיליון3!AM85>0,D85/גיליון3!H35-AL85,0) -> 0 | AO85: =IF(AN85=0,0,IF(גיליון3!AO85=AN85,AN85,0)) -> 0 | AP85: 0 | AR85: =IF(גיליון3!AQ85>0,D85/גיליון3!H35-AP85,0) -> 0 | AS85: =IF(AR85=0,0,IF(גיליון3!AS85=AR85,AR85,0)) -> 0 | AT85: 0
A86: =גיליון1!A36 -> 0 | B86: =גיליון1!B36 -> 0 | D86: =IF(B86<גיליון3!D36,0,B86) -> 0 | F86: =INT(D86/גיליון3!H36) -> 0 | H86: =IF(גיליון3!G86>0,D86/גיליון3!H36-F86,0) -> 0 | I86: =IF(H86=0,0,IF(גיליון3!I86=H86,H86,0)) -> 0 | J86: 0 | L86: =IF(גיליון3!K86>0,D86/גיליון3!H36-J86,0) -> 0 | M86: =IF(L86=0,0,IF(גיליון3!M86=L86,L86,0)) -> 0 | N86: 0 | P86: =IF(גיליון3!O86>0,D86/גיליון3!H36-N86,0) -> 0 | Q86: =IF(P86=0,0,IF(גיליון3!Q86=P86,P86,0)) -> 0 | R86: 0 | T86: =IF(גיליון3!S86>0,D86/גיליון3!H36-R86,0) -> 0 | U86: =IF(T86=0,0,IF(גיליון3!U86=T86,T86,0)) -> 0 | V86: 0 | X86: =IF(גיליון3!W86>0,D86/גיליון3!H36-V86,0) -> 0 | Y86: =IF(X86=0,0,IF(גיליון3!Y86=X86,X86,0)) -> 0 | Z86: 0 | AB86: =IF(גיליון3!AA86>0,D86/גיליון3!H36-Z86,0) -> 0 | AC86: =IF(AB86=0,0,IF(גיליון3!AC86=AB86,AB86,0)) -> 0 | AD86: 0 | AF86: =IF(גיליון3!AE86>0,D86/גיליון3!H36-AD86,0) -> 0 | AG86: =IF(AF86=0,0,IF(גיליון3!AG86=AF86,AF86,0)) -> 0 | AH86: 0 | AJ86: =IF(גיליון3!AI86>0,D86/גיליון3!H36-AH86,0) -> 0 | AK86: =IF(AJ86=0,0,IF(גיליון3!AK86=AJ86,AJ86,0)) -> 0 | AL86: 0 | AN86: =IF(גיליון3!AM86>0,D86/גיליון3!H36-AL86,0) -> 0 | AO86: =IF(AN86=0,0,IF(גיליון3!AO86=AN86,AN86,0)) -> 0 | AP86: 0 | AR86: =IF(גיליון3!AQ86>0,D86/גיליון3!H36-AP86,0) -> 0 | AS86: =IF(AR86=0,0,IF(גיליון3!AS86=AR86,AR86,0)) -> 0 | AT86: 0
A87: =גיליון1!A37 -> 0 | B87: =גיליון1!B37 -> 0 | D87: =IF(B87<גיליון3!D37,0,B87) -> 0 | F87: =INT(D87/גיליון3!H37) -> 0 | H87: =IF(גיליון3!G87>0,D87/גיליון3!H37-F87,0) -> 0 | I87: =IF(H87=0,0,IF(גיליון3!I87=H87,H87,0)) -> 0 | J87: 0 | L87: =IF(גיליון3!K87>0,D87/גיליון3!H37-J87,0) -> 0 | M87: =IF(L87=0,0,IF(גיליון3!M87=L87,L87,0)) -> 0 | N87: 0 | P87: =IF(גיליון3!O87>0,D87/גיליון3!H37-N87,0) -> 0 | Q87: =IF(P87=0,0,IF(גיליון3!Q87=P87,P87,0)) -> 0 | R87: 0 | T87: =IF(גיליון3!S87>0,D87/גיליון3!H37-R87,0) -> 0 | U87: =IF(T87=0,0,IF(גיליון3!U87=T87,T87,0)) -> 0 | V87: 0 | X87: =IF(גיליון3!W87>0,D87/גיליון3!H37-V87,0) -> 0 | Y87: =IF(X87=0,0,IF(גיליון3!Y87=X87,X87,0)) -> 0 | Z87: 0 | AB87: =IF(גיליון3!AA87>0,D87/גיליון3!H37-Z87,0) -> 0 | AC87: =IF(AB87=0,0,IF(גיליון3!AC87=AB87,AB87,0)) -> 0 | AD87: 0 | AF87: =IF(גיליון3!AE87>0,D87/גיליון3!H37-AD87,0) -> 0 | AG87: =IF(AF87=0,0,IF(גיליון3!AG87=AF87,AF87,0)) -> 0 | AH87: 0 | AJ87: =IF(גיליון3!AI87>0,D87/גיליון3!H37-AH87,0) -> 0 | AK87: =IF(AJ87=0,0,IF(גיליון3!AK87=AJ87,AJ87,0)) -> 0 | AL87: 0 | AN87: =IF(גיליון3!AM87>0,D87/גיליון3!H37-AL87,0) -> 0 | AO87: =IF(AN87=0,0,IF(גיליון3!AO87=AN87,AN87,0)) -> 0 | AP87: 0 | AR87: =IF(גיליון3!AQ87>0,D87/גיליון3!H37-AP87,0) -> 0 | AS87: =IF(AR87=0,0,IF(גיליון3!AS87=AR87,AR87,0)) -> 0 | AT87: 0
A88: =גיליון1!A38 -> 0 | B88: =גיליון1!B38 -> 0 | D88: =IF(B88<גיליון3!D38,0,B88) -> 0 | F88: =INT(D88/גיליון3!H38) -> 0 | H88: =IF(גיליון3!G88>0,D88/גיליון3!H38-F88,0) -> 0 | I88: =IF(H88=0,0,IF(גיליון3!I88=H88,H88,0)) -> 0 | J88: 0 | L88: =IF(גיליון3!K88>0,D88/גיליון3!H38-J88,0) -> 0 | M88: =IF(L88=0,0,IF(גיליון3!M88=L88,L88,0)) -> 0 | N88: 0 | P88: =IF(גיליון3!O88>0,D88/גיליון3!H38-N88,0) -> 0 | Q88: =IF(P88=0,0,IF(גיליון3!Q88=P88,P88,0)) -> 0 | R88: 0 | T88: =IF(גיליון3!S88>0,D88/גיליון3!H38-R88,0) -> 0 | U88: =IF(T88=0,0,IF(גיליון3!U88=T88,T88,0)) -> 0 | V88: 0 | X88: =IF(גיליון3!W88>0,D88/גיליון3!H38-V88,0) -> 0 | Y88: =IF(X88=0,0,IF(גיליון3!Y88=X88,X88,0)) -> 0 | Z88: 0 | AB88: =IF(גיליון3!AA88>0,D88/גיליון3!H38-Z88,0) -> 0 | AC88: =IF(AB88=0,0,IF(גיליון3!AC88=AB88,AB88,0)) -> 0 | AD88: 0 | AF88: =IF(גיליון3!AE88>0,D88/גיליון3!H38-AD88,0) -> 0 | AG88: =IF(AF88=0,0,IF(גיליון3!AG88=AF88,AF88,0)) -> 0 | AH88: 0 | AJ88: =IF(גיליון3!AI88>0,D88/גיליון3!H38-AH88,0) -> 0 | AK88: =IF(AJ88=0,0,IF(גיליון3!AK88=AJ88,AJ88,0)) -> 0 | AL88: 0 | AN88: =IF(גיליון3!AM88>0,D88/גיליון3!H38-AL88,0) -> 0 | AO88: =IF(AN88=0,0,IF(גיליון3!AO88=AN88,AN88,0)) -> 0 | AP88: 0 | AR88: =IF(גיליון3!AQ88>0,D88/גיליון3!H38-AP88,0) -> 0 | AS88: =IF(AR88=0,0,IF(גיליון3!AS88=AR88,AR88,0)) -> 0 | AT88: 0
A89: =גיליון1!A39 -> 0 | B89: =גיליון1!B39 -> 0 | D89: =IF(B89<גיליון3!D39,0,B89) -> 0 | F89: =INT(D89/גיליון3!H39) -> 0 | H89: =IF(גיליון3!G89>0,D89/גיליון3!H39-F89,0) -> 0 | I89: =IF(H89=0,0,IF(גיליון3!I89=H89,H89,0)) -> 0 | J89: 0 | L89: =IF(גיליון3!K89>0,D89/גיליון3!H39-J89,0) -> 0 | M89: =IF(L89=0,0,IF(גיליון3!M89=L89,L89,0)) -> 0 | N89: 0 | P89: =IF(גיליון3!O89>0,D89/גיליון3!H39-N89,0) -> 0 | Q89: =IF(P89=0,0,IF(גיליון3!Q89=P89,P89,0)) -> 0 | R89: 0 | T89: =IF(גיליון3!S89>0,D89/גיליון3!H39-R89,0) -> 0 | U89: =IF(T89=0,0,IF(גיליון3!U89=T89,T89,0)) -> 0 | V89: 0 | X89: =IF(גיליון3!W89>0,D89/גיליון3!H39-V89,0) -> 0 | Y89: =IF(X89=0,0,IF(גיליון3!Y89=X89,X89,0)) -> 0 | Z89: 0 | AB89: =IF(גיליון3!AA89>0,D89/גיליון3!H39-Z89,0) -> 0 | AC89: =IF(AB89=0,0,IF(גיליון3!AC89=AB89,AB89,0)) -> 0 | AD89: 0 | AF89: =IF(גיליון3!AE89>0,D89/גיליון3!H39-AD89,0) -> 0 | AG89: =IF(AF89=0,0,IF(גיליון3!AG89=AF89,AF89,0)) -> 0 | AH89: 0 | AJ89: =IF(גיליון3!AI89>0,D89/גיליון3!H39-AH89,0) -> 0 | AK89: =IF(AJ89=0,0,IF(גיליון3!AK89=AJ89,AJ89,0)) -> 0 | AL89: 0 | AN89: =IF(גיליון3!AM89>0,D89/גיליון3!H39-AL89,0) -> 0 | AO89: =IF(AN89=0,0,IF(גיליון3!AO89=AN89,AN89,0)) -> 0 | AP89: 0 | AR89: =IF(גיליון3!AQ89>0,D89/גיליון3!H39-AP89,0) -> 0 | AS89: =IF(AR89=0,0,IF(גיליון3!AS89=AR89,AR89,0)) -> 0 | AT89: 0
A90: =גיליון1!A40 -> סה"כ | B90: =SUM(B52:B89) -> 3986855 | D90: =SUM(D52:D89) -> 3827515 | F90: =SUM(F52:F89) -> 114 | J90: =SUM(J52:J89) -> 115 | N90: =SUM(N52:N89) -> 116 | R90: =SUM(R52:R89) -> 117 | V90: =SUM(V52:V89) -> 118 | Z90: =SUM(Z52:Z89) -> 119 | AD90: =SUM(AD52:AD89) -> 120 | AH90: =SUM(AH52:AH89) -> 120 | AL90: =SUM(AL52:AL89) -> 120 | AP90: =SUM(AP52:AP89) -> 120 | AT90: =SUM(AT52:AT89) -> 120
A101: =A1 -> רשימה | B101: קולות | C101: אחוז החסימה | D101: רשימות שעברו את אחוז החסימה | E101: מודד | F101: מנדטים שלמים | G101: מנדטים נותרים | H101: חלוקה 1 | I101: גדול ביותר | J101: תוצאה | K101: מנדטים נותרים | L101: חלוקה 2 | M101: גדול ביותר | N101: תוצאה | O101: מנדטים נותרים | P101: חלוקה 3 | Q101: גדול ביותר | R101: תוצאה | S101: מנדטים נותרים | T101: חלוקה 4 | U101: גדול ביותר | V101: תוצאה | W101: מנדטים נותרים | X101: חלוקה 5 | Y101: גדול ביותר | Z101: תוצאה | AA101: מנדטים נותרים | AB101: חלוקה 6 | AC101: גדול ביותר | AD101: תוצאה | AE101: מנדטים נותרים | AF101: חלוקה 7 | AG101: גדול ביותר | AH101: תוצאה | AI101: מנדטים נותרים | AJ101: חלוקה 8 | AK101: גדול ביותר | AL101: תוצאה | AM101: מנדטים נותרים | AN101: חלוקה 9 | AO101: גדול ביותר | AP101: תוצאה | AQ101: מנדטים נותרים | AR101: חלוקה 10 | AS101: גדול ביותר | AT101: תוצאה
A102: =A2 -> הבית היהודי | B102: 254663 | C102: 0.0325 | D102: 254663 | E102: 31895.95833 | F102: 7 | G102: =E103-F140 -> 6 | H102: =IF(גיליון3!G102>0,D102/(F102+1),0) -> 31832.875 | I102: =IF(גיליון3!I102=0,0,IF(גיליון3!I102=גיליון2!H102,גיליון3!I102,0)) -> 0 | J102: =IF(גיליון3!I102>0,IF(גיליון3!I102=I102,F102+1,F102),F102) -> 7 | K102: =E103-J140 -> 5 | L102: =IF(גיליון3!K102>0,D102/(J102+1),0) -> 31832.875 | M102: =IF(גיליון3!M102=0,0,IF(גיליון3!M102=גיליון2!L102,גיליון3!M102,0)) -> 31832.875 | N102: =IF(גיליון3!M102>0,IF(גיליון3!M102=M102,J102+1,J102),J102) -> 8 | O102: =E103-N140 -> 4 | P102: =IF(גיליון3!O102>0,D102/(N102+1),0) -> 28295.88889 | Q102: =IF(גיליון3!Q102=0,0,IF(גיליון3!Q102=גיליון2!P102,גיליון3!Q102,0)) -> 0 | R102: =IF(גיליון3!Q102>0,IF(גיליון3!Q102=Q102,N102+1,N102),N102) -> 8 | S102: =E103-R140 -> 3 | T102: =IF(גיליון3!S102>0,D102/(R102+1),0) -> 28295.88889 | U102: =IF(גיליון3!U102=0,0,IF(גיליון3!U102=גיליון2!T102,גיליון3!U102,0)) -> 0 | V102: =IF(גיליון3!U102>0,IF(גיליון3!U102=U102,R102+1,R102),R102) -> 8 | W102: =E103-V140 -> 2 | X102: =IF(גיליון3!W102>0,D102/(V102+1),0) -> 28295.88889 | Y102: =IF(גיליון3!Y102=0,0,IF(גיליון3!Y102=גיליון2!X102,גיליון3!Y102,0)) -> 0 | Z102: =IF(גיליון3!Y102>0,IF(גיליון3!Y102=Y102,V102+1,V102),V102) -> 8 | AA102: =E103-Z140 -> 1 | AB102: =IF(גיליון3!AA102>0,D102/(Z102+1),0) -> 28295.88889 | AC102: =IF(גיליון3!AC102=0,0,IF(גיליון3!AC102=גיליון2!AB102,גיליון3!AC102,0)) -> 0 | AD102: =IF(גיליון3!AC102>0,IF(גיליון3!AC102=AC102,Z102+1,Z102),Z102) -> 8 | AE102: =E103-AD140 -> 0 | AF102: =IF(גיליון3!AE102>0,D102/(AD102+1),0) -> 0 | AG102: =IF(גיליון3!AG102=0,0,IF(גיליון3!AG102=גיליון2!AF102,גיליון3!AG102,0)) -> 0 | AH102: =IF(גיליון3!AG102>0,IF(גיליון3!AG102=AG102,AD102+1,AD102),AD102) -> 8 | AI102: =E103-AH140 -> 0 | AJ102: =IF(גיליון3!AI102>0,D102/(AH102+1),0) -> 0 | AK102: =IF(גיליון3!AK102=0,0,IF(גיליון3!AK102=גיליון2!AJ102,גיליון3!AK102,0)) -> 0 | AL102: =IF(גיליון3!AK102>0,IF(גיליון3!AK102=AK102,AH102+1,AH102),AH102) -> 8 | AM102: =E103-AL140 -> 0 | AN102: =IF(גיליון3!AM102>0,D102/(AL102+1),0) -> 0 | AO102: =IF(גיליון3!AO102=0,0,IF(גיליון3!AO102=גיליון2!AN102,גיליון3!AO102,0)) -> 0 | AP102: =IF(גיליון3!AO102>0,IF(גיליון3!AO102=AO102,AL102+1,AL102),AL102) -> 8 | AQ102: =E103-AP140 -> 0 | AR102: =IF(גיליון3!AQ102>0,D102/(AP102+1),0) -> 0 | AS102: =IF(גיליון3!AS102=0,0,IF(גיליון3!AS102=גיליון2!AR102,גיליון3!AS102,0)) -> 0 | AT102: =IF(גיליון3!AS102>0,IF(גיליון3!AS102=AS102,AP102+1,AP102),AP102) -> 8
A103: =A3 -> הליכוד | B103: 924766 | C103: 129572.7875 | D103: 924766 | E103: 120 | F103: 28 | H103: =IF(גיליון3!G103>0,D103/(F103+1),0) -> 31888.48276 | I103: =IF(גיליון3!I103=0,0,IF(גיליון3!I103=גיליון2!H103,גיליון3!I103,0)) -> 31888.48276 | J103: =IF(גיליון3!I103>0,IF(גיליון3!I103=I103,F103+1,F103),F103) -> 29 | L103: =IF(גיליון3!K103>0,D103/(J103+1),0) -> 30825.53333 | M103: =IF(גיליון3!M103=0,0,IF(גיליון3!M103=גיליון2!L103,גיליון3!M103,0)) -> 0 | N103: =IF(גיליון3!M103>0,IF(גיליון3!M103=M103,J103+1,J103),J103) -> 29 | P103: =IF(גיליון3!O103>0,D103/(N103+1),0) -> 30825.53333 | Q103: =IF(גיליון3!Q103=0,0,IF(גיליון3!Q103=גיליון2!P103,גיליון3!Q103,0)) -> 0 | R103: =IF(גיליון3!Q103>0,IF(גיליון3!Q103=Q103,N103+1,N103),N103) -> 29 | T103: =IF(גיליון3!S103>0,D103/(R103+1),0) -> 30825.53333 | U103: =IF(גיליון3!U103=0,0,IF(גיליון3!U103=גיליון2!T103,גיליון3!U103,0)) -> 0 | V103: =IF(גיליון3!U103>0,IF(גיליון3!U103=U103,R103+1,R103),R103) -> 29 | X103: =IF(גיליון3!W103>0,D103/(V103+1),0) -> 30825.53333 | Y103: =IF(גיליון3!Y103=0,0,IF(גיליון3!Y103=גיליון2!X103,גיליון3!Y103,0)) -> 0 | Z103: =IF(גיליון3!Y103>0,IF(גיליון3!Y103=Y103,V103+1,V103),V103) -> 29 | AB103: =IF(גיליון3!AA103>0,D103/(Z103+1),0) -> 30825.53333 | AC103: =IF(גיליון3!AC103=0,0,IF(גיליון3!AC103=גיליון2!AB103,גיליון3!AC103,0)) -> 0 | AD103: =IF(גיליון3!AC103>0,IF(גיליון3!AC103=AC103,Z103+1,Z103),Z103) -> 29 | AF103: =IF(גיליון3!AE103>0,D103/(AD103+1),0) -> 0 | AG103: =IF(גיליון3!AG103=0,0,IF(גיליון3!AG103=גיליון2!AF103,גיליון3!AG103,0)) -> 0 | AH103: =IF(גיליון3!AG103>0,IF(גיליון3!AG103=AG103,AD103+1,AD103),AD103) -> 29 | AJ103: =IF(גיליון3!AI103>0,D103/(AH103+1),0) -> 0 | AK103: =IF(גיליון3!AK103=0,0,IF(גיליון3!AK103=גיליון2!AJ103,גיליון3!AK103,0)) -> 0 | AL103: =IF(גיליון3!AK103>0,IF(גיליון3!AK103=AK103,AH103+1,AH103),AH103) -> 29 | AN103: =IF(גיליון3!AM103>0,D103/(AL103+1),0) -> 0 | AO103: =IF(גיליון3!AO103=0,0,IF(גיליון3!AO103=גיליון2!AN103,גיליון3!AO103,0)) -> 0 | AP103: =IF(גיליון3!AO103>0,IF(גיליון3!AO103=AO103,AL103+1,AL103),AL103) -> 29 | AR103: =IF(גיליון3!AQ103>0,D103/(AP103+1),0) -> 0 | AS103: =IF(גיליון3!AS103=0,0,IF(גיליון3!AS103=גיליון2!AR103,גיליון3!AS103,0)) -> 0 | AT103: =IF(גיליון3!AS103>0,IF(גיליון3!AS103=AS103,AP103+1,AP103),AP103) -> 29
A104: =A4 -> יש עתיד | B104: 348802 | D104: =D4 -> 348802 | F104: =F4 -> 10 | H104: =IF(גיליון3!G104>0,D104/(F104+1),0) -> 31709.27273 | I104: =IF(גיליון3!I104=0,0,IF(גיליון3!I104=גיליון2!H104,גיליון3!I104,0)) -> 0 | J104: =IF(גיליון3!I104>0,IF(גיליון3!I104=I104,F104+1,F104),F104) -> 10 | L104: =IF(גיליון3!K104>0,D104/(J104+1),0) -> 31709.27273 | M104: =IF(גיליון3!M104=0,0,IF(גיליון3!M104=גיליון2!L104,גיליון3!M104,0)) -> 0 | N104: =IF(גיליון3!M104>0,IF(גיליון3!M104=M104,J104+1,J104),J104) -> 10 | P104: =IF(גיליון3!O104>0,D104/(N104+1),0) -> 31709.27273 | Q104: =IF(גיליון3!Q104=0,0,IF(גיליון3!Q104=גיליון2!P104,גיליון3!Q104,0)) -> 31709.27273 | R104: =IF(גיליון3!Q104>0,IF(גיליון3!Q104=Q104,N104+1,N104),N104) -> 11 | T104: =IF(גיליון3!S104>0,D104/(R104+1),0) -> 29066.83333 | U104: =IF(גיליון3!U104=0,0,IF(גיליון3!U104=גיליון2!T104,גיליון3!U104,0)) -> 0 | V104: =IF(גיליון3!U104>0,IF(גיליון3!U104=U104,R104+1,R104),R104) -> 11 | X104: =IF(גיליון3!W104>0,D104/(V104+1),0) -> 29066.83333 | Y104: =IF(גיליון3!Y104=0,0,IF(גיליון3!Y104=גיליון2!X104,גיליון3!Y104,0)) -> 0 | Z104: =IF(גיליון3!Y104>0,IF(גיליון3!Y104=Y104,V104+1,V104),V104) -> 11 | AB104: =IF(גיליון3!AA104>0,D104/(Z104+1),0) -> 29066.83333 | AC104: =IF(גיליון3!AC104=0,0,IF(גיליון3!AC104=גיליון2!AB104,גיליון3!AC104,0)) -> 0 | AD104: =IF(גיליון3!AC104>0,IF(גיליון3!AC104=AC104,Z104+1,Z104),Z104) -> 11 | AF104: =IF(גיליון3!AE104>0,D104/(AD104+1),0) -> 0 | AG104: =IF(גיליון3!AG104=0,0,IF(גיליון3!AG104=גיליון2!AF104,גיליון3!AG104,0)) -> 0 | AH104: =IF(גיליון3!AG104>0,IF(גיליון3!AG104=AG104,AD104+1,AD104),AD104) -> 11 | AJ104: =IF(גיליון3!AI104>0,D104/(AH104+1),0) -> 0 | AK104: =IF(גיליון3!AK104=0,0,IF(גיליון3!AK104=גיליון2!AJ104,גיליון3!AK104,0)) -> 0 | AL104: =IF(גיליון3!AK104>0,IF(גיליון3!AK104=AK104,AH104+1,AH104),AH104) -> 11 | AN104: =IF(גיליון3!AM104>0,D104/(AL104+1),0) -> 0 | AO104: =IF(גיליון3!AO104=0,0,IF(גיליון3!AO104=גיליון2!AN104,גיליון3!AO104,0)) -> 0 | AP104: =IF(גיליון3!AO104>0,IF(גיליון3!AO104=AO104,AL104+1,AL104),AL104) -> 11 | AR104: =IF(גיליון3!AQ104>0,D104/(AP104+1),0) -> 0 | AS104: =IF(גיליון3!AS104=0,0,IF(גיליון3!AS104=גיליון2!AR104,גיליון3!AS104,0)) -> 0 | AT104: =IF(גיליון3!AS104>0,IF(גיליון3!AS104=AS104,AP104+1,AP104),AP104) -> 11
A105: =A5 -> המחנה הציוני | B105: 744673 | D105: 744673 | F105: 23 | H105: =IF(גיליון3!G105>0,D105/(F105+1),0) -> 31028.04167 | I105: =IF(גיליון3!I105=0,0,IF(גיליון3!I105=גיליון2!H105,גיליון3!I105,0)) -> 0 | J105: =IF(גיליון3!I105>0,IF(גיליון3!I105=I105,F105+1,F105),F105) -> 23 | L105: =IF(גיליון3!K105>0,D105/(J105+1),0) -> 31028.04167 | M105: =IF(גיליון3!M105=0,0,IF(גיליון3!M105=גיליון2!L105,גיליון3!M105,0)) -> 0 | N105: =IF(גיליון3!M105>0,IF(גיליון3!M105=M105,J105+1,J105),J105) -> 23 | P105: =IF(גיליון3!O105>0,D105/(N105+1),0) -> 31028.04167 | Q105: =IF(גיליון3!Q105=0,0,IF(גיליון3!Q105=גיליון2!P105,גיליון3!Q105,0)) -> 0 | R105: =IF(גיליון3!Q105>0,IF(גיליון3!Q105=Q105,N105+1,N105),N105) -> 23 | T105: =IF(גיליון3!S105>0,D105/(R105+1),0) -> 31028.04167 | U105: =IF(גיליון3!U105=0,0,IF(גיליון3!U105=גיליון2!T105,גיליון3!U105,0)) -> 31028.04167 | V105: =IF(גיליון3!U105>0,IF(גיליון3!U105=U105,R105+1,R105),R105) -> 24 | X105: =IF(גיליון3!W105>0,D105/(V105+1),0) -> 29786.92 | Y105: =IF(גיליון3!Y105=0,0,IF(גיליון3!Y105=גיליון2!X105,גיליון3!Y105,0)) -> 0 | Z105: =IF(גיליון3!Y105>0,IF(גיליון3!Y105=Y105,V105+1,V105),V105) -> 24 | AB105: =IF(גיליון3!AA105>0,D105/(Z105+1),0) -> 29786.92 | AC105: =IF(גיליון3!AC105=0,0,IF(גיליון3!AC105=גיליון2!AB105,גיליון3!AC105,0)) -> 0 | AD105: =IF(גיליון3!AC105>0,IF(גיליון3!AC105=AC105,Z105+1,Z105),Z105) -> 24 | AF105: =IF(גיליון3!AE105>0,D105/(AD105+1),0) -> 0 | AG105: =IF(גיליון3!AG105=0,0,IF(גיליון3!AG105=גיליון2!AF105,גיליון3!AG105,0)) -> 0 | AH105: =IF(גיליון3!AG105>0,IF(גיליון3!AG105=AG105,AD105+1,AD105),AD105) -> 24 | AJ105: =IF(גיליון3!AI105>0,D105/(AH105+1),0) -> 0 | AK105: =IF(גיליון3!AK105=0,0,IF(גיליון3!AK105=גיליון2!AJ105,גיליון3!AK105,0)) -> 0 | AL105: =IF(גיליון3!AK105>0,IF(גיליון3!AK105=AK105,AH105+1,AH105),AH105) -> 24 | AN105: =IF(גיליון3!AM105>0,D105/(AL105+1),0) -> 0 | AO105: =IF(גיליון3!AO105=0,0,IF(גיליון3!AO105=גיליון2!AN105,גיליון3!AO105,0)) -> 0 | AP105: =IF(גיליון3!AO105>0,IF(גיליון3!AO105=AO105,AL105+1,AL105),AL105) -> 24 | AR105: =IF(גיליון3!AQ105>0,D105/(AP105+1),0) -> 0 | AS105: =IF(גיליון3!AS105=0,0,IF(גיליון3!AS105=גיליון2!AR105,גיליון3!AS105,0)) -> 0 | AT105: =IF(גיליון3!AS105>0,IF(גיליון3!AS105=AS105,AP105+1,AP105),AP105) -> 24
A106: =A6 -> מרץ | B106: 154648 | D106: 154648 | F106: 4 | H106: =IF(גיליון3!G106>0,D106/(F106+1),0) -> 30929.6 | I106: =IF(גיליון3!I106=0,0,IF(גיליון3!I106=גיליון2!H106,גיליון3!I106,0)) -> 0 | J106: =IF(גיליון3!I106>0,IF(גיליון3!I106=I106,F106+1,F106),F106) -> 4 | L106: =IF(גיליון3!K106>0,D106/(J106+1),0) -> 30929.6 | M106: =IF(גיליון3!M106=0,0,IF(גיליון3!M106=גיליון2!L106,גיליון3!M106,0)) -> 0 | N106: =IF(גיליון3!M106>0,IF(גיליון3!M106=M106,J106+1,J106),J106) -> 4 | P106: =IF(גיליון3!O106>0,D106/(N106+1),0) -> 30929.6 | Q106: =IF(גיליון3!Q106=0,0,IF(גיליון3!Q106=גיליון2!P106,גיליון3!Q106,0)) -> 0 | R106: =IF(גיליון3!Q106>0,IF(גיליון3!Q106=Q106,N106+1,N106),N106) -> 4 | T106: =IF(גיליון3!S106>0,D106/(R106+1),0) -> 30929.6 | U106: =IF(גיליון3!U106=0,0,IF(גיליון3!U106=גיליון2!T106,גיליון3!U106,0)) -> 0 | V106: =IF(גיליון3!U106>0,IF(גיליון3!U106=U106,R106+1,R106),R106) -> 4 | X106: =IF(גיליון3!W106>0,D106/(V106+1),0) -> 30929.6 | Y106: =IF(גיליון3!Y106=0,0,IF(גיליון3!Y106=גיליון2!X106,גיליון3!Y106,0)) -> 30929.6 | Z106: =IF(גיליון3!Y106>0,IF(גיליון3!Y106=Y106,V106+1,V106),V106) -> 5 | AB106: =IF(גיליון3!AA106>0,D106/(Z106+1),0) -> 25774.66667 | AC106: =IF(גיליון3!AC106=0,0,IF(גיליון3!AC106=גיליון2!AB106,גיליון3!AC106,0)) -> 0 | AD106: =IF(גיליון3!AC106>0,IF(גיליון3!AC106=AC106,Z106+1,Z106),Z106) -> 5 | AF106: =IF(גיליון3!AE106>0,D106/(AD106+1),0) -> 0 | AG106: =IF(גיליון3!AG106=0,0,IF(גיליון3!AG106=גיליון2!AF106,גיליון3!AG106,0)) -> 0 | AH106: =IF(גיליון3!AG106>0,IF(גיליון3!AG106=AG106,AD106+1,AD106),AD106) -> 5 | AJ106: =IF(גיליון3!AI106>0,D106/(AH106+1),0) -> 0 | AK106: =IF(גיליון3!AK106=0,0,IF(גיליון3!AK106=גיליון2!AJ106,גיליון3!AK106,0)) -> 0 | AL106: =IF(גיליון3!AK106>0,IF(גיליון3!AK106=AK106,AH106+1,AH106),AH106) -> 5 | AN106: =IF(גיליון3!AM106>0,D106/(AL106+1),0) -> 0 | AO106: =IF(גיליון3!AO106=0,0,IF(גיליון3!AO106=גיליון2!AN106,גיליון3!AO106,0)) -> 0 | AP106: =IF(גיליון3!AO106>0,IF(גיליון3!AO106=AO106,AL106+1,AL106),AL106) -> 5 | AR106: =IF(גיליון3!AQ106>0,D106/(AP106+1),0) -> 0 | AS106: =IF(גיליון3!AS106=0,0,IF(גיליון3!AS106=גיליון2!AR106,גיליון3!AS106,0)) -> 0 | AT106: =IF(גיליון3!AS106>0,IF(גיליון3!AS106=AS106,AP106+1,AP106),AP106) -> 5
A107: =A7 -> רעם | B107: 463532 | D107: 463532 | F107: 14 | H107: =IF(גיליון3!G107>0,D107/(F107+1),0) -> 30902.13333 | I107: =IF(גיליון3!I107=0,0,IF(גיליון3!I107=גיליון2!H107,גיליון3!I107,0)) -> 0 | J107: =IF(גיליון3!I107>0,IF(גיליון3!I107=I107,F107+1,F107),F107) -> 14 | L107: =IF(גיליון3!K107>0,D107/(J107+1),0) -> 30902.13333 | M107: =IF(גיליון3!M107=0,0,IF(גיליון3!M107=גיליון2!L107,גיליון3!M107,0)) -> 0 | N107: =IF(גיליון3!M107>0,IF(גיליון3!M107=M107,J107+1,J107),J107) -> 14 | P107: =IF(גיליון3!O107>0,D107/(N107+1),0) -> 30902.13333 | Q107: =IF(גיליון3!Q107=0,0,IF(גיליון3!Q107=גיליון2!P107,גיליון3!Q107,0)) -> 0 | R107: =IF(גיליון3!Q107>0,IF(גיליון3!Q107=Q107,N107+1,N107),N107) -> 14 | T107: =IF(גיליון3!S107>0,D107/(R107+1),0) -> 30902.13333 | U107: =IF(גיליון3!U107=0,0,IF(גיליון3!U107=גיליון2!T107,גיליון3!U107,0)) -> 0 | V107: =IF(גיליון3!U107>0,IF(גיליון3!U107=U107,R107+1,R107),R107) -> 14 | X107: =IF(גיליון3!W107>0,D107/(V107+1),0) -> 30902.13333 | Y107: =IF(גיליון3!Y107=0,0,IF(גיליון3!Y107=גיליון2!X107,גיליון3!Y107,0)) -> 0 | Z107: =IF(גיליון3!Y107>0,IF(גיליון3!Y107=Y107,V107+1,V107),V107) -> 14 | AB107: =IF(גיליון3!AA107>0,D107/(Z107+1),0) -> 30902.13333 | AC107: =IF(גיליון3!AC107=0,0,IF(גיליון3!AC107=גיליון2!AB107,גיליון3!AC107,0)) -> 30902.13333 | AD107: =IF(גיליון3!AC107>0,IF(גיליון3!AC107=AC107,Z107+1,Z107),Z107) -> 15 | AF107: =IF(גיליון3!AE107>0,D107/(AD107+1),0) -> 0 | AG107: =IF(גיליון3!AG107=0,0,IF(גיליון3!AG107=גיליון2!AF107,גיליון3!AG107,0)) -> 0 | AH107: =IF(גיליון3!AG107>0,IF(גיליון3!AG107=AG107,AD107+1,AD107),AD107) -> 15 | AJ107: =IF(גיליון3!AI107>0,D107/(AH107+1),0) -> 0 | AK107: =IF(גיליון3!AK107=0,0,IF(גיליון3!AK107=גיליון2!AJ107,גיליון3!AK107,0)) -> 0 | AL107: =IF(גיליון3!AK107>0,IF(גיליון3!AK107=AK107,AH107+1,AH107),AH107) -> 15 | AN107: =IF(גיליון3!AM107>0,D107/(AL107+1),0) -> 0 | AO107: =IF(גיליון3!AO107=0,0,IF(גיליון3!AO107=גיליון2!AN107,גיליון3!AO107,0)) -> 0 | AP107: =IF(גיליון3!AO107>0,IF(גיליון3!AO107=AO107,AL107+1,AL107),AL107) -> 15 | AR107: =IF(גיליון3!AQ107>0,D107/(AP107+1),0) -> 0 | AS107: =IF(גיליון3!AS107=0,0,IF(גיליון3!AS107=גיליון2!AR107,גיליון3!AS107,0)) -> 0 | AT107: =IF(גיליון3!AS107>0,IF(גיליון3!AS107=AS107,AP107+1,AP107),AP107) -> 15
A108: =A8 -> יחד | B108: 118368 | D108: 0 | F108: 0 | H108: =IF(גיליון3!G108>0,D108/(F108+1),0) -> 0 | I108: =IF(גיליון3!I108=0,0,IF(גיליון3!I108=גיליון2!H108,גיליון3!I108,0)) -> 0 | J108: =IF(גיליון3!I108>0,IF(גיליון3!I108=I108,F108+1,F108),F108) -> 0 | L108: =IF(גיליון3!K108>0,D108/(J108+1),0) -> 0 | M108: =IF(גיליון3!M108=0,0,IF(גיליון3!M108=גיליון2!L108,גיליון3!M108,0)) -> 0 | N108: =IF(גיליון3!M108>0,IF(גיליון3!M108=M108,J108+1,J108),J108) -> 0 | P108: =IF(גיליון3!O108>0,D108/(N108+1),0) -> 0 | Q108: =IF(גיליון3!Q108=0,0,IF(גיליון3!Q108=גיליון2!P108,גיליון3!Q108,0)) -> 0 | R108: =IF(גיליון3!Q108>0,IF(גיליון3!Q108=Q108,N108+1,N108),N108) -> 0 | T108: =IF(גיליון3!S108>0,D108/(R108+1),0) -> 0 | U108: =IF(גיליון3!U108=0,0,IF(גיליון3!U108=גיליון2!T108,גיליון3!U108,0)) -> 0 | V108: =IF(גיליון3!U108>0,IF(גיליון3!U108=U108,R108+1,R108),R108) -> 0 | X108: =IF(גיליון3!W108>0,D108/(V108+1),0) -> 0 | Y108: =IF(גיליון3!Y108=0,0,IF(גיליון3!Y108=גיליון2!X108,גיליון3!Y108,0)) -> 0 | Z108: =IF(גיליון3!Y108>0,IF(גיליון3!Y108=Y108,V108+1,V108),V108) -> 0 | AB108: =IF(גיליון3!AA108>0,D108/(Z108+1),0) -> 0 | AC108: =IF(גיליון3!AC108=0,0,IF(גיליון3!AC108=גיליון2!AB108,גיליון3!AC108,0)) -> 0 | AD108: =IF(גיליון3!AC108>0,IF(גיליון3!AC108=AC108,Z108+1,Z108),Z108) -> 0 | AF108: =IF(גיליון3!AE108>0,D108/(AD108+1),0) -> 0 | AG108: =IF(גיליון3!AG108=0,0,IF(גיליון3!AG108=גיליון2!AF108,גיליון3!AG108,0)) -> 0 | AH108: =IF(גיליון3!AG108>0,IF(גיליון3!AG108=AG108,AD108+1,AD108),AD108) -> 0 | AJ108: =IF(גיליון3!AI108>0,D108/(AH108+1),0) -> 0 | AK108: =IF(גיליון3!AK108=0,0,IF(גיליון3!AK108=גיליון2!AJ108,גיליון3!AK108,0)) -> 0 | AL108: =IF(גיליון3!AK108>0,IF(גיליון3!AK108=AK108,AH108+1,AH108),AH108) -> 0 | AN108: =IF(גיליון3!AM108>0,D108/(AL108+1),0) -> 0 | AO108: =IF(גיליון3!AO108=0,0,IF(גיליון3!AO108=גיליון2!AN108,גיליון3!AO108,0)) -> 0 | AP108: =IF(גיליון3!AO108>0,IF(גיליון3!AO108=AO108,AL108+1,AL108),AL108) -> 0 | AR108: =IF(גיליון3!AQ108>0,D108/(AP108+1),0) -> 0 | AS108: =IF(גיליון3!AS108=0,0,IF(גיליון3!AS108=גיליון2!AR108,גיליון3!AS108,0)) -> 0 | AT108: =IF(גיליון3!AS108>0,IF(גיליון3!AS108=AS108,AP108+1,AP108),AP108) -> 0
A109: =A9 -> יהדות התורה | B109: 205551 | D109: 205551 | F109: 6 | H109: =IF(גיליון3!G109>0,D109/(F109+1),0) -> 29364.42857 | I109: =IF(גיליון3!I109=0,0,IF(גיליון3!I109=גיליון2!H109,גיליון3!I109,0)) -> 0 | J109: =IF(גיליון3!I109>0,IF(גיליון3!I109=I109,F109+1,F109),F109) -> 6 | L109: =IF(גיליון3!K109>0,D109/(J109+1),0) -> 29364.42857 | M109: =IF(גיליון3!M109=0,0,IF(גיליון3!M109=גיליון2!L109,גיליון3!M109,0)) -> 0 | N109: =IF(גיליון3!M109>0,IF(גיליון3!M109=M109,J109+1,J109),J109) -> 6 | P109: =IF(גיליון3!O109>0,D109/(N109+1),0) -> 29364.42857 | Q109: =IF(גיליון3!Q109=0,0,IF(גיליון3!Q109=גיליון2!P109,גיליון3!Q109,0)) -> 0 | R109: =IF(גיליון3!Q109>0,IF(גיליון3!Q109=Q109,N109+1,N109),N109) -> 6 | T109: =IF(גיליון3!S109>0,D109/(R109+1),0) -> 29364.42857 | U109: =IF(גיליון3!U109=0,0,IF(גיליון3!U109=גיליון2!T109,גיליון3!U109,0)) -> 0 | V109: =IF(גיליון3!U109>0,IF(גיליון3!U109=U109,R109+1,R109),R109) -> 6 | X109: =IF(גיליון3!W109>0,D109/(V109+1),0) -> 29364.42857 | Y109: =IF(גיליון3!Y109=0,0,IF(גיליון3!Y109=גיליון2!X109,גיליון3!Y109,0)) -> 0 | Z109: =IF(גיליון3!Y109>0,IF(גיליון3!Y109=Y109,V109+1,V109),V109) -> 6 | AB109: =IF(גיליון3!AA109>0,D109/(Z109+1),0) -> 29364.42857 | AC109: =IF(גיליון3!AC109=0,0,IF(גיליון3!AC109=גיליון2!AB109,גיליון3!AC109,0)) -> 0 | AD109: =IF(גיליון3!AC109>0,IF(גיליון3!AC109=AC109,Z109+1,Z109),Z109) -> 6 | AF109: =IF(גיליון3!AE109>0,D109/(AD109+1),0) -> 0 | AG109: =IF(גיליון3!AG109=0,0,IF(גיליון3!AG109=גיליון2!AF109,גיליון3!AG109,0)) -> 0 | AH109: =IF(גיליון3!AG109>0,IF(גיליון3!AG109=AG109,AD109+1,AD109),AD109) -> 6 | AJ109: =IF(גיליון3!AI109>0,D109/(AH109+1),0) -> 0 | AK109: =IF(גיליון3!AK109=0,0,IF(גיליון3!AK109=גיליון2!AJ109,גיליון3!AK109,0)) -> 0 | AL109: =IF(גיליון3!AK109>0,IF(גיליון3!AK109=AK109,AH109+1,AH109),AH109) -> 6 | AN109: =IF(גיליון3!AM109>0,D109/(AL109+1),0) -> 0 | AO109: =IF(גיליון3!AO109=0,0,IF(גיליון3!AO109=גיליון2!AN109,גיליון3!AO109,0)) -> 0 | AP109: =IF(גיליון3!AO109>0,IF(גיליון3!AO109=AO109,AL109+1,AL109),AL109) -> 6 | AR109: =IF(גיליון3!AQ109>0,D109/(AP109+1),0) -> 0 | AS109: =IF(גיליון3!AS109=0,0,IF(גיליון3!AS109=גיליון2!AR109,גיליון3!AS109,0)) -> 0 | AT109: =IF(גיליון3!AS109>0,IF(גיליון3!AS109=AS109,AP109+1,AP109),AP109) -> 6
A110: =A10 -> שס | B110: 230735 | D110: 230735 | F110: 7 | H110: =IF(גיליון3!G110>0,D110/(F110+1),0) -> 28841.875 | I110: =IF(גיליון3!I110=0,0,IF(גיליון3!I110=גיליון2!H110,גיליון3!I110,0)) -> 0 | J110: =IF(גיליון3!I110>0,IF(גיליון3!I110=I110,F110+1,F110),F110) -> 7 | L110: =IF(גיליון3!K110>0,D110/(J110+1),0) -> 28841.875 | M110: =IF(גיליון3!M110=0,0,IF(גיליון3!M110=גיליון2!L110,גיליון3!M110,0)) -> 0 | N110: =IF(גיליון3!M110>0,IF(גיליון3!M110=M110,J110+1,J110),J110) -> 7 | P110: =IF(גיליון3!O110>0,D110/(N110+1),0) -> 28841.875 | Q110: =IF(גיליון3!Q110=0,0,IF(גיליון3!Q110=גיליון2!P110,גיליון3!Q110,0)) -> 0 | R110: =IF(גיליון3!Q110>0,IF(גיליון3!Q110=Q110,N110+1,N110),N110) -> 7 | T110: =IF(גיליון3!S110>0,D110/(R110+1),0) -> 28841.875 | U110: =IF(גיליון3!U110=0,0,IF(גיליון3!U110=גיליון2!T110,גיליון3!U110,0)) -> 0 | V110: =IF(גיליון3!U110>0,IF(גיליון3!U110=U110,R110+1,R110),R110) -> 7 | X110: =IF(גיליון3!W110>0,D110/(V110+1),0) -> 28841.875 | Y110: =IF(גיליון3!Y110=0,0,IF(גיליון3!Y110=גיליון2!X110,גיליון3!Y110,0)) -> 0 | Z110: =IF(גיליון3!Y110>0,IF(גיליון3!Y110=Y110,V110+1,V110),V110) -> 7 | AB110: =IF(גיליון3!AA110>0,D110/(Z110+1),0) -> 28841.875 | AC110: =IF(גיליון3!AC110=0,0,IF(גיליון3!AC110=גיליון2!AB110,גיליון3!AC110,0)) -> 0 | AD110: =IF(גיליון3!AC110>0,IF(גיליון3!AC110=AC110,Z110+1,Z110),Z110) -> 7 | AF110: =IF(גיליון3!AE110>0,D110/(AD110+1),0) -> 0 | AG110: =IF(גיליון3!AG110=0,0,IF(גיליון3!AG110=גיליון2!AF110,גיליון3!AG110,0)) -> 0 | AH110: =IF(גיליון3!AG110>0,IF(גיליון3!AG110=AG110,AD110+1,AD110),AD110) -> 7 | AJ110: =IF(גיליון3!AI110>0,D110/(AH110+1),0) -> 0 | AK110: =IF(גיליון3!AK110=0,0,IF(גיליון3!AK110=גיליון2!AJ110,גיליון3!AK110,0)) -> 0 | AL110: =IF(גיליון3!AK110>0,IF(גיליון3!AK110=AK110,AH110+1,AH110),AH110) -> 7 | AN110: =IF(גיליון3!AM110>0,D110/(AL110+1),0) -> 0 | AO110: =IF(גיליון3!AO110=0,0,IF(גיליון3!AO110=גיליון2!AN110,גיליון3!AO110,0)) -> 0 | AP110: =IF(גיליון3!AO110>0,IF(גיליון3!AO110=AO110,AL110+1,AL110),AL110) -> 7 | AR110: =IF(גיליון3!AQ110>0,D110/(AP110+1),0) -> 0 | AS110: =IF(גיליון3!AS110=0,0,IF(גיליון3!AS110=גיליון2!AR110,גיליון3!AS110,0)) -> 0 | AT110: =IF(גיליון3!AS110>0,IF(גיליון3!AS110=AS110,AP110+1,AP110),AP110) -> 7
A111: =A11 -> כחלון | B111: 294526 | D111: 294526 | F111: 9 | H111: =IF(גיליון3!G111>0,D111/(F111+1),0) -> 29452.6 | I111: =IF(גיליון3!I111=0,0,IF(גיליון3!I111=גיליון2!H111,גיליון3!I111,0)) -> 0 | J111: =IF(גיליון3!I111>0,IF(גיליון3!I111=I111,F111+1,F111),F111) -> 9 | L111: =IF(גיליון3!K111>0,D111/(J111+1),0) -> 29452.6 | M111: =IF(גיליון3!M111=0,0,IF(גיליון3!M111=גיליון2!L111,גיליון3!M111,0)) -> 0 | N111: =IF(גיליון3!M111>0,IF(גיליון3!M111=M111,J111+1,J111),J111) -> 9 | P111: =IF(גיליון3!O111>0,D111/(N111+1),0) -> 29452.6 | Q111: =IF(גיליון3!Q111=0,0,IF(גיליון3!Q111=גיליון2!P111,גיליון3!Q111,0)) -> 0 | R111: =IF(גיליון3!Q111>0,IF(גיליון3!Q111=Q111,N111+1,N111),N111) -> 9 | T111: =IF(גיליון3!S111>0,D111/(R111+1),0) -> 29452.6 | U111: =IF(גיליון3!U111=0,0,IF(גיליון3!U111=גיליון2!T111,גיליון3!U111,0)) -> 0 | V111: =IF(גיליון3!U111>0,IF(גיליון3!U111=U111,R111+1,R111),R111) -> 9 | X111: =IF(גיליון3!W111>0,D111/(V111+1),0) -> 29452.6 | Y111: =IF(גיליון3!Y111=0,0,IF(גיליון3!Y111=גיליון2!X111,גיליון3!Y111,0)) -> 0 | Z111: =IF(גיליון3!Y111>0,IF(גיליון3!Y111=Y111,V111+1,V111),V111) -> 9 | AB111: =IF(גיליון3!AA111>0,D111/(Z111+1),0) -> 29452.6 | AC111: =IF(גיליון3!AC111=0,0,IF(גיליון3!AC111=גיליון2!AB111,גיליון3!AC111,0)) -> 0 | AD111: =IF(גיליון3!AC111>0,IF(גיליון3!AC111=AC111,Z111+1,Z111),Z111) -> 9 | AF111: =IF(גיליון3!AE111>0,D111/(AD111+1),0) -> 0 | AG111: =IF(גיליון3!AG111=0,0,IF(גיליון3!AG111=גיליון2!AF111,גיליון3!AG111,0)) -> 0 | AH111: =IF(גיליון3!AG111>0,IF(גיליון3!AG111=AG111,AD111+1,AD111),AD111) -> 9 | AJ111: =IF(גיליון3!AI111>0,D111/(AH111+1),0) -> 0 | AK111: =IF(גיליון3!AK111=0,0,IF(גיליון3!AK111=גיליון2!AJ111,גיליון3!AK111,0)) -> 0 | AL111: =IF(גיליון3!AK111>0,IF(גיליון3!AK111=AK111,AH111+1,AH111),AH111) -> 9 | AN111: =IF(גיליון3!AM111>0,D111/(AL111+1),0) -> 0 | AO111: =IF(גיליון3!AO111=0,0,IF(גיליון3!AO111=גיליון2!AN111,גיליון3!AO111,0)) -> 0 | AP111: =IF(גיליון3!AO111>0,IF(גיליון3!AO111=AO111,AL111+1,AL111),AL111) -> 9 | AR111: =IF(גיליון3!AQ111>0,D111/(AP111+1),0) -> 0 | AS111: =IF(גיליון3!AS111=0,0,IF(גיליון3!AS111=גיליון2!AR111,גיליון3!AS111,0)) -> 0 | AT111: =IF(גיליון3!AS111>0,IF(גיליון3!AS111=AS111,AP111+1,AP111),AP111) -> 9
A112: =A12 -> ישראל ביתנו | B112: 205619 | D112: 205619 | F112: 6 | H112: =IF(גיליון3!G112>0,D112/(F112+1),0) -> 29374.14286 | I112: =IF(גיליון3!I112=0,0,IF(גיליון3!I112=גיליון2!H112,גיליון3!I112,0)) -> 0 | J112: =IF(גיליון3!I112>0,IF(גיליון3!I112=I112,F112+1,F112),F112) -> 6 | L112: =IF(גיליון3!K112>0,D112/(J112+1),0) -> 29374.14286 | M112: =IF(גיליון3!M112=0,0,IF(גיליון3!M112=גיליון2!L112,גיליון3!M112,0)) -> 0 | N112: =IF(גיליון3!M112>0,IF(גיליון3!M112=M112,J112+1,J112),J112) -> 6 | P112: =IF(גיליון3!O112>0,D112/(N112+1),0) -> 29374.14286 | Q112: =IF(גיליון3!Q112=0,0,IF(גיליון3!Q112=גיליון2!P112,גיליון3!Q112,0)) -> 0 | R112: =IF(גיליון3!Q112>0,IF(גיליון3!Q112=Q112,N112+1,N112),N112) -> 6 | T112: =IF(גיליון3!S112>0,D112/(R112+1),0) -> 29374.14286 | U112: =IF(גיליון3!U112=0,0,IF(גיליון3!U112=גיליון2!T112,גיליון3!U112,0)) -> 0 | V112: =IF(גיליון3!U112>0,IF(גיליון3!U112=U112,R112+1,R112),R112) -> 6 | X112: =IF(גיליון3!W112>0,D112/(V112+1),0) -> 29374.14286 | Y112: =IF(גיליון3!Y112=0,0,IF(גיליון3!Y112=גיליון2!X112,גיליון3!Y112,0)) -> 0 | Z112: =IF(גיליון3!Y112>0,IF(גיליון3!Y112=Y112,V112+1,V112),V112) -> 6 | AB112: =IF(גיליון3!AA112>0,D112/(Z112+1),0) -> 29374.14286 | AC112: =IF(גיליון3!AC112=0,0,IF(גיליון3!AC112=גיליון2!AB112,גיליון3!AC112,0)) -> 0 | AD112: =IF(גיליון3!AC112>0,IF(גיליון3!AC112=AC112,Z112+1,Z112),Z112) -> 6 | AF112: =IF(גיליון3!AE112>0,D112/(AD112+1),0) -> 0 | AG112: =IF(גיליון3!AG112=0,0,IF(גיליון3!AG112=גיליון2!AF112,גיליון3!AG112,0)) -> 0 | AH112: =IF(גיליון3!AG112>0,IF(גיליון3!AG112=AG112,AD112+1,AD112),AD112) -> 6 | AJ112: =IF(גיליון3!AI112>0,D112/(AH112+1),0) -> 0 | AK112: =IF(גיליון3!AK112=0,0,IF(גיליון3!AK112=גיליון2!AJ112,גיליון3!AK112,0)) -> 0 | AL112: =IF(גיליון3!AK112>0,IF(גיליון3!AK112=AK112,AH112+1,AH112),AH112) -> 6 | AN112: =IF(גיליון3!AM112>0,D112/(AL112+1),0) -> 0 | AO112: =IF(גיליון3!AO112=0,0,IF(גיליון3!AO112=גיליון2!AN112,גיליון3!AO112,0)) -> 0 | AP112: =IF(גיליון3!AO112>0,IF(גיליון3!AO112=AO112,AL112+1,AL112),AL112) -> 6 | AR112: =IF(גיליון3!AQ112>0,D112/(AP112+1),0) -> 0 | AS112: =IF(גיליון3!AS112=0,0,IF(גיליון3!AS112=גיליון2!AR112,גיליון3!AS112,0)) -> 0 | AT112: =IF(גיליון3!AS112>0,IF(גיליון3!AS112=AS112,AP112+1,AP112),AP112) -> 6
A113: =A13 -> עלה ירוק - הרשימה הליברלית | B113: 38624 | D113: 0 | F113: 0 | H113: =IF(גיליון3!G113>0,D113/(F113+1),0) -> 0 | I113: =IF(גיליון3!I113=0,0,IF(גיליון3!I113=גיליון2!H113,גיליון3!I113,0)) -> 0 | J113: =IF(גיליון3!I113>0,IF(גיליון3!I113=I113,F113+1,F113),F113) -> 0 | L113: =IF(גיליון3!K113>0,D113/(J113+1),0) -> 0 | M113: =IF(גיליון3!M113=0,0,IF(גיליון3!M113=גיליון2!L113,גיליון3!M113,0)) -> 0 | N113: =IF(גיליון3!M113>0,IF(גיליון3!M113=M113,J113+1,J113),J113) -> 0 | P113: =IF(גיליון3!O113>0,D113/(N113+1),0) -> 0 | Q113: =IF(גיליון3!Q113=0,0,IF(גיליון3!Q113=גיליון2!P113,גיליון3!Q113,0)) -> 0 | R113: =IF(גיליון3!Q113>0,IF(גיליון3!Q113=Q113,N113+1,N113),N113) -> 0 | T113: =IF(גיליון3!S113>0,D113/(R113+1),0) -> 0 | U113: =IF(גיליון3!U113=0,0,IF(גיליון3!U113=גיליון2!T113,גיליון3!U113,0)) -> 0 | V113: =IF(גיליון3!U113>0,IF(גיליון3!U113=U113,R113+1,R113),R113) -> 0 | X113: =IF(גיליון3!W113>0,D113/(V113+1),0) -> 0 | Y113: =IF(גיליון3!Y113=0,0,IF(גיליון3!Y113=גיליון2!X113,גיליון3!Y113,0)) -> 0 | Z113: =IF(גיליון3!Y113>0,IF(גיליון3!Y113=Y113,V113+1,V113),V113) -> 0 | AB113: =IF(גיליון3!AA113>0,D113/(Z113+1),0) -> 0 | AC113: =IF(גיליון3!AC113=0,0,IF(גיליון3!AC113=גיליון2!AB113,גיליון3!AC113,0)) -> 0 | AD113: =IF(גיליון3!AC113>0,IF(גיליון3!AC113=AC113,Z113+1,Z113),Z113) -> 0 | AF113: =IF(גיליון3!AE113>0,D113/(AD113+1),0) -> 0 | AG113: =IF(גיליון3!AG113=0,0,IF(גיליון3!AG113=גיליון2!AF113,גיליון3!AG113,0)) -> 0 | AH113: =IF(גיליון3!AG113>0,IF(גיליון3!AG113=AG113,AD113+1,AD113),AD113) -> 0 | AJ113: =IF(גיליון3!AI113>0,D113/(AH113+1),0) -> 0 | AK113: =IF(גיליון3!AK113=0,0,IF(גיליון3!AK113=גיליון2!AJ113,גיליון3!AK113,0)) -> 0 | AL113: =IF(גיליון3!AK113>0,IF(גיליון3!AK113=AK113,AH113+1,AH113),AH113) -> 0 | AN113: =IF(גיליון3!AM113>0,D113/(AL113+1),0) -> 0 | AO113: =IF(גיליון3!AO113=0,0,IF(גיליון3!AO113=גיליון2!AN113,גיליון3!AO113,0)) -> 0 | AP113: =IF(גיליון3!AO113>0,IF(גיליון3!AO113=AO113,AL113+1,AL113),AL113) -> 0 | AR113: =IF(גיליון3!AQ113>0,D113/(AP113+1),0) -> 0 | AS113: =IF(גיליון3!AS113=0,0,IF(גיליון3!AS113=גיליון2!AR113,גיליון3!AS113,0)) -> 0 | AT113: =IF(גיליון3!AS113>0,IF(גיליון3!AS113=AS113,AP113+1,AP113),AP113) -> 0
A114: =A14 ->  | B114: 2348 | D114: 0 | F114: 0 | H114: =IF(גיליון3!G114>0,D114/(F114+1),0) -> 0 | I114: =IF(גיליון3!I114=0,0,IF(גיליון3!I114=גיליון2!H114,גיליון3!I114,0)) -> 0 | J114: =IF(גיליון3!I114>0,IF(גיליון3!I114=I114,F114+1,F114),F114) -> 0 | L114: =IF(גיליון3!K114>0,D114/(J114+1),0) -> 0 | M114: =IF(גיליון3!M114=0,0,IF(גיליון3!M114=גיליון2!L114,גיליון3!M114,0)) -> 0 | N114: =IF(גיליון3!M114>0,IF(גיליון3!M114=M114,J114+1,J114),J114) -> 0 | P114: =IF(גיליון3!O114>0,D114/(N114+1),0) -> 0 | Q114: =IF(גיליון3!Q114=0,0,IF(גיליון3!Q114=גיליון2!P114,גיליון3!Q114,0)) -> 0 | R114: =IF(גיליון3!Q114>0,IF(גיליון3!Q114=Q114,N114+1,N114),N114) -> 0 | T114: =IF(גיליון3!S114>0,D114/(R114+1),0) -> 0 | U114: =IF(גיליון3!U114=0,0,IF(גיליון3!U114=גיליון2!T114,גיליון3!U114,0)) -> 0 | V114: =IF(גיליון3!U114>0,IF(גיליון3!U114=U114,R114+1,R114),R114) -> 0 | X114: =IF(גיליון3!W114>0,D114/(V114+1),0) -> 0 | Y114: =IF(גיליון3!Y114=0,0,IF(גיליון3!Y114=גיליון2!X114,גיליון3!Y114,0)) -> 0 | Z114: =IF(גיליון3!Y114>0,IF(גיליון3!Y114=Y114,V114+1,V114),V114) -> 0 | AB114: =IF(גיליון3!AA114>0,D114/(Z114+1),0) -> 0 | AC114: =IF(גיליון3!AC114=0,0,IF(גיליון3!AC114=גיליון2!AB114,גיליון3!AC114,0)) -> 0 | AD114: =IF(גיליון3!AC114>0,IF(גיליון3!AC114=AC114,Z114+1,Z114),Z114) -> 0 | AF114: =IF(גיליון3!AE114>0,D114/(AD114+1),0) -> 0 | AG114: =IF(גיליון3!AG114=0,0,IF(גיליון3!AG114=גיליון2!AF114,גיליון3!AG114,0)) -> 0 | AH114: =IF(גיליון3!AG114>0,IF(גיליון3!AG114=AG114,AD114+1,AD114),AD114) -> 0 | AJ114: =IF(גיליון3!AI114>0,D114/(AH114+1),0) -> 0 | AK114: =IF(גיליון3!AK114=0,0,IF(גיליון3!AK114=גיליון2!AJ114,גיליון3!AK114,0)) -> 0 | AL114: =IF(גיליון3!AK114>0,IF(גיליון3!AK114=AK114,AH114+1,AH114),AH114) -> 0 | AN114: =IF(גיליון3!AM114>0,D114/(AL114+1),0) -> 0 | AO114: =IF(גיליון3!AO114=0,0,IF(גיליון3!AO114=גיליון2!AN114,גיליון3!AO114,0)) -> 0 | AP114: =IF(גיליון3!AO114>0,IF(גיליון3!AO114=AO114,AL114+1,AL114),AL114) -> 0 | AR114: =IF(גיליון3!AQ114>0,D114/(AP114+1),0) -> 0 | AS114: =IF(גיליון3!AS114=0,0,IF(גיליון3!AS114=גיליון2!AR114,גיליון3!AS114,0)) -> 0 | AT114: =IF(גיליון3!AS114>0,IF(גיליון3!AS114=AS114,AP114+1,AP114),AP114) -> 0
A115: =A15 -> 0 | B115: 0 | D115: 0 | F115: 0 | H115: =IF(גיליון3!G115>0,D115/(F115+1),0) -> 0 | I115: =IF(גיליון3!I115=0,0,IF(גיליון3!I115=גיליון2!H115,גיליון3!I115,0)) -> 0 | J115: =IF(גיליון3!I115>0,IF(גיליון3!I115=I115,F115+1,F115),F115) -> 0 | L115: =IF(גיליון3!K115>0,D115/(J115+1),0) -> 0 | M115: =IF(גיליון3!M115=0,0,IF(גיליון3!M115=גיליון2!L115,גיליון3!M115,0)) -> 0 | N115: =IF(גיליון3!M115>0,IF(גיליון3!M115=M115,J115+1,J115),J115) -> 0 | P115: =IF(גיליון3!O115>0,D115/(N115+1),0) -> 0 | Q115: =IF(גיליון3!Q115=0,0,IF(גיליון3!Q115=גיליון2!P115,גיליון3!Q115,0)) -> 0 | R115: =IF(גיליון3!Q115>0,IF(גיליון3!Q115=Q115,N115+1,N115),N115) -> 0 | T115: =IF(גיליון3!S115>0,D115/(R115+1),0) -> 0 | U115: =IF(גיליון3!U115=0,0,IF(גיליון3!U115=גיליון2!T115,גיליון3!U115,0)) -> 0 | V115: =IF(גיליון3!U115>0,IF(גיליון3!U115=U115,R115+1,R115),R115) -> 0 | X115: =IF(גיליון3!W115>0,D115/(V115+1),0) -> 0 | Y115: =IF(גיליון3!Y115=0,0,IF(גיליון3!Y115=גיליון2!X115,גיליון3!Y115,0)) -> 0 | Z115: =IF(גיליון3!Y115>0,IF(גיליון3!Y115=Y115,V115+1,V115),V115) -> 0 | AB115: =IF(גיליון3!AA115>0,D115/(Z115+1),0) -> 0 | AC115: =IF(גיליון3!AC115=0,0,IF(גיליון3!AC115=גיליון2!AB115,גיליון3!AC115,0)) -> 0 | AD115: =IF(גיליון3!AC115>0,IF(גיליון3!AC115=AC115,Z115+1,Z115),Z115) -> 0 | AF115: =IF(גיליון3!AE115>0,D115/(AD115+1),0) -> 0 | AG115: =IF(גיליון3!AG115=0,0,IF(גיליון3!AG115=גיליון2!AF115,גיליון3!AG115,0)) -> 0 | AH115: =IF(גיליון3!AG115>0,IF(גיליון3!AG115=AG115,AD115+1,AD115),AD115) -> 0 | AJ115: =IF(גיליון3!AI115>0,D115/(AH115+1),0) -> 0 | AK115: =IF(גיליון3!AK115=0,0,IF(גיליון3!AK115=גיליון2!AJ115,גיליון3!AK115,0)) -> 0 | AL115: =IF(גיליון3!AK115>0,IF(גיליון3!AK115=AK115,AH115+1,AH115),AH115) -> 0 | AN115: =IF(גיליון3!AM115>0,D115/(AL115+1),0) -> 0 | AO115: =IF(גיליון3!AO115=0,0,IF(גיליון3!AO115=גיליון2!AN115,גיליון3!AO115,0)) -> 0 | AP115: =IF(גיליון3!AO115>0,IF(גיליון3!AO115=AO115,AL115+1,AL115),AL115) -> 0 | AR115: =IF(גיליון3!AQ115>0,D115/(AP115+1),0) -> 0 | AS115: =IF(גיליון3!AS115=0,0,IF(גיליון3!AS115=גיליון2!AR115,גיליון3!AS115,0)) -> 0 | AT115: =IF(גיליון3!AS115>0,IF(גיליון3!AS115=AS115,AP115+1,AP115),AP115) -> 0
A116: =A16 -> 0 | B116: 0 | D116: 0 | F116: 0 | H116: =IF(גיליון3!G116>0,D116/(F116+1),0) -> 0 | I116: =IF(גיליון3!I116=0,0,IF(גיליון3!I116=גיליון2!H116,גיליון3!I116,0)) -> 0 | J116: =IF(גיליון3!I116>0,IF(גיליון3!I116=I116,F116+1,F116),F116) -> 0 | L116: =IF(גיליון3!K116>0,D116/(J116+1),0) -> 0 | M116: =IF(גיליון3!M116=0,0,IF(גיליון3!M116=גיליון2!L116,גיליון3!M116,0)) -> 0 | N116: =IF(גיליון3!M116>0,IF(גיליון3!M116=M116,J116+1,J116),J116) -> 0 | P116: =IF(גיליון3!O116>0,D116/(N116+1),0) -> 0 | Q116: =IF(גיליון3!Q116=0,0,IF(גיליון3!Q116=גיליון2!P116,גיליון3!Q116,0)) -> 0 | R116: =IF(גיליון3!Q116>0,IF(גיליון3!Q116=Q116,N116+1,N116),N116) -> 0 | T116: =IF(גיליון3!S116>0,D116/(R116+1),0) -> 0 | U116: =IF(גיליון3!U116=0,0,IF(גיליון3!U116=גיליון2!T116,גיליון3!U116,0)) -> 0 | V116: =IF(גיליון3!U116>0,IF(גיליון3!U116=U116,R116+1,R116),R116) -> 0 | X116: =IF(גיליון3!W116>0,D116/(V116+1),0) -> 0 | Y116: =IF(גיליון3!Y116=0,0,IF(גיליון3!Y116=גיליון2!X116,גיליון3!Y116,0)) -> 0 | Z116: =IF(גיליון3!Y116>0,IF(גיליון3!Y116=Y116,V116+1,V116),V116) -> 0 | AB116: =IF(גיליון3!AA116>0,D116/(Z116+1),0) -> 0 | AC116: =IF(גיליון3!AC116=0,0,IF(גיליון3!AC116=גיליון2!AB116,גיליון3!AC116,0)) -> 0 | AD116: =IF(גיליון3!AC116>0,IF(גיליון3!AC116=AC116,Z116+1,Z116),Z116) -> 0 | AF116: =IF(גיליון3!AE116>0,D116/(AD116+1),0) -> 0 | AG116: =IF(גיליון3!AG116=0,0,IF(גיליון3!AG116=גיליון2!AF116,גיליון3!AG116,0)) -> 0 | AH116: =IF(גיליון3!AG116>0,IF(גיליון3!AG116=AG116,AD116+1,AD116),AD116) -> 0 | AJ116: =IF(גיליון3!AI116>0,D116/(AH116+1),0) -> 0 | AK116: =IF(גיליון3!AK116=0,0,IF(גיליון3!AK116=גיליון2!AJ116,גיליון3!AK116,0)) -> 0 | AL116: =IF(גיליון3!AK116>0,IF(גיליון3!AK116=AK116,AH116+1,AH116),AH116) -> 0 | AN116: =IF(גיליון3!AM116>0,D116/(AL116+1),0) -> 0 | AO116: =IF(גיליון3!AO116=0,0,IF(גיליון3!AO116=גיליון2!AN116,גיליון3!AO116,0)) -> 0 | AP116: =IF(גיליון3!AO116>0,IF(גיליון3!AO116=AO116,AL116+1,AL116),AL116) -> 0 | AR116: =IF(גיליון3!AQ116>0,D116/(AP116+1),0) -> 0 | AS116: =IF(גיליון3!AS116=0,0,IF(גיליון3!AS116=גיליון2!AR116,גיליון3!AS116,0)) -> 0 | AT116: =IF(גיליון3!AS116>0,IF(גיליון3!AS116=AS116,AP116+1,AP116),AP116) -> 0
A117: =A17 -> 0 | B117: 0 | D117: 0 | F117: 0 | H117: =IF(גיליון3!G117>0,D117/(F117+1),0) -> 0 | I117: =IF(גיליון3!I117=0,0,IF(גיליון3!I117=גיליון2!H117,גיליון3!I117,0)) -> 0 | J117: =IF(גיליון3!I117>0,IF(גיליון3!I117=I117,F117+1,F117),F117) -> 0 | L117: =IF(גיליון3!K117>0,D117/(J117+1),0) -> 0 | M117: =IF(גיליון3!M117=0,0,IF(גיליון3!M117=גיליון2!L117,גיליון3!M117,0)) -> 0 | N117: =IF(גיליון3!M117>0,IF(גיליון3!M117=M117,J117+1,J117),J117) -> 0 | P117: =IF(גיליון3!O117>0,D117/(N117+1),0) -> 0 | Q117: =IF(גיליון3!Q117=0,0,IF(גיליון3!Q117=גיליון2!P117,גיליון3!Q117,0)) -> 0 | R117: =IF(גיליון3!Q117>0,IF(גיליון3!Q117=Q117,N117+1,N117),N117) -> 0 | T117: =IF(גיליון3!S117>0,D117/(R117+1),0) -> 0 | U117: =IF(גיליון3!U117=0,0,IF(גיליון3!U117=גיליון2!T117,גיליון3!U117,0)) -> 0 | V117: =IF(גיליון3!U117>0,IF(גיליון3!U117=U117,R117+1,R117),R117) -> 0 | X117: =IF(גיליון3!W117>0,D117/(V117+1),0) -> 0 | Y117: =IF(גיליון3!Y117=0,0,IF(גיליון3!Y117=גיליון2!X117,גיליון3!Y117,0)) -> 0 | Z117: =IF(גיליון3!Y117>0,IF(גיליון3!Y117=Y117,V117+1,V117),V117) -> 0 | AB117: =IF(גיליון3!AA117>0,D117/(Z117+1),0) -> 0 | AC117: =IF(גיליון3!AC117=0,0,IF(גיליון3!AC117=גיליון2!AB117,גיליון3!AC117,0)) -> 0 | AD117: =IF(גיליון3!AC117>0,IF(גיליון3!AC117=AC117,Z117+1,Z117),Z117) -> 0 | AF117: =IF(גיליון3!AE117>0,D117/(AD117+1),0) -> 0 | AG117: =IF(גיליון3!AG117=0,0,IF(גיליון3!AG117=גיליון2!AF117,גיליון3!AG117,0)) -> 0 | AH117: =IF(גיליון3!AG117>0,IF(גיליון3!AG117=AG117,AD117+1,AD117),AD117) -> 0 | AJ117: =IF(גיליון3!AI117>0,D117/(AH117+1),0) -> 0 | AK117: =IF(גיליון3!AK117=0,0,IF(גיליון3!AK117=גיליון2!AJ117,גיליון3!AK117,0)) -> 0 | AL117: =IF(גיליון3!AK117>0,IF(גיליון3!AK117=AK117,AH117+1,AH117),AH117) -> 0 | AN117: =IF(גיליון3!AM117>0,D117/(AL117+1),0) -> 0 | AO117: =IF(גיליון3!AO117=0,0,IF(גיליון3!AO117=גיליון2!AN117,גיליון3!AO117,0)) -> 0 | AP117: =IF(גיליון3!AO117>0,IF(גיליון3!AO117=AO117,AL117+1,AL117),AL117) -> 0 | AR117: =IF(גיליון3!AQ117>0,D117/(AP117+1),0) -> 0 | AS117: =IF(גיליון3!AS117=0,0,IF(גיליון3!AS117=גיליון2!AR117,גיליון3!AS117,0)) -> 0 | AT117: =IF(גיליון3!AS117>0,IF(גיליון3!AS117=AS117,AP117+1,AP117),AP117) -> 0
A118: =A18 -> 0 | B118: 0 | D118: 0 | F118: 0 | H118: =IF(גיליון3!G118>0,D118/(F118+1),0) -> 0 | I118: =IF(גיליון3!I118=0,0,IF(גיליון3!I118=גיליון2!H118,גיליון3!I118,0)) -> 0 | J118: =IF(גיליון3!I118>0,IF(גיליון3!I118=I118,F118+1,F118),F118) -> 0 | L118: =IF(גיליון3!K118>0,D118/(J118+1),0) -> 0 | M118: =IF(גיליון3!M118=0,0,IF(גיליון3!M118=גיליון2!L118,גיליון3!M118,0)) -> 0 | N118: =IF(גיליון3!M118>0,IF(גיליון3!M118=M118,J118+1,J118),J118) -> 0 | P118: =IF(גיליון3!O118>0,D118/(N118+1),0) -> 0 | Q118: =IF(גיליון3!Q118=0,0,IF(גיליון3!Q118=גיליון2!P118,גיליון3!Q118,0)) -> 0 | R118: =IF(גיליון3!Q118>0,IF(גיליון3!Q118=Q118,N118+1,N118),N118) -> 0 | T118: =IF(גיליון3!S118>0,D118/(R118+1),0) -> 0 | U118: =IF(גיליון3!U118=0,0,IF(גיליון3!U118=גיליון2!T118,גיליון3!U118,0)) -> 0 | V118: =IF(גיליון3!U118>0,IF(גיליון3!U118=U118,R118+1,R118),R118) -> 0 | X118: =IF(גיליון3!W118>0,D118/(V118+1),0) -> 0 | Y118: =IF(גיליון3!Y118=0,0,IF(גיליון3!Y118=גיליון2!X118,גיליון3!Y118,0)) -> 0 | Z118: =IF(גיליון3!Y118>0,IF(גיליון3!Y118=Y118,V118+1,V118),V118) -> 0 | AB118: =IF(גיליון3!AA118>0,D118/(Z118+1),0) -> 0 | AC118: =IF(גיליון3!AC118=0,0,IF(גיליון3!AC118=גיליון2!AB118,גיליון3!AC118,0)) -> 0 | AD118: =IF(גיליון3!AC118>0,IF(גיליון3!AC118=AC118,Z118+1,Z118),Z118) -> 0 | AF118: =IF(גיליון3!AE118>0,D118/(AD118+1),0) -> 0 | AG118: =IF(גיליון3!AG118=0,0,IF(גיליון3!AG118=גיליון2!AF118,גיליון3!AG118,0)) -> 0 | AH118: =IF(גיליון3!AG118>0,IF(גיליון3!AG118=AG118,AD118+1,AD118),AD118) -> 0 | AJ118: =IF(גיליון3!AI118>0,D118/(AH118+1),0) -> 0 | AK118: =IF(גיליון3!AK118=0,0,IF(גיליון3!AK118=גיליון2!AJ118,גיליון3!AK118,0)) -> 0 | AL118: =IF(גיליון3!AK118>0,IF(גיליון3!AK118=AK118,AH118+1,AH118),AH118) -> 0 | AN118: =IF(גיליון3!AM118>0,D118/(AL118+1),0) -> 0 | AO118: =IF(גיליון3!AO118=0,0,IF(גיליון3!AO118=גיליון2!AN118,גיליון3!AO118,0)) -> 0 | AP118: =IF(גיליון3!AO118>0,IF(גיליון3!AO118=AO118,AL118+1,AL118),AL118) -> 0 | AR118: =IF(גיליון3!AQ118>0,D118/(AP118+1),0) -> 0 | AS118: =IF(גיליון3!AS118=0,0,IF(גיליון3!AS118=גיליון2!AR118,גיליון3!AS118,0)) -> 0 | AT118: =IF(גיליון3!AS118>0,IF(גיליון3!AS118=AS118,AP118+1,AP118),AP118) -> 0
A119: =A19 -> 0 | B119: 0 | D119: 0 | F119: 0 | H119: =IF(גיליון3!G119>0,D119/(F119+1),0) -> 0 | I119: =IF(גיליון3!I119=0,0,IF(גיליון3!I119=גיליון2!H119,גיליון3!I119,0)) -> 0 | J119: =IF(גיליון3!I119>0,IF(גיליון3!I119=I119,F119+1,F119),F119) -> 0 | L119: =IF(גיליון3!K119>0,D119/(J119+1),0) -> 0 | M119: =IF(גיליון3!M119=0,0,IF(גיליון3!M119=גיליון2!L119,גיליון3!M119,0)) -> 0 | N119: =IF(גיליון3!M119>0,IF(גיליון3!M119=M119,J119+1,J119),J119) -> 0 | P119: =IF(גיליון3!O119>0,D119/(N119+1),0) -> 0 | Q119: =IF(גיליון3!Q119=0,0,IF(גיליון3!Q119=גיליון2!P119,גיליון3!Q119,0)) -> 0 | R119: =IF(גיליון3!Q119>0,IF(גיליון3!Q119=Q119,N119+1,N119),N119) -> 0 | T119: =IF(גיליון3!S119>0,D119/(R119+1),0) -> 0 | U119: =IF(גיליון3!U119=0,0,IF(גיליון3!U119=גיליון2!T119,גיליון3!U119,0)) -> 0 | V119: =IF(גיליון3!U119>0,IF(גיליון3!U119=U119,R119+1,R119),R119) -> 0 | X119: =IF(גיליון3!W119>0,D119/(V119+1),0) -> 0 | Y119: =IF(גיליון3!Y119=0,0,IF(גיליון3!Y119=גיליון2!X119,גיליון3!Y119,0)) -> 0 | Z119: =IF(גיליון3!Y119>0,IF(גיליון3!Y119=Y119,V119+1,V119),V119) -> 0 | AB119: =IF(גיליון3!AA119>0,D119/(Z119+1),0) -> 0 | AC119: =IF(גיליון3!AC119=0,0,IF(גיליון3!AC119=גיליון2!AB119,גיליון3!AC119,0)) -> 0 | AD119: =IF(גיליון3!AC119>0,IF(גיליון3!AC119=AC119,Z119+1,Z119),Z119) -> 0 | AF119: =IF(גיליון3!AE119>0,D119/(AD119+1),0) -> 0 | AG119: =IF(גיליון3!AG119=0,0,IF(גיליון3!AG119=גיליון2!AF119,גיליון3!AG119,0)) -> 0 | AH119: =IF(גיליון3!AG119>0,IF(גיליון3!AG119=AG119,AD119+1,AD119),AD119) -> 0 | AJ119: =IF(גיליון3!AI119>0,D119/(AH119+1),0) -> 0 | AK119: =IF(גיליון3!AK119=0,0,IF(גיליון3!AK119=גיליון2!AJ119,גיליון3!AK119,0)) -> 0 | AL119: =IF(גיליון3!AK119>0,IF(גיליון3!AK119=AK119,AH119+1,AH119),AH119) -> 0 | AN119: =IF(גיליון3!AM119>0,D119/(AL119+1),0) -> 0 | AO119: =IF(גיליון3!AO119=0,0,IF(גיליון3!AO119=גיליון2!AN119,גיליון3!AO119,0)) -> 0 | AP119: =IF(גיליון3!AO119>0,IF(גיליון3!AO119=AO119,AL119+1,AL119),AL119) -> 0 | AR119: =IF(גיליון3!AQ119>0,D119/(AP119+1),0) -> 0 | AS119: =IF(גיליון3!AS119=0,0,IF(גיליון3!AS119=גיליון2!AR119,גיליון3!AS119,0)) -> 0 | AT119: =IF(גיליון3!AS119>0,IF(גיליון3!AS119=AS119,AP119+1,AP119),AP119) -> 0
A120: =A20 -> 0 | B120: 0 | D120: 0 | F120: 0 | H120: =IF(גיליון3!G120>0,D120/(F120+1),0) -> 0 | I120: =IF(גיליון3!I120=0,0,IF(גיליון3!I120=גיליון2!H120,גיליון3!I120,0)) -> 0 | J120: =IF(גיליון3!I120>0,IF(גיליון3!I120=I120,F120+1,F120),F120) -> 0 | L120: =IF(גיליון3!K120>0,D120/(J120+1),0) -> 0 | M120: =IF(גיליון3!M120=0,0,IF(גיליון3!M120=גיליון2!L120,גיליון3!M120,0)) -> 0 | N120: =IF(גיליון3!M120>0,IF(גיליון3!M120=M120,J120+1,J120),J120) -> 0 | P120: =IF(גיליון3!O120>0,D120/(N120+1),0) -> 0 | Q120: =IF(גיליון3!Q120=0,0,IF(גיליון3!Q120=גיליון2!P120,גיליון3!Q120,0)) -> 0 | R120: =IF(גיליון3!Q120>0,IF(גיליון3!Q120=Q120,N120+1,N120),N120) -> 0 | T120: =IF(גיליון3!S120>0,D120/(R120+1),0) -> 0 | U120: =IF(גיליון3!U120=0,0,IF(גיליון3!U120=גיליון2!T120,גיליון3!U120,0)) -> 0 | V120: =IF(גיליון3!U120>0,IF(גיליון3!U120=U120,R120+1,R120),R120) -> 0 | X120: =IF(גיליון3!W120>0,D120/(V120+1),0) -> 0 | Y120: =IF(גיליון3!Y120=0,0,IF(גיליון3!Y120=גיליון2!X120,גיליון3!Y120,0)) -> 0 | Z120: =IF(גיליון3!Y120>0,IF(גיליון3!Y120=Y120,V120+1,V120),V120) -> 0 | AB120: =IF(גיליון3!AA120>0,D120/(Z120+1),0) -> 0 | AC120: =IF(גיליון3!AC120=0,0,IF(גיליון3!AC120=גיליון2!AB120,גיליון3!AC120,0)) -> 0 | AD120: =IF(גיליון3!AC120>0,IF(גיליון3!AC120=AC120,Z120+1,Z120),Z120) -> 0 | AF120: =IF(גיליון3!AE120>0,D120/(AD120+1),0) -> 0 | AG120: =IF(גיליון3!AG120=0,0,IF(גיליון3!AG120=גיליון2!AF120,גיליון3!AG120,0)) -> 0 | AH120: =IF(גיליון3!AG120>0,IF(גיליון3!AG120=AG120,AD120+1,AD120),AD120) -> 0 | AJ120: =IF(גיליון3!AI120>0,D120/(AH120+1),0) -> 0 | AK120: =IF(גיליון3!AK120=0,0,IF(גיליון3!AK120=גיליון2!AJ120,גיליון3!AK120,0)) -> 0 | AL120: =IF(גיליון3!AK120>0,IF(גיליון3!AK120=AK120,AH120+1,AH120),AH120) -> 0 | AN120: =IF(גיליון3!AM120>0,D120/(AL120+1),0) -> 0 | AO120: =IF(גיליון3!AO120=0,0,IF(גיליון3!AO120=גיליון2!AN120,גיליון3!AO120,0)) -> 0 | AP120: =IF(גיליון3!AO120>0,IF(גיליון3!AO120=AO120,AL120+1,AL120),AL120) -> 0 | AR120: =IF(גיליון3!AQ120>0,D120/(AP120+1),0) -> 0 | AS120: =IF(גיליון3!AS120=0,0,IF(גיליון3!AS120=גיליון2!AR120,גיליון3!AS120,0)) -> 0 | AT120: =IF(גיליון3!AS120>0,IF(גיליון3!AS120=AS120,AP120+1,AP120),AP120) -> 0
A121: =A21 -> 0 | B121: 0 | D121: 0 | F121: 0 | H121: =IF(גיליון3!G121>0,D121/(F121+1),0) -> 0 | I121: =IF(גיליון3!I121=0,0,IF(גיליון3!I121=גיליון2!H121,גיליון3!I121,0)) -> 0 | J121: =IF(גיליון3!I121>0,IF(גיליון3!I121=I121,F121+1,F121),F121) -> 0 | L121: =IF(גיליון3!K121>0,D121/(J121+1),0) -> 0 | M121: =IF(גיליון3!M121=0,0,IF(גיליון3!M121=גיליון2!L121,גיליון3!M121,0)) -> 0 | N121: =IF(גיליון3!M121>0,IF(גיליון3!M121=M121,J121+1,J121),J121) -> 0 | P121: =IF(גיליון3!O121>0,D121/(N121+1),0) -> 0 | Q121: =IF(גיליון3!Q121=0,0,IF(גיליון3!Q121=גיליון2!P121,גיליון3!Q121,0)) -> 0 | R121: =IF(גיליון3!Q121>0,IF(גיליון3!Q121=Q121,N121+1,N121),N121) -> 0 | T121: =IF(גיליון3!S121>0,D121/(R121+1),0) -> 0 | U121: =IF(גיליון3!U121=0,0,IF(גיליון3!U121=גיליון2!T121,גיליון3!U121,0)) -> 0 | V121: =IF(גיליון3!U121>0,IF(גיליון3!U121=U121,R121+1,R121),R121) -> 0 | X121: =IF(גיליון3!W121>0,D121/(V121+1),0) -> 0 | Y121: =IF(גיליון3!Y121=0,0,IF(גיליון3!Y121=גיליון2!X121,גיליון3!Y121,0)) -> 0 | Z121: =IF(גיליון3!Y121>0,IF(גיליון3!Y121=Y121,V121+1,V121),V121) -> 0 | AB121: =IF(גיליון3!AA121>0,D121/(Z121+1),0) -> 0 | AC121: =IF(גיליון3!AC121=0,0,IF(גיליון3!AC121=גיליון2!AB121,גיליון3!AC121,0)) -> 0 | AD121: =IF(גיליון3!AC121>0,IF(גיליון3!AC121=AC121,Z121+1,Z121),Z121) -> 0 | AF121: =IF(גיליון3!AE121>0,D121/(AD121+1),0) -> 0 | AG121: =IF(גיליון3!AG121=0,0,IF(גיליון3!AG121=גיליון2!AF121,גיליון3!AG121,0)) -> 0 | AH121: =IF(גיליון3!AG121>0,IF(גיליון3!AG121=AG121,AD121+1,AD121),AD121) -> 0 | AJ121: =IF(גיליון3!AI121>0,D121/(AH121+1),0) -> 0 | AK121: =IF(גיליון3!AK121=0,0,IF(גיליון3!AK121=גיליון2!AJ121,גיליון3!AK121,0)) -> 0 | AL121: =IF(גיליון3!AK121>0,IF(גיליון3!AK121=AK121,AH121+1,AH121),AH121) -> 0 | AN121: =IF(גיליון3!AM121>0,D121/(AL121+1),0) -> 0 | AO121: =IF(גיליון3!AO121=0,0,IF(גיליון3!AO121=גיליון2!AN121,גיליון3!AO121,0)) -> 0 | AP121: =IF(גיליון3!AO121>0,IF(גיליון3!AO121=AO121,AL121+1,AL121),AL121) -> 0 | AR121: =IF(גיליון3!AQ121>0,D121/(AP121+1),0) -> 0 | AS121: =IF(גיליון3!AS121=0,0,IF(גיליון3!AS121=גיליון2!AR121,גיליון3!AS121,0)) -> 0 | AT121: =IF(גיליון3!AS121>0,IF(גיליון3!AS121=AS121,AP121+1,AP121),AP121) -> 0
A122: =A22 -> 0 | B122: 0 | D122: 0 | F122: 0 | H122: =IF(גיליון3!G122>0,D122/(F122+1),0) -> 0 | I122: =IF(גיליון3!I122=0,0,IF(גיליון3!I122=גיליון2!H122,גיליון3!I122,0)) -> 0 | J122: =IF(גיליון3!I122>0,IF(גיליון3!I122=I122,F122+1,F122),F122) -> 0 | L122: =IF(גיליון3!K122>0,D122/(J122+1),0) -> 0 | M122: =IF(גיליון3!M122=0,0,IF(גיליון3!M122=גיליון2!L122,גיליון3!M122,0)) -> 0 | N122: =IF(גיליון3!M122>0,IF(גיליון3!M122=M122,J122+1,J122),J122) -> 0 | P122: =IF(גיליון3!O122>0,D122/(N122+1),0) -> 0 | Q122: =IF(גיליון3!Q122=0,0,IF(גיליון3!Q122=גיליון2!P122,גיליון3!Q122,0)) -> 0 | R122: =IF(גיליון3!Q122>0,IF(גיליון3!Q122=Q122,N122+1,N122),N122) -> 0 | T122: =IF(גיליון3!S122>0,D122/(R122+1),0) -> 0 | U122: =IF(גיליון3!U122=0,0,IF(גיליון3!U122=גיליון2!T122,גיליון3!U122,0)) -> 0 | V122: =IF(גיליון3!U122>0,IF(גיליון3!U122=U122,R122+1,R122),R122) -> 0 | X122: =IF(גיליון3!W122>0,D122/(V122+1),0) -> 0 | Y122: =IF(גיליון3!Y122=0,0,IF(גיליון3!Y122=גיליון2!X122,גיליון3!Y122,0)) -> 0 | Z122: =IF(גיליון3!Y122>0,IF(גיליון3!Y122=Y122,V122+1,V122),V122) -> 0 | AB122: =IF(גיליון3!AA122>0,D122/(Z122+1),0) -> 0 | AC122: =IF(גיליון3!AC122=0,0,IF(גיליון3!AC122=גיליון2!AB122,גיליון3!AC122,0)) -> 0 | AD122: =IF(גיליון3!AC122>0,IF(גיליון3!AC122=AC122,Z122+1,Z122),Z122) -> 0 | AF122: =IF(גיליון3!AE122>0,D122/(AD122+1),0) -> 0 | AG122: =IF(גיליון3!AG122=0,0,IF(גיליון3!AG122=גיליון2!AF122,גיליון3!AG122,0)) -> 0 | AH122: =IF(גיליון3!AG122>0,IF(גיליון3!AG122=AG122,AD122+1,AD122),AD122) -> 0 | AJ122: =IF(גיליון3!AI122>0,D122/(AH122+1),0) -> 0 | AK122: =IF(גיליון3!AK122=0,0,IF(גיליון3!AK122=גיליון2!AJ122,גיליון3!AK122,0)) -> 0 | AL122: =IF(גיליון3!AK122>0,IF(גיליון3!AK122=AK122,AH122+1,AH122),AH122) -> 0 | AN122: =IF(גיליון3!AM122>0,D122/(AL122+1),0) -> 0 | AO122: =IF(גיליון3!AO122=0,0,IF(גיליון3!AO122=גיליון2!AN122,גיליון3!AO122,0)) -> 0 | AP122: =IF(גיליון3!AO122>0,IF(גיליון3!AO122=AO122,AL122+1,AL122),AL122) -> 0 | AR122: =IF(גיליון3!AQ122>0,D122/(AP122+1),0) -> 0 | AS122: =IF(גיליון3!AS122=0,0,IF(גיליון3!AS122=גיליון2!AR122,גיליון3!AS122,0)) -> 0 | AT122: =IF(גיליון3!AS122>0,IF(גיליון3!AS122=AS122,AP122+1,AP122),AP122) -> 0
A123: =A23 -> 0 | B123: 0 | D123: 0 | F123: 0 | H123: =IF(גיליון3!G123>0,D123/(F123+1),0) -> 0 | I123: =IF(גיליון3!I123=0,0,IF(גיליון3!I123=גיליון2!H123,גיליון3!I123,0)) -> 0 | J123: =IF(גיליון3!I123>0,IF(גיליון3!I123=I123,F123+1,F123),F123) -> 0 | L123: =IF(גיליון3!K123>0,D123/(J123+1),0) -> 0 | M123: =IF(גיליון3!M123=0,0,IF(גיליון3!M123=גיליון2!L123,גיליון3!M123,0)) -> 0 | N123: =IF(גיליון3!M123>0,IF(גיליון3!M123=M123,J123+1,J123),J123) -> 0 | P123: =IF(גיליון3!O123>0,D123/(N123+1),0) -> 0 | Q123: =IF(גיליון3!Q123=0,0,IF(גיליון3!Q123=גיליון2!P123,גיליון3!Q123,0)) -> 0 | R123: =IF(גיליון3!Q123>0,IF(גיליון3!Q123=Q123,N123+1,N123),N123) -> 0 | T123: =IF(גיליון3!S123>0,D123/(R123+1),0) -> 0 | U123: =IF(גיליון3!U123=0,0,IF(גיליון3!U123=גיליון2!T123,גיליון3!U123,0)) -> 0 | V123: =IF(גיליון3!U123>0,IF(גיליון3!U123=U123,R123+1,R123),R123) -> 0 | X123: =IF(גיליון3!W123>0,D123/(V123+1),0) -> 0 | Y123: =IF(גיליון3!Y123=0,0,IF(גיליון3!Y123=גיליון2!X123,גיליון3!Y123,0)) -> 0 | Z123: =IF(גיליון3!Y123>0,IF(גיליון3!Y123=Y123,V123+1,V123),V123) -> 0 | AB123: =IF(גיליון3!AA123>0,D123/(Z123+1),0) -> 0 | AC123: =IF(גיליון3!AC123=0,0,IF(גיליון3!AC123=גיליון2!AB123,גיליון3!AC123,0)) -> 0 | AD123: =IF(גיליון3!AC123>0,IF(גיליון3!AC123=AC123,Z123+1,Z123),Z123) -> 0 | AF123: =IF(גיליון3!AE123>0,D123/(AD123+1),0) -> 0 | AG123: =IF(גיליון3!AG123=0,0,IF(גיליון3!AG123=גיליון2!AF123,גיליון3!AG123,0)) -> 0 | AH123: =IF(גיליון3!AG123>0,IF(גיליון3!AG123=AG123,AD123+1,AD123),AD123) -> 0 | AJ123: =IF(גיליון3!AI123>0,D123/(AH123+1),0) -> 0 | AK123: =IF(גיליון3!AK123=0,0,IF(גיליון3!AK123=גיליון2!AJ123,גיליון3!AK123,0)) -> 0 | AL123: =IF(גיליון3!AK123>0,IF(גיליון3!AK123=AK123,AH123+1,AH123),AH123) -> 0 | AN123: =IF(גיליון3!AM123>0,D123/(AL123+1),0) -> 0 | AO123: =IF(גיליון3!AO123=0,0,IF(גיליון3!AO123=גיליון2!AN123,גיליון3!AO123,0)) -> 0 | AP123: =IF(גיליון3!AO123>0,IF(גיליון3!AO123=AO123,AL123+1,AL123),AL123) -> 0 | AR123: =IF(גיליון3!AQ123>0,D123/(AP123+1),0) -> 0 | AS123: =IF(גיליון3!AS123=0,0,IF(גיליון3!AS123=גיליון2!AR123,גיליון3!AS123,0)) -> 0 | AT123: =IF(גיליון3!AS123>0,IF(גיליון3!AS123=AS123,AP123+1,AP123),AP123) -> 0
A124: =A24 -> 0 | B124: 0 | D124: 0 | F124: 0 | H124: =IF(גיליון3!G124>0,D124/(F124+1),0) -> 0 | I124: =IF(גיליון3!I124=0,0,IF(גיליון3!I124=גיליון2!H124,גיליון3!I124,0)) -> 0 | J124: =IF(גיליון3!I124>0,IF(גיליון3!I124=I124,F124+1,F124),F124) -> 0 | L124: =IF(גיליון3!K124>0,D124/(J124+1),0) -> 0 | M124: =IF(גיליון3!M124=0,0,IF(גיליון3!M124=גיליון2!L124,גיליון3!M124,0)) -> 0 | N124: =IF(גיליון3!M124>0,IF(גיליון3!M124=M124,J124+1,J124),J124) -> 0 | P124: =IF(גיליון3!O124>0,D124/(N124+1),0) -> 0 | Q124: =IF(גיליון3!Q124=0,0,IF(גיליון3!Q124=גיליון2!P124,גיליון3!Q124,0)) -> 0 | R124: =IF(גיליון3!Q124>0,IF(גיליון3!Q124=Q124,N124+1,N124),N124) -> 0 | T124: =IF(גיליון3!S124>0,D124/(R124+1),0) -> 0 | U124: =IF(גיליון3!U124=0,0,IF(גיליון3!U124=גיליון2!T124,גיליון3!U124,0)) -> 0 | V124: =IF(גיליון3!U124>0,IF(גיליון3!U124=U124,R124+1,R124),R124) -> 0 | X124: =IF(גיליון3!W124>0,D124/(V124+1),0) -> 0 | Y124: =IF(גיליון3!Y124=0,0,IF(גיליון3!Y124=גיליון2!X124,גיליון3!Y124,0)) -> 0 | Z124: =IF(גיליון3!Y124>0,IF(גיליון3!Y124=Y124,V124+1,V124),V124) -> 0 | AB124: =IF(גיליון3!AA124>0,D124/(Z124+1),0) -> 0 | AC124: =IF(גיליון3!AC124=0,0,IF(גיליון3!AC124=גיליון2!AB124,גיליון3!AC124,0)) -> 0 | AD124: =IF(גיליון3!AC124>0,IF(גיליון3!AC124=AC124,Z124+1,Z124),Z124) -> 0 | AF124: =IF(גיליון3!AE124>0,D124/(AD124+1),0) -> 0 | AG124: =IF(גיליון3!AG124=0,0,IF(גיליון3!AG124=גיליון2!AF124,גיליון3!AG124,0)) -> 0 | AH124: =IF(גיליון3!AG124>0,IF(גיליון3!AG124=AG124,AD124+1,AD124),AD124) -> 0 | AJ124: =IF(גיליון3!AI124>0,D124/(AH124+1),0) -> 0 | AK124: =IF(גיליון3!AK124=0,0,IF(גיליון3!AK124=גיליון2!AJ124,גיליון3!AK124,0)) -> 0 | AL124: =IF(גיליון3!AK124>0,IF(גיליון3!AK124=AK124,AH124+1,AH124),AH124) -> 0 | AN124: =IF(גיליון3!AM124>0,D124/(AL124+1),0) -> 0 | AO124: =IF(גיליון3!AO124=0,0,IF(גיליון3!AO124=גיליון2!AN124,גיליון3!AO124,0)) -> 0 | AP124: =IF(גיליון3!AO124>0,IF(גיליון3!AO124=AO124,AL124+1,AL124),AL124) -> 0 | AR124: =IF(גיליון3!AQ124>0,D124/(AP124+1),0) -> 0 | AS124: =IF(גיליון3!AS124=0,0,IF(גיליון3!AS124=גיליון2!AR124,גיליון3!AS124,0)) -> 0 | AT124: =IF(גיליון3!AS124>0,IF(גיליון3!AS124=AS124,AP124+1,AP124),AP124) -> 0
A125: =A25 -> 0 | B125: 0 | D125: 0 | F125: 0 | H125: =IF(גיליון3!G125>0,D125/(F125+1),0) -> 0 | I125: =IF(גיליון3!I125=0,0,IF(גיליון3!I125=גיליון2!H125,גיליון3!I125,0)) -> 0 | J125: =IF(גיליון3!I125>0,IF(גיליון3!I125=I125,F125+1,F125),F125) -> 0 | L125: =IF(גיליון3!K125>0,D125/(J125+1),0) -> 0 | M125: =IF(גיליון3!M125=0,0,IF(גיליון3!M125=גיליון2!L125,גיליון3!M125,0)) -> 0 | N125: =IF(גיליון3!M125>0,IF(גיליון3!M125=M125,J125+1,J125),J125) -> 0 | P125: =IF(גיליון3!O125>0,D125/(N125+1),0) -> 0 | Q125: =IF(גיליון3!Q125=0,0,IF(גיליון3!Q125=גיליון2!P125,גיליון3!Q125,0)) -> 0 | R125: =IF(גיליון3!Q125>0,IF(גיליון3!Q125=Q125,N125+1,N125),N125) -> 0 | T125: =IF(גיליון3!S125>0,D125/(R125+1),0) -> 0 | U125: =IF(גיליון3!U125=0,0,IF(גיליון3!U125=גיליון2!T125,גיליון3!U125,0)) -> 0 | V125: =IF(גיליון3!U125>0,IF(גיליון3!U125=U125,R125+1,R125),R125) -> 0 | X125: =IF(גיליון3!W125>0,D125/(V125+1),0) -> 0 | Y125: =IF(גיליון3!Y125=0,0,IF(גיליון3!Y125=גיליון2!X125,גיליון3!Y125,0)) -> 0 | Z125: =IF(גיליון3!Y125>0,IF(גיליון3!Y125=Y125,V125+1,V125),V125) -> 0 | AB125: =IF(גיליון3!AA125>0,D125/(Z125+1),0) -> 0 | AC125: =IF(גיליון3!AC125=0,0,IF(גיליון3!AC125=גיליון2!AB125,גיליון3!AC125,0)) -> 0 | AD125: =IF(גיליון3!AC125>0,IF(גיליון3!AC125=AC125,Z125+1,Z125),Z125) -> 0 | AF125: =IF(גיליון3!AE125>0,D125/(AD125+1),0) -> 0 | AG125: =IF(גיליון3!AG125=0,0,IF(גיליון3!AG125=גיליון2!AF125,גיליון3!AG125,0)) -> 0 | AH125: =IF(גיליון3!AG125>0,IF(גיליון3!AG125=AG125,AD125+1,AD125),AD125) -> 0 | AJ125: =IF(גיליון3!AI125>0,D125/(AH125+1),0) -> 0 | AK125: =IF(גיליון3!AK125=0,0,IF(גיליון3!AK125=גיליון2!AJ125,גיליון3!AK125,0)) -> 0 | AL125: =IF(גיליון3!AK125>0,IF(גיליון3!AK125=AK125,AH125+1,AH125),AH125) -> 0 | AN125: =IF(גיליון3!AM125>0,D125/(AL125+1),0) -> 0 | AO125: =IF(גיליון3!AO125=0,0,IF(גיליון3!AO125=גיליון2!AN125,גיליון3!AO125,0)) -> 0 | AP125: =IF(גיליון3!AO125>0,IF(גיליון3!AO125=AO125,AL125+1,AL125),AL125) -> 0 | AR125: =IF(גיליון3!AQ125>0,D125/(AP125+1),0) -> 0 | AS125: =IF(גיליון3!AS125=0,0,IF(גיליון3!AS125=גיליון2!AR125,גיליון3!AS125,0)) -> 0 | AT125: =IF(גיליון3!AS125>0,IF(גיליון3!AS125=AS125,AP125+1,AP125),AP125) -> 0
A126: =A26 -> 0 | B126: 0 | D126: 0 | F126: 0 | H126: =IF(גיליון3!G126>0,D126/(F126+1),0) -> 0 | I126: =IF(גיליון3!I126=0,0,IF(גיליון3!I126=גיליון2!H126,גיליון3!I126,0)) -> 0 | J126: =IF(גיליון3!I126>0,IF(גיליון3!I126=I126,F126+1,F126),F126) -> 0 | L126: =IF(גיליון3!K126>0,D126/(J126+1),0) -> 0 | M126: =IF(גיליון3!M126=0,0,IF(גיליון3!M126=גיליון2!L126,גיליון3!M126,0)) -> 0 | N126: =IF(גיליון3!M126>0,IF(גיליון3!M126=M126,J126+1,J126),J126) -> 0 | P126: =IF(גיליון3!O126>0,D126/(N126+1),0) -> 0 | Q126: =IF(גיליון3!Q126=0,0,IF(גיליון3!Q126=גיליון2!P126,גיליון3!Q126,0)) -> 0 | R126: =IF(גיליון3!Q126>0,IF(גיליון3!Q126=Q126,N126+1,N126),N126) -> 0 | T126: =IF(גיליון3!S126>0,D126/(R126+1),0) -> 0 | U126: =IF(גיליון3!U126=0,0,IF(גיליון3!U126=גיליון2!T126,גיליון3!U126,0)) -> 0 | V126: =IF(גיליון3!U126>0,IF(גיליון3!U126=U126,R126+1,R126),R126) -> 0 | X126: =IF(גיליון3!W126>0,D126/(V126+1),0) -> 0 | Y126: =IF(גיליון3!Y126=0,0,IF(גיליון3!Y126=גיליון2!X126,גיליון3!Y126,0)) -> 0 | Z126: =IF(גיליון3!Y126>0,IF(גיליון3!Y126=Y126,V126+1,V126),V126) -> 0 | AB126: =IF(גיליון3!AA126>0,D126/(Z126+1),0) -> 0 | AC126: =IF(גיליון3!AC126=0,0,IF(גיליון3!AC126=גיליון2!AB126,גיליון3!AC126,0)) -> 0 | AD126: =IF(גיליון3!AC126>0,IF(גיליון3!AC126=AC126,Z126+1,Z126),Z126) -> 0 | AF126: =IF(גיליון3!AE126>0,D126/(AD126+1),0) -> 0 | AG126: =IF(גיליון3!AG126=0,0,IF(גיליון3!AG126=גיליון2!AF126,גיליון3!AG126,0)) -> 0 | AH126: =IF(גיליון3!AG126>0,IF(גיליון3!AG126=AG126,AD126+1,AD126),AD126) -> 0 | AJ126: =IF(גיליון3!AI126>0,D126/(AH126+1),0) -> 0 | AK126: =IF(גיליון3!AK126=0,0,IF(גיליון3!AK126=גיליון2!AJ126,גיליון3!AK126,0)) -> 0 | AL126: =IF(גיליון3!AK126>0,IF(גיליון3!AK126=AK126,AH126+1,AH126),AH126) -> 0 | AN126: =IF(גיליון3!AM126>0,D126/(AL126+1),0) -> 0 | AO126: =IF(גיליון3!AO126=0,0,IF(גיליון3!AO126=גיליון2!AN126,גיליון3!AO126,0)) -> 0 | AP126: =IF(גיליון3!AO126>0,IF(גיליון3!AO126=AO126,AL126+1,AL126),AL126) -> 0 | AR126: =IF(גיליון3!AQ126>0,D126/(AP126+1),0) -> 0 | AS126: =IF(גיליון3!AS126=0,0,IF(גיליון3!AS126=גיליון2!AR126,גיליון3!AS126,0)) -> 0 | AT126: =IF(גיליון3!AS126>0,IF(גיליון3!AS126=AS126,AP126+1,AP126),AP126) -> 0
A127: =A27 -> 0 | B127: 0 | D127: 0 | F127: 0 | H127: =IF(גיליון3!G127>0,D127/(F127+1),0) -> 0 | I127: =IF(גיליון3!I127=0,0,IF(גיליון3!I127=גיליון2!H127,גיליון3!I127,0)) -> 0 | J127: =IF(גיליון3!I127>0,IF(גיליון3!I127=I127,F127+1,F127),F127) -> 0 | L127: =IF(גיליון3!K127>0,D127/(J127+1),0) -> 0 | M127: =IF(גיליון3!M127=0,0,IF(גיליון3!M127=גיליון2!L127,גיליון3!M127,0)) -> 0 | N127: =IF(גיליון3!M127>0,IF(גיליון3!M127=M127,J127+1,J127),J127) -> 0 | P127: =IF(גיליון3!O127>0,D127/(N127+1),0) -> 0 | Q127: =IF(גיליון3!Q127=0,0,IF(גיליון3!Q127=גיליון2!P127,גיליון3!Q127,0)) -> 0 | R127: =IF(גיליון3!Q127>0,IF(גיליון3!Q127=Q127,N127+1,N127),N127) -> 0 | T127: =IF(גיליון3!S127>0,D127/(R127+1),0) -> 0 | U127: =IF(גיליון3!U127=0,0,IF(גיליון3!U127=גיליון2!T127,גיליון3!U127,0)) -> 0 | V127: =IF(גיליון3!U127>0,IF(גיליון3!U127=U127,R127+1,R127),R127) -> 0 | X127: =IF(גיליון3!W127>0,D127/(V127+1),0) -> 0 | Y127: =IF(גיליון3!Y127=0,0,IF(גיליון3!Y127=גיליון2!X127,גיליון3!Y127,0)) -> 0 | Z127: =IF(גיליון3!Y127>0,IF(גיליון3!Y127=Y127,V127+1,V127),V127) -> 0 | AB127: =IF(גיליון3!AA127>0,D127/(Z127+1),0) -> 0 | AC127: =IF(גיליון3!AC127=0,0,IF(גיליון3!AC127=גיליון2!AB127,גיליון3!AC127,0)) -> 0 | AD127: =IF(גיליון3!AC127>0,IF(גיליון3!AC127=AC127,Z127+1,Z127),Z127) -> 0 | AF127: =IF(גיליון3!AE127>0,D127/(AD127+1),0) -> 0 | AG127: =IF(גיליון3!AG127=0,0,IF(גיליון3!AG127=גיליון2!AF127,גיליון3!AG127,0)) -> 0 | AH127: =IF(גיליון3!AG127>0,IF(גיליון3!AG127=AG127,AD127+1,AD127),AD127) -> 0 | AJ127: =IF(גיליון3!AI127>0,D127/(AH127+1),0) -> 0 | AK127: =IF(גיליון3!AK127=0,0,IF(גיליון3!AK127=גיליון2!AJ127,גיליון3!AK127,0)) -> 0 | AL127: =IF(גיליון3!AK127>0,IF(גיליון3!AK127=AK127,AH127+1,AH127),AH127) -> 0 | AN127: =IF(גיליון3!AM127>0,D127/(AL127+1),0) -> 0 | AO127: =IF(גיליון3!AO127=0,0,IF(גיליון3!AO127=גיליון2!AN127,גיליון3!AO127,0)) -> 0 | AP127: =IF(גיליון3!AO127>0,IF(גיליון3!AO127=AO127,AL127+1,AL127),AL127) -> 0 | AR127: =IF(גיליון3!AQ127>0,D127/(AP127+1),0) -> 0 | AS127: =IF(גיליון3!AS127=0,0,IF(גיליון3!AS127=גיליון2!AR127,גיליון3!AS127,0)) -> 0 | AT127: =IF(גיליון3!AS127>0,IF(גיליון3!AS127=AS127,AP127+1,AP127),AP127) -> 0
A128: =A28 -> כולנו חברים נ נח | B128: 0 | D128: 0 | F128: 0 | H128: =IF(גיליון3!G128>0,D128/(F128+1),0) -> 0 | I128: =IF(גיליון3!I128=0,0,IF(גיליון3!I128=גיליון2!H128,גיליון3!I128,0)) -> 0 | J128: =IF(גיליון3!I128>0,IF(גיליון3!I128=I128,F128+1,F128),F128) -> 0 | L128: =IF(גיליון3!K128>0,D128/(J128+1),0) -> 0 | M128: =IF(גיליון3!M128=0,0,IF(גיליון3!M128=גיליון2!L128,גיליון3!M128,0)) -> 0 | N128: =IF(גיליון3!M128>0,IF(גיליון3!M128=M128,J128+1,J128),J128) -> 0 | P128: =IF(גיליון3!O128>0,D128/(N128+1),0) -> 0 | Q128: =IF(גיליון3!Q128=0,0,IF(גיליון3!Q128=גיליון2!P128,גיליון3!Q128,0)) -> 0 | R128: =IF(גיליון3!Q128>0,IF(גיליון3!Q128=Q128,N128+1,N128),N128) -> 0 | T128: =IF(גיליון3!S128>0,D128/(R128+1),0) -> 0 | U128: =IF(גיליון3!U128=0,0,IF(גיליון3!U128=גיליון2!T128,גיליון3!U128,0)) -> 0 | V128: =IF(גיליון3!U128>0,IF(גיליון3!U128=U128,R128+1,R128),R128) -> 0 | X128: =IF(גיליון3!W128>0,D128/(V128+1),0) -> 0 | Y128: =IF(גיליון3!Y128=0,0,IF(גיליון3!Y128=גיליון2!X128,גיליון3!Y128,0)) -> 0 | Z128: =IF(גיליון3!Y128>0,IF(גיליון3!Y128=Y128,V128+1,V128),V128) -> 0 | AB128: =IF(גיליון3!AA128>0,D128/(Z128+1),0) -> 0 | AC128: =IF(גיליון3!AC128=0,0,IF(גיליון3!AC128=גיליון2!AB128,גיליון3!AC128,0)) -> 0 | AD128: =IF(גיליון3!AC128>0,IF(גיליון3!AC128=AC128,Z128+1,Z128),Z128) -> 0 | AF128: =IF(גיליון3!AE128>0,D128/(AD128+1),0) -> 0 | AG128: =IF(גיליון3!AG128=0,0,IF(גיליון3!AG128=גיליון2!AF128,גיליון3!AG128,0)) -> 0 | AH128: =IF(גיליון3!AG128>0,IF(גיליון3!AG128=AG128,AD128+1,AD128),AD128) -> 0 | AJ128: =IF(גיליון3!AI128>0,D128/(AH128+1),0) -> 0 | AK128: =IF(גיליון3!AK128=0,0,IF(גיליון3!AK128=גיליון2!AJ128,גיליון3!AK128,0)) -> 0 | AL128: =IF(גיליון3!AK128>0,IF(גיליון3!AK128=AK128,AH128+1,AH128),AH128) -> 0 | AN128: =IF(גיליון3!AM128>0,D128/(AL128+1),0) -> 0 | AO128: =IF(גיליון3!AO128=0,0,IF(גיליון3!AO128=גיליון2!AN128,גיליון3!AO128,0)) -> 0 | AP128: =IF(גיליון3!AO128>0,IF(גיליון3!AO128=AO128,AL128+1,AL128),AL128) -> 0 | AR128: =IF(גיליון3!AQ128>0,D128/(AP128+1),0) -> 0 | AS128: =IF(גיליון3!AS128=0,0,IF(גיליון3!AS128=גיליון2!AR128,גיליון3!AS128,0)) -> 0 | AT128: =IF(גיליון3!AS128>0,IF(גיליון3!AS128=AS128,AP128+1,AP128),AP128) -> 0
A129: =A29 -> 0 | B129: 0 | D129: 0 | F129: 0 | H129: =IF(גיליון3!G129>0,D129/(F129+1),0) -> 0 | I129: =IF(גיליון3!I129=0,0,IF(גיליון3!I129=גיליון2!H129,גיליון3!I129,0)) -> 0 | J129: =IF(גיליון3!I129>0,IF(גיליון3!I129=I129,F129+1,F129),F129) -> 0 | L129: =IF(גיליון3!K129>0,D129/(J129+1),0) -> 0 | M129: =IF(גיליון3!M129=0,0,IF(גיליון3!M129=גיליון2!L129,גיליון3!M129,0)) -> 0 | N129: =IF(גיליון3!M129>0,IF(גיליון3!M129=M129,J129+1,J129),J129) -> 0 | P129: =IF(גיליון3!O129>0,D129/(N129+1),0) -> 0 | Q129: =IF(גיליון3!Q129=0,0,IF(גיליון3!Q129=גיליון2!P129,גיליון3!Q129,0)) -> 0 | R129: =IF(גיליון3!Q129>0,IF(גיליון3!Q129=Q129,N129+1,N129),N129) -> 0 | T129: =IF(גיליון3!S129>0,D129/(R129+1),0) -> 0 | U129: =IF(גיליון3!U129=0,0,IF(גיליון3!U129=גיליון2!T129,גיליון3!U129,0)) -> 0 | V129: =IF(גיליון3!U129>0,IF(גיליון3!U129=U129,R129+1,R129),R129) -> 0 | X129: =IF(גיליון3!W129>0,D129/(V129+1),0) -> 0 | Y129: =IF(גיליון3!Y129=0,0,IF(גיליון3!Y129=גיליון2!X129,גיליון3!Y129,0)) -> 0 | Z129: =IF(גיליון3!Y129>0,IF(גיליון3!Y129=Y129,V129+1,V129),V129) -> 0 | AB129: =IF(גיליון3!AA129>0,D129/(Z129+1),0) -> 0 | AC129: =IF(גיליון3!AC129=0,0,IF(גיליון3!AC129=גיליון2!AB129,גיליון3!AC129,0)) -> 0 | AD129: =IF(גיליון3!AC129>0,IF(גיליון3!AC129=AC129,Z129+1,Z129),Z129) -> 0 | AF129: =IF(גיליון3!AE129>0,D129/(AD129+1),0) -> 0 | AG129: =IF(גיליון3!AG129=0,0,IF(גיליון3!AG129=גיליון2!AF129,גיליון3!AG129,0)) -> 0 | AH129: =IF(גיליון3!AG129>0,IF(גיליון3!AG129=AG129,AD129+1,AD129),AD129) -> 0 | AJ129: =IF(גיליון3!AI129>0,D129/(AH129+1),0) -> 0 | AK129: =IF(גיליון3!AK129=0,0,IF(גיליון3!AK129=גיליון2!AJ129,גיליון3!AK129,0)) -> 0 | AL129: =IF(גיליון3!AK129>0,IF(גיליון3!AK129=AK129,AH129+1,AH129),AH129) -> 0 | AN129: =IF(גיליון3!AM129>0,D129/(AL129+1),0) -> 0 | AO129: =IF(גיליון3!AO129=0,0,IF(גיליון3!AO129=גיליון2!AN129,גיליון3!AO129,0)) -> 0 | AP129: =IF(גיליון3!AO129>0,IF(גיליון3!AO129=AO129,AL129+1,AL129),AL129) -> 0 | AR129: =IF(גיליון3!AQ129>0,D129/(AP129+1),0) -> 0 | AS129: =IF(גיליון3!AS129=0,0,IF(גיליון3!AS129=גיליון2!AR129,גיליון3!AS129,0)) -> 0 | AT129: =IF(גיליון3!AS129>0,IF(גיליון3!AS129=AS129,AP129+1,AP129),AP129) -> 0
A130: =A30 -> 0 | B130: 0 | D130: 0 | F130: 0 | H130: =IF(גיליון3!G130>0,D130/(F130+1),0) -> 0 | I130: =IF(גיליון3!I130=0,0,IF(גיליון3!I130=גיליון2!H130,גיליון3!I130,0)) -> 0 | J130: =IF(גיליון3!I130>0,IF(גיליון3!I130=I130,F130+1,F130),F130) -> 0 | L130: =IF(גיליון3!K130>0,D130/(J130+1),0) -> 0 | M130: =IF(גיליון3!M130=0,0,IF(גיליון3!M130=גיליון2!L130,גיליון3!M130,0)) -> 0 | N130: =IF(גיליון3!M130>0,IF(גיליון3!M130=M130,J130+1,J130),J130) -> 0 | P130: =IF(גיליון3!O130>0,D130/(N130+1),0) -> 0 | Q130: =IF(גיליון3!Q130=0,0,IF(גיליון3!Q130=גיליון2!P130,גיליון3!Q130,0)) -> 0 | R130: =IF(גיליון3!Q130>0,IF(גיליון3!Q130=Q130,N130+1,N130),N130) -> 0 | T130: =IF(גיליון3!S130>0,D130/(R130+1),0) -> 0 | U130: =IF(גיליון3!U130=0,0,IF(גיליון3!U130=גיליון2!T130,גיליון3!U130,0)) -> 0 | V130: =IF(גיליון3!U130>0,IF(גיליון3!U130=U130,R130+1,R130),R130) -> 0 | X130: =IF(גיליון3!W130>0,D130/(V130+1),0) -> 0 | Y130: =IF(גיליון3!Y130=0,0,IF(גיליון3!Y130=גיליון2!X130,גיליון3!Y130,0)) -> 0 | Z130: =IF(גיליון3!Y130>0,IF(גיליון3!Y130=Y130,V130+1,V130),V130) -> 0 | AB130: =IF(גיליון3!AA130>0,D130/(Z130+1),0) -> 0 | AC130: =IF(גיליון3!AC130=0,0,IF(גיליון3!AC130=גיליון2!AB130,גיליון3!AC130,0)) -> 0 | AD130: =IF(גיליון3!AC130>0,IF(גיליון3!AC130=AC130,Z130+1,Z130),Z130) -> 0 | AF130: =IF(גיליון3!AE130>0,D130/(AD130+1),0) -> 0 | AG130: =IF(גיליון3!AG130=0,0,IF(גיליון3!AG130=גיליון2!AF130,גיליון3!AG130,0)) -> 0 | AH130: =IF(גיליון3!AG130>0,IF(גיליון3!AG130=AG130,AD130+1,AD130),AD130) -> 0 | AJ130: =IF(גיליון3!AI130>0,D130/(AH130+1),0) -> 0 | AK130: =IF(גיליון3!AK130=0,0,IF(גיליון3!AK130=גיליון2!AJ130,גיליון3!AK130,0)) -> 0 | AL130: =IF(גיליון3!AK130>0,IF(גיליון3!AK130=AK130,AH130+1,AH130),AH130) -> 0 | AN130: =IF(גיליון3!AM130>0,D130/(AL130+1),0) -> 0 | AO130: =IF(גיליון3!AO130=0,0,IF(גיליון3!AO130=גיליון2!AN130,גיליון3!AO130,0)) -> 0 | AP130: =IF(גיליון3!AO130>0,IF(גיליון3!AO130=AO130,AL130+1,AL130),AL130) -> 0 | AR130: =IF(גיליון3!AQ130>0,D130/(AP130+1),0) -> 0 | AS130: =IF(גיליון3!AS130=0,0,IF(גיליון3!AS130=גיליון2!AR130,גיליון3!AS130,0)) -> 0 | AT130: =IF(גיליון3!AS130>0,IF(גיליון3!AS130=AS130,AP130+1,AP130),AP130) -> 0
A131: =A31 -> 0 | B131: 0 | D131: 0 | F131: 0 | H131: =IF(גיליון3!G131>0,D131/(F131+1),0) -> 0 | I131: =IF(גיליון3!I131=0,0,IF(גיליון3!I131=גיליון2!H131,גיליון3!I131,0)) -> 0 | J131: =IF(גיליון3!I131>0,IF(גיליון3!I131=I131,F131+1,F131),F131) -> 0 | L131: =IF(גיליון3!K131>0,D131/(J131+1),0) -> 0 | M131: =IF(גיליון3!M131=0,0,IF(גיליון3!M131=גיליון2!L131,גיליון3!M131,0)) -> 0 | N131: =IF(גיליון3!M131>0,IF(גיליון3!M131=M131,J131+1,J131),J131) -> 0 | P131: =IF(גיליון3!O131>0,D131/(N131+1),0) -> 0 | Q131: =IF(גיליון3!Q131=0,0,IF(גיליון3!Q131=גיליון2!P131,גיליון3!Q131,0)) -> 0 | R131: =IF(גיליון3!Q131>0,IF(גיליון3!Q131=Q131,N131+1,N131),N131) -> 0 | T131: =IF(גיליון3!S131>0,D131/(R131+1),0) -> 0 | U131: =IF(גיליון3!U131=0,0,IF(גיליון3!U131=גיליון2!T131,גיליון3!U131,0)) -> 0 | V131: =IF(גיליון3!U131>0,IF(גיליון3!U131=U131,R131+1,R131),R131) -> 0 | X131: =IF(גיליון3!W131>0,D131/(V131+1),0) -> 0 | Y131: =IF(גיליון3!Y131=0,0,IF(גיליון3!Y131=גיליון2!X131,גיליון3!Y131,0)) -> 0 | Z131: =IF(גיליון3!Y131>0,IF(גיליון3!Y131=Y131,V131+1,V131),V131) -> 0 | AB131: =IF(גיליון3!AA131>0,D131/(Z131+1),0) -> 0 | AC131: =IF(גיליון3!AC131=0,0,IF(גיליון3!AC131=גיליון2!AB131,גיליון3!AC131,0)) -> 0 | AD131: =IF(גיליון3!AC131>0,IF(גיליון3!AC131=AC131,Z131+1,Z131),Z131) -> 0 | AF131: =IF(גיליון3!AE131>0,D131/(AD131+1),0) -> 0 | AG131: =IF(גיליון3!AG131=0,0,IF(גיליון3!AG131=גיליון2!AF131,גיליון3!AG131,0)) -> 0 | AH131: =IF(גיליון3!AG131>0,IF(גיליון3!AG131=AG131,AD131+1,AD131),AD131) -> 0 | AJ131: =IF(גיליון3!AI131>0,D131/(AH131+1),0) -> 0 | AK131: =IF(גיליון3!AK131=0,0,IF(גיליון3!AK131=גיליון2!AJ131,גיליון3!AK131,0)) -> 0 | AL131: =IF(גיליון3!AK131>0,IF(גיליון3!AK131=AK131,AH131+1,AH131),AH131) -> 0 | AN131: =IF(גיליון3!AM131>0,D131/(AL131+1),0) -> 0 | AO131: =IF(גיליון3!AO131=0,0,IF(גיליון3!AO131=גיליון2!AN131,גיליון3!AO131,0)) -> 0 | AP131: =IF(גיליון3!AO131>0,IF(גיליון3!AO131=AO131,AL131+1,AL131),AL131) -> 0 | AR131: =IF(גיליון3!AQ131>0,D131/(AP131+1),0) -> 0 | AS131: =IF(גיליון3!AS131=0,0,IF(גיליון3!AS131=גיליון2!AR131,גיליון3!AS131,0)) -> 0 | AT131: =IF(גיליון3!AS131>0,IF(גיליון3!AS131=AS131,AP131+1,AP131),AP131) -> 0
A132: =A32 -> 0 | B132: 0 | D132: 0 | F132: 0 | H132: =IF(גיליון3!G132>0,D132/(F132+1),0) -> 0 | I132: =IF(גיליון3!I132=0,0,IF(גיליון3!I132=גיליון2!H132,גיליון3!I132,0)) -> 0 | J132: =IF(גיליון3!I132>0,IF(גיליון3!I132=I132,F132+1,F132),F132) -> 0 | L132: =IF(גיליון3!K132>0,D132/(J132+1),0) -> 0 | M132: =IF(גיליון3!M132=0,0,IF(גיליון3!M132=גיליון2!L132,גיליון3!M132,0)) -> 0 | N132: =IF(גיליון3!M132>0,IF(גיליון3!M132=M132,J132+1,J132),J132) -> 0 | P132: =IF(גיליון3!O132>0,D132/(N132+1),0) -> 0 | Q132: =IF(גיליון3!Q132=0,0,IF(גיליון3!Q132=גיליון2!P132,גיליון3!Q132,0)) -> 0 | R132: =IF(גיליון3!Q132>0,IF(גיליון3!Q132=Q132,N132+1,N132),N132) -> 0 | T132: =IF(גיליון3!S132>0,D132/(R132+1),0) -> 0 | U132: =IF(גיליון3!U132=0,0,IF(גיליון3!U132=גיליון2!T132,גיליון3!U132,0)) -> 0 | V132: =IF(גיליון3!U132>0,IF(גיליון3!U132=U132,R132+1,R132),R132) -> 0 | X132: =IF(גיליון3!W132>0,D132/(V132+1),0) -> 0 | Y132: =IF(גיליון3!Y132=0,0,IF(גיליון3!Y132=גיליון2!X132,גיליון3!Y132,0)) -> 0 | Z132: =IF(גיליון3!Y132>0,IF(גיליון3!Y132=Y132,V132+1,V132),V132) -> 0 | AB132: =IF(גיליון3!AA132>0,D132/(Z132+1),0) -> 0 | AC132: =IF(גיליון3!AC132=0,0,IF(גיליון3!AC132=גיליון2!AB132,גיליון3!AC132,0)) -> 0 | AD132: =IF(גיליון3!AC132>0,IF(גיליון3!AC132=AC132,Z132+1,Z132),Z132) -> 0 | AF132: =IF(גיליון3!AE132>0,D132/(AD132+1),0) -> 0 | AG132: =IF(גיליון3!AG132=0,0,IF(גיליון3!AG132=גיליון2!AF132,גיליון3!AG132,0)) -> 0 | AH132: =IF(גיליון3!AG132>0,IF(גיליון3!AG132=AG132,AD132+1,AD132),AD132) -> 0 | AJ132: =IF(גיליון3!AI132>0,D132/(AH132+1),0) -> 0 | AK132: =IF(גיליון3!AK132=0,0,IF(גיליון3!AK132=גיליון2!AJ132,גיליון3!AK132,0)) -> 0 | AL132: =IF(גיליון3!AK132>0,IF(גיליון3!AK132=AK132,AH132+1,AH132),AH132) -> 0 | AN132: =IF(גיליון3!AM132>0,D132/(AL132+1),0) -> 0 | AO132: =IF(גיליון3!AO132=0,0,IF(גיליון3!AO132=גיליון2!AN132,גיליון3!AO132,0)) -> 0 | AP132: =IF(גיליון3!AO132>0,IF(גיליון3!AO132=AO132,AL132+1,AL132),AL132) -> 0 | AR132: =IF(גיליון3!AQ132>0,D132/(AP132+1),0) -> 0 | AS132: =IF(גיליון3!AS132=0,0,IF(גיליון3!AS132=גיליון2!AR132,גיליון3!AS132,0)) -> 0 | AT132: =IF(גיליון3!AS132>0,IF(גיליון3!AS132=AS132,AP132+1,AP132),AP132) -> 0
A133: =A33 -> 0 | B133: 0 | D133: 0 | F133: 0 | H133: =IF(גיליון3!G133>0,D133/(F133+1),0) -> 0 | I133: =IF(גיליון3!I133=0,0,IF(גיליון3!I133=גיליון2!H133,גיליון3!I133,0)) -> 0 | J133: =IF(גיליון3!I133>0,IF(גיליון3!I133=I133,F133+1,F133),F133) -> 0 | L133: =IF(גיליון3!K133>0,D133/(J133+1),0) -> 0 | M133: =IF(גיליון3!M133=0,0,IF(גיליון3!M133=גיליון2!L133,גיליון3!M133,0)) -> 0 | N133: =IF(גיליון3!M133>0,IF(גיליון3!M133=M133,J133+1,J133),J133) -> 0 | P133: =IF(גיליון3!O133>0,D133/(N133+1),0) -> 0 | Q133: =IF(גיליון3!Q133=0,0,IF(גיליון3!Q133=גיליון2!P133,גיליון3!Q133,0)) -> 0 | R133: =IF(גיליון3!Q133>0,IF(גיליון3!Q133=Q133,N133+1,N133),N133) -> 0 | T133: =IF(גיליון3!S133>0,D133/(R133+1),0) -> 0 | U133: =IF(גיליון3!U133=0,0,IF(גיליון3!U133=גיליון2!T133,גיליון3!U133,0)) -> 0 | V133: =IF(גיליון3!U133>0,IF(גיליון3!U133=U133,R133+1,R133),R133) -> 0 | X133: =IF(גיליון3!W133>0,D133/(V133+1),0) -> 0 | Y133: =IF(גיליון3!Y133=0,0,IF(גיליון3!Y133=גיליון2!X133,גיליון3!Y133,0)) -> 0 | Z133: =IF(גיליון3!Y133>0,IF(גיליון3!Y133=Y133,V133+1,V133),V133) -> 0 | AB133: =IF(גיליון3!AA133>0,D133/(Z133+1),0) -> 0 | AC133: =IF(גיליון3!AC133=0,0,IF(גיליון3!AC133=גיליון2!AB133,גיליון3!AC133,0)) -> 0 | AD133: =IF(גיליון3!AC133>0,IF(גיליון3!AC133=AC133,Z133+1,Z133),Z133) -> 0 | AF133: =IF(גיליון3!AE133>0,D133/(AD133+1),0) -> 0 | AG133: =IF(גיליון3!AG133=0,0,IF(גיליון3!AG133=גיליון2!AF133,גיליון3!AG133,0)) -> 0 | AH133: =IF(גיליון3!AG133>0,IF(גיליון3!AG133=AG133,AD133+1,AD133),AD133) -> 0 | AJ133: =IF(גיליון3!AI133>0,D133/(AH133+1),0) -> 0 | AK133: =IF(גיליון3!AK133=0,0,IF(גיליון3!AK133=גיליון2!AJ133,גיליון3!AK133,0)) -> 0 | AL133: =IF(גיליון3!AK133>0,IF(גיליון3!AK133=AK133,AH133+1,AH133),AH133) -> 0 | AN133: =IF(גיליון3!AM133>0,D133/(AL133+1),0) -> 0 | AO133: =IF(גיליון3!AO133=0,0,IF(גיליון3!AO133=גיליון2!AN133,גיליון3!AO133,0)) -> 0 | AP133: =IF(גיליון3!AO133>0,IF(גיליון3!AO133=AO133,AL133+1,AL133),AL133) -> 0 | AR133: =IF(גיליון3!AQ133>0,D133/(AP133+1),0) -> 0 | AS133: =IF(גיליון3!AS133=0,0,IF(גיליון3!AS133=גיליון2!AR133,גיליון3!AS133,0)) -> 0 | AT133: =IF(גיליון3!AS133>0,IF(גיליון3!AS133=AS133,AP133+1,AP133),AP133) -> 0
A134: =A34 -> 0 | B134: 0 | D134: 0 | F134: 0 | H134: =IF(גיליון3!G134>0,D134/(F134+1),0) -> 0 | I134: =IF(גיליון3!I134=0,0,IF(גיליון3!I134=גיליון2!H134,גיליון3!I134,0)) -> 0 | J134: =IF(גיליון3!I134>0,IF(גיליון3!I134=I134,F134+1,F134),F134) -> 0 | L134: =IF(גיליון3!K134>0,D134/(J134+1),0) -> 0 | M134: =IF(גיליון3!M134=0,0,IF(גיליון3!M134=גיליון2!L134,גיליון3!M134,0)) -> 0 | N134: =IF(גיליון3!M134>0,IF(גיליון3!M134=M134,J134+1,J134),J134) -> 0 | P134: =IF(גיליון3!O134>0,D134/(N134+1),0) -> 0 | Q134: =IF(גיליון3!Q134=0,0,IF(גיליון3!Q134=גיליון2!P134,גיליון3!Q134,0)) -> 0 | R134: =IF(גיליון3!Q134>0,IF(גיליון3!Q134=Q134,N134+1,N134),N134) -> 0 | T134: =IF(גיליון3!S134>0,D134/(R134+1),0) -> 0 | U134: =IF(גיליון3!U134=0,0,IF(גיליון3!U134=גיליון2!T134,גיליון3!U134,0)) -> 0 | V134: =IF(גיליון3!U134>0,IF(גיליון3!U134=U134,R134+1,R134),R134) -> 0 | X134: =IF(גיליון3!W134>0,D134/(V134+1),0) -> 0 | Y134: =IF(גיליון3!Y134=0,0,IF(גיליון3!Y134=גיליון2!X134,גיליון3!Y134,0)) -> 0 | Z134: =IF(גיליון3!Y134>0,IF(גיליון3!Y134=Y134,V134+1,V134),V134) -> 0 | AB134: =IF(גיליון3!AA134>0,D134/(Z134+1),0) -> 0 | AC134: =IF(גיליון3!AC134=0,0,IF(גיליון3!AC134=גיליון2!AB134,גיליון3!AC134,0)) -> 0 | AD134: =IF(גיליון3!AC134>0,IF(גיליון3!AC134=AC134,Z134+1,Z134),Z134) -> 0 | AF134: =IF(גיליון3!AE134>0,D134/(AD134+1),0) -> 0 | AG134: =IF(גיליון3!AG134=0,0,IF(גיליון3!AG134=גיליון2!AF134,גיליון3!AG134,0)) -> 0 | AH134: =IF(גיליון3!AG134>0,IF(גיליון3!AG134=AG134,AD134+1,AD134),AD134) -> 0 | AJ134: =IF(גיליון3!AI134>0,D134/(AH134+1),0) -> 0 | AK134: =IF(גיליון3!AK134=0,0,IF(גיליון3!AK134=גיליון2!AJ134,גיליון3!AK134,0)) -> 0 | AL134: =IF(גיליון3!AK134>0,IF(גיליון3!AK134=AK134,AH134+1,AH134),AH134) -> 0 | AN134: =IF(גיליון3!AM134>0,D134/(AL134+1),0) -> 0 | AO134: =IF(גיליון3!AO134=0,0,IF(גיליון3!AO134=גיליון2!AN134,גיליון3!AO134,0)) -> 0 | AP134: =IF(גיליון3!AO134>0,IF(גיליון3!AO134=AO134,AL134+1,AL134),AL134) -> 0 | AR134: =IF(גיליון3!AQ134>0,D134/(AP134+1),0) -> 0 | AS134: =IF(גיליון3!AS134=0,0,IF(גיליון3!AS134=גיליון2!AR134,גיליון3!AS134,0)) -> 0 | AT134: =IF(גיליון3!AS134>0,IF(גיליון3!AS134=AS134,AP134+1,AP134),AP134) -> 0
A135: =A35 -> 0 | B135: 0 | D135: 0 | F135: 0 | H135: =IF(גיליון3!G135>0,D135/(F135+1),0) -> 0 | I135: =IF(גיליון3!I135=0,0,IF(גיליון3!I135=גיליון2!H135,גיליון3!I135,0)) -> 0 | J135: =IF(גיליון3!I135>0,IF(גיליון3!I135=I135,F135+1,F135),F135) -> 0 | L135: =IF(גיליון3!K135>0,D135/(J135+1),0) -> 0 | M135: =IF(גיליון3!M135=0,0,IF(גיליון3!M135=גיליון2!L135,גיליון3!M135,0)) -> 0 | N135: =IF(גיליון3!M135>0,IF(גיליון3!M135=M135,J135+1,J135),J135) -> 0 | P135: =IF(גיליון3!O135>0,D135/(N135+1),0) -> 0 | Q135: =IF(גיליון3!Q135=0,0,IF(גיליון3!Q135=גיליון2!P135,גיליון3!Q135,0)) -> 0 | R135: =IF(גיליון3!Q135>0,IF(גיליון3!Q135=Q135,N135+1,N135),N135) -> 0 | T135: =IF(גיליון3!S135>0,D135/(R135+1),0) -> 0 | U135: =IF(גיליון3!U135=0,0,IF(גיליון3!U135=גיליון2!T135,גיליון3!U135,0)) -> 0 | V135: =IF(גיליון3!U135>0,IF(גיליון3!U135=U135,R135+1,R135),R135) -> 0 | X135: =IF(גיליון3!W135>0,D135/(V135+1),0) -> 0 | Y135: =IF(גיליון3!Y135=0,0,IF(גיליון3!Y135=גיליון2!X135,גיליון3!Y135,0)) -> 0 | Z135: =IF(גיליון3!Y135>0,IF(גיליון3!Y135=Y135,V135+1,V135),V135) -> 0 | AB135: =IF(גיליון3!AA135>0,D135/(Z135+1),0) -> 0 | AC135: =IF(גיליון3!AC135=0,0,IF(גיליון3!AC135=גיליון2!AB135,גיליון3!AC135,0)) -> 0 | AD135: =IF(גיליון3!AC135>0,IF(גיליון3!AC135=AC135,Z135+1,Z135),Z135) -> 0 | AF135: =IF(גיליון3!AE135>0,D135/(AD135+1),0) -> 0 | AG135: =IF(גיליון3!AG135=0,0,IF(גיליון3!AG135=גיליון2!AF135,גיליון3!AG135,0)) -> 0 | AH135: =IF(גיליון3!AG135>0,IF(גיליון3!AG135=AG135,AD135+1,AD135),AD135) -> 0 | AJ135: =IF(גיליון3!AI135>0,D135/(AH135+1),0) -> 0 | AK135: =IF(גיליון3!AK135=0,0,IF(גיליון3!AK135=גיליון2!AJ135,גיליון3!AK135,0)) -> 0 | AL135: =IF(גיליון3!AK135>0,IF(גיליון3!AK135=AK135,AH135+1,AH135),AH135) -> 0 | AN135: =IF(גיליון3!AM135>0,D135/(AL135+1),0) -> 0 | AO135: =IF(גיליון3!AO135=0,0,IF(גיליון3!AO135=גיליון2!AN135,גיליון3!AO135,0)) -> 0 | AP135: =IF(גיליון3!AO135>0,IF(גיליון3!AO135=AO135,AL135+1,AL135),AL135) -> 0 | AR135: =IF(גיליון3!AQ135>0,D135/(AP135+1),0) -> 0 | AS135: =IF(גיליון3!AS135=0,0,IF(גיליון3!AS135=גיליון2!AR135,גיליון3!AS135,0)) -> 0 | AT135: =IF(גיליון3!AS135>0,IF(גיליון3!AS135=AS135,AP135+1,AP135),AP135) -> 0
A136: =A36 -> 0 | B136: 0 | D136: 0 | F136: 0 | H136: =IF(גיליון3!G136>0,D136/(F136+1),0) -> 0 | I136: =IF(גיליון3!I136=0,0,IF(גיליון3!I136=גיליון2!H136,גיליון3!I136,0)) -> 0 | J136: =IF(גיליון3!I136>0,IF(גיליון3!I136=I136,F136+1,F136),F136) -> 0 | L136: =IF(גיליון3!K136>0,D136/(J136+1),0) -> 0 | M136: =IF(גיליון3!M136=0,0,IF(גיליון3!M136=גיליון2!L136,גיליון3!M136,0)) -> 0 | N136: =IF(גיליון3!M136>0,IF(גיליון3!M136=M136,J136+1,J136),J136) -> 0 | P136: =IF(גיליון3!O136>0,D136/(N136+1),0) -> 0 | Q136: =IF(גיליון3!Q136=0,0,IF(גיליון3!Q136=גיליון2!P136,גיליון3!Q136,0)) -> 0 | R136: =IF(גיליון3!Q136>0,IF(גיליון3!Q136=Q136,N136+1,N136),N136) -> 0 | T136: =IF(גיליון3!S136>0,D136/(R136+1),0) -> 0 | U136: =IF(גיליון3!U136=0,0,IF(גיליון3!U136=גיליון2!T136,גיליון3!U136,0)) -> 0 | V136: =IF(גיליון3!U136>0,IF(גיליון3!U136=U136,R136+1,R136),R136) -> 0 | X136: =IF(גיליון3!W136>0,D136/(V136+1),0) -> 0 | Y136: =IF(גיליון3!Y136=0,0,IF(גיליון3!Y136=גיליון2!X136,גיליון3!Y136,0)) -> 0 | Z136: =IF(גיליון3!Y136>0,IF(גיליון3!Y136=Y136,V136+1,V136),V136) -> 0 | AB136: =IF(גיליון3!AA136>0,D136/(Z136+1),0) -> 0 | AC136: =IF(גיליון3!AC136=0,0,IF(גיליון3!AC136=גיליון2!AB136,גיליון3!AC136,0)) -> 0 | AD136: =IF(גיליון3!AC136>0,IF(גיליון3!AC136=AC136,Z136+1,Z136),Z136) -> 0 | AF136: =IF(גיליון3!AE136>0,D136/(AD136+1),0) -> 0 | AG136: =IF(גיליון3!AG136=0,0,IF(גיליון3!AG136=גיליון2!AF136,גיליון3!AG136,0)) -> 0 | AH136: =IF(גיליון3!AG136>0,IF(גיליון3!AG136=AG136,AD136+1,AD136),AD136) -> 0 | AJ136: =IF(גיליון3!AI136>0,D136/(AH136+1),0) -> 0 | AK136: =IF(גיליון3!AK136=0,0,IF(גיליון3!AK136=גיליון2!AJ136,גיליון3!AK136,0)) -> 0 | AL136: =IF(גיליון3!AK136>0,IF(גיליון3!AK136=AK136,AH136+1,AH136),AH136) -> 0 | AN136: =IF(גיליון3!AM136>0,D136/(AL136+1),0) -> 0 | AO136: =IF(גיליון3!AO136=0,0,IF(גיליון3!AO136=גיליון2!AN136,גיליון3!AO136,0)) -> 0 | AP136: =IF(גיליון3!AO136>0,IF(גיליון3!AO136=AO136,AL136+1,AL136),AL136) -> 0 | AR136: =IF(גיליון3!AQ136>0,D136/(AP136+1),0) -> 0 | AS136: =IF(גיליון3!AS136=0,0,IF(גיליון3!AS136=גיליון2!AR136,גיליון3!AS136,0)) -> 0 | AT136: =IF(גיליון3!AS136>0,IF(גיליון3!AS136=AS136,AP136+1,AP136),AP136) -> 0
A137: =A37 -> 0 | B137: 0 | D137: 0 | F137: 0 | H137: =IF(גיליון3!G137>0,D137/(F137+1),0) -> 0 | I137: =IF(גיליון3!I137=0,0,IF(גיליון3!I137=גיליון2!H137,גיליון3!I137,0)) -> 0 | J137: =IF(גיליון3!I137>0,IF(גיליון3!I137=I137,F137+1,F137),F137) -> 0 | L137: =IF(גיליון3!K137>0,D137/(J137+1),0) -> 0 | M137: =IF(גיליון3!M137=0,0,IF(גיליון3!M137=גיליון2!L137,גיליון3!M137,0)) -> 0 | N137: =IF(גיליון3!M137>0,IF(גיליון3!M137=M137,J137+1,J137),J137) -> 0 | P137: =IF(גיליון3!O137>0,D137/(N137+1),0) -> 0 | Q137: =IF(גיליון3!Q137=0,0,IF(גיליון3!Q137=גיליון2!P137,גיליון3!Q137,0)) -> 0 | R137: =IF(גיליון3!Q137>0,IF(גיליון3!Q137=Q137,N137+1,N137),N137) -> 0 | T137: =IF(גיליון3!S137>0,D137/(R137+1),0) -> 0 | U137: =IF(גיליון3!U137=0,0,IF(גיליון3!U137=גיליון2!T137,גיליון3!U137,0)) -> 0 | V137: =IF(גיליון3!U137>0,IF(גיליון3!U137=U137,R137+1,R137),R137) -> 0 | X137: =IF(גיליון3!W137>0,D137/(V137+1),0) -> 0 | Y137: =IF(גיליון3!Y137=0,0,IF(גיליון3!Y137=גיליון2!X137,גיליון3!Y137,0)) -> 0 | Z137: =IF(גיליון3!Y137>0,IF(גיליון3!Y137=Y137,V137+1,V137),V137) -> 0 | AB137: =IF(גיליון3!AA137>0,D137/(Z137+1),0) -> 0 | AC137: =IF(גיליון3!AC137=0,0,IF(גיליון3!AC137=גיליון2!AB137,גיליון3!AC137,0)) -> 0 | AD137: =IF(גיליון3!AC137>0,IF(גיליון3!AC137=AC137,Z137+1,Z137),Z137) -> 0 | AF137: =IF(גיליון3!AE137>0,D137/(AD137+1),0) -> 0 | AG137: =IF(גיליון3!AG137=0,0,IF(גיליון3!AG137=גיליון2!AF137,גיליון3!AG137,0)) -> 0 | AH137: =IF(גיליון3!AG137>0,IF(גיליון3!AG137=AG137,AD137+1,AD137),AD137) -> 0 | AJ137: =IF(גיליון3!AI137>0,D137/(AH137+1),0) -> 0 | AK137: =IF(גיליון3!AK137=0,0,IF(גיליון3!AK137=גיליון2!AJ137,גיליון3!AK137,0)) -> 0 | AL137: =IF(גיליון3!AK137>0,IF(גיליון3!AK137=AK137,AH137+1,AH137),AH137) -> 0 | AN137: =IF(גיליון3!AM137>0,D137/(AL137+1),0) -> 0 | AO137: =IF(גיליון3!AO137=0,0,IF(גיליון3!AO137=גיליון2!AN137,גיליון3!AO137,0)) -> 0 | AP137: =IF(גיליון3!AO137>0,IF(גיליון3!AO137=AO137,AL137+1,AL137),AL137) -> 0 | AR137: =IF(גיליון3!AQ137>0,D137/(AP137+1),0) -> 0 | AS137: =IF(גיליון3!AS137=0,0,IF(גיליון3!AS137=גיליון2!AR137,גיליון3!AS137,0)) -> 0 | AT137: =IF(גיליון3!AS137>0,IF(גיליון3!AS137=AS137,AP137+1,AP137),AP137) -> 0
A138: =A38 -> 0 | B138: 0 | D138: 0 | F138: 0 | H138: =IF(גיליון3!G138>0,D138/(F138+1),0) -> 0 | I138: =IF(גיליון3!I138=0,0,IF(גיליון3!I138=גיליון2!H138,גיליון3!I138,0)) -> 0 | J138: =IF(גיליון3!I138>0,IF(גיליון3!I138=I138,F138+1,F138),F138) -> 0 | L138: =IF(גיליון3!K138>0,D138/(J138+1),0) -> 0 | M138: =IF(גיליון3!M138=0,0,IF(גיליון3!M138=גיליון2!L138,גיליון3!M138,0)) -> 0 | N138: =IF(גיליון3!M138>0,IF(גיליון3!M138=M138,J138+1,J138),J138) -> 0 | P138: =IF(גיליון3!O138>0,D138/(N138+1),0) -> 0 | Q138: =IF(גיליון3!Q138=0,0,IF(גיליון3!Q138=גיליון2!P138,גיליון3!Q138,0)) -> 0 | R138: =IF(גיליון3!Q138>0,IF(גיליון3!Q138=Q138,N138+1,N138),N138) -> 0 | T138: =IF(גיליון3!S138>0,D138/(R138+1),0) -> 0 | U138: =IF(גיליון3!U138=0,0,IF(גיליון3!U138=גיליון2!T138,גיליון3!U138,0)) -> 0 | V138: =IF(גיליון3!U138>0,IF(גיליון3!U138=U138,R138+1,R138),R138) -> 0 | X138: =IF(גיליון3!W138>0,D138/(V138+1),0) -> 0 | Y138: =IF(גיליון3!Y138=0,0,IF(גיליון3!Y138=גיליון2!X138,גיליון3!Y138,0)) -> 0 | Z138: =IF(גיליון3!Y138>0,IF(גיליון3!Y138=Y138,V138+1,V138),V138) -> 0 | AB138: =IF(גיליון3!AA138>0,D138/(Z138+1),0) -> 0 | AC138: =IF(גיליון3!AC138=0,0,IF(גיליון3!AC138=גיליון2!AB138,גיליון3!AC138,0)) -> 0 | AD138: =IF(גיליון3!AC138>0,IF(גיליון3!AC138=AC138,Z138+1,Z138),Z138) -> 0 | AF138: =IF(גיליון3!AE138>0,D138/(AD138+1),0) -> 0 | AG138: =IF(גיליון3!AG138=0,0,IF(גיליון3!AG138=גיליון2!AF138,גיליון3!AG138,0)) -> 0 | AH138: =IF(גיליון3!AG138>0,IF(גיליון3!AG138=AG138,AD138+1,AD138),AD138) -> 0 | AJ138: =IF(גיליון3!AI138>0,D138/(AH138+1),0) -> 0 | AK138: =IF(גיליון3!AK138=0,0,IF(גיליון3!AK138=גיליון2!AJ138,גיליון3!AK138,0)) -> 0 | AL138: =IF(גיליון3!AK138>0,IF(גיליון3!AK138=AK138,AH138+1,AH138),AH138) -> 0 | AN138: =IF(גיליון3!AM138>0,D138/(AL138+1),0) -> 0 | AO138: =IF(גיליון3!AO138=0,0,IF(גיליון3!AO138=גיליון2!AN138,גיליון3!AO138,0)) -> 0 | AP138: =IF(גיליון3!AO138>0,IF(גיליון3!AO138=AO138,AL138+1,AL138),AL138) -> 0 | AR138: =IF(גיליון3!AQ138>0,D138/(AP138+1),0) -> 0 | AS138: =IF(גיליון3!AS138=0,0,IF(גיליון3!AS138=גיליון2!AR138,גיליון3!AS138,0)) -> 0 | AT138: =IF(גיליון3!AS138>0,IF(גיליון3!AS138=AS138,AP138+1,AP138),AP138) -> 0
A139: =A39 -> 0 | B139: 0 | D139: 0 | F139: 0 | H139: =IF(גיליון3!G139>0,D139/(F139+1),0) -> 0 | I139: =IF(גיליון3!I139=0,0,IF(גיליון3!I139=גיליון2!H139,גיליון3!I139,0)) -> 0 | J139: =IF(גיליון3!I139>0,IF(גיליון3!I139=I139,F139+1,F139),F139) -> 0 | L139: =IF(גיליון3!K139>0,D139/(J139+1),0) -> 0 | M139: =IF(גיליון3!M139=0,0,IF(גיליון3!M139=גיליון2!L139,גיליון3!M139,0)) -> 0 | N139: =IF(גיליון3!M139>0,IF(גיליון3!M139=M139,J139+1,J139),J139) -> 0 | P139: =IF(גיליון3!O139>0,D139/(N139+1),0) -> 0 | Q139: =IF(גיליון3!Q139=0,0,IF(גיליון3!Q139=גיליון2!P139,גיליון3!Q139,0)) -> 0 | R139: =IF(גיליון3!Q139>0,IF(גיליון3!Q139=Q139,N139+1,N139),N139) -> 0 | T139: =IF(גיליון3!S139>0,D139/(R139+1),0) -> 0 | U139: =IF(גיליון3!U139=0,0,IF(גיליון3!U139=גיליון2!T139,גיליון3!U139,0)) -> 0 | V139: =IF(גיליון3!U139>0,IF(גיליון3!U139=U139,R139+1,R139),R139) -> 0 | X139: =IF(גיליון3!W139>0,D139/(V139+1),0) -> 0 | Y139: =IF(גיליון3!Y139=0,0,IF(גיליון3!Y139=גיליון2!X139,גיליון3!Y139,0)) -> 0 | Z139: =IF(גיליון3!Y139>0,IF(גיליון3!Y139=Y139,V139+1,V139),V139) -> 0 | AB139: =IF(גיליון3!AA139>0,D139/(Z139+1),0) -> 0 | AC139: =IF(גיליון3!AC139=0,0,IF(גיליון3!AC139=גיליון2!AB139,גיליון3!AC139,0)) -> 0 | AD139: =IF(גיליון3!AC139>0,IF(גיליון3!AC139=AC139,Z139+1,Z139),Z139) -> 0 | AF139: =IF(גיליון3!AE139>0,D139/(AD139+1),0) -> 0 | AG139: =IF(גיליון3!AG139=0,0,IF(גיליון3!AG139=גיליון2!AF139,גיליון3!AG139,0)) -> 0 | AH139: =IF(גיליון3!AG139>0,IF(גיליון3!AG139=AG139,AD139+1,AD139),AD139) -> 0 | AJ139: =IF(גיליון3!AI139>0,D139/(AH139+1),0) -> 0 | AK139: =IF(גיליון3!AK139=0,0,IF(גיליון3!AK139=גיליון2!AJ139,גיליון3!AK139,0)) -> 0 | AL139: =IF(גיליון3!AK139>0,IF(גיליון3!AK139=AK139,AH139+1,AH139),AH139) -> 0 | AN139: =IF(גיליון3!AM139>0,D139/(AL139+1),0) -> 0 | AO139: =IF(גיליון3!AO139=0,0,IF(גיליון3!AO139=גיליון2!AN139,גיליון3!AO139,0)) -> 0 | AP139: =IF(גיליון3!AO139>0,IF(גיליון3!AO139=AO139,AL139+1,AL139),AL139) -> 0 | AR139: =IF(גיליון3!AQ139>0,D139/(AP139+1),0) -> 0 | AS139: =IF(גיליון3!AS139=0,0,IF(גיליון3!AS139=גיליון2!AR139,גיליון3!AS139,0)) -> 0 | AT139: =IF(גיליון3!AS139>0,IF(גיליון3!AS139=AS139,AP139+1,AP139),AP139) -> 0
A140: =A40 -> סה"כ | B140: 3986855 | D140: 3827515 | F140: =SUM(F102:F139) -> 114 | J140: =SUM(J102:J139) -> 115 | N140: =SUM(N102:N139) -> 116 | R140: =SUM(R102:R139) -> 117 | V140: =SUM(V102:V139) -> 118 | Z140: =SUM(Z102:Z139) -> 119 | AD140: =SUM(AD102:AD139) -> 120 | AH140: =SUM(AH102:AH139) -> 120 | AL140: =SUM(AL102:AL139) -> 120 | AP140: =SUM(AP102:AP139) -> 120 | AT140: =SUM(AT102:AT139) -> 120

Sheet גיליון3
D2: =גיליון2!C3 -> 129572.7875 | H2: =גיליון2!E2 -> 31895.95833 | J2: =גיליון1!H2-גיליון2!I40 -> 6 | L2: =MAX(גיליון2!K2:K39) -> 32761.91667 | N2: =גיליון1!H2-גיליון2!M40 -> 5 | P2: =MAX(גיליון2!O2:O39) -> 32118.60714 | R2: =גיליון1!H2-גיליון2!Q40 -> 4 | T2: =MAX(גיליון2!S2:S39) -> 31876.45946 | V2: =גיליון1!H2-גיליון2!U40 -> 3 | X2: =MAX(גיליון2!W2:W39) -> 31709.27273 | Z2: =גיליון1!H2-גיליון2!Y40 -> 2 | AB2: =MAX(גיליון2!AA2:AA39) -> 31259.0625 | AD2: =גיליון1!H2-גיליון2!AC40 -> 1 | AF2: =MAX(גיליון2!AE2:AE39) -> 31163.28571 | AH2: =גיליון1!H2-גיליון2!AG40 -> 0 | AJ2: =MAX(גיליון2!AI2:AI39) -> 0 | AL2: =גיליון1!H2-גיליון2!AK40 -> 0 | AN2: =MAX(גיליון2!AM2:AM39) -> 0 | AP2: =גיליון1!H2-גיליון2!AO40 -> 0 | AR2: =MAX(גיליון2!AQ2:AQ39) -> 0 | AT2: =גיליון1!H2-גיליון2!AS40 -> 0 | AV2: =MAX(גיליון2!AU2:AU39) -> 0
D3: =D2 -> 129572.7875 | H3: =H2 -> 31895.95833 | J3: =J2 -> 6 | L3: =L2 -> 32761.91667 | N3: =N2 -> 5 | P3: =P2 -> 32118.60714 | R3: =R2 -> 4 | T3: =T2 -> 31876.45946 | V3: =V2 -> 3 | X3: =X2 -> 31709.27273 | Z3: =Z2 -> 2 | AB3: =AB2 -> 31259.0625 | AD3: =AD2 -> 1 | AF3: =AF2 -> 31163.28571 | AH3: =AH2 -> 0 | AJ3: =AJ2 -> 0 | AL3: =AL2 -> 0 | AN3: =AN2 -> 0 | AP3: =AP2 -> 0 | AR3: =AR2 -> 0 | AT3: =AT2 -> 0 | AV3: =AV2 -> 0
D4: 129572.7875 | H4: 31895.95833 | J4: 6 | L4: 32761.91667 | N4: 5 | P4: 32118.60714 | R4: 4 | T4: 31876.45946 | V4: 3 | X4: 31709.27273 | Z4: 2 | AB4: 31259.0625 | AD4: 1 | AF4: 31163.28571 | AH4: 0 | AJ4: 0 | AL4: 0 | AN4: 0 | AP4: 0 | AR4: 0 | AT4: 0 | AV4: 0
D5: 129572.7875 | H5: 31895.95833 | J5: 6 | L5: 32761.91667 | N5: 5 | P5: 32118.60714 | R5: 4 | T5: 31876.45946 | V5: 3 | X5: 31709.27273 | Z5: 2 | AB5: 31259.0625 | AD5: 1 | AF5: 31163.28571 | AH5: 0 | AJ5: 0 | AL5: 0 | AN5: 0 | AP5: 0 | AR5: 0 | AT5: 0 | AV5: 0
D6: 129572.7875 | H6: 31895.95833 | J6: 6 | L6: 32761.91667 | N6: 5 | P6: 32118.60714 | R6: 4 | T6: 31876.45946 | V6: 3 | X6: 31709.27273 | Z6: 2 | AB6: 31259.0625 | AD6: 1 | AF6: 31163.28571 | AH6: 0 | AJ6: 0 | AL6: 0 | AN6: 0 | AP6: 0 | AR6: 0 | AT6: 0 | AV6: 0
D7: 129572.7875 | H7: 31895.95833 | J7: 6 | L7: 32761.91667 | N7: 5 | P7: 32118.60714 | R7: 4 | T7: 31876.45946 | V7: 3 | X7: 31709.27273 | Z7: 2 | AB7: 31259.0625 | AD7: 1 | AF7: 31163.28571 | AH7: 0 | AJ7: 0 | AL7: 0 | AN7: 0 | AP7: 0 | AR7: 0 | AT7: 0 | AV7: 0
D8: 129572.7875 | H8: 31895.95833 | J8: 6 | L8: 32761.91667 | N8: 5 | P8: 32118.60714 | R8: 4 | T8: 31876.45946 | V8: 3 | X8: 31709.27273 | Z8: 2 | AB8: 31259.0625 | AD8: 1 | AF8: 31163.28571 | AH8: 0 | AJ8: 0 | AL8: 0 | AN8: 0 | AP8: 0 | AR8: 0 | AT8: 0 | AV8: 0
D9: 129572.7875 | H9: 31895.95833 | J9: 6 | L9: 32761.91667 | N9: 5 | P9: 32118.60714 | R9: 4 | T9: 31876.45946 | V9: 3 | X9: 31709.27273 | Z9: 2 | AB9: 31259.0625 | AD9: 1 | AF9: 31163.28571 | AH9: 0 | AJ9: 0 | AL9: 0 | AN9: 0 | AP9: 0 | AR9: 0 | AT9: 0 | AV9: 0
D10: 129572.7875 | H10: 31895.95833 | J10: 6 | L10: 32761.91667 | N10: 5 | P10: 32118.60714 | R10: 4 | T10: 31876.45946 | V10: 3 | X10: 31709.27273 | Z10: 2 | AB10: 31259.0625 | AD10: 1 | AF10: 31163.28571 | AH10: 0 | AJ10: 0 | AL10: 0 | AN10: 0 | AP10: 0 | AR10: 0 | AT10: 0 | AV10: 0
D11: 129572.7875 | H11: 31895.95833 | J11: 6 | L11: 32761.91667 | N11: 5 | P11: 32118.60714 | R11: 4 | T11: 31876.45946 | V11: 3 | X11: 31709.27273 | Z11: 2 | AB11: 31259.0625 | AD11: 1 | AF11: 31163.28571 | AH11: 0 | AJ11: 0 | AL11: 0 | AN11: 0 | AP11: 0 | AR11: 0 | AT11: 0 | AV11: 0
D12: 129572.7875 | H12: 31895.95833 | J12: 6 | L12: 32761.91667 | N12: 5 | P12: 32118.60714 | R12: 4 | T12: 31876.45946 | V12: 3 | X12: 31709.27273 | Z12: 2 | AB12: 31259.0625 | AD12: 1 | AF12: 31163.28571 | AH12: 0 | AJ12: 0 | AL12: 0 | AN12: 0 | AP12: 0 | AR12: 0 | AT12: 0 | AV12: 0
D13: 129572.7875 | H13: 31895.95833 | J13: 6 | L13: 32761.91667 | N13: 5 | P13: 32118.60714 | R13: 4 | T13: 31876.45946 | V13: 3 | X13: 31709.27273 | Z13: 2 | AB13: 31259.0625 | AD13: 1 | AF13: 31163.28571 | AH13: 0 | AJ13: 0 | AL13: 0 | AN13: 0 | AP13: 0 | AR13: 0 | AT13: 0 | AV13: 0
D14: 129572.7875 | H14: 31895.95833 | J14: 6 | L14: 32761.91667 | N14: 5 | P14: 32118.60714 | R14: 4 | T14: 31876.45946 | V14: 3 | X14: 31709.27273 | Z14: 2 | AB14: 31259.0625 | AD14: 1 | AF14: 31163.28571 | AH14: 0 | AJ14: 0 | AL14: 0 | AN14: 0 | AP14: 0 | AR14: 0 | AT14: 0 | AV14: 0
D15: 129572.7875 | H15: 31895.95833 | J15: 6 | L15: 32761.91667 | N15: 5 | P15: 32118.60714 | R15: 4 | T15: 31876.45946 | V15: 3 | X15: 31709.27273 | Z15: 2 | AB15: 31259.0625 | AD15: 1 | AF15: 31163.28571 | AH15: 0 | AJ15: 0 | AL15: 0 | AN15: 0 | AP15: 0 | AR15: 0 | AT15: 0 | AV15: 0
D16: 129572.7875 | H16: 31895.95833 | J16: 6 | L16: 32761.91667 | N16: 5 | P16: 32118.60714 | R16: 4 | T16: 31876.45946 | V16: 3 | X16: 31709.27273 | Z16: 2 | AB16: 31259.0625 | AD16: 1 | AF16: 31163.28571 | AH16: 0 | AJ16: 0 | AL16: 0 | AN16: 0 | AP16: 0 | AR16: 0 | AT16: 0 | AV16: 0
D17: 129572.7875 | H17: 31895.95833 | J17: 6 | L17: 32761.91667 | N17: 5 | P17: 32118.60714 | R17: 4 | T17: 31876.45946 | V17: 3 | X17: 31709.27273 | Z17: 2 | AB17: 31259.0625 | AD17: 1 | AF17: 31163.28571 | AH17: 0 | AJ17: 0 | AL17: 0 | AN17: 0 | AP17: 0 | AR17: 0 | AT17: 0 | AV17: 0
D18: 129572.7875 | H18: 31895.95833 | J18: 6 | L18: 32761.91667 | N18: 5 | P18: 32118.60714 | R18: 4 | T18: 31876.45946 | V18: 3 | X18: 31709.27273 | Z18: 2 | AB18: 31259.0625 | AD18: 1 | AF18: 31163.28571 | AH18: 0 | AJ18: 0 | AL18: 0 | AN18: 0 | AP18: 0 | AR18: 0 | AT18: 0 | AV18: 0
D19: 129572.7875 | H19: 31895.95833 | J19: 6 | L19: 32761.91667 | N19: 5 | P19: 32118.60714 | R19: 4 | T19: 31876.45946 | V19: 3 | X19: 31709.27273 | Z19: 2 | AB19: 31259.0625 | AD19: 1 | AF19: 31163.28571 | AH19: 0 | AJ19: 0 | AL19: 0 | AN19: 0 | AP19: 0 | AR19: 0 | AT19: 0 | AV19: 0
D20: 129572.7875 | H20: 31895.95833 | J20: 6 | L20: 32761.91667 | N20: 5 | P20: 32118.60714 | R20: 4 | T20: 31876.45946 | V20: 3 | X20: 31709.27273 | Z20: 2 | AB20: 31259.0625 | AD20: 1 | AF20: 31163.28571 | AH20: 0 | AJ20: 0 | AL20: 0 | AN20: 0 | AP20: 0 | AR20: 0 | AT20: 0 | AV20: 0
D21: 129572.7875 | H21: 31895.95833 | J21: 6 | L21: 32761.91667 | N21: 5 | P21: 32118.60714 | R21: 4 | T21: 31876.45946 | V21: 3 | X21: 31709.27273 | Z21: 2 | AB21: 31259.0625 | AD21: 1 | AF21: 31163.28571 | AH21: 0 | AJ21: 0 | AL21: 0 | AN21: 0 | AP21: 0 | AR21: 0 | AT21: 0 | AV21: 0
D22: 129572.7875 | H22: 31895.95833 | J22: 6 | L22: 32761.91667 | N22: 5 | P22: 32118.60714 | R22: 4 | T22: 31876.45946 | V22: 3 | X22: 31709.27273 | Z22: 2 | AB22: 31259.0625 | AD22: 1 | AF22: 31163.28571 | AH22: 0 | AJ22: 0 | AL22: 0 | AN22: 0 | AP22: 0 | AR22: 0 | AT22: 0 | AV22: 0
D23: 129572.7875 | H23: 31895.95833 | J23: 6 | L23: 32761.91667 | N23: 5 | P23: 32118.60714 | R23: 4 | T23: 31876.45946 | V23: 3 | X23: 31709.27273 | Z23: 2 | AB23: 31259.0625 | AD23: 1 | AF23: 31163.28571 | AH23: 0 | AJ23: 0 | AL23: 0 | AN23: 0 | AP23: 0 | AR23: 0 | AT23: 0 | AV23: 0
D24: 129572.7875 | H24: 31895.95833 | J24: 6 | L24: 32761.91667 | N24: 5 | P24: 32118.60714 | R24: 4 | T24: 31876.45946 | V24: 3 | X24: 31709.27273 | Z24: 2 | AB24: 31259.0625 | AD24: 1 | AF24: 31163.28571 | AH24: 0 | AJ24: 0 | AL24: 0 | AN24: 0 | AP24: 0 | AR24: 0 | AT24: 0 | AV24: 0
D25: 129572.7875 | H25: 31895.95833 | J25: 6 | L25: 32761.91667 | N25: 5 | P25: 32118.60714 | R25: 4 | T25: 31876.45946 | V25: 3 | X25: 31709.27273 | Z25: 2 | AB25: 31259.0625 | AD25: 1 | AF25: 31163.28571 | AH25: 0 | AJ25: 0 | AL25: 0 | AN25: 0 | AP25: 0 | AR25: 0 | AT25: 0 | AV25: 0
D26: 129572.7875 | H26: 31895.95833 | J26: 6 | L26: 32761.91667 | N26: 5 | P26: 32118.60714 | R26: 4 | T26: 31876.45946 | V26: 3 | X26: 31709.27273 | Z26: 2 | AB26: 31259.0625 | AD26: 1 | AF26: 31163.28571 | AH26: 0 | AJ26: 0 | AL26: 0 | AN26: 0 | AP26: 0 | AR26: 0 | AT26: 0 | AV26: 0
D27: 129572.7875 | H27: 31895.95833 | J27: 6 | L27: 32761.91667 | N27: 5 | P27: 32118.60714 | R27: 4 | T27: 31876.45946 | V27: 3 | X27: 31709.27273 | Z27: 2 | AB27: 31259.0625 | AD27: 1 | AF27: 31163.28571 | AH27: 0 | AJ27: 0 | AL27: 0 | AN27: 0 | AP27: 0 | AR27: 0 | AT27: 0 | AV27: 0
D28: 129572.7875 | H28: 31895.95833 | J28: 6 | L28: 32761.91667 | N28: 5 | P28: 32118.60714 | R28: 4 | T28: 31876.45946 | V28: 3 | X28: 31709.27273 | Z28: 2 | AB28: 31259.0625 | AD28: 1 | AF28: 31163.28571 | AH28: 0 | AJ28: 0 | AL28: 0 | AN28: 0 | AP28: 0 | AR28: 0 | AT28: 0 | AV28: 0
D29: 129572.7875 | H29: 31895.95833 | J29: 6 | L29: 32761.91667 | N29: 5 | P29: 32118.60714 | R29: 4 | T29: 31876.45946 | V29: 3 | X29: 31709.27273 | Z29: 2 | AB29: 31259.0625 | AD29: 1 | AF29: 31163.28571 | AH29: 0 | AJ29: 0 | AL29: 0 | AN29: 0 | AP29: 0 | AR29: 0 | AT29: 0 | AV29: 0
D30: 129572.7875 | H30: 31895.95833 | J30: 6 | L30: 32761.91667 | N30: 5 | P30: 32118.60714 | R30: 4 | T30: 31876.45946 | V30: 3 | X30: 31709.27273 | Z30: 2 | AB30: 31259.0625 | AD30: 1 | AF30: 31163.28571 | AH30: 0 | AJ30: 0 | AL30: 0 | AN30: 0 | AP30: 0 | AR30: 0 | AT30: 0 | AV30: 0
D31: 129572.7875 | H31: 31895.95833 | J31: 6 | L31: 32761.91667 | N31: 5 | P31: 32118.60714 | R31: 4 | T31: 31876.45946 | V31: 3 | X31: 31709.27273 | Z31: 2 | AB31: 31259.0625 | AD31: 1 | AF31: 31163.28571 | AH31: 0 | AJ31: 0 | AL31: 0 | AN31: 0 | AP31: 0 | AR31: 0 | AT31: 0 | AV31: 0
D32: 129572.7875 | H32: 31895.95833 | J32: 6 | L32: 32761.91667 | N32: 5 | P32: 32118.60714 | R32: 4 | T32: 31876.45946 | V32: 3 | X32: 31709.27273 | Z32: 2 | AB32: 31259.0625 | AD32: 1 | AF32: 31163.28571 | AH32: 0 | AJ32: 0 | AL32: 0 | AN32: 0 | AP32: 0 | AR32: 0 | AT32: 0 | AV32: 0
D33: 129572.7875 | H33: 31895.95833 | J33: 6 | L33: 32761.91667 | N33: 5 | P33: 32118.60714 | R33: 4 | T33: 31876.45946 | V33: 3 | X33: 31709.27273 | Z33: 2 | AB33: 31259.0625 | AD33: 1 | AF33: 31163.28571 | AH33: 0 | AJ33: 0 | AL33: 0 | AN33: 0 | AP33: 0 | AR33: 0 | AT33: 0 | AV33: 0
D34: 129572.7875 | H34: 31895.95833 | J34: 6 | L34: 32761.91667 | N34: 5 | P34: 32118.60714 | R34: 4 | T34: 31876.45946 | V34: 3 | X34: 31709.27273 | Z34: 2 | AB34: 31259.0625 | AD34: 1 | AF34: 31163.28571 | AH34: 0 | AJ34: 0 | AL34: 0 | AN34: 0 | AP34: 0 | AR34: 0 | AT34: 0 | AV34: 0
D35: 129572.7875 | H35: 31895.95833 | J35: 6 | L35: 32761.91667 | N35: 5 | P35: 32118.60714 | R35: 4 | T35: 31876.45946 | V35: 3 | X35: 31709.27273 | Z35: 2 | AB35: 31259.0625 | AD35: 1 | AF35: 31163.28571 | AH35: 0 | AJ35: 0 | AL35: 0 | AN35: 0 | AP35: 0 | AR35: 0 | AT35: 0 | AV35: 0
D36: 129572.7875 | H36: 31895.95833 | J36: 6 | L36: 32761.91667 | N36: 5 | P36: 32118.60714 | R36: 4 | T36: 31876.45946 | V36: 3 | X36: 31709.27273 | Z36: 2 | AB36: 31259.0625 | AD36: 1 | AF36: 31163.28571 | AH36: 0 | AJ36: 0 | AL36: 0 | AN36: 0 | AP36: 0 | AR36: 0 | AT36: 0 | AV36: 0
D37: 129572.7875 | H37: 31895.95833 | J37: 6 | L37: 32761.91667 | N37: 5 | P37: 32118.60714 | R37: 4 | T37: 31876.45946 | V37: 3 | X37: 31709.27273 | Z37: 2 | AB37: 31259.0625 | AD37: 1 | AF37: 31163.28571 | AH37: 0 | AJ37: 0 | AL37: 0 | AN37: 0 | AP37: 0 | AR37: 0 | AT37: 0 | AV37: 0
D38: 129572.7875 | H38: 31895.95833 | J38: 6 | L38: 32761.91667 | N38: 5 | P38: 32118.60714 | R38: 4 | T38: 31876.45946 | V38: 3 | X38: 31709.27273 | Z38: 2 | AB38: 31259.0625 | AD38: 1 | AF38: 31163.28571 | AH38: 0 | AJ38: 0 | AL38: 0 | AN38: 0 | AP38: 0 | AR38: 0 | AT38: 0 | AV38: 0
D39: 129572.7875 | H39: 31895.95833 | J39: 6 | L39: 32761.91667 | N39: 5 | P39: 32118.60714 | R39: 4 | T39: 31876.45946 | V39: 3 | X39: 31709.27273 | Z39: 2 | AB39: 31259.0625 | AD39: 1 | AF39: 31163.28571 | AH39: 0 | AJ39: 0 | AL39: 0 | AN39: 0 | AP39: 0 | AR39: 0 | AT39: 0 | AV39: 0
G52: =גיליון2!G52 -> 6 | I52: =MAX(גיליון2!H52:H89) -> 0.9932031618 | K52: =גיליון2!K52 -> 5 | M52: =MAX(גיליון2!L52:L89) -> 0.9841777237 | O52: =גיליון2!O52 -> 4 | Q52: =MAX(גיליון2!P52:P89) -> 0.9356174959 | S52: =גיליון2!S52 -> 3 | U52: =MAX(גיליון2!T52:T89) -> 0.8485139836 | W52: =גיליון2!W52 -> 2 | Y52: =MAX(גיליון2!X52:X89) -> 0.5326249538 | AA52: =גיליון2!AA52 -> 1 | AC52: =MAX(גיליון2!AB52:AB89) -> 0.4465534426 | AE52: =גיליון2!AE52 -> 0 | AG52: =MAX(גיליון2!AF52:AF89) -> 0 | AI52: =גיליון2!AI52 -> 0 | AK52: =MAX(גיליון2!AJ52:AJ89) -> 0 | AM52: =גיליון2!AM52 -> 0 | AO52: =MAX(גיליון2!AN52:AN89) -> 0 | AQ52: =גיליון2!AQ52 -> 0 | AS52: =MAX(גיליון2!AR52:AR89) -> 0 | AU52: =גיליון2!AU52 -> 0
G53: =G52 -> 6 | I53: =I52 -> 0.9932031618 | K53: =K52 -> 5 | M53: =M52 -> 0.9841777237 | O53: =O52 -> 4 | Q53: =Q52 -> 0.9356174959 | S53: =S52 -> 3 | U53: =U52 -> 0.8485139836 | W53: =W52 -> 2 | Y53: =Y52 -> 0.5326249538 | AA53: =AA52 -> 1 | AC53: =AC52 -> 0.4465534426 | AE53: =AE52 -> 0 | AG53: =AG52 -> 0 | AI53: =AI52 -> 0 | AK53: =AK52 -> 0 | AM53: =AM52 -> 0 | AO53: =AO52 -> 0 | AQ53: =AQ52 -> 0 | AS53: =AS52 -> 0 | AU53: =AU52 -> 0
G54: 6 | I54: 0.9932031618 | K54: 5 | M54: 0.9841777237 | O54: 4 | Q54: 0.9356174959 | S54: 3 | U54: 0.8485139836 | W54: 2 | Y54: 0.5326249538 | AA54: 1 | AC54: 0.4465534426 | AE54: 0 | AG54: 0 | AI54: 0 | AK54: 0 | AM54: 0 | AO54: 0 | AQ54: 0 | AS54: 0 | AU54: 0
G55: 6 | I55: 0.9932031618 | K55: 5 | M55: 0.9841777237 | O55: 4 | Q55: 0.9356174959 | S55: 3 | U55: 0.8485139836 | W55: 2 | Y55: 0.5326249538 | AA55: 1 | AC55: 0.4465534426 | AE55: 0 | AG55: 0 | AI55: 0 | AK55: 0 | AM55: 0 | AO55: 0 | AQ55: 0 | AS55: 0 | AU55: 0
G56: 6 | I56: 0.9932031618 | K56: 5 | M56: 0.9841777237 | O56: 4 | Q56: 0.9356174959 | S56: 3 | U56: 0.8485139836 | W56: 2 | Y56: 0.5326249538 | AA56: 1 | AC56: 0.4465534426 | AE56: 0 | AG56: 0 | AI56: 0 | AK56: 0 | AM56: 0 | AO56: 0 | AQ56: 0 | AS56: 0 | AU56: 0
G57: 6 | I57: 0.9932031618 | K57: 5 | M57: 0.9841777237 | O57: 4 | Q57: 0.9356174959 | S57: 3 | U57: 0.8485139836 | W57: 2 | Y57: 0.5326249538 | AA57: 1 | AC57: 0.4465534426 | AE57: 0 | AG57: 0 | AI57: 0 | AK57: 0 | AM57: 0 | AO57: 0 | AQ57: 0 | AS57: 0 | AU57: 0
G58: 6 | I58: 0.9932031618 | K58: 5 | M58: 0.9841777237 | O58: 4 | Q58: 0.9356174959 | S58: 3 | U58: 0.8485139836 | W58: 2 | Y58: 0.5326249538 | AA58: 1 | AC58: 0.4465534426 | AE58: 0 | AG58: 0 | AI58: 0 | AK58: 0 | AM58: 0 | AO58: 0 | AQ58: 0 | AS58: 0 | AU58: 0
G59: 6 | I59: 0.9932031618 | K59: 5 | M59: 0.9841777237 | O59: 4 | Q59: 0.9356174959 | S59: 3 | U59: 0.8485139836 | W59: 2 | Y59: 0.5326249538 | AA59: 1 | AC59: 0.4465534426 | AE59: 0 | AG59: 0 | AI59: 0 | AK59: 0 | AM59: 0 | AO59: 0 | AQ59: 0 | AS59: 0 | AU59: 0
G60: 6 | I60: 0.9932031618 | K60: 5 | M60: 0.9841777237 | O60: 4 | Q60: 0.9356174959 | S60: 3 | U60: 0.8485139836 | W60: 2 | Y60: 0.5326249538 | AA60: 1 | AC60: 0.4465534426 | AE60: 0 | AG60: 0 | AI60: 0 | AK60: 0 | AM60: 0 | AO60: 0 | AQ60: 0 | AS60: 0 | AU60: 0
G61: 6 | I61: 0.9932031618 | K61: 5 | M61: 0.9841777237 | O61: 4 | Q61: 0.9356174959 | S61: 3 | U61: 0.8485139836 | W61: 2 | Y61: 0.5326249538 | AA61: 1 | AC61: 0.4465534426 | AE61: 0 | AG61: 0 | AI61: 0 | AK61: 0 | AM61: 0 | AO61: 0 | AQ61: 0 | AS61: 0 | AU61: 0
G62: 6 | I62: 0.9932031618 | K62: 5 | M62: 0.9841777237 | O62: 4 | Q62: 0.9356174959 | S62: 3 | U62: 0.8485139836 | W62: 2 | Y62: 0.5326249538 | AA62: 1 | AC62: 0.4465534426 | AE62: 0 | AG62: 0 | AI62: 0 | AK62: 0 | AM62: 0 | AO62: 0 | AQ62: 0 | AS62: 0 | AU62: 0
G63: 6 | I63: 0.9932031618 | K63: 5 | M63: 0.9841777237 | O63: 4 | Q63: 0.9356174959 | S63: 3 | U63: 0.8485139836 | W63: 2 | Y63: 0.5326249538 | AA63: 1 | AC63: 0.4465534426 | AE63: 0 | AG63: 0 | AI63: 0 | AK63: 0 | AM63: 0 | AO63: 0 | AQ63: 0 | AS63: 0 | AU63: 0
G64: 6 | I64: 0.9932031618 | K64: 5 | M64: 0.9841777237 | O64: 4 | Q64: 0.9356174959 | S64: 3 | U64: 0.8485139836 | W64: 2 | Y64: 0.5326249538 | AA64: 1 | AC64: 0.4465534426 | AE64: 0 | AG64: 0 | AI64: 0 | AK64: 0 | AM64: 0 | AO64: 0 | AQ64: 0 | AS64: 0 | AU64: 0
G65: 6 | I65: 0.9932031618 | K65: 5 | M65: 0.9841777237 | O65: 4 | Q65: 0.9356174959 | S65: 3 | U65: 0.8485139836 | W65: 2 | Y65: 0.5326249538 | AA65: 1 | AC65: 0.4465534426 | AE65: 0 | AG65: 0 | AI65: 0 | AK65: 0 | AM65: 0 | AO65: 0 | AQ65: 0 | AS65: 0 | AU65: 0
G66: 6 | I66: 0.9932031618 | K66: 5 | M66: 0.9841777237 | O66: 4 | Q66: 0.9356174959 | S66: 3 | U66: 0.8485139836 | W66: 2 | Y66: 0.5326249538 | AA66: 1 | AC66: 0.4465534426 | AE66: 0 | AG66: 0 | AI66: 0 | AK66: 0 | AM66: 0 | AO66: 0 | AQ66: 0 | AS66: 0 | AU66: 0
G67: 6 | I67: 0.9932031618 | K67: 5 | M67: 0.9841777237 | O67: 4 | Q67: 0.9356174959 | S67: 3 | U67: 0.8485139836 | W67: 2 | Y67: 0.5326249538 | AA67: 1 | AC67: 0.4465534426 | AE67: 0 | AG67: 0 | AI67: 0 | AK67: 0 | AM67: 0 | AO67: 0 | AQ67: 0 | AS67: 0 | AU67: 0
G68: 6 | I68: 0.9932031618 | K68: 5 | M68: 0.9841777237 | O68: 4 | Q68: 0.9356174959 | S68: 3 | U68: 0.8485139836 | W68: 2 | Y68: 0.5326249538 | AA68: 1 | AC68: 0.4465534426 | AE68: 0 | AG68: 0 | AI68: 0 | AK68: 0 | AM68: 0 | AO68: 0 | AQ68: 0 | AS68: 0 | AU68: 0
G69: 6 | I69: 0.9932031618 | K69: 5 | M69: 0.9841777237 | O69: 4 | Q69: 0.9356174959 | S69: 3 | U69: 0.8485139836 | W69: 2 | Y69: 0.5326249538 | AA69: 1 | AC69: 0.4465534426 | AE69: 0 | AG69: 0 | AI69: 0 | AK69: 0 | AM69: 0 | AO69: 0 | AQ69: 0 | AS69: 0 | AU69: 0
G70: 6 | I70: 0.9932031618 | K70: 5 | M70: 0.9841777237 | O70: 4 | Q70: 0.9356174959 | S70: 3 | U70: 0.8485139836 | W70: 2 | Y70: 0.5326249538 | AA70: 1 | AC70: 0.4465534426 | AE70: 0 | AG70: 0 | AI70: 0 | AK70: 0 | AM70: 0 | AO70: 0 | AQ70: 0 | AS70: 0 | AU70: 0
G71: 6 | I71: 0.9932031618 | K71: 5 | M71: 0.9841777237 | O71: 4 | Q71: 0.9356174959 | S71: 3 | U71: 0.8485139836 | W71: 2 | Y71: 0.5326249538 | AA71: 1 | AC71: 0.4465534426 | AE71: 0 | AG71: 0 | AI71: 0 | AK71: 0 | AM71: 0 | AO71: 0 | AQ71: 0 | AS71: 0 | AU71: 0
G72: 6 | I72: 0.9932031618 | K72: 5 | M72: 0.9841777237 | O72: 4 | Q72: 0.9356174959 | S72: 3 | U72: 0.8485139836 | W72: 2 | Y72: 0.5326249538 | AA72: 1 | AC72: 0.4465534426 | AE72: 0 | AG72: 0 | AI72: 0 | AK72: 0 | AM72: 0 | AO72: 0 | AQ72: 0 | AS72: 0 | AU72: 0
G73: 6 | I73: 0.9932031618 | K73: 5 | M73: 0.9841777237 | O73: 4 | Q73: 0.9356174959 | S73: 3 | U73: 0.8485139836 | W73: 2 | Y73: 0.5326249538 | AA73: 1 | AC73: 0.4465534426 | AE73: 0 | AG73: 0 | AI73: 0 | AK73: 0 | AM73: 0 | AO73: 0 | AQ73: 0 | AS73: 0 | AU73: 0
G74: 6 | I74: 0.9932031618 | K74: 5 | M74: 0.9841777237 | O74: 4 | Q74: 0.9356174959 | S74: 3 | U74: 0.8485139836 | W74: 2 | Y74: 0.5326249538 | AA74: 1 | AC74: 0.4465534426 | AE74: 0 | AG74: 0 | AI74: 0 | AK74: 0 | AM74: 0 | AO74: 0 | AQ74: 0 | AS74: 0 | AU74: 0
G75: 6 | I75: 0.9932031618 | K75: 5 | M75: 0.9841777237 | O75: 4 | Q75: 0.9356174959 | S75: 3 | U75: 0.8485139836 | W75: 2 | Y75: 0.5326249538 | AA75: 1 | AC75: 0.4465534426 | AE75: 0 | AG75: 0 | AI75: 0 | AK75: 0 | AM75: 0 | AO75: 0 | AQ75: 0 | AS75: 0 | AU75: 0
G76: 6 | I76: 0.9932031618 | K76: 5 | M76: 0.9841777237 | O76: 4 | Q76: 0.9356174959 | S76: 3 | U76: 0.8485139836 | W76: 2 | Y76: 0.5326249538 | AA76: 1 | AC76: 0.4465534426 | AE76: 0 | AG76: 0 | AI76: 0 | AK76: 0 | AM76: 0 | AO76: 0 | AQ76: 0 | AS76: 0 | AU76: 0
G77: 6 | I77: 0.9932031618 | K77: 5 | M77: 0.9841777237 | O77: 4 | Q77: 0.9356174959 | S77: 3 | U77: 0.8485139836 | W77: 2 | Y77: 0.5326249538 | AA77: 1 | AC77: 0.4465534426 | AE77: 0 | AG77: 0 | AI77: 0 | AK77: 0 | AM77: 0 | AO77: 0 | AQ77: 0 | AS77: 0 | AU77: 0
G78: 6 | I78: 0.9932031618 | K78: 5 | M78: 0.9841777237 | O78: 4 | Q78: 0.9356174959 | S78: 3 | U78: 0.8485139836 | W78: 2 | Y78: 0.5326249538 | AA78: 1 | AC78: 0.4465534426 | AE78: 0 | AG78: 0 | AI78: 0 | AK78: 0 | AM78: 0 | AO78: 0 | AQ78: 0 | AS78: 0 | AU78: 0
G79: 6 | I79: 0.9932031618 | K79: 5 | M79: 0.9841777237 | O79: 4 | Q79: 0.9356174959 | S79: 3 | U79: 0.8485139836 | W79: 2 | Y79: 0.5326249538 | AA79: 1 | AC79: 0.4465534426 | AE79: 0 | AG79: 0 | AI79: 0 | AK79: 0 | AM79: 0 | AO79: 0 | AQ79: 0 | AS79: 0 | AU79: 0
G80: 6 | I80: 0.9932031618 | K80: 5 | M80: 0.9841777237 | O80: 4 | Q80: 0.9356174959 | S80: 3 | U80: 0.8485139836 | W80: 2 | Y80: 0.5326249538 | AA80: 1 | AC80: 0.4465534426 | AE80: 0 | AG80: 0 | AI80: 0 | AK80: 0 | AM80: 0 | AO80: 0 | AQ80: 0 | AS80: 0 | AU80: 0
G81: 6 | I81: 0.9932031618 | K81: 5 | M81: 0.9841777237 | O81: 4 | Q81: 0.9356174959 | S81: 3 | U81: 0.8485139836 | W81: 2 | Y81: 0.5326249538 | AA81: 1 | AC81: 0.4465534426 | AE81: 0 | AG81: 0 | AI81: 0 | AK81: 0 | AM81: 0 | AO81: 0 | AQ81: 0 | AS81: 0 | AU81: 0
G82: 6 | I82: 0.9932031618 | K82: 5 | M82: 0.9841777237 | O82: 4 | Q82: 0.9356174959 | S82: 3 | U82: 0.8485139836 | W82: 2 | Y82: 0.5326249538 | AA82: 1 | AC82: 0.4465534426 | AE82: 0 | AG82: 0 | AI82: 0 | AK82: 0 | AM82: 0 | AO82: 0 | AQ82: 0 | AS82: 0 | AU82: 0
G83: 6 | I83: 0.9932031618 | K83: 5 | M83: 0.9841777237 | O83: 4 | Q83: 0.9356174959 | S83: 3 | U83: 0.8485139836 | W83: 2 | Y83: 0.5326249538 | AA83: 1 | AC83: 0.4465534426 | AE83: 0 | AG83: 0 | AI83: 0 | AK83: 0 | AM83: 0 | AO83: 0 | AQ83: 0 | AS83: 0 | AU83: 0
G84: 6 | I84: 0.9932031618 | K84: 5 | M84: 0.9841777237 | O84: 4 | Q84: 0.9356174959 | S84: 3 | U84: 0.8485139836 | W84: 2 | Y84: 0.5326249538 | AA84: 1 | AC84: 0.4465534426 | AE84: 0 | AG84: 0 | AI84: 0 | AK84: 0 | AM84: 0 | AO84: 0 | AQ84: 0 | AS84: 0 | AU84: 0
G85: 6 | I85: 0.9932031618 | K85: 5 | M85: 0.9841777237 | O85: 4 | Q85: 0.9356174959 | S85: 3 | U85: 0.8485139836 | W85: 2 | Y85: 0.5326249538 | AA85: 1 | AC85: 0.4465534426 | AE85: 0 | AG85: 0 | AI85: 0 | AK85: 0 | AM85: 0 | AO85: 0 | AQ85: 0 | AS85: 0 | AU85: 0
G86: 6 | I86: 0.9932031618 | K86: 5 | M86: 0.9841777237 | O86: 4 | Q86: 0.9356174959 | S86: 3 | U86: 0.8485139836 | W86: 2 | Y86: 0.5326249538 | AA86: 1 | AC86: 0.4465534426 | AE86: 0 | AG86: 0 | AI86: 0 | AK86: 0 | AM86: 0 | AO86: 0 | AQ86: 0 | AS86: 0 | AU86: 0
G87: 6 | I87: 0.9932031618 | K87: 5 | M87: 0.9841777237 | O87: 4 | Q87: 0.9356174959 | S87: 3 | U87: 0.8485139836 | W87: 2 | Y87: 0.5326249538 | AA87: 1 | AC87: 0.4465534426 | AE87: 0 | AG87: 0 | AI87: 0 | AK87: 0 | AM87: 0 | AO87: 0 | AQ87: 0 | AS87: 0 | AU87: 0
G88: 6 | I88: 0.9932031618 | K88: 5 | M88: 0.9841777237 | O88: 4 | Q88: 0.9356174959 | S88: 3 | U88: 0.8485139836 | W88: 2 | Y88: 0.5326249538 | AA88: 1 | AC88: 0.4465534426 | AE88: 0 | AG88: 0 | AI88: 0 | AK88: 0 | AM88: 0 | AO88: 0 | AQ88: 0 | AS88: 0 | AU88: 0
G89: 6 | I89: 0.9932031618 | K89: 5 | M89: 0.9841777237 | O89: 4 | Q89: 0.9356174959 | S89: 3 | U89: 0.8485139836 | W89: 2 | Y89: 0.5326249538 | AA89: 1 | AC89: 0.4465534426 | AE89: 0 | AG89: 0 | AI89: 0 | AK89: 0 | AM89: 0 | AO89: 0 | AQ89: 0 | AS89: 0 | AU89: 0
G102: =גיליון2!G102 -> 6 | I102: =MAX(גיליון2!H102:H139) -> 31888.48276 | K102: =גיליון2!K102 -> 5 | M102: =MAX(גיליון2!L102:L139) -> 31832.875 | O102: =גיליון2!O102 -> 4 | Q102: =MAX(גיליון2!P102:P139) -> 31709.27273 | S102: =גיליון2!S102 -> 3 | U102: =MAX(גיליון2!T102:T139) -> 31028.04167 | W102: =גיליון2!W102 -> 2 | Y102: =MAX(גיליון2!X102:X139) -> 30929.6 | AA102: =גיליון2!AA102 -> 1 | AC102: =MAX(גיליון2!AB102:AB139) -> 30902.13333 | AE102: =גיליון2!AE102 -> 0 | AG102: =MAX(גיליון2!AF102:AF139) -> 0 | AI102: =גיליון2!AI102 -> 0 | AK102: =MAX(גיליון2!AJ102:AJ139) -> 0 | AM102: =גיליון2!AM102 -> 0 | AO102: =MAX(גיליון2!AN102:AN139) -> 0 | AQ102: =גיליון2!AQ102 -> 0 | AS102: =MAX(גיליון2!AR102:AR139) -> 0
G103: =G102 -> 6 | I103: =I102 -> 31888.48276 | K103: =K102 -> 5 | M103: =M102 -> 31832.875 | O103: =O102 -> 4 | Q103: =Q102 -> 31709.27273 | S103: =S102 -> 3 | U103: =U102 -> 31028.04167 | W103: =W102 -> 2 | Y103: =Y102 -> 30929.6 | AA103: =AA102 -> 1 | AC103: =AC102 -> 30902.13333 | AE103: =AE102 -> 0 | AG103: =AG102 -> 0 | AI103: =AI102 -> 0 | AK103: =AK102 -> 0 | AM103: =AM102 -> 0 | AO103: =AO102 -> 0 | AQ103: =AQ102 -> 0 | AS103: =AS102 -> 0
G104: 6 | I104: 31888.48276 | K104: 5 | M104: 31832.875 | O104: 4 | Q104: 31709.27273 | S104: 3 | U104: 31028.04167 | W104: 2 | Y104: 30929.6 | AA104: 1 | AC104: 30902.13333 | AE104: 0 | AG104: 0 | AI104: 0 | AK104: 0 | AM104: 0 | AO104: 0 | AQ104: 0 | AS104: 0
G105: 6 | I105: 31888.48276 | K105: 5 | M105: 31832.875 | O105: 4 | Q105: 31709.27273 | S105: 3 | U105: 31028.04167 | W105: 2 | Y105: 30929.6 | AA105: 1 | AC105: 30902.13333 | AE105: 0 | AG105: 0 | AI105: 0 | AK105: 0 | AM105: 0 | AO105: 0 | AQ105: 0 | AS105: 0
G106: 6 | I106: 31888.48276 | K106: 5 | M106: 31832.875 | O106: 4 | Q106: 31709.27273 | S106: 3 | U106: 31028.04167 | W106: 2 | Y106: 30929.6 | AA106: 1 | AC106: 30902.13333 | AE106: 0 | AG106: 0 | AI106: 0 | AK106: 0 | AM106: 0 | AO106: 0 | AQ106: 0 | AS106: 0
G107: 6 | I107: 31888.48276 | K107: 5 | M107: 31832.875 | O107: 4 | Q107: 31709.27273 | S107: 3 | U107: 31028.04167 | W107: 2 | Y107: 30929.6 | AA107: 1 | AC107: 30902.13333 | AE107: 0 | AG107: 0 | AI107: 0 | AK107: 0 | AM107: 0 | AO107: 0 | AQ107: 0 | AS107: 0
G108: 6 | I108: 31888.48276 | K108: 5 | M108: 31832.875 | O108: 4 | Q108: 31709.27273 | S108: 3 | U108: 31028.04167 | W108: 2 | Y108: 30929.6 | AA108: 1 | AC108: 30902.13333 | AE108: 0 | AG108: 0 | AI108: 0 | AK108: 0 | AM108: 0 | AO108: 0 | AQ108: 0 | AS108: 0
G109: 6 | I109: 31888.48276 | K109: 5 | M109: 31832.875 | O109: 4 | Q109: 31709.27273 | S109: 3 | U109: 31028.04167 | W109: 2 | Y109: 30929.6 | AA109: 1 | AC109: 30902.13333 | AE109: 0 | AG109: 0 | AI109: 0 | AK109: 0 | AM109: 0 | AO109: 0 | AQ109: 0 | AS109: 0
G110: 6 | I110: 31888.48276 | K110: 5 | M110: 31832.875 | O110: 4 | Q110: 31709.27273 | S110: 3 | U110: 31028.04167 | W110: 2 | Y110: 30929.6 | AA110: 1 | AC110: 30902.13333 | AE110: 0 | AG110: 0 | AI110: 0 | AK110: 0 | AM110: 0 | AO110: 0 | AQ110: 0 | AS110: 0
G111: 6 | I111: 31888.48276 | K111: 5 | M111: 31832.875 | O111: 4 | Q111: 31709.27273 | S111: 3 | U111: 31028.04167 | W111: 2 | Y111: 30929.6 | AA111: 1 | AC111: 30902.13333 | AE111: 0 | AG111: 0 | AI111: 0 | AK111: 0 | AM111: 0 | AO111: 0 | AQ111: 0 | AS111: 0
G112: 6 | I112: 31888.48276 | K112: 5 | M112: 31832.875 | O112: 4 | Q112: 31709.27273 | S112: 3 | U112: 31028.04167 | W112: 2 | Y112: 30929.6 | AA112: 1 | AC112: 30902.13333 | AE112: 0 | AG112: 0 | AI112: 0 | AK112: 0 | AM112: 0 | AO112: 0 | AQ112: 0 | AS112: 0
G113: 6 | I113: 31888.48276 | K113: 5 | M113: 31832.875 | O113: 4 | Q113: 31709.27273 | S113: 3 | U113: 31028.04167 | W113: 2 | Y113: 30929.6 | AA113: 1 | AC113: 30902.13333 | AE113: 0 | AG113: 0 | AI113: 0 | AK113: 0 | AM113: 0 | AO113: 0 | AQ113: 0 | AS113: 0
G114: 6 | I114: 31888.48276 | K114: 5 | M114: 31832.875 | O114: 4 | Q114: 31709.27273 | S114: 3 | U114: 31028.04167 | W114: 2 | Y114: 30929.6 | AA114: 1 | AC114: 30902.13333 | AE114: 0 | AG114: 0 | AI114: 0 | AK114: 0 | AM114: 0 | AO114: 0 | AQ114: 0 | AS114: 0
G115: 6 | I115: 31888.48276 | K115: 5 | M115: 31832.875 | O115: 4 | Q115: 31709.27273 | S115: 3 | U115: 31028.04167 | W115: 2 | Y115: 30929.6 | AA115: 1 | AC115: 30902.13333 | AE115: 0 | AG115: 0 | AI115: 0 | AK115: 0 | AM115: 0 | AO115: 0 | AQ115: 0 | AS115: 0
G116: 6 | I116: 31888.48276 | K116: 5 | M116: 31832.875 | O116: 4 | Q116: 31709.27273 | S116: 3 | U116: 31028.04167 | W116: 2 | Y116: 30929.6 | AA116: 1 | AC116: 30902.13333 | AE116: 0 | AG116: 0 | AI116: 0 | AK116: 0 | AM116: 0 | AO116: 0 | AQ116: 0 | AS116: 0
G117: 6 | I117: 31888.48276 | K117: 5 | M117: 31832.875 | O117: 4 | Q117: 31709.27273 | S117: 3 | U117: 31028.04167 | W117: 2 | Y117: 30929.6 | AA117: 1 | AC117: 30902.13333 | AE117: 0 | AG117: 0 | AI117: 0 | AK117: 0 | AM117: 0 | AO117: 0 | AQ117: 0 | AS117: 0
G118: 6 | I118: 31888.48276 | K118: 5 | M118: 31832.875 | O118: 4 | Q118: 31709.27273 | S118: 3 | U118: 31028.04167 | W118: 2 | Y118: 30929.6 | AA118: 1 | AC118: 30902.13333 | AE118: 0 | AG118: 0 | AI118: 0 | AK118: 0 | AM118: 0 | AO118: 0 | AQ118: 0 | AS118: 0
G119: 6 | I119: 31888.48276 | K119: 5 | M119: 31832.875 | O119: 4 | Q119: 31709.27273 | S119: 3 | U119: 31028.04167 | W119: 2 | Y119: 30929.6 | AA119: 1 | AC119: 30902.13333 | AE119: 0 | AG119: 0 | AI119: 0 | AK119: 0 | AM119: 0 | AO119: 0 | AQ119: 0 | AS119: 0
G120: 6 | I120: 31888.48276 | K120: 5 | M120: 31832.875 | O120: 4 | Q120: 31709.27273 | S120: 3 | U120: 31028.04167 | W120: 2 | Y120: 30929.6 | AA120: 1 | AC120: 30902.13333 | AE120: 0 | AG120: 0 | AI120: 0 | AK120: 0 | AM120: 0 | AO120: 0 | AQ120: 0 | AS120: 0
G121: 6 | I121: 31888.48276 | K121: 5 | M121: 31832.875 | O121: 4 | Q121: 31709.27273 | S121: 3 | U121: 31028.04167 | W121: 2 | Y121: 30929.6 | AA121: 1 | AC121: 30902.13333 | AE121: 0 | AG121: 0 | AI121: 0 | AK121: 0 | AM121: 0 | AO121: 0 | AQ121: 0 | AS121: 0
G122: 6 | I122: 31888.48276 | K122: 5 | M122: 31832.875 | O122: 4 | Q122: 31709.27273 | S122: 3 | U122: 31028.04167 | W122: 2 | Y122: 30929.6 | AA122: 1 | AC122: 30902.13333 | AE122: 0 | AG122: 0 | AI122: 0 | AK122: 0 | AM122: 0 | AO122: 0 | AQ122: 0 | AS122: 0
G123: 6 | I123: 31888.48276 | K123: 5 | M123: 31832.875 | O123: 4 | Q123: 31709.27273 | S123: 3 | U123: 31028.04167 | W123: 2 | Y123: 30929.6 | AA123: 1 | AC123: 30902.13333 | AE123: 0 | AG123: 0 | AI123: 0 | AK123: 0 | AM123: 0 | AO123: 0 | AQ123: 0 | AS123: 0
G124: 6 | I124: 31888.48276 | K124: 5 | M124: 31832.875 | O124: 4 | Q124: 31709.27273 | S124: 3 | U124: 31028.04167 | W124: 2 | Y124: 30929.6 | AA124: 1 | AC124: 30902.13333 | AE124: 0 | AG124: 0 | AI124: 0 | AK124: 0 | AM124: 0 | AO124: 0 | AQ124: 0 | AS124: 0
G125: 6 | I125: 31888.48276 | K125: 5 | M125: 31832.875 | O125: 4 | Q125: 31709.27273 | S125: 3 | U125: 31028.04167 | W125: 2 | Y125: 30929.6 | AA125: 1 | AC125: 30902.13333 | AE125: 0 | AG125: 0 | AI125: 0 | AK125: 0 | AM125: 0 | AO125: 0 | AQ125: 0 | AS125: 0
G126: 6 | I126: 31888.48276 | K126: 5 | M126: 31832.875 | O126: 4 | Q126: 31709.27273 | S126: 3 | U126: 31028.04167 | W126: 2 | Y126: 30929.6 | AA126: 1 | AC126: 30902.13333 | AE126: 0 | AG126: 0 | AI126: 0 | AK126: 0 | AM126: 0 | AO126: 0 | AQ126: 0 | AS126: 0
G127: 6 | I127: 31888.48276 | K127: 5 | M127: 31832.875 | O127: 4 | Q127: 31709.27273 | S127: 3 | U127: 31028.04167 | W127: 2 | Y127: 30929.6 | AA127: 1 | AC127: 30902.13333 | AE127: 0 | AG127: 0 | AI127: 0 | AK127: 0 | AM127: 0 | AO127: 0 | AQ127: 0 | AS127: 0
G128: 6 | I128: 31888.48276 | K128: 5 | M128: 31832.875 | O128: 4 | Q128: 31709.27273 | S128: 3 | U128: 31028.04167 | W128: 2 | Y128: 30929.6 | AA128: 1 | AC128: 30902.13333 | AE128: 0 | AG128: 0 | AI128: 0 | AK128: 0 | AM128: 0 | AO128: 0 | AQ128: 0 | AS128: 0
G129: 6 | I129: 31888.48276 | K129: 5 | M129: 31832.875 | O129: 4 | Q129: 31709.27273 | S129: 3 | U129: 31028.04167 | W129: 2 | Y129: 30929.6 | AA129: 1 | AC129: 30902.13333 | AE129: 0 | AG129: 0 | AI129: 0 | AK129: 0 | AM129: 0 | AO129: 0 | AQ129: 0 | AS129: 0
G130: 6 | I130: 31888.48276 | K130: 5 | M130: 31832.875 | O130: 4 | Q130: 31709.27273 | S130: 3 | U130: 31028.04167 | W130: 2 | Y130: 30929.6 | AA130: 1 | AC130: 30902.13333 | AE130: 0 | AG130: 0 | AI130: 0 | AK130: 0 | AM130: 0 | AO130: 0 | AQ130: 0 | AS130: 0
G131: 6 | I131: 31888.48276 | K131: 5 | M131: 31832.875 | O131: 4 | Q131: 31709.27273 | S131: 3 | U131: 31028.04167 | W131: 2 | Y131: 30929.6 | AA131: 1 | AC131: 30902.13333 | AE131: 0 | AG131: 0 | AI131: 0 | AK131: 0 | AM131: 0 | AO131: 0 | AQ131: 0 | AS131: 0
G132: 6 | I132: 31888.48276 | K132: 5 | M132: 31832.875 | O132: 4 | Q132: 31709.27273 | S132: 3 | U132: 31028.04167 | W132: 2 | Y132: 30929.6 | AA132: 1 | AC132: 30902.13333 | AE132: 0 | AG132: 0 | AI132: 0 | AK132: 0 | AM132: 0 | AO132: 0 | AQ132: 0 | AS132: 0
G133: 6 | I133: 31888.48276 | K133: 5 | M133: 31832.875 | O133: 4 | Q133: 31709.27273 | S133: 3 | U133: 31028.04167 | W133: 2 | Y133: 30929.6 | AA133: 1 | AC133: 30902.13333 | AE133: 0 | AG133: 0 | AI133: 0 | AK133: 0 | AM133: 0 | AO133: 0 | AQ133: 0 | AS133: 0
G134: 6 | I134: 31888.48276 | K134: 5 | M134: 31832.875 | O134: 4 | Q134: 31709.27273 | S134: 3 | U134: 31028.04167 | W134: 2 | Y134: 30929.6 | AA134: 1 | AC134: 30902.13333 | AE134: 0 | AG134: 0 | AI134: 0 | AK134: 0 | AM134: 0 | AO134: 0 | AQ134: 0 | AS134: 0
G135: 6 | I135: 31888.48276 | K135: 5 | M135: 31832.875 | O135: 4 | Q135: 31709.27273 | S135: 3 | U135: 31028.04167 | W135: 2 | Y135: 30929.6 | AA135: 1 | AC135: 30902.13333 | AE135: 0 | AG135: 0 | AI135: 0 | AK135: 0 | AM135: 0 | AO135: 0 | AQ135: 0 | AS135: 0
G136: 6 | I136: 31888.48276 | K136: 5 | M136: 31832.875 | O136: 4 | Q136: 31709.27273 | S136: 3 | U136: 31028.04167 | W136: 2 | Y136: 30929.6 | AA136: 1 | AC136: 30902.13333 | AE136: 0 | AG136: 0 | AI136: 0 | AK136: 0 | AM136: 0 | AO136: 0 | AQ136: 0 | AS136: 0
G137: 6 | I137: 31888.48276 | K137: 5 | M137: 31832.875 | O137: 4 | Q137: 31709.27273 | S137: 3 | U137: 31028.04167 | W137: 2 | Y137: 30929.6 | AA137: 1 | AC137: 30902.13333 | AE137: 0 | AG137: 0 | AI137: 0 | AK137: 0 | AM137: 0 | AO137: 0 | AQ137: 0 | AS137: 0
G138: 6 | I138: 31888.48276 | K138: 5 | M138: 31832.875 | O138: 4 | Q138: 31709.27273 | S138: 3 | U138: 31028.04167 | W138: 2 | Y138: 30929.6 | AA138: 1 | AC138: 30902.13333 | AE138: 0 | AG138: 0 | AI138: 0 | AK138: 0 | AM138: 0 | AO138: 0 | AQ138: 0 | AS138: 0
G139: 6 | I139: 31888.48276 | K139: 5 | M139: 31832.875 | O139: 4 | Q139: 31709.27273 | S139: 3 | U139: 31028.04167 | W139: 2 | Y139: 30929.6 | AA139: 1 | AC139: 30902.13333 | AE139: 0 | AG139: 0 | AI139: 0 | AK139: 0 | AM139: 0 | AO139: 0 | AQ139: 0 | AS139: 0
